{"text_format":"1","workbook":"xlsx","n_sheets":6,"sheets":["申込手順","入力シート","申込","プログラム男子","入力規則","申込選手一覧（個人）"],"not_rendered":{"charts":0,"images":0,"macros":1,"external_links":0,"defined_names":0,"comments":0,"pivot_tables":0},"unopened":[],"bounds":{"document_bytes":16777216,"sheet_cells":100000,"rows_first":2000,"rows_last":500,"rows_between":2000,"halvings":0,"cell_chars":16384,"cell_head_chars":4096},"cells_cut":0,"cells_raw":0,"read":"whole","date_system":"1900"}

{"sheet":"申込手順","index":0,"n_rows":20,"n_cols":7,"rows_kept":20,"cut":false,"hidden":false,"merged":[[0,0,1,0],[0,1,1,3],[0,6,1,11],[2,1,3,11],[4,0,5,0],[4,1,5,11],[19,0,20,0],[19,1,20,11],[10,0,10,10],[11,0,12,0],[11,1,12,11],[13,1,14,11],[15,1,16,11],[17,0,18,0],[17,1,18,11]]}
["①","入力シートに必要事項を記入し",null,null,null,null,"をクリックしてください。　郵送用の申込用紙が印刷されます。"]
[]
[null,"※用紙は「B5」でお願いします。　(団体はB5　1枚　　個人は2名でB5　1枚　に印刷されます）"]
[]
["②","印刷された、申込用紙に「公印」を押して、期日までに所定の申込先に郵送してください。（こちらが正式申込となります）"]
[]
["　　　　男子　〒534-0015　大阪市都島区善源寺町1-5-64　　℡　06-6921-0231"]
["      　　　      大阪市立 都島工業高等学校　　　梅垣　穂高　先生"]
[]
["　　　　申込締切日：平成 29 年 7 月 5 日（水）正午　※郵送・メール共"]
["　　　"]
["③","入力済みのファイルを　ファイル＞名前を付けて保存＞で　"]
[]
[null,"　　　ファイル名を　「　学校番号（数字３桁）＋（学校名）＋部別（１部：1　2部：2）　」に変更して保存してください。"]
[]
[null,"　　　　　　　　例）八尾高校（学校番号434）男子２部　＝　434（八尾）2"]
[]
["④","③で保存したファイルをメールに添付して　mail@highschool.osakajudo.info　　に送信してください"]
[]
["⑤","申込メールを受理した旨の、確認メールが数日中に返信されます"]

{"sheet":"入力シート","index":1,"n_rows":249,"n_cols":197,"rows_kept":249,"cut":false,"hidden":false,"merged":[[82,8,82,21],[83,8,85,21],[98,8,98,21],[94,24,94,37],[95,8,97,21],[110,44,110,48],[110,6,110,37],[104,22,105,23],[100,6,101,7],[98,41,101,43],[59,8,61,21],[78,8,78,21],[74,8,74,21],[96,6,97,7],[95,24,97,37],[179,22,179,23],[183,2,186,5],[183,24,183,37],[180,22,180,23],[181,6,182,7],[173,6,174,7],[173,22,174,23],[171,8,171,21],[175,24,175,37],[179,8,179,21],[160,22,160,23],[145,6,146,7],[139,24,139,37],[131,38,134,40],[160,8,162,21],[132,22,132,23],[131,8,131,21],[175,59,178,61],[195,54,198,57],[195,58,198,58],[191,59,194,61],[191,58,194,58],[195,59,198,61],[171,24,171,37],[172,6,172,7],[167,8,167,21],[167,22,167,23],[111,54,114,57],[183,41,186,43],[183,44,186,48],[179,62,182,62],[179,59,182,61],[183,59,186,61],[175,58,178,58],[176,22,176,23],[177,22,178,23],[175,8,175,21],[177,6,178,7],[183,49,186,53],[167,58,170,58],[167,59,170,61],[168,6,168,7],[168,8,170,21],[171,22,171,23],[168,24,170,37],[161,6,162,7],[159,8,159,21],[159,41,162,43],[159,49,162,53],[179,2,182,5],[183,8,183,21],[195,62,198,62],[195,63,198,65],[195,41,198,43],[191,8,191,21],[188,8,190,21],[184,6,184,7],[184,8,186,21],[184,22,184,23],[192,6,192,7],[187,38,190,40],[187,22,187,23],[189,6,190,7],[189,22,190,23],[187,8,187,21],[185,6,186,7],[187,2,190,5],[188,22,188,23],[179,58,182,58],[187,49,190,53],[187,58,190,58],[183,54,186,57],[187,63,190,65],[191,62,194,62],[191,63,194,65],[184,24,186,37],[167,2,170,5],[137,6,138,7],[147,2,150,5],[144,6,144,7],[140,6,140,7],[153,22,154,23],[151,22,151,23],[147,8,147,21],[171,54,174,57],[175,2,178,5],[175,22,175,23],[176,8,178,21],[167,49,170,53],[151,8,151,21],[169,6,170,7],[169,22,170,23],[163,2,166,5],[164,6,164,7],[164,8,166,21],[157,6,158,7],[165,6,166,7],[160,6,160,7],[143,2,146,5],[159,2,162,5],[159,44,162,48],[123,22,123,23],[152,24,154,37],[155,8,155,21],[156,8,158,21],[144,24,146,37],[132,6,132,7],[132,8,134,21],[159,38,162,40],[159,24,159,37],[160,24,162,37],[136,6,136,7],[163,44,166,48],[163,41,166,43],[135,44,138,48],[131,41,134,43],[131,24,131,37],[155,2,158,5],[155,22,155,23],[135,8,135,21],[135,22,135,23],[151,2,154,5],[131,2,134,5],[135,2,138,5],[155,44,158,48],[147,38,150,40],[156,24,158,37],[151,41,154,43],[164,24,166,37],[156,6,156,7],[82,63,85,65],[82,58,85,58],[167,24,167,37],[164,22,164,23],[165,22,166,23],[115,8,115,21],[119,8,119,21],[147,58,150,58],[151,58,154,58],[151,24,151,37],[143,49,146,53],[152,8,154,21],[152,22,152,23],[139,44,142,48],[147,41,150,43],[140,8,142,21],[147,24,147,37],[148,24,150,37],[148,8,150,21],[140,24,142,37],[149,22,150,23],[147,22,147,23],[144,22,144,23],[143,41,146,43],[143,8,143,21],[140,22,140,23],[115,49,118,53],[119,41,122,43],[139,38,142,40],[143,58,146,58],[123,8,123,21],[127,44,130,48],[102,22,102,23],[107,2,108,10],[110,2,110,5],[127,8,127,21],[58,22,58,23],[59,22,59,23],[59,6,59,7],[550,38,551,47],[58,44,61,48],[58,24,58,37],[58,49,61,53],[62,44,65,48],[60,6,61,7],[60,22,61,23],[54,63,57,65],[544,59,546,61],[544,62,546,62],[540,51,542,62],[82,62,85,62],[78,54,81,57],[78,58,81,58],[86,63,89,65],[94,63,97,65],[78,62,81,62],[86,62,89,62],[497,44,497,48],[86,49,89,53],[86,58,89,58],[111,44,114,48],[86,44,89,48],[102,44,105,48],[127,58,130,58],[74,24,74,37],[82,24,82,37],[79,24,81,37],[82,59,85,61],[71,8,73,21],[71,24,73,37],[563,49,565,50],[82,41,85,43],[82,54,85,57],[82,44,85,48],[123,54,126,57],[115,44,118,48],[90,49,93,53],[563,38,565,48],[540,38,542,48],[82,49,85,53],[562,6,562,37],[560,6,561,12],[554,28,555,28],[554,29,555,36],[554,37,555,37],[562,51,562,65],[560,13,561,20],[562,38,562,50],[74,59,77,61],[74,62,77,62],[70,59,73,61],[70,63,73,65],[90,58,93,58],[112,22,112,23],[111,8,111,21],[113,22,114,23],[58,58,61,58],[62,38,65,40],[58,38,61,40],[58,41,61,43],[62,49,65,53],[62,54,65,57],[62,58,65,58],[70,58,73,58],[66,58,69,58],[66,49,69,53],[66,54,69,57],[67,24,69,37],[63,24,65,37],[66,41,69,43],[66,44,69,48],[66,24,66,37],[70,44,73,48],[550,16,551,16],[544,49,546,53],[543,44,543,48],[544,22,544,23],[563,2,565,5],[66,59,69,61],[74,49,77,53],[74,63,77,65],[544,2,546,5],[543,49,543,53],[66,2,69,5],[94,58,97,58],[94,59,97,61],[102,24,102,37],[493,2,493,5],[90,62,93,62],[94,2,97,5],[99,6,99,7],[90,8,90,21],[92,6,93,7],[91,6,91,7],[91,8,93,21],[481,51,482,65],[131,22,131,23],[86,24,86,37],[87,22,87,23],[87,24,89,37],[86,41,89,43],[102,38,105,40],[94,38,97,40],[90,24,90,37],[543,24,543,37],[50,41,53,43],[72,6,73,7],[539,6,539,37],[531,28,532,28],[508,37,509,37],[75,22,75,23],[491,13,492,20],[543,22,543,23],[75,24,77,37],[63,6,63,7],[72,22,73,23],[566,2,566,5],[566,6,566,7],[566,8,566,21],[566,22,566,23],[543,2,543,5],[548,17,549,21],[544,8,546,21],[58,2,61,5],[78,2,81,5],[83,6,83,7],[63,8,65,21],[82,2,85,5],[75,6,75,7],[68,6,69,7],[75,8,77,21],[79,8,81,21],[58,8,58,21],[550,17,551,21],[550,22,551,27],[548,28,549,28],[560,21,561,24],[548,38,549,65],[550,48,551,50],[563,27,565,37],[111,62,114,62],[563,63,565,65],[563,51,565,62],[547,2,547,65],[550,29,551,33],[550,51,551,65],[563,6,565,26],[550,34,551,37],[98,59,101,61],[102,58,105,58],[527,28,528,28],[522,22,523,23],[548,29,549,33],[548,34,549,37],[550,28,551,28],[558,0,559,65],[562,2,562,5],[102,63,105,65],[110,54,110,65],[102,62,105,62],[102,59,105,61],[111,58,114,58],[544,54,546,57],[544,63,546,65],[544,58,546,58],[525,2,526,15],[540,27,542,37],[560,25,561,65],[550,2,551,15],[543,8,543,21],[111,24,111,37],[111,41,114,43],[112,24,114,37],[111,49,114,53],[543,54,543,65],[544,41,546,43],[544,38,546,40],[78,49,81,53],[79,6,79,7],[111,59,114,61],[545,6,546,7],[544,44,546,48],[545,22,546,23],[527,29,528,33],[78,59,81,61],[78,24,78,37],[544,24,546,37],[543,38,543,40],[543,41,543,43],[78,44,81,48],[98,38,101,40],[80,6,81,7],[90,38,93,40],[90,41,93,43],[90,44,93,48],[82,38,85,40],[98,22,98,23],[100,22,101,23],[112,6,112,7],[103,22,103,23],[103,8,105,21],[1,52,1,54],[2,52,2,54],[3,52,3,54],[58,54,61,57],[7,50,7,65],[50,54,53,57],[58,59,61,61],[58,62,61,62],[58,63,61,65],[8,62,10,65],[560,2,561,5],[525,22,526,27],[1,2,2,10],[25,8,27,21],[12,2,15,5],[21,6,21,7],[5,15,6,50],[16,49,19,53],[16,22,16,23],[20,44,23,48],[1,11,3,29],[548,2,549,15],[548,16,549,16],[20,49,23,53],[54,49,57,53],[50,49,53,53],[544,6,544,7],[548,22,549,27],[62,41,65,43],[70,38,73,40],[7,35,7,49],[543,6,543,7],[66,63,69,65],[62,62,65,62],[70,54,73,57],[111,63,114,65],[70,62,73,62],[94,54,97,57],[98,54,101,57],[98,58,101,58],[78,63,81,65],[74,38,77,40],[62,63,65,65],[62,59,65,61],[66,62,69,62],[98,63,101,65],[74,54,77,57],[74,58,77,58],[111,38,114,40],[90,59,93,61],[94,49,97,53],[98,44,101,48],[102,49,105,53],[86,54,89,57],[86,38,89,40],[90,54,93,57],[94,44,97,48],[110,41,110,43],[102,41,105,43],[98,49,101,53],[70,41,73,43],[78,41,81,43],[94,41,97,43],[86,59,89,61],[527,16,528,16],[497,49,497,53],[479,22,480,27],[475,38,477,40],[493,6,493,37],[497,41,497,43],[135,54,138,57],[451,44,451,48],[451,49,451,53],[493,38,493,50],[491,21,492,24],[520,2,520,5],[521,63,523,65],[517,2,519,5],[94,62,97,62],[110,49,110,53],[78,38,81,40],[98,62,101,62],[90,63,93,65],[102,54,105,57],[113,6,114,7],[102,8,102,21],[111,22,111,23],[99,22,99,23],[99,24,101,37],[94,22,94,23],[96,22,97,23],[87,6,87,7],[87,8,89,21],[94,8,94,21],[95,6,95,7],[90,22,90,23],[498,6,498,7],[514,2,515,5],[514,6,515,12],[452,58,454,58],[452,44,454,48],[498,49,500,53],[498,41,500,43],[498,58,500,58],[116,6,116,7],[115,63,118,65],[115,58,118,58],[115,54,118,57],[115,59,118,61],[115,38,118,40],[539,2,539,5],[540,6,542,26],[537,2,538,5],[537,6,538,12],[537,13,538,20],[537,21,538,24],[540,2,542,5],[537,25,538,65],[123,44,126,48],[539,51,539,65],[539,38,539,50],[540,63,542,65],[527,48,528,50],[527,51,528,65],[540,49,542,50],[535,0,536,65],[527,22,528,27],[527,2,528,15],[498,38,500,40],[498,62,500,62],[498,59,500,61],[498,54,500,57],[127,41,130,43],[474,44,474,48],[494,38,496,48],[147,44,150,48],[497,54,497,65],[498,44,500,48],[123,49,126,53],[116,8,118,21],[127,24,127,37],[127,38,130,40],[115,62,118,62],[498,8,500,21],[498,22,498,23],[120,8,122,21],[119,24,119,37],[123,38,126,40],[124,24,126,37],[123,24,123,37],[127,22,127,23],[125,22,126,23],[124,8,126,21],[116,22,116,23],[115,22,115,23],[128,8,130,21],[129,22,130,23],[159,58,162,58],[155,24,155,37],[131,44,134,48],[521,6,521,7],[525,16,526,16],[525,17,526,21],[524,2,524,65],[525,28,526,28],[521,24,523,37],[521,38,523,40],[525,29,526,33],[525,34,526,37],[525,38,526,65],[521,49,523,53],[521,54,523,57],[520,24,520,37],[521,44,523,48],[520,41,520,43],[520,38,520,40],[521,59,523,61],[521,62,523,62],[499,6,500,7],[504,51,505,65],[520,49,520,53],[520,8,520,21],[504,38,505,47],[504,28,505,28],[522,6,523,7],[521,58,523,58],[521,41,523,43],[521,8,523,21],[521,22,521,23],[520,22,520,23],[481,22,482,27],[494,49,496,50],[498,24,500,37],[489,0,490,65],[491,2,492,5],[491,6,492,12],[481,17,482,21],[498,63,500,65],[494,2,496,5],[498,2,500,5],[499,22,500,23],[501,2,501,65],[502,29,503,33],[502,34,503,37],[502,38,503,65],[504,17,505,21],[502,16,503,16],[502,17,503,21],[508,29,509,36],[520,44,520,48],[531,29,532,36],[531,37,532,37],[502,28,503,28],[504,48,505,50],[508,28,509,28],[504,29,505,33],[516,38,516,50],[517,49,519,50],[517,38,519,48],[517,27,519,37],[502,22,503,27],[502,2,503,15],[516,2,516,5],[504,2,505,15],[504,16,505,16],[514,13,515,20],[514,21,515,24],[514,25,515,65],[527,17,528,21],[527,34,528,37],[527,38,528,47],[516,6,516,37],[512,0,513,65],[517,6,519,26],[517,51,519,62],[517,63,519,65],[520,54,520,65],[516,51,516,65],[504,22,505,27],[504,34,505,37],[520,6,520,7],[521,2,523,5],[475,49,477,53],[474,24,474,37],[485,37,486,37],[497,8,497,21],[497,22,497,23],[494,63,496,65],[481,38,482,47],[494,27,496,37],[493,51,493,65],[494,51,496,62],[497,38,497,40],[497,24,497,37],[491,25,492,65],[497,2,497,5],[497,6,497,7],[481,16,482,16],[481,34,482,37],[494,6,496,26],[481,2,482,15],[481,28,482,28],[485,28,486,28],[485,29,486,36],[478,2,478,65],[475,54,477,57],[456,16,457,16],[462,28,463,28],[458,22,459,27],[470,6,470,37],[468,6,469,12],[456,34,457,37],[474,2,474,5],[471,2,473,5],[471,6,473,26],[476,6,477,7],[474,22,474,23],[479,16,480,16],[471,49,473,50],[474,54,474,65],[475,62,477,62],[474,49,474,53],[475,22,475,23],[475,24,477,37],[458,51,459,65],[458,28,459,28],[474,6,474,7],[474,8,474,21],[470,51,470,65],[474,41,474,43],[474,38,474,40],[466,0,467,65],[458,34,459,37],[468,2,469,5],[458,17,459,21],[468,21,469,24],[479,17,480,21],[476,22,477,23],[451,6,451,7],[435,22,436,27],[435,17,436,21],[445,25,446,65],[448,27,450,37],[445,2,446,5],[451,41,451,43],[451,38,451,40],[435,48,436,50],[433,34,434,37],[439,28,440,28],[439,29,440,36],[439,37,440,37],[435,2,436,15],[435,16,436,16],[447,2,447,5],[445,6,446,12],[445,13,446,20],[433,17,434,21],[443,0,444,65],[95,22,95,23],[155,63,158,65],[155,54,158,57],[389,48,390,50],[383,44,385,48],[389,38,390,47],[74,41,77,43],[70,49,73,53],[387,38,388,65],[360,24,362,37],[360,41,362,43],[405,24,405,37],[167,41,170,43],[167,38,170,40],[176,24,178,37],[191,38,194,40],[196,24,198,37],[192,24,194,37],[383,24,385,37],[179,44,182,48],[119,63,122,65],[98,24,98,37],[91,24,93,37],[139,41,142,43],[131,49,134,53],[159,54,162,57],[147,54,150,57],[163,49,166,53],[171,58,174,58],[159,62,162,62],[151,54,154,57],[159,59,162,61],[445,21,446,24],[433,22,434,27],[429,8,431,21],[429,24,431,37],[432,2,432,65],[433,2,434,15],[435,29,436,33],[429,54,431,57],[429,62,431,62],[429,58,431,58],[429,59,431,61],[429,49,431,53],[429,44,431,48],[425,49,427,50],[435,28,436,28],[409,2,409,65],[410,2,411,15],[410,16,411,16],[410,34,411,37],[410,38,411,65],[410,22,411,27],[433,29,434,33],[429,22,429,23],[412,51,413,65],[430,6,431,7],[425,2,427,5],[119,49,122,53],[151,63,154,65],[131,54,134,57],[139,49,142,53],[127,54,130,57],[131,58,134,58],[151,62,154,62],[151,49,154,53],[139,54,142,57],[359,41,359,43],[74,44,77,48],[103,24,105,37],[110,38,110,40],[79,22,79,23],[359,22,359,23],[83,22,83,23],[143,24,143,37],[123,58,126,58],[157,22,158,23],[155,41,158,43],[151,38,154,40],[132,24,134,37],[167,44,170,48],[163,38,166,40],[175,49,178,53],[180,24,182,37],[187,41,190,43],[191,54,194,57],[183,58,186,58],[74,22,74,23],[76,22,77,23],[91,22,91,23],[424,38,424,50],[412,22,413,27],[405,38,405,40],[412,48,413,50],[119,54,122,57],[119,44,122,48],[120,24,122,37],[119,38,122,40],[383,38,385,40],[405,54,405,65],[406,59,408,61],[410,28,411,28],[410,29,411,33],[136,24,138,37],[135,38,138,40],[135,41,138,43],[127,49,130,53],[123,41,126,43],[124,22,124,23],[141,22,142,23],[175,54,178,57],[171,41,174,43],[163,58,166,58],[128,24,130,37],[133,22,134,23],[163,24,163,37],[163,54,166,57],[175,44,178,48],[135,49,138,53],[175,41,178,43],[171,38,174,40],[168,22,168,23],[410,17,411,21],[183,63,186,65],[183,62,186,62],[125,6,126,7],[128,6,128,7],[129,6,130,7],[148,6,148,7],[133,6,134,7],[366,22,367,27],[374,0,375,65],[359,44,359,48],[359,49,359,53],[351,0,352,65],[187,62,190,62],[187,59,190,61],[379,27,381,37],[364,29,365,33],[364,34,365,37],[370,37,371,37],[155,49,158,53],[355,51,355,65],[360,44,362,48],[143,62,146,62],[144,8,146,21],[143,54,146,57],[147,49,150,53],[135,24,135,37],[171,49,174,53],[171,44,174,48],[171,2,174,5],[172,22,172,23],[175,38,178,40],[397,0,398,65],[389,51,390,65],[399,21,400,24],[393,29,394,36],[119,2,122,5],[74,2,77,5],[88,6,89,7],[115,2,118,5],[117,6,118,7],[103,6,103,7],[104,6,105,7],[86,2,89,5],[76,6,77,7],[361,6,362,7],[163,8,163,21],[172,8,174,21],[176,6,176,7],[163,22,163,23],[353,13,354,20],[353,21,354,24],[359,6,359,7],[88,22,89,23],[112,8,114,21],[99,8,101,21],[86,8,86,21],[123,2,126,5],[124,6,124,7],[360,59,362,61],[356,63,358,65],[366,34,367,37],[366,48,367,50],[366,38,367,47],[127,2,130,5],[179,54,182,57],[193,6,194,7],[191,2,194,5],[187,44,190,48],[195,49,198,53],[360,6,360,7],[356,49,358,50],[191,44,194,48],[191,49,194,53],[195,44,198,48],[111,2,114,5],[102,2,105,5],[98,2,101,5],[406,8,408,21],[399,2,400,5],[399,6,400,12],[399,13,400,20],[405,41,405,43],[407,6,408,7],[383,8,385,21],[389,29,390,33],[387,34,388,37],[389,34,390,37],[406,24,408,37],[401,38,401,50],[406,44,408,48],[405,2,405,5],[405,6,405,7],[405,8,405,21],[405,22,405,23],[406,49,408,53],[402,2,404,5],[383,2,385,5],[383,6,383,7],[389,17,390,21],[387,28,388,28],[383,22,383,23],[387,22,388,27],[384,6,385,7],[389,16,390,16],[389,28,390,28],[389,2,390,15],[389,22,390,27],[356,51,358,62],[360,49,362,53],[360,54,362,57],[360,58,362,58],[359,54,359,65],[360,62,362,62],[387,2,388,15],[387,16,388,16],[399,25,400,65],[360,8,362,21],[364,17,365,21],[360,22,360,23],[361,22,362,23],[359,8,359,21],[376,21,377,24],[364,22,365,27],[401,2,401,5],[401,6,401,37],[387,17,388,21],[384,22,385,23],[191,24,191,37],[83,24,85,37],[143,44,146,48],[155,38,158,40],[175,63,178,65],[360,63,362,65],[131,62,134,62],[139,62,142,62],[139,59,142,61],[151,59,154,61],[155,59,158,61],[155,62,158,62],[179,63,182,65],[139,58,142,58],[147,62,150,62],[147,59,150,61],[123,63,126,65],[119,62,122,62],[171,63,174,65],[167,62,170,62],[159,63,162,65],[163,62,166,62],[171,62,174,62],[123,59,126,61],[127,62,130,62],[123,62,126,62],[172,24,174,37],[183,38,186,40],[353,25,354,65],[360,38,362,40],[359,24,359,37],[359,38,359,40],[355,2,355,5],[355,38,355,50],[356,38,358,48],[356,2,358,5],[355,6,355,37],[183,22,183,23],[171,59,174,61],[179,41,182,43],[353,2,354,5],[353,6,354,12],[195,2,198,5],[195,38,198,40],[197,6,198,7],[197,22,198,23]],"merged_total":2105,"flags":["merged_cut"]}
[null,null,null,null,null,null,null,null,null,null,null,null,null,null,null,null,null,null,null,null,null,null,null,null,null,null,null,null,null,null,null,null,null,null,null,null,null,null,null,null,null,null,null,null,null,null,null,null,null,null,null,null,null,null,null,null,null,null,null,null,null,null,null,null,null,null,null,null,null,null,null,null,null,null,null,null,null,null,null,null,null,null,null,null,null,null,null,null,null,null,null,null,null,null,null,null,null,null,null,null,null,null,null,null,null,null,null,null,null,null,null,null,null,null,null,null,null,null,null,null,null,null,null,null,null,null,null,null,null,null,null,null,null,null,null,null,null,null,null,null,null,null,null,null,null,null,null,null,null,null,null,null,null,null,null,null,null,null,null,null,null,null,null,null,null,null,null,null,null,null,null,null,null,null,null,null,null,null,null,null,null,null,null,null,"学年","段位","西暦","月","日","個人戦年度","ランク","男子階級","入賞","女子階級","登録番号","校名","校名略"]
[null,null,"男子団体",null,null,null,null,null,null,null,null,{"$f":"VLOOKUP(C9,$GM$3:$GO$249,3)","v":{"$error":"#N/A"}},null,null,null,null,null,null,null,null,null,null,null,null,null,null,null,null,null,null,null,null,null,null,null,null,null,null,null,null,null,null,null,null,null,null,null,null,null,null,null,null,null,null,null,"必須入力"]
[null,null,null,null,null,null,null,null,null,null,null,null,null,null,null,null,null,null,null,null,null,null,null,null,null,null,null,null,null,null,null,null,null,null,null,null,null,null,null,null,null,null,null,null,null,null,null,null,null,null,null,null,null,null,null,"リストから選択",null,null,null,null,null,null,null,null,null,null,null,null,null,null,null,null,null,null,null,null,null,null,null,null,null,null,null,null,null,null,null,null,null,null,null,null,null,null,null,null,null,null,null,null,null,null,null,null,null,null,null,null,null,null,null,null,null,null,null,null,null,null,null,null,null,null,null,null,null,null,null,null,null,null,null,null,null,null,null,null,null,null,null,null,null,null,null,null,null,null,null,null,null,null,null,null,null,null,null,null,null,null,null,null,null,null,null,null,null,null,null,null,null,null,null,null,null,null,null,null,null,null,null,null,null,null,null,null,1,"無",1996,1,1,25,"A",60,1,48,301,"旭","　 旭　 "]
[null,null,null,null,null,null,null,null,null,null,null,null,null,null,null,null,null,null,null,null,null,null,null,null,null,null,null,null,null,null,null,null,null,null,null,null,null,null,null,null,null,null,null,null,null,null,null,null,null,null,null,null,null,null,null,"直接入力",null,null,null,null,null,null,null,null,null,null,null,null,null,null,null,null,null,null,null,null,null,null,null,null,null,null,null,null,null,null,null,null,null,null,null,null,null,null,null,null,null,null,null,null,null,null,null,null,null,null,null,null,null,null,null,null,null,null,null,null,null,null,null,null,null,null,null,null,null,null,null,null,null,null,null,null,null,null,null,null,null,null,null,null,null,null,null,null,null,null,null,null,null,null,null,null,null,null,null,null,null,null,null,null,null,null,null,null,null,null,null,null,null,null,null,null,null,null,null,null,null,null,null,null,null,null,null,null,2,"初",1997,2,2,26,"B",66,2,52,302,"枚方なぎさ","枚方なぎ"]
[null,null,{"$f":"ROUND((COUNTA(C51:F106)+COUNTA(C112:F199))/2,0)","v":7},null,null,null,{"$f":"COUNTA(C9:BN11)","v":4},null,null,null,null,null,null,null,null,null,null,null,null,null,null,null,null,null,null,null,null,null,null,null,null,null,null,null,null,null,null,null,null,null,null,null,null,null,null,null,null,null,null,null,null,null,null,null,null,null,null,null,null,null,null,null,null,null,null,null,null,null,null,null,null,null,null,null,null,null,null,null,null,null,null,null,null,null,null,null,null,null,null,null,null,null,null,null,null,null,null,null,null,null,null,null,null,null,null,null,null,null,null,null,null,null,null,null,null,null,null,null,null,null,null,null,null,null,null,null,null,null,null,null,null,null,null,null,null,null,null,null,null,null,null,null,null,null,null,null,null,null,null,null,null,null,null,null,null,null,null,null,null,null,null,null,null,null,null,null,null,null,null,null,null,null,null,null,null,null,null,null,null,null,null,null,null,null,3,"弐",1998,3,3,27,"C",73,3,57,303,"大手前","大 手 前"]
[null,null,"※抽選番号",null,null,null,null,null,null,null,null,null,null,null,null,"第７２回　大阪高等学校総合体育大会申込書（２部）",null,null,null,null,null,null,null,null,null,null,null,null,null,null,null,null,null,null,null,null,null,null,null,null,null,null,null,null,null,null,null,null,null,null,null,null,null,null,null,null,null,null,null,null,null,null,null,null,null,null,null,null,null,null,null,null,null,null,null,null,null,null,null,null,null,null,null,null,null,null,null,null,null,null,null,null,null,null,null,null,null,null,null,null,null,null,null,null,null,null,null,null,null,null,null,null,null,null,null,null,null,null,null,null,null,null,null,null,null,null,null,null,null,null,null,null,null,null,null,null,null,null,null,null,null,null,null,null,null,null,null,null,null,null,null,null,null,null,null,null,null,null,null,null,null,null,null,null,null,null,null,null,null,null,null,null,null,null,null,null,null,null,null,null,null,null,null,null,4,"参",1999,4,4,28,"D",81,null,63,304,"勝山","勝　　山"]
[null,null,null,null,null,null,null,null,null,null,null,null,null,null,null,null,null,null,null,null,null,null,null,null,null,null,null,null,null,null,null,null,null,null,null,null,null,null,null,null,null,null,null,null,null,null,null,null,null,null,null,null,null,null,null,null,null,null,null,null,null,null,null,null,null,null,null,null,null,null,null,null,null,null,null,null,null,null,null,null,null,null,null,null,null,null,null,null,null,null,null,null,null,null,null,null,null,null,null,null,null,null,null,null,null,null,null,null,null,null,null,null,null,null,null,null,null,null,null,null,null,null,null,null,null,null,null,null,null,null,null,null,null,null,null,null,null,null,null,null,null,null,null,null,null,null,null,null,null,null,null,null,null,null,null,null,null,null,null,null,null,null,null,null,null,null,null,null,null,null,null,null,null,null,null,null,null,null,null,null,null,null,null,null,null,null,2000,5,5,29,null,90,null,70,305,"門真なみはや","門真なみ"]
[null,null,"学校番号",null,null,null,"学　　　　校　　　　名",null,null,null,null,null,null,null,null,null,null,null,null,null,null,null,null,null,null,null,null,null,null,null,null,null,null,null,null,"監督名",null,null,null,null,null,null,null,null,null,null,null,null,null,null,"校長名",null,null,null,null,null,null,null,null,null,null,null,null,null,null,null,null,null,null,null,null,null,null,null,null,null,null,null,null,null,null,null,null,null,null,null,null,null,null,null,null,null,null,null,null,null,null,null,null,null,null,null,null,null,null,null,null,null,null,null,null,null,null,null,null,null,null,null,null,null,null,null,null,null,null,null,null,null,null,null,null,null,null,null,null,null,null,null,null,null,null,null,null,null,null,null,null,null,null,null,null,null,null,null,null,null,null,null,null,null,null,null,null,null,null,null,null,null,null,null,null,null,null,null,null,null,null,null,null,null,null,null,null,null,null,null,2001,6,6,30,null,100,null,78,306,"門真西","門 真 西"]
[null,null,null,null,null,null,{"$f":"IF(C9=\"\",\"\",VLOOKUP(C9,$GM$3:$GO$249,2))","v":""},null,null,null,null,null,null,null,null,null,null,null,null,null,null,null,null,null,null,"高等学校",null,null,null,null,null,null,null,null,null,null,null,null,null,null,null,null,null,null,null,null,null,"印",null,null,null,null,null,null,null,null,null,null,null,null,null,null,"印",null,null,null,null,null,null,null,null,null,null,null,null,null,null,null,null,null,null,null,null,null,null,null,null,null,null,null,null,null,null,null,null,null,null,null,null,null,null,null,null,null,null,null,null,null,null,null,null,null,null,null,null,null,null,null,null,null,null,null,null,null,null,null,null,null,null,null,null,null,null,null,null,null,null,null,null,null,null,null,null,null,null,null,null,null,null,null,null,null,null,null,null,null,null,null,null,null,null,null,null,null,null,null,null,null,null,null,null,null,null,null,null,null,null,null,null,null,null,null,null,null,null,null,2002,7,7,31,null,"+100",null,"+78",308,"香里丘","香 里 丘"]
[null,null,null,null,null,null,null,null,null,null,null,null,null,null,null,null,null,null,null,null,null,null,null,null,null,null,null,null,null,null,null,null,null,null,null,null,null,null,null,null,null,null,null,null,null,null,null,null,null,null,null,null,null,null,null,null,null,null,null,null,null,null,null,null,null,null,null,null,null,null,null,null,null,null,null,null,null,null,null,null,null,null,null,null,null,null,null,null,null,null,null,null,null,null,null,null,null,null,null,null,null,null,null,null,null,null,null,null,null,null,null,null,null,null,null,null,null,null,null,null,null,null,null,null,null,null,null,null,null,null,null,null,null,null,null,null,null,null,null,null,null,null,null,null,null,null,null,null,null,null,null,null,null,null,null,null,null,null,null,null,null,null,null,null,null,null,null,null,null,null,null,null,null,null,null,null,null,null,null,null,null,null,null,null,null,null,2003,8,8,32,null,55,null,44,309,"高津","高　　津"]
[null,null,null,null,null,null,null,null,null,null,null,null,null,null,null,null,null,null,null,null,null,null,null,null,null,null,null,null,null,null,null,null,null,null,null,null,null,null,null,null,null,null,null,null,null,null,null,null,null,null,null,null,null,null,null,null,null,null,null,null,null,null,null,null,null,null,null,null,null,null,null,null,null,null,null,null,null,null,null,null,null,null,null,null,null,null,null,null,null,null,null,null,null,null,null,null,null,null,null,null,null,null,null,null,null,null,null,null,null,null,null,null,null,null,null,null,null,null,null,null,null,null,null,null,null,null,null,null,null,null,null,null,null,null,null,null,null,null,null,null,null,null,null,null,null,null,null,null,null,null,null,null,null,null,null,null,null,null,null,null,null,null,null,null,null,null,null,null,null,null,null,null,null,null,null,null,null,null,null,null,null,null,null,null,null,null,2004,9,9,33,null,null,null,null,310,"四條畷","四 條 畷"]
[null,null,null,null,null,null,"選手名",null,null,null,null,null,null,null,null,null,null,null,null,null,null,null,null,null,null,null,null,null,null,null,null,null,null,null,null,null,null,null,"学年",null,null,"段位",null,null,"体重（kg）",null,null,null,null,"身長（cm）",null,null,null,null,"生年月日（西暦）",null,null,null,null,null,null,null,null,null,null,null,null,null,null,null,null,null,null,null,null,null,null,null,null,null,null,null,null,null,null,null,null,null,null,null,null,null,null,null,null,null,null,null,null,null,null,null,null,null,null,null,null,null,null,null,null,null,null,null,null,null,null,null,null,null,null,null,null,null,null,null,null,null,null,null,null,null,null,null,null,null,null,null,null,null,null,null,null,null,null,null,null,null,null,null,null,null,null,null,null,null,null,null,null,null,null,null,null,null,null,null,null,null,null,null,null,null,null,null,null,null,null,null,null,null,null,null,null,null,null,null,2005,10,10,34,null,null,null,null,311,"清水谷","清 水 谷"]
[null,null,"先鋒",null,null,null,"ふりがな",null,null,null,null,null,null,null,null,null,null,null,null,null,null,null,null,null,null,null,null,null,null,null,null,null,null,null,null,null,null,null,null,null,null,null,null,null,null,null,null,null,null,null,null,null,null,null,null,null,null,null,"・",null,null,null,"・",null,null,null,null,null,null,null,null,null,null,null,null,null,null,null,null,null,null,null,null,null,null,null,null,null,null,null,null,null,null,null,null,null,null,null,null,null,null,null,null,null,null,null,null,null,null,null,null,null,null,null,null,null,null,null,null,null,null,null,null,null,null,null,null,null,null,null,null,null,null,null,null,null,null,null,null,null,null,null,null,null,null,null,null,null,null,null,null,null,null,null,null,null,null,null,null,null,null,null,null,null,null,null,null,null,null,null,null,null,null,null,null,null,null,null,null,null,null,null,null,null,null,null,2006,11,11,35,null,null,null,null,312,"緑風冠","緑 風 冠"]
[null,null,null,null,null,null,"（姓）",null,null,null,null,null,null,null,null,null,null,null,null,null,null,null,"（名）",null,null,null,null,null,null,null,null,null,null,null,null,null,null,null,null,null,null,null,null,null,null,null,null,null,null,null,null,null,null,null,null,null,null,null,null,null,null,null,null,null,null,null,null,null,null,null,null,null,null,null,null,null,null,null,null,null,null,null,null,null,null,null,null,null,null,null,null,null,null,null,null,null,null,null,null,null,null,null,null,null,null,null,null,null,null,null,null,null,null,null,null,null,null,null,null,null,null,null,null,null,null,null,null,null,null,null,null,null,null,null,null,null,null,null,null,null,null,null,null,null,null,null,null,null,null,null,null,null,null,null,null,null,null,null,null,null,null,null,null,null,null,null,null,null,null,null,null,null,null,null,null,null,null,null,null,null,null,null,null,null,null,null,2007,12,12,36,null,null,null,null,313,"かわち野","かわち野"]
[null,null,null,null,null,null,null,null,null,null,null,null,null,null,null,null,null,null,null,null,null,null,null,null,null,null,null,null,null,null,null,null,null,null,null,null,null,null,null,null,null,null,null,null,null,null,null,null,null,null,null,null,null,null,null,null,null,null,null,null,null,null,null,null,null,null,null,null,null,null,null,null,null,null,null,null,null,null,null,null,null,null,null,null,null,null,null,null,null,null,null,null,null,null,null,null,null,null,null,null,null,null,null,null,null,null,null,null,null,null,null,null,null,null,null,null,null,null,null,null,null,null,null,null,null,null,null,null,null,null,null,null,null,null,null,null,null,null,null,null,null,null,null,null,null,null,null,null,null,null,null,null,null,null,null,null,null,null,null,null,null,null,null,null,null,null,null,null,null,null,null,null,null,null,null,null,null,null,null,null,null,null,null,null,null,null,2008,null,13,37,null,null,null,null,314,"長尾","長　　尾"]
[null,null,null,null,null,null,null,null,null,null,null,null,null,null,null,null,null,null,null,null,null,null,null,null,null,null,null,null,null,null,null,null,null,null,null,null,null,null,null,null,null,null,null,null,null,null,null,null,null,null,null,null,null,null,null,null,null,null,null,null,null,null,null,null,null,null,null,null,null,null,null,null,null,null,null,null,null,null,null,null,null,null,null,null,null,null,null,null,null,null,null,null,null,null,null,null,null,null,null,null,null,null,null,null,null,null,null,null,null,null,null,null,null,null,null,null,null,null,null,null,null,null,null,null,null,null,null,null,null,null,null,null,null,null,null,null,null,null,null,null,null,null,null,null,null,null,null,null,null,null,null,null,null,null,null,null,null,null,null,null,null,null,null,null,null,null,null,null,null,null,null,null,null,null,null,null,null,null,null,null,null,null,null,null,null,null,2009,null,14,38,null,null,null,null,315,"西寝屋川","西寝屋川"]
[null,null,"中堅",null,null,null,"ふりがな",null,null,null,null,null,null,null,null,null,null,null,null,null,null,null,null,null,null,null,null,null,null,null,null,null,null,null,null,null,null,null,null,null,null,null,null,null,null,null,null,null,null,null,null,null,null,null,null,null,null,null,"・",null,null,null,"・",null,null,null,null,null,null,null,null,null,null,null,null,null,null,null,null,null,null,null,null,null,null,null,null,null,null,null,null,null,null,null,null,null,null,null,null,null,null,null,null,null,null,null,null,null,null,null,null,null,null,null,null,null,null,null,null,null,null,null,null,null,null,null,null,null,null,null,null,null,null,null,null,null,null,null,null,null,null,null,null,null,null,null,null,null,null,null,null,null,null,null,null,null,null,null,null,null,null,null,null,null,null,null,null,null,null,null,null,null,null,null,null,null,null,null,null,null,null,null,null,null,null,null,2010,null,15,39,null,null,null,null,316,"寝屋川","寝 屋 川"]
[null,null,null,null,null,null,"（姓）",null,null,null,null,null,null,null,null,null,null,null,null,null,null,null,"（名）",null,null,null,null,null,null,null,null,null,null,null,null,null,null,null,null,null,null,null,null,null,null,null,null,null,null,null,null,null,null,null,null,null,null,null,null,null,null,null,null,null,null,null,null,null,null,null,null,null,null,null,null,null,null,null,null,null,null,null,null,null,null,null,null,null,null,null,null,null,null,null,null,null,null,null,null,null,null,null,null,null,null,null,null,null,null,null,null,null,null,null,null,null,null,null,null,null,null,null,null,null,null,null,null,null,null,null,null,null,null,null,null,null,null,null,null,null,null,null,null,null,null,null,null,null,null,null,null,null,null,null,null,null,null,null,null,null,null,null,null,null,null,null,null,null,null,null,null,null,null,null,null,null,null,null,null,null,null,null,null,null,null,null,2011,null,16,40,null,null,null,null,317,"北かわち皐が丘","北かわち"]
[null,null,null,null,null,null,null,null,null,null,null,null,null,null,null,null,null,null,null,null,null,null,null,null,null,null,null,null,null,null,null,null,null,null,null,null,null,null,null,null,null,null,null,null,null,null,null,null,null,null,null,null,null,null,null,null,null,null,null,null,null,null,null,null,null,null,null,null,null,null,null,null,null,null,null,null,null,null,null,null,null,null,null,null,null,null,null,null,null,null,null,null,null,null,null,null,null,null,null,null,null,null,null,null,null,null,null,null,null,null,null,null,null,null,null,null,null,null,null,null,null,null,null,null,null,null,null,null,null,null,null,null,null,null,null,null,null,null,null,null,null,null,null,null,null,null,null,null,null,null,null,null,null,null,null,null,null,null,null,null,null,null,null,null,null,null,null,null,null,null,null,null,null,null,null,null,null,null,null,null,null,null,null,null,null,null,2012,null,17,41,null,null,null,null,318,"枚方","枚　　方"]
[null,null,null,null,null,null,null,null,null,null,null,null,null,null,null,null,null,null,null,null,null,null,null,null,null,null,null,null,null,null,null,null,null,null,null,null,null,null,null,null,null,null,null,null,null,null,null,null,null,null,null,null,null,null,null,null,null,null,null,null,null,null,null,null,null,null,null,null,null,null,null,null,null,null,null,null,null,null,null,null,null,null,null,null,null,null,null,null,null,null,null,null,null,null,null,null,null,null,null,null,null,null,null,null,null,null,null,null,null,null,null,null,null,null,null,null,null,null,null,null,null,null,null,null,null,null,null,null,null,null,null,null,null,null,null,null,null,null,null,null,null,null,null,null,null,null,null,null,null,null,null,null,null,null,null,null,null,null,null,null,null,null,null,null,null,null,null,null,null,null,null,null,null,null,null,null,null,null,null,null,null,null,null,null,null,null,2013,null,18,42,null,null,null,null,319,"牧野","牧　　野"]
[null,null,"大将",null,null,null,"ふりがな",null,null,null,null,null,null,null,null,null,null,null,null,null,null,null,null,null,null,null,null,null,null,null,null,null,null,null,null,null,null,null,null,null,null,null,null,null,null,null,null,null,null,null,null,null,null,null,null,null,null,null,"・",null,null,null,"・",null,null,null,null,null,null,null,null,null,null,null,null,null,null,null,null,null,null,null,null,null,null,null,null,null,null,null,null,null,null,null,null,null,null,null,null,null,null,null,null,null,null,null,null,null,null,null,null,null,null,null,null,null,null,null,null,null,null,null,null,null,null,null,null,null,null,null,null,null,null,null,null,null,null,null,null,null,null,null,null,null,null,null,null,null,null,null,null,null,null,null,null,null,null,null,null,null,null,null,null,null,null,null,null,null,null,null,null,null,null,null,null,null,null,null,null,null,null,null,null,null,null,null,2014,null,19,43,null,null,null,null,320,"茨田","茨　　田"]
[null,null,null,null,null,null,"（姓）",null,null,null,null,null,null,null,null,null,null,null,null,null,null,null,"（名）",null,null,null,null,null,null,null,null,null,null,null,null,null,null,null,null,null,null,null,null,null,null,null,null,null,null,null,null,null,null,null,null,null,null,null,null,null,null,null,null,null,null,null,null,null,null,null,null,null,null,null,null,null,null,null,null,null,null,null,null,null,null,null,null,null,null,null,null,null,null,null,null,null,null,null,null,null,null,null,null,null,null,null,null,null,null,null,null,null,null,null,null,null,null,null,null,null,null,null,null,null,null,null,null,null,null,null,null,null,null,null,null,null,null,null,null,null,null,null,null,null,null,null,null,null,null,null,null,null,null,null,null,null,null,null,null,null,null,null,null,null,null,null,null,null,null,null,null,null,null,null,null,null,null,null,null,null,null,null,null,null,null,null,2015,null,20,44,null,null,null,null,322,"芦間","芦　　間"]
[null,null,null,null,null,null,null,null,null,null,null,null,null,null,null,null,null,null,null,null,null,null,null,null,null,null,null,null,null,null,null,null,null,null,null,null,null,null,null,null,null,null,null,null,null,null,null,null,null,null,null,null,null,null,null,null,null,null,null,null,null,null,null,null,null,null,null,null,null,null,null,null,null,null,null,null,null,null,null,null,null,null,null,null,null,null,null,null,null,null,null,null,null,null,null,null,null,null,null,null,null,null,null,null,null,null,null,null,null,null,null,null,null,null,null,null,null,null,null,null,null,null,null,null,null,null,null,null,null,null,null,null,null,null,null,null,null,null,null,null,null,null,null,null,null,null,null,null,null,null,null,null,null,null,null,null,null,null,null,null,null,null,null,null,null,null,null,null,null,null,null,null,null,null,null,null,null,null,null,null,null,null,null,null,null,null,2016,null,21,45,null,null,null,null,323,"守口東","守 口 東"]
[null,null,null,null,null,null,null,null,null,null,null,null,null,null,null,null,null,null,null,null,null,null,null,null,null,null,null,null,null,null,null,null,null,null,null,null,null,null,null,null,null,null,null,null,null,null,null,null,null,null,null,null,null,null,null,null,null,null,null,null,null,null,null,null,null,null,null,null,null,null,null,null,null,null,null,null,null,null,null,null,null,null,null,null,null,null,null,null,null,null,null,null,null,null,null,null,null,null,null,null,null,null,null,null,null,null,null,null,null,null,null,null,null,null,null,null,null,null,null,null,null,null,null,null,null,null,null,null,null,null,null,null,null,null,null,null,null,null,null,null,null,null,null,null,null,null,null,null,null,null,null,null,null,null,null,null,null,null,null,null,null,null,null,null,null,null,null,null,null,null,null,null,null,null,null,null,null,null,null,null,null,null,null,null,null,null,2017,null,22,46,null,null,null,null,324,"夕陽丘","夕 陽 丘"]
[null,null,"補欠",null,null,null,"ふりがな",null,null,null,null,null,null,null,null,null,null,null,null,null,null,null,null,null,null,null,null,null,null,null,null,null,null,null,null,null,null,null,null,null,null,null,null,null,null,null,null,null,null,null,null,null,null,null,null,null,null,null,"・",null,null,null,"・",null,null,null,null,null,null,null,null,null,null,null,null,null,null,null,null,null,null,null,null,null,null,null,null,null,null,null,null,null,null,null,null,null,null,null,null,null,null,null,null,null,null,null,null,null,null,null,null,null,null,null,null,null,null,null,null,null,null,null,null,null,null,null,null,null,null,null,null,null,null,null,null,null,null,null,null,null,null,null,null,null,null,null,null,null,null,null,null,null,null,null,null,null,null,null,null,null,null,null,null,null,null,null,null,null,null,null,null,null,null,null,null,null,null,null,null,null,null,null,null,null,null,null,2018,null,23,47,null,null,null,null,325,"城東工科","城東工科"]
[null,null,null,null,null,null,"（姓）",null,null,null,null,null,null,null,null,null,null,null,null,null,null,null,"（名）",null,null,null,null,null,null,null,null,null,null,null,null,null,null,null,null,null,null,null,null,null,null,null,null,null,null,null,null,null,null,null,null,null,null,null,null,null,null,null,null,null,null,null,null,null,null,null,null,null,null,null,null,null,null,null,null,null,null,null,null,null,null,null,null,null,null,null,null,null,null,null,null,null,null,null,null,null,null,null,null,null,null,null,null,null,null,null,null,null,null,null,null,null,null,null,null,null,null,null,null,null,null,null,null,null,null,null,null,null,null,null,null,null,null,null,null,null,null,null,null,null,null,null,null,null,null,null,null,null,null,null,null,null,null,null,null,null,null,null,null,null,null,null,null,null,null,null,null,null,null,null,null,null,null,null,null,null,null,null,null,null,null,null,2019,null,24,48,null,null,null,null,326,"成城","成　　城"]
[null,null,null,null,null,null,null,null,null,null,null,null,null,null,null,null,null,null,null,null,null,null,null,null,null,null,null,null,null,null,null,null,null,null,null,null,null,null,null,null,null,null,null,null,null,null,null,null,null,null,null,null,null,null,null,null,null,null,null,null,null,null,null,null,null,null,null,null,null,null,null,null,null,null,null,null,null,null,null,null,null,null,null,null,null,null,null,null,null,null,null,null,null,null,null,null,null,null,null,null,null,null,null,null,null,null,null,null,null,null,null,null,null,null,null,null,null,null,null,null,null,null,null,null,null,null,null,null,null,null,null,null,null,null,null,null,null,null,null,null,null,null,null,null,null,null,null,null,null,null,null,null,null,null,null,null,null,null,null,null,null,null,null,null,null,null,null,null,null,null,null,null,null,null,null,null,null,null,null,null,null,null,null,null,null,null,2020,null,25,49,null,null,null,null,327,"淀川工科","淀川工科"]
[null,null,null,null,null,null,null,null,null,null,null,null,null,null,null,null,null,null,null,null,null,null,null,null,null,null,null,null,null,null,null,null,null,null,null,null,null,null,null,null,null,null,null,null,null,null,null,null,null,null,null,null,null,null,null,null,null,null,null,null,null,null,null,null,null,null,null,null,null,null,null,null,null,null,null,null,null,null,null,null,null,null,null,null,null,null,null,null,null,null,null,null,null,null,null,null,null,null,null,null,null,null,null,null,null,null,null,null,null,null,null,null,null,null,null,null,null,null,null,null,null,null,null,null,null,null,null,null,null,null,null,null,null,null,null,null,null,null,null,null,null,null,null,null,null,null,null,null,null,null,null,null,null,null,null,null,null,null,null,null,null,null,null,null,null,null,null,null,null,null,null,null,null,null,null,null,null,null,null,null,null,null,null,null,null,null,null,null,26,50,null,null,null,null,329,"扇町総合","扇町総合"]
[null,null,null,null,null,null,null,null,null,null,null,null,null,null,null,null,null,null,null,null,null,null,null,null,null,null,null,null,null,null,null,null,null,null,null,null,null,null,null,null,null,null,null,null,null,null,null,null,null,null,null,null,null,null,null,null,null,null,null,null,null,null,null,null,null,null,null,null,null,null,null,null,null,null,null,null,null,null,null,null,null,null,null,null,null,null,null,null,null,null,null,null,null,null,null,null,null,null,null,null,null,null,null,null,null,null,null,null,null,null,null,null,null,null,null,null,null,null,null,null,null,null,null,null,null,null,null,null,null,null,null,null,null,null,null,null,null,null,null,null,null,null,null,null,null,null,null,null,null,null,null,null,null,null,null,null,null,null,null,null,null,null,null,null,null,null,null,null,null,null,null,null,null,null,null,null,null,null,null,null,null,null,null,null,null,null,null,null,27,51,null,null,null,null,330,"大阪市立","大阪市立"]
[null,null,null,null,null,null,null,null,null,null,null,null,null,null,null,null,null,null,null,null,null,null,null,null,null,null,null,null,null,null,null,null,null,null,null,null,null,null,null,null,null,null,null,null,null,null,null,null,null,null,null,null,null,null,null,null,null,null,null,null,null,null,null,null,null,null,null,null,null,null,null,null,null,null,null,null,null,null,null,null,null,null,null,null,null,null,null,null,null,null,null,null,null,null,null,null,null,null,null,null,null,null,null,null,null,null,null,null,null,null,null,null,null,null,null,null,null,null,null,null,null,null,null,null,null,null,null,null,null,null,null,null,null,null,null,null,null,null,null,null,null,null,null,null,null,null,null,null,null,null,null,null,null,null,null,null,null,null,null,null,null,null,null,null,null,null,null,null,null,null,null,null,null,null,null,null,null,null,null,null,null,null,null,null,null,null,null,null,28,52,null,null,null,null,331,"桜宮","桜　　宮"]
[null,null,null,null,null,null,null,null,null,null,null,null,null,null,null,null,null,null,null,null,null,null,null,null,null,null,null,null,null,null,null,null,null,null,null,null,null,null,null,null,null,null,null,null,null,null,null,null,null,null,null,null,null,null,null,null,null,null,null,null,null,null,null,null,null,null,null,null,null,null,null,null,null,null,null,null,null,null,null,null,null,null,null,null,null,null,null,null,null,null,null,null,null,null,null,null,null,null,null,null,null,null,null,null,null,null,null,null,null,null,null,null,null,null,null,null,null,null,null,null,null,null,null,null,null,null,null,null,null,null,null,null,null,null,null,null,null,null,null,null,null,null,null,null,null,null,null,null,null,null,null,null,null,null,null,null,null,null,null,null,null,null,null,null,null,null,null,null,null,null,null,null,null,null,null,null,null,null,null,null,null,null,null,null,null,null,null,null,29,53,null,null,null,null,332,"汎愛","汎　　愛"]
[null,null,null,null,null,null,null,null,null,null,null,null,null,null,null,null,null,null,null,null,null,null,null,null,null,null,null,null,null,null,null,null,null,null,null,null,null,null,null,null,null,null,null,null,null,null,null,null,null,null,null,null,null,null,null,null,null,null,null,null,null,null,null,null,null,null,null,null,null,null,null,null,null,null,null,null,null,null,null,null,null,null,null,null,null,null,null,null,null,null,null,null,null,null,null,null,null,null,null,null,null,null,null,null,null,null,null,null,null,null,null,null,null,null,null,null,null,null,null,null,null,null,null,null,null,null,null,null,null,null,null,null,null,null,null,null,null,null,null,null,null,null,null,null,null,null,null,null,null,null,null,null,null,null,null,null,null,null,null,null,null,null,null,null,null,null,null,null,null,null,null,null,null,null,null,null,null,null,null,null,null,null,null,null,null,null,null,null,30,54,null,null,null,null,333,"東","　 東　 "]
[null,null,null,null,null,null,null,null,null,null,null,null,null,null,null,null,null,null,null,null,null,null,null,null,null,null,null,null,null,null,null,null,null,null,null,null,null,null,null,null,null,null,null,null,null,null,null,null,null,null,null,null,null,null,null,null,null,null,null,null,null,null,null,null,null,null,null,null,null,null,null,null,null,null,null,null,null,null,null,null,null,null,null,null,null,null,null,null,null,null,null,null,null,null,null,null,null,null,null,null,null,null,null,null,null,null,null,null,null,null,null,null,null,null,null,null,null,null,null,null,null,null,null,null,null,null,null,null,null,null,null,null,null,null,null,null,null,null,null,null,null,null,null,null,null,null,null,null,null,null,null,null,null,null,null,null,null,null,null,null,null,null,null,null,null,null,null,null,null,null,null,null,null,null,null,null,null,null,null,null,null,null,null,null,null,null,null,null,31,55,null,null,null,null,334,"南","　 南　 "]
[null,null,null,null,null,null,null,null,null,null,null,null,null,null,null,null,null,null,null,null,null,null,null,null,null,null,null,null,null,null,null,null,null,null,null,null,null,null,null,null,null,null,null,null,null,null,null,null,null,null,null,null,null,null,null,null,null,null,null,null,null,null,null,null,null,null,null,null,null,null,null,null,null,null,null,null,null,null,null,null,null,null,null,null,null,null,null,null,null,null,null,null,null,null,null,null,null,null,null,null,null,null,null,null,null,null,null,null,null,null,null,null,null,null,null,null,null,null,null,null,null,null,null,null,null,null,null,null,null,null,null,null,null,null,null,null,null,null,null,null,null,null,null,null,null,null,null,null,null,null,null,null,null,null,null,null,null,null,null,null,null,null,null,null,null,null,null,null,null,null,null,null,null,null,null,null,null,null,null,null,null,null,null,null,null,null,null,null,null,null,null,null,null,null,335,"生野工業","生野工業"]
[null,null,null,null,null,null,null,null,null,null,null,null,null,null,null,null,null,null,null,null,null,null,null,null,null,null,null,null,null,null,null,null,null,null,null,null,null,null,null,null,null,null,null,null,null,null,null,null,null,null,null,null,null,null,null,null,null,null,null,null,null,null,null,null,null,null,null,null,null,null,null,null,null,null,null,null,null,null,null,null,null,null,null,null,null,null,null,null,null,null,null,null,null,null,null,null,null,null,null,null,null,null,null,null,null,null,null,null,null,null,null,null,null,null,null,null,null,null,null,null,null,null,null,null,null,null,null,null,null,null,null,null,null,null,null,null,null,null,null,null,null,null,null,null,null,null,null,null,null,null,null,null,null,null,null,null,null,null,null,null,null,null,null,null,null,null,null,null,null,null,null,null,null,null,null,null,null,null,null,null,null,null,null,null,null,null,null,null,null,null,null,null,null,null,336,"都島工業","都島工業"]
[null,null,null,null,null,null,null,null,null,null,null,null,null,null,null,null,null,null,null,null,null,null,null,null,null,null,null,null,null,null,null,null,null,null,null,null,null,null,null,null,null,null,null,null,null,null,null,null,null,null,null,null,null,null,null,null,null,null,null,null,null,null,null,null,null,null,null,null,null,null,null,null,null,null,null,null,null,null,null,null,null,null,null,null,null,null,null,null,null,null,null,null,null,null,null,null,null,null,null,null,null,null,null,null,null,null,null,null,null,null,null,null,null,null,null,null,null,null,null,null,null,null,null,null,null,null,null,null,null,null,null,null,null,null,null,null,null,null,null,null,null,null,null,null,null,null,null,null,null,null,null,null,null,null,null,null,null,null,null,null,null,null,null,null,null,null,null,null,null,null,null,null,null,null,null,null,null,null,null,null,null,null,null,null,null,null,null,null,null,null,null,null,null,null,338,"常翔学園","常翔学園"]
[null,null,null,null,null,null,null,null,null,null,null,null,null,null,null,null,null,null,null,null,null,null,null,null,null,null,null,null,null,null,null,null,null,null,null,null,null,null,null,null,null,null,null,null,null,null,null,null,null,null,null,null,null,null,null,null,null,null,null,null,null,null,null,null,null,null,null,null,null,null,null,null,null,null,null,null,null,null,null,null,null,null,null,null,null,null,null,null,null,null,null,null,null,null,null,null,null,null,null,null,null,null,null,null,null,null,null,null,null,null,null,null,null,null,null,null,null,null,null,null,null,null,null,null,null,null,null,null,null,null,null,null,null,null,null,null,null,null,null,null,null,null,null,null,null,null,null,null,null,null,null,null,null,null,null,null,null,null,null,null,null,null,null,null,null,null,null,null,null,null,null,null,null,null,null,null,null,null,null,null,null,null,null,null,null,null,null,null,null,null,null,null,null,null,339,"大阪産業大学附属","大産大附"]
[null,null,null,null,null,null,null,null,null,null,null,null,null,null,null,null,null,null,null,null,null,null,null,null,null,null,null,null,null,null,null,null,null,null,null,null,null,null,null,null,null,null,null,null,null,null,null,null,null,null,null,null,null,null,null,null,null,null,null,null,null,null,null,null,null,null,null,null,null,null,null,null,null,null,null,null,null,null,null,null,null,null,null,null,null,null,null,null,null,null,null,null,null,null,null,null,null,null,null,null,null,null,null,null,null,null,null,null,null,null,null,null,null,null,null,null,null,null,null,null,null,null,null,null,null,null,null,null,null,null,null,null,null,null,null,null,null,null,null,null,null,null,null,null,null,null,null,null,null,null,null,null,null,null,null,null,null,null,null,null,null,null,null,null,null,null,null,null,null,null,null,null,null,null,null,null,null,null,null,null,null,null,null,null,null,null,null,null,null,null,null,null,null,null,340,"追手門大手前","追手門大"]
[null,null,null,null,null,null,null,null,null,null,null,null,null,null,null,null,null,null,null,null,null,null,null,null,null,null,null,null,null,null,null,null,null,null,null,null,null,null,null,null,null,null,null,null,null,null,null,null,null,null,null,null,null,null,null,null,null,null,null,null,null,null,null,null,null,null,null,null,null,null,null,null,null,null,null,null,null,null,null,null,null,null,null,null,null,null,null,null,null,null,null,null,null,null,null,null,null,null,null,null,null,null,null,null,null,null,null,null,null,null,null,null,null,null,null,null,null,null,null,null,null,null,null,null,null,null,null,null,null,null,null,null,null,null,null,null,null,null,null,null,null,null,null,null,null,null,null,null,null,null,null,null,null,null,null,null,null,null,null,null,null,null,null,null,null,null,null,null,null,null,null,null,null,null,null,null,null,null,null,null,null,null,null,null,null,null,null,null,null,null,null,null,null,null,341,"常翔啓光学園","常翔啓光"]
[null,null,null,null,null,null,null,null,null,null,null,null,null,null,null,null,null,null,null,null,null,null,null,null,null,null,null,null,null,null,null,null,null,null,null,null,null,null,null,null,null,null,null,null,null,null,null,null,null,null,null,null,null,null,null,null,null,null,null,null,null,null,null,null,null,null,null,null,null,null,null,null,null,null,null,null,null,null,null,null,null,null,null,null,null,null,null,null,null,null,null,null,null,null,null,null,null,null,null,null,null,null,null,null,null,null,null,null,null,null,null,null,null,null,null,null,null,null,null,null,null,null,null,null,null,null,null,null,null,null,null,null,null,null,null,null,null,null,null,null,null,null,null,null,null,null,null,null,null,null,null,null,null,null,null,null,null,null,null,null,null,null,null,null,null,null,null,null,null,null,null,null,null,null,null,null,null,null,null,null,null,null,null,null,null,null,null,null,null,null,null,null,null,null,342,"大阪偕星学園","大阪偕星"]
[null,null,null,null,null,null,null,null,null,null,null,null,null,null,null,null,null,null,null,null,null,null,null,null,null,null,null,null,null,null,null,null,null,null,null,null,null,null,null,null,null,null,null,null,null,null,null,null,null,null,null,null,null,null,null,null,null,null,null,null,null,null,null,null,null,null,null,null,null,null,null,null,null,null,null,null,null,null,null,null,null,null,null,null,null,null,null,null,null,null,null,null,null,null,null,null,null,null,null,null,null,null,null,null,null,null,null,null,null,null,null,null,null,null,null,null,null,null,null,null,null,null,null,null,null,null,null,null,null,null,null,null,null,null,null,null,null,null,null,null,null,null,null,null,null,null,null,null,null,null,null,null,null,null,null,null,null,null,null,null,null,null,null,null,null,null,null,null,null,null,null,null,null,null,null,null,null,null,null,null,null,null,null,null,null,null,null,null,null,null,null,null,null,null,343,"太成学院大学","太成学院"]
[null,null,null,null,null,null,null,null,null,null,null,null,null,null,null,null,null,null,null,null,null,null,null,null,null,null,null,null,null,null,null,null,null,null,null,null,null,null,null,null,null,null,null,null,null,null,null,null,null,null,null,null,null,null,null,null,null,null,null,null,null,null,null,null,null,null,null,null,null,null,null,null,null,null,null,null,null,null,null,null,null,null,null,null,null,null,null,null,null,null,null,null,null,null,null,null,null,null,null,null,null,null,null,null,null,null,null,null,null,null,null,null,null,null,null,null,null,null,null,null,null,null,null,null,null,null,null,null,null,null,null,null,null,null,null,null,null,null,null,null,null,null,null,null,null,null,null,null,null,null,null,null,null,null,null,null,null,null,null,null,null,null,null,null,null,null,null,null,null,null,null,null,null,null,null,null,null,null,null,null,null,null,null,null,null,null,null,null,null,null,null,null,null,null,344,"電通大","電 通 大"]
[null,null,null,null,null,null,null,null,null,null,null,null,null,null,null,null,null,null,null,null,null,null,null,null,null,null,null,null,null,null,null,null,null,null,null,null,null,null,null,null,null,null,null,null,null,null,null,null,null,null,null,null,null,null,null,null,null,null,null,null,null,null,null,null,null,null,null,null,null,null,null,null,null,null,null,null,null,null,null,null,null,null,null,null,null,null,null,null,null,null,null,null,null,null,null,null,null,null,null,null,null,null,null,null,null,null,null,null,null,null,null,null,null,null,null,null,null,null,null,null,null,null,null,null,null,null,null,null,null,null,null,null,null,null,null,null,null,null,null,null,null,null,null,null,null,null,null,null,null,null,null,null,null,null,null,null,null,null,null,null,null,null,null,null,null,null,null,null,null,null,null,null,null,null,null,null,null,null,null,null,null,null,null,null,null,null,null,null,null,null,null,null,null,null,345,"同志社香里","同志社香"]
[null,null,null,null,null,null,null,null,null,null,null,null,null,null,null,null,null,null,null,null,null,null,null,null,null,null,null,null,null,null,null,null,null,null,null,null,null,null,null,null,null,null,null,null,null,null,null,null,null,null,null,null,null,null,null,null,null,null,null,null,null,null,null,null,null,null,null,null,null,null,null,null,null,null,null,null,null,null,null,null,null,null,null,null,null,null,null,null,null,null,null,null,null,null,null,null,null,null,null,null,null,null,null,null,null,null,null,null,null,null,null,null,null,null,null,null,null,null,null,null,null,null,null,null,null,null,null,null,null,null,null,null,null,null,null,null,null,null,null,null,null,null,null,null,null,null,null,null,null,null,null,null,null,null,null,null,null,null,null,null,null,null,null,null,null,null,null,null,null,null,null,null,null,null,null,null,null,null,null,null,null,null,null,null,null,null,null,null,null,null,null,null,null,null,346,"開明","開　　明"]
[null,null,null,null,null,null,null,null,null,null,null,null,null,null,null,null,null,null,null,null,null,null,null,null,null,null,null,null,null,null,null,null,null,null,null,null,null,null,null,null,null,null,null,null,null,null,null,null,null,null,null,null,null,null,null,null,null,null,null,null,null,null,null,null,null,null,null,null,null,null,null,null,null,null,null,null,null,null,null,null,null,null,null,null,null,null,null,null,null,null,null,null,null,null,null,null,null,null,null,null,null,null,null,null,null,null,null,null,null,null,null,null,null,null,null,null,null,null,null,null,null,null,null,null,null,null,null,null,null,null,null,null,null,null,null,null,null,null,null,null,null,null,null,null,null,null,null,null,null,null,null,null,null,null,null,null,null,null,null,null,null,null,null,null,null,null,null,null,null,null,null,null,null,null,null,null,null,null,null,null,null,null,null,null,null,null,null,null,null,null,null,null,null,null,347,"東海大学付属仰星","東海仰星"]
[null,null,null,null,null,null,null,null,null,null,null,null,null,null,null,null,null,null,null,null,null,null,null,null,null,null,null,null,null,null,null,null,null,null,null,null,null,null,null,null,null,null,null,null,null,null,null,null,null,null,null,null,null,null,null,null,null,null,null,null,null,null,null,null,null,null,null,null,null,null,null,null,null,null,null,null,null,null,null,null,null,null,null,null,null,null,null,null,null,null,null,null,null,null,null,null,null,null,null,null,null,null,null,null,null,null,null,null,null,null,null,null,null,null,null,null,null,null,null,null,null,null,null,null,null,null,null,null,null,null,null,null,null,null,null,null,null,null,null,null,null,null,null,null,null,null,null,null,null,null,null,null,null,null,null,null,null,null,null,null,null,null,null,null,null,null,null,null,null,null,null,null,null,null,null,null,null,null,null,null,null,null,null,null,null,null,null,null,null,null,null,null,null,null,348,"泉尾","泉　　尾"]
[null,null,"男子個人",null,null,null,null,null,null,null,null,null,null,null,"第７２回　大阪高等学校総合体育大会",null,null,null,null,null,null,null,null,null,null,null,null,null,null,null,null,null,null,null,null,null,null,null,null,null,null,null,null,null,null,null,null,null,null,null,null,null,null,null,null,null,null,null,null,null,null,null,null,null,null,null,null,null,null,null,null,null,null,null,null,null,null,null,null,null,null,null,null,null,null,null,null,null,null,null,null,null,null,null,null,null,null,null,null,null,null,null,null,null,null,null,null,null,null,null,null,null,null,null,null,null,null,null,null,null,null,null,null,null,null,null,null,null,null,null,null,null,null,null,null,null,null,null,null,null,null,null,null,null,null,null,null,null,null,null,null,null,null,null,null,null,null,null,null,null,null,null,null,null,null,null,null,null,null,null,null,null,null,null,null,null,null,null,null,null,null,null,null,null,null,null,null,null,null,null,null,null,null,null,349,"和泉","和　　泉"]
[null,null,null,null,null,null,null,null,null,null,null,null,null,null,null,null,null,null,null,null,null,null,null,null,null,null,null,null,null,null,null,null,null,null,null,null,null,null,null,null,null,null,null,null,null,null,null,null,null,null,null,null,null,null,null,null,null,null,null,null,null,null,null,null,null,null,null,null,null,null,null,null,null,null,null,null,null,null,null,null,null,null,null,null,null,null,null,null,null,null,null,null,null,null,null,null,null,null,null,null,null,null,null,null,null,null,null,null,null,null,null,null,null,null,null,null,null,null,null,null,null,null,null,null,null,null,null,null,null,null,null,null,null,null,null,null,null,null,null,null,null,null,null,null,null,null,null,null,null,null,null,null,null,null,null,null,null,null,null,null,null,null,null,null,null,null,null,null,null,null,null,null,null,null,null,null,null,null,null,null,null,null,null,null,null,null,null,null,null,null,null,null,null,null,350,"泉大津","泉 大 津"]
[null,null,null,null,null,null,null,null,null,null,null,null,null,null,null,null,null,null,null,null,null,null,null,null,null,null,null,null,null,null,null,null,null,null,null,null,null,null,null,null,null,null,null,null,null,null,null,null,null,null,null,null,null,null,null,null,null,null,null,null,null,null,null,null,null,null,null,null,null,null,null,null,null,null,null,null,null,null,null,null,null,null,null,null,null,null,null,null,null,null,null,null,null,null,null,null,null,null,null,null,null,null,null,null,null,null,null,null,null,null,null,null,null,null,null,null,null,null,null,null,null,null,null,null,null,null,null,null,null,null,null,null,null,null,null,null,null,null,null,null,null,null,null,null,null,null,null,null,null,null,null,null,null,null,null,null,null,null,null,null,null,null,null,null,null,null,null,null,null,null,null,null,null,null,null,null,null,null,null,null,null,null,null,null,null,null,null,null,null,null,null,null,null,null,351,"泉鳥取","泉 鳥 取"]
[null,null,"階級",null,null,null,"選手名",null,null,null,null,null,null,null,null,null,null,null,null,null,null,null,null,null,null,null,null,null,null,null,null,null,null,null,null,null,null,null,"学年",null,null,"段位",null,null,"体重（kg）",null,null,null,null,"身長（cm）",null,null,null,null,"生年月日（西暦）",null,null,null,null,null,null,null,null,null,null,null,null,null,null,null,null,null,null,null,null,null,null,null,null,null,null,null,null,null,null,null,null,null,null,null,null,null,null,null,null,null,null,null,null,null,null,null,null,null,null,null,null,null,null,null,null,null,null,null,null,null,null,null,null,null,null,null,null,null,null,null,null,null,null,null,null,null,null,null,null,null,null,null,null,null,null,null,null,null,null,null,null,null,null,null,null,null,null,null,null,null,null,null,null,null,null,null,null,null,null,null,null,null,null,null,null,null,null,null,null,null,null,null,null,null,null,null,null,null,null,null,null,null,null,null,null,null,null,null,352,"市岡","市　　岡"]
[null,null,60,null,null,null,"ふりがな",null,null,null,null,null,null,null,null,null,null,null,null,null,null,null,null,null,null,null,null,null,null,null,null,null,null,null,null,null,null,null,null,null,null,null,null,null,null,null,null,null,null,null,null,null,null,null,null,null,null,null,"・",null,null,null,"・",null,null,null,null,null,null,null,null,null,null,null,null,null,null,null,null,null,null,null,null,null,null,null,null,null,null,null,null,null,null,null,null,null,null,null,null,null,null,null,null,null,null,null,null,null,null,null,null,null,null,null,null,null,null,null,null,null,null,null,null,null,null,null,null,null,null,null,null,null,null,null,null,null,null,null,null,null,null,null,null,null,null,null,null,null,null,null,null,null,null,null,null,null,null,null,null,null,null,null,null,null,null,null,null,null,null,null,null,null,null,null,null,null,null,null,null,null,null,null,null,null,null,null,null,null,null,null,null,null,null,null,353,"今宮","今　　宮"]
[null,null,null,null,null,null,"（姓）",null,null,null,null,null,null,null,null,null,null,null,null,null,null,null,"（名）",null,null,null,null,null,null,null,null,null,null,null,null,null,null,null,null,null,null,null,null,null,null,null,null,null,null,null,null,null,null,null,null,null,null,null,null,null,null,null,null,null,null,null,null,null,null,null,null,null,null,null,null,null,null,null,null,null,null,null,null,null,null,null,null,null,null,null,null,null,null,null,null,null,null,null,null,null,null,null,null,null,null,null,null,null,null,null,null,null,null,null,null,null,null,null,null,null,null,null,null,null,null,null,null,null,null,null,null,null,null,null,null,null,null,null,null,null,null,null,null,null,null,null,null,null,null,null,null,null,null,null,null,null,null,null,null,null,null,null,null,null,null,null,null,null,null,null,null,null,null,null,null,null,null,null,null,null,null,null,null,null,null,null,null,null,null,null,null,null,null,null,354,"鳳","　 鳳　 "]
[null,null,null,null,null,null,null,null,null,null,null,null,null,null,null,null,null,null,null,null,null,null,null,null,null,null,null,null,null,null,null,null,null,null,null,null,null,null,null,null,null,null,null,null,null,null,null,null,null,null,null,null,null,null,null,null,null,null,null,null,null,null,null,null,null,null,null,null,null,null,null,null,null,null,null,null,null,null,null,null,null,null,null,null,null,null,null,null,null,null,null,null,null,null,null,null,null,null,null,null,null,null,null,null,null,null,null,null,null,null,null,null,null,null,null,null,null,null,null,null,null,null,null,null,null,null,null,null,null,null,null,null,null,null,null,null,null,null,null,null,null,null,null,null,null,null,null,null,null,null,null,null,null,null,null,null,null,null,null,null,null,null,null,null,null,null,null,null,null,null,null,null,null,null,null,null,null,null,null,null,null,null,null,null,null,null,null,null,null,null,null,null,null,null,355,"貝塚","貝　　塚"]
[null,null,null,null,null,null,null,null,null,null,null,null,null,null,null,null,null,null,null,null,null,null,null,null,null,null,null,null,null,null,null,null,null,null,null,null,null,null,null,null,null,null,null,null,null,null,null,null,null,null,null,null,null,null,null,null,null,null,null,null,null,null,null,null,null,null,null,null,null,null,null,null,null,null,null,null,null,null,null,null,null,null,null,null,null,null,null,null,null,null,null,null,null,null,null,null,null,null,null,null,null,null,null,null,null,null,null,null,null,null,null,null,null,null,null,null,null,null,null,null,null,null,null,null,null,null,null,null,null,null,null,null,null,null,null,null,null,null,null,null,null,null,null,null,null,null,null,null,null,null,null,null,null,null,null,null,null,null,null,null,null,null,null,null,null,null,null,null,null,null,null,null,null,null,null,null,null,null,null,null,null,null,null,null,null,null,null,null,null,null,null,null,null,null,356,"貝塚南","貝 塚 南"]
[null,null,60,null,null,null,"ふりがな",null,null,null,null,null,null,null,null,null,null,null,null,null,null,null,null,null,null,null,null,null,null,null,null,null,null,null,null,null,null,null,null,null,null,null,null,null,null,null,null,null,null,null,null,null,null,null,null,null,null,null,"・",null,null,null,"・",null,null,null,null,null,null,null,null,null,null,null,null,null,null,null,null,null,null,null,null,null,null,null,null,null,null,null,null,null,null,null,null,null,null,null,null,null,null,null,null,null,null,null,null,null,null,null,null,null,null,null,null,null,null,null,null,null,null,null,null,null,null,null,null,null,null,null,null,null,null,null,null,null,null,null,null,null,null,null,null,null,null,null,null,null,null,null,null,null,null,null,null,null,null,null,null,null,null,null,null,null,null,null,null,null,null,null,null,null,null,null,null,null,null,null,null,null,null,null,null,null,null,null,null,null,null,null,null,null,null,null,357,"金岡","金　　岡"]
[null,null,null,null,null,null,"（姓）",null,null,null,null,null,null,null,null,null,null,null,null,null,null,null,"（名）",null,null,null,null,null,null,null,null,null,null,null,null,null,null,null,null,null,null,null,null,null,null,null,null,null,null,null,null,null,null,null,null,null,null,null,null,null,null,null,null,null,null,null,null,null,null,null,null,null,null,null,null,null,null,null,null,null,null,null,null,null,null,null,null,null,null,null,null,null,null,null,null,null,null,null,null,null,null,null,null,null,null,null,null,null,null,null,null,null,null,null,null,null,null,null,null,null,null,null,null,null,null,null,null,null,null,null,null,null,null,null,null,null,null,null,null,null,null,null,null,null,null,null,null,null,null,null,null,null,null,null,null,null,null,null,null,null,null,null,null,null,null,null,null,null,null,null,null,null,null,null,null,null,null,null,null,null,null,null,null,null,null,null,null,null,null,null,null,null,null,null,358,"岸和田","岸 和 田"]
[null,null,null,null,null,null,null,null,null,null,null,null,null,null,null,null,null,null,null,null,null,null,null,null,null,null,null,null,null,null,null,null,null,null,null,null,null,null,null,null,null,null,null,null,null,null,null,null,null,null,null,null,null,null,null,null,null,null,null,null,null,null,null,null,null,null,null,null,null,null,null,null,null,null,null,null,null,null,null,null,null,null,null,null,null,null,null,null,null,null,null,null,null,null,null,null,null,null,null,null,null,null,null,null,null,null,null,null,null,null,null,null,null,null,null,null,null,null,null,null,null,null,null,null,null,null,null,null,null,null,null,null,null,null,null,null,null,null,null,null,null,null,null,null,null,null,null,null,null,null,null,null,null,null,null,null,null,null,null,null,null,null,null,null,null,null,null,null,null,null,null,null,null,null,null,null,null,null,null,null,null,null,null,null,null,null,null,null,null,null,null,null,null,null,359,"港南造形","港南造形"]
[null,null,null,null,null,null,null,null,null,null,null,null,null,null,null,null,null,null,null,null,null,null,null,null,null,null,null,null,null,null,null,null,null,null,null,null,null,null,null,null,null,null,null,null,null,null,null,null,null,null,null,null,null,null,null,null,null,null,null,null,null,null,null,null,null,null,null,null,null,null,null,null,null,null,null,null,null,null,null,null,null,null,null,null,null,null,null,null,null,null,null,null,null,null,null,null,null,null,null,null,null,null,null,null,null,null,null,null,null,null,null,null,null,null,null,null,null,null,null,null,null,null,null,null,null,null,null,null,null,null,null,null,null,null,null,null,null,null,null,null,null,null,null,null,null,null,null,null,null,null,null,null,null,null,null,null,null,null,null,null,null,null,null,null,null,null,null,null,null,null,null,null,null,null,null,null,null,null,null,null,null,null,null,null,null,null,null,null,null,null,null,null,null,null,360,"久米田","久 米 田"]
[null,null,66,null,null,null,"ふりがな",null,null,null,null,null,null,null,null,null,null,null,null,null,null,null,null,null,null,null,null,null,null,null,null,null,null,null,null,null,null,null,null,null,null,null,null,null,null,null,null,null,null,null,null,null,null,null,null,null,null,null,"・",null,null,null,"・",null,null,null,null,null,null,null,null,null,null,null,null,null,null,null,null,null,null,null,null,null,null,null,null,null,null,null,null,null,null,null,null,null,null,null,null,null,null,null,null,null,null,null,null,null,null,null,null,null,null,null,null,null,null,null,null,null,null,null,null,null,null,null,null,null,null,null,null,null,null,null,null,null,null,null,null,null,null,null,null,null,null,null,null,null,null,null,null,null,null,null,null,null,null,null,null,null,null,null,null,null,null,null,null,null,null,null,null,null,null,null,null,null,null,null,null,null,null,null,null,null,null,null,null,null,null,null,null,null,null,null,361,"堺上","堺　　上"]
[null,null,null,null,null,null,"（姓）",null,null,null,null,null,null,null,null,null,null,null,null,null,null,null,"（名）",null,null,null,null,null,null,null,null,null,null,null,null,null,null,null,null,null,null,null,null,null,null,null,null,null,null,null,null,null,null,null,null,null,null,null,null,null,null,null,null,null,null,null,null,null,null,null,null,null,null,null,null,null,null,null,null,null,null,null,null,null,null,null,null,null,null,null,null,null,null,null,null,null,null,null,null,null,null,null,null,null,null,null,null,null,null,null,null,null,null,null,null,null,null,null,null,null,null,null,null,null,null,null,null,null,null,null,null,null,null,null,null,null,null,null,null,null,null,null,null,null,null,null,null,null,null,null,null,null,null,null,null,null,null,null,null,null,null,null,null,null,null,null,null,null,null,null,null,null,null,null,null,null,null,null,null,null,null,null,null,null,null,null,null,null,null,null,null,null,null,null,362,"堺西","堺　　西"]
[null,null,null,null,null,null,null,null,null,null,null,null,null,null,null,null,null,null,null,null,null,null,null,null,null,null,null,null,null,null,null,null,null,null,null,null,null,null,null,null,null,null,null,null,null,null,null,null,null,null,null,null,null,null,null,null,null,null,null,null,null,null,null,null,null,null,null,null,null,null,null,null,null,null,null,null,null,null,null,null,null,null,null,null,null,null,null,null,null,null,null,null,null,null,null,null,null,null,null,null,null,null,null,null,null,null,null,null,null,null,null,null,null,null,null,null,null,null,null,null,null,null,null,null,null,null,null,null,null,null,null,null,null,null,null,null,null,null,null,null,null,null,null,null,null,null,null,null,null,null,null,null,null,null,null,null,null,null,null,null,null,null,null,null,null,null,null,null,null,null,null,null,null,null,null,null,null,null,null,null,null,null,null,null,null,null,null,null,null,null,null,null,null,null,363,"堺東","堺　　東"]
[null,null,null,null,null,null,null,null,null,null,null,null,null,null,null,null,null,null,null,null,null,null,null,null,null,null,null,null,null,null,null,null,null,null,null,null,null,null,null,null,null,null,null,null,null,null,null,null,null,null,null,null,null,null,null,null,null,null,null,null,null,null,null,null,null,null,null,null,null,null,null,null,null,null,null,null,null,null,null,null,null,null,null,null,null,null,null,null,null,null,null,null,null,null,null,null,null,null,null,null,null,null,null,null,null,null,null,null,null,null,null,null,null,null,null,null,null,null,null,null,null,null,null,null,null,null,null,null,null,null,null,null,null,null,null,null,null,null,null,null,null,null,null,null,null,null,null,null,null,null,null,null,null,null,null,null,null,null,null,null,null,null,null,null,null,null,null,null,null,null,null,null,null,null,null,null,null,null,null,null,null,null,null,null,null,null,null,null,null,null,null,null,null,null,364,"佐野","佐　　野"]
[null,null,66,null,null,null,"ふりがな",null,null,null,null,null,null,null,null,null,null,null,null,null,null,null,null,null,null,null,null,null,null,null,null,null,null,null,null,null,null,null,null,null,null,null,null,null,null,null,null,null,null,null,null,null,null,null,null,null,null,null,"・",null,null,null,"・",null,null,null,null,null,null,null,null,null,null,null,null,null,null,null,null,null,null,null,null,null,null,null,null,null,null,null,null,null,null,null,null,null,null,null,null,null,null,null,null,null,null,null,null,null,null,null,null,null,null,null,null,null,null,null,null,null,null,null,null,null,null,null,null,null,null,null,null,null,null,null,null,null,null,null,null,null,null,null,null,null,null,null,null,null,null,null,null,null,null,null,null,null,null,null,null,null,null,null,null,null,null,null,null,null,null,null,null,null,null,null,null,null,null,null,null,null,null,null,null,null,null,null,null,null,null,null,null,null,null,null,365,"狭山","狭　　山"]
[null,null,null,null,null,null,"（姓）",null,null,null,null,null,null,null,null,null,null,null,null,null,null,null,"（名）",null,null,null,null,null,null,null,null,null,null,null,null,null,null,null,null,null,null,null,null,null,null,null,null,null,null,null,null,null,null,null,null,null,null,null,null,null,null,null,null,null,null,null,null,null,null,null,null,null,null,null,null,null,null,null,null,null,null,null,null,null,null,null,null,null,null,null,null,null,null,null,null,null,null,null,null,null,null,null,null,null,null,null,null,null,null,null,null,null,null,null,null,null,null,null,null,null,null,null,null,null,null,null,null,null,null,null,null,null,null,null,null,null,null,null,null,null,null,null,null,null,null,null,null,null,null,null,null,null,null,null,null,null,null,null,null,null,null,null,null,null,null,null,null,null,null,null,null,null,null,null,null,null,null,null,null,null,null,null,null,null,null,null,null,null,null,null,null,null,null,null,366,"信太","信　　太"]
[null,null,null,null,null,null,null,null,null,null,null,null,null,null,null,null,null,null,null,null,null,null,null,null,null,null,null,null,null,null,null,null,null,null,null,null,null,null,null,null,null,null,null,null,null,null,null,null,null,null,null,null,null,null,null,null,null,null,null,null,null,null,null,null,null,null,null,null,null,null,null,null,null,null,null,null,null,null,null,null,null,null,null,null,null,null,null,null,null,null,null,null,null,null,null,null,null,null,null,null,null,null,null,null,null,null,null,null,null,null,null,null,null,null,null,null,null,null,null,null,null,null,null,null,null,null,null,null,null,null,null,null,null,null,null,null,null,null,null,null,null,null,null,null,null,null,null,null,null,null,null,null,null,null,null,null,null,null,null,null,null,null,null,null,null,null,null,null,null,null,null,null,null,null,null,null,null,null,null,null,null,null,null,null,null,null,null,null,null,null,null,null,null,null,367,"咲洲","咲　　洲"]
[null,null,null,null,null,null,null,null,null,null,null,null,null,null,null,null,null,null,null,null,null,null,null,null,null,null,null,null,null,null,null,null,null,null,null,null,null,null,null,null,null,null,null,null,null,null,null,null,null,null,null,null,null,null,null,null,null,null,null,null,null,null,null,null,null,null,null,null,null,null,null,null,null,null,null,null,null,null,null,null,null,null,null,null,null,null,null,null,null,null,null,null,null,null,null,null,null,null,null,null,null,null,null,null,null,null,null,null,null,null,null,null,null,null,null,null,null,null,null,null,null,null,null,null,null,null,null,null,null,null,null,null,null,null,null,null,null,null,null,null,null,null,null,null,null,null,null,null,null,null,null,null,null,null,null,null,null,null,null,null,null,null,null,null,null,null,null,null,null,null,null,null,null,null,null,null,null,null,null,null,null,null,null,null,null,null,null,null,null,null,null,null,null,null,368,"りんくう翔南","りんくう"]
[null,null,73,null,null,null,"ふりがな",null,null,null,null,null,null,null,null,null,null,null,null,null,null,null,null,null,null,null,null,null,null,null,null,null,null,null,null,null,null,null,null,null,null,null,null,null,null,null,null,null,null,null,null,null,null,null,null,null,null,null,"・",null,null,null,"・",null,null,null,null,null,null,null,null,null,null,null,null,null,null,null,null,null,null,null,null,null,null,null,null,null,null,null,null,null,null,null,null,null,null,null,null,null,null,null,null,null,null,null,null,null,null,null,null,null,null,null,null,null,null,null,null,null,null,null,null,null,null,null,null,null,null,null,null,null,null,null,null,null,null,null,null,null,null,null,null,null,null,null,null,null,null,null,null,null,null,null,null,null,null,null,null,null,null,null,null,null,null,null,null,null,null,null,null,null,null,null,null,null,null,null,null,null,null,null,null,null,null,null,null,null,null,null,null,null,null,null,369,"泉北","泉　　北"]
[null,null,null,null,null,null,"（姓）",null,null,null,null,null,null,null,null,null,null,null,null,null,null,null,"（名）",null,null,null,null,null,null,null,null,null,null,null,null,null,null,null,null,null,null,null,null,null,null,null,null,null,null,null,null,null,null,null,null,null,null,null,null,null,null,null,null,null,null,null,null,null,null,null,null,null,null,null,null,null,null,null,null,null,null,null,null,null,null,null,null,null,null,null,null,null,null,null,null,null,null,null,null,null,null,null,null,null,null,null,null,null,null,null,null,null,null,null,null,null,null,null,null,null,null,null,null,null,null,null,null,null,null,null,null,null,null,null,null,null,null,null,null,null,null,null,null,null,null,null,null,null,null,null,null,null,null,null,null,null,null,null,null,null,null,null,null,null,null,null,null,null,null,null,null,null,null,null,null,null,null,null,null,null,null,null,null,null,null,null,null,null,null,null,null,null,null,null,370,"泉陽","泉　　陽"]
[null,null,null,null,null,null,null,null,null,null,null,null,null,null,null,null,null,null,null,null,null,null,null,null,null,null,null,null,null,null,null,null,null,null,null,null,null,null,null,null,null,null,null,null,null,null,null,null,null,null,null,null,null,null,null,null,null,null,null,null,null,null,null,null,null,null,null,null,null,null,null,null,null,null,null,null,null,null,null,null,null,null,null,null,null,null,null,null,null,null,null,null,null,null,null,null,null,null,null,null,null,null,null,null,null,null,null,null,null,null,null,null,null,null,null,null,null,null,null,null,null,null,null,null,null,null,null,null,null,null,null,null,null,null,null,null,null,null,null,null,null,null,null,null,null,null,null,null,null,null,null,null,null,null,null,null,null,null,null,null,null,null,null,null,null,null,null,null,null,null,null,null,null,null,null,null,null,null,null,null,null,null,null,null,null,null,null,null,null,null,null,null,null,null,371,"大正","大　　正"]
[null,null,null,null,null,null,null,null,null,null,null,null,null,null,null,null,null,null,null,null,null,null,null,null,null,null,null,null,null,null,null,null,null,null,null,null,null,null,null,null,null,null,null,null,null,null,null,null,null,null,null,null,null,null,null,null,null,null,null,null,null,null,null,null,null,null,null,null,null,null,null,null,null,null,null,null,null,null,null,null,null,null,null,null,null,null,null,null,null,null,null,null,null,null,null,null,null,null,null,null,null,null,null,null,null,null,null,null,null,null,null,null,null,null,null,null,null,null,null,null,null,null,null,null,null,null,null,null,null,null,null,null,null,null,null,null,null,null,null,null,null,null,null,null,null,null,null,null,null,null,null,null,null,null,null,null,null,null,null,null,null,null,null,null,null,null,null,null,null,null,null,null,null,null,null,null,null,null,null,null,null,null,null,null,null,null,null,null,null,null,null,null,null,null,372,"高石","高　　石"]
[null,null,73,null,null,null,"ふりがな",null,null,null,null,null,null,null,null,null,null,null,null,null,null,null,null,null,null,null,null,null,null,null,null,null,null,null,null,null,null,null,null,null,null,null,null,null,null,null,null,null,null,null,null,null,null,null,null,null,null,null,"・",null,null,null,"・",null,null,null,null,null,null,null,null,null,null,null,null,null,null,null,null,null,null,null,null,null,null,null,null,null,null,null,null,null,null,null,null,null,null,null,null,null,null,null,null,null,null,null,null,null,null,null,null,null,null,null,null,null,null,null,null,null,null,null,null,null,null,null,null,null,null,null,null,null,null,null,null,null,null,null,null,null,null,null,null,null,null,null,null,null,null,null,null,null,null,null,null,null,null,null,null,null,null,null,null,null,null,null,null,null,null,null,null,null,null,null,null,null,null,null,null,null,null,null,null,null,null,null,null,null,null,null,null,null,null,null,373,"登美丘","登 美 丘"]
[null,null,null,null,null,null,"（姓）",null,null,null,null,null,null,null,null,null,null,null,null,null,null,null,"（名）",null,null,null,null,null,null,null,null,null,null,null,null,null,null,null,null,null,null,null,null,null,null,null,null,null,null,null,null,null,null,null,null,null,null,null,null,null,null,null,null,null,null,null,null,null,null,null,null,null,null,null,null,null,null,null,null,null,null,null,null,null,null,null,null,null,null,null,null,null,null,null,null,null,null,null,null,null,null,null,null,null,null,null,null,null,null,null,null,null,null,null,null,null,null,null,null,null,null,null,null,null,null,null,null,null,null,null,null,null,null,null,null,null,null,null,null,null,null,null,null,null,null,null,null,null,null,null,null,null,null,null,null,null,null,null,null,null,null,null,null,null,null,null,null,null,null,null,null,null,null,null,null,null,null,null,null,null,null,null,null,null,null,null,null,null,null,null,null,null,null,null,374,"西成","西　　成"]
[null,null,null,null,null,null,null,null,null,null,null,null,null,null,null,null,null,null,null,null,null,null,null,null,null,null,null,null,null,null,null,null,null,null,null,null,null,null,null,null,null,null,null,null,null,null,null,null,null,null,null,null,null,null,null,null,null,null,null,null,null,null,null,null,null,null,null,null,null,null,null,null,null,null,null,null,null,null,null,null,null,null,null,null,null,null,null,null,null,null,null,null,null,null,null,null,null,null,null,null,null,null,null,null,null,null,null,null,null,null,null,null,null,null,null,null,null,null,null,null,null,null,null,null,null,null,null,null,null,null,null,null,null,null,null,null,null,null,null,null,null,null,null,null,null,null,null,null,null,null,null,null,null,null,null,null,null,null,null,null,null,null,null,null,null,null,null,null,null,null,null,null,null,null,null,null,null,null,null,null,null,null,null,null,null,null,null,null,null,null,null,null,null,null,376,"伯太","伯　　太"]
[null,null,null,null,null,null,null,null,null,null,null,null,null,null,null,null,null,null,null,null,null,null,null,null,null,null,null,null,null,null,null,null,null,null,null,null,null,null,null,null,null,null,null,null,null,null,null,null,null,null,null,null,null,null,null,null,null,null,null,null,null,null,null,null,null,null,null,null,null,null,null,null,null,null,null,null,null,null,null,null,null,null,null,null,null,null,null,null,null,null,null,null,null,null,null,null,null,null,null,null,null,null,null,null,null,null,null,null,null,null,null,null,null,null,null,null,null,null,null,null,null,null,null,null,null,null,null,null,null,null,null,null,null,null,null,null,null,null,null,null,null,null,null,null,null,null,null,null,null,null,null,null,null,null,null,null,null,null,null,null,null,null,null,null,null,null,null,null,null,null,null,null,null,null,null,null,null,null,null,null,null,null,null,null,null,null,null,null,null,null,null,null,null,null,377,"阪南大学","阪南大学"]
[null,null,81,null,null,null,"ふりがな",null,null,null,null,null,null,null,null,null,null,null,null,null,null,null,null,null,null,null,null,null,null,null,null,null,null,null,null,null,null,null,null,null,null,null,null,null,null,null,null,null,null,null,null,null,null,null,null,null,null,null,"・",null,null,null,"・",null,null,null,null,null,null,null,null,null,null,null,null,null,null,null,null,null,null,null,null,null,null,null,null,null,null,null,null,null,null,null,null,null,null,null,null,null,null,null,null,null,null,null,null,null,null,null,null,null,null,null,null,null,null,null,null,null,null,null,null,null,null,null,null,null,null,null,null,null,null,null,null,null,null,null,null,null,null,null,null,null,null,null,null,null,null,null,null,null,null,null,null,null,null,null,null,null,null,null,null,null,null,null,null,null,null,null,null,null,null,null,null,null,null,null,null,null,null,null,null,null,null,null,null,null,null,null,null,null,null,null,378,"東百舌鳥","東百舌鳥"]
[null,null,null,null,null,null,"（姓）",null,null,null,null,null,null,null,null,null,null,null,null,null,null,null,"（名）",null,null,null,null,null,null,null,null,null,null,null,null,null,null,null,null,null,null,null,null,null,null,null,null,null,null,null,null,null,null,null,null,null,null,null,null,null,null,null,null,null,null,null,null,null,null,null,null,null,null,null,null,null,null,null,null,null,null,null,null,null,null,null,null,null,null,null,null,null,null,null,null,null,null,null,null,null,null,null,null,null,null,null,null,null,null,null,null,null,null,null,null,null,null,null,null,null,null,null,null,null,null,null,null,null,null,null,null,null,null,null,null,null,null,null,null,null,null,null,null,null,null,null,null,null,null,null,null,null,null,null,null,null,null,null,null,null,null,null,null,null,null,null,null,null,null,null,null,null,null,null,null,null,null,null,null,null,null,null,null,null,null,null,null,null,null,null,null,null,null,null,379,"福泉","福　　泉"]
[null,null,null,null,null,null,null,null,null,null,null,null,null,null,null,null,null,null,null,null,null,null,null,null,null,null,null,null,null,null,null,null,null,null,null,null,null,null,null,null,null,null,null,null,null,null,null,null,null,null,null,null,null,null,null,null,null,null,null,null,null,null,null,null,null,null,null,null,null,null,null,null,null,null,null,null,null,null,null,null,null,null,null,null,null,null,null,null,null,null,null,null,null,null,null,null,null,null,null,null,null,null,null,null,null,null,null,null,null,null,null,null,null,null,null,null,null,null,null,null,null,null,null,null,null,null,null,null,null,null,null,null,null,null,null,null,null,null,null,null,null,null,null,null,null,null,null,null,null,null,null,null,null,null,null,null,null,null,null,null,null,null,null,null,null,null,null,null,null,null,null,null,null,null,null,null,null,null,null,null,null,null,null,null,null,null,null,null,null,null,null,null,null,null,380,"成美","成　　美"]
[null,null,null,null,null,null,null,null,null,null,null,null,null,null,null,null,null,null,null,null,null,null,null,null,null,null,null,null,null,null,null,null,null,null,null,null,null,null,null,null,null,null,null,null,null,null,null,null,null,null,null,null,null,null,null,null,null,null,null,null,null,null,null,null,null,null,null,null,null,null,null,null,null,null,null,null,null,null,null,null,null,null,null,null,null,null,null,null,null,null,null,null,null,null,null,null,null,null,null,null,null,null,null,null,null,null,null,null,null,null,null,null,null,null,null,null,null,null,null,null,null,null,null,null,null,null,null,null,null,null,null,null,null,null,null,null,null,null,null,null,null,null,null,null,null,null,null,null,null,null,null,null,null,null,null,null,null,null,null,null,null,null,null,null,null,null,null,null,null,null,null,null,null,null,null,null,null,null,null,null,null,null,null,null,null,null,null,null,null,null,null,null,null,null,381,"三国丘","三 国 丘"]
[null,null,81,null,null,null,"ふりがな",null,null,null,null,null,null,null,null,null,null,null,null,null,null,null,null,null,null,null,null,null,null,null,null,null,null,null,null,null,null,null,null,null,null,null,null,null,null,null,null,null,null,null,null,null,null,null,null,null,null,null,"・",null,null,null,"・",null,null,null,null,null,null,null,null,null,null,null,null,null,null,null,null,null,null,null,null,null,null,null,null,null,null,null,null,null,null,null,null,null,null,null,null,null,null,null,null,null,null,null,null,null,null,null,null,null,null,null,null,null,null,null,null,null,null,null,null,null,null,null,null,null,null,null,null,null,null,null,null,null,null,null,null,null,null,null,null,null,null,null,null,null,null,null,null,null,null,null,null,null,null,null,null,null,null,null,null,null,null,null,null,null,null,null,null,null,null,null,null,null,null,null,null,null,null,null,null,null,null,null,null,null,null,null,null,null,null,null,382,"岬","　 岬　 "]
[null,null,null,null,null,null,"（姓）",null,null,null,null,null,null,null,null,null,null,null,null,null,null,null,"（名）",null,null,null,null,null,null,null,null,null,null,null,null,null,null,null,null,null,null,null,null,null,null,null,null,null,null,null,null,null,null,null,null,null,null,null,null,null,null,null,null,null,null,null,null,null,null,null,null,null,null,null,null,null,null,null,null,null,null,null,null,null,null,null,null,null,null,null,null,null,null,null,null,null,null,null,null,null,null,null,null,null,null,null,null,null,null,null,null,null,null,null,null,null,null,null,null,null,null,null,null,null,null,null,null,null,null,null,null,null,null,null,null,null,null,null,null,null,null,null,null,null,null,null,null,null,null,null,null,null,null,null,null,null,null,null,null,null,null,null,null,null,null,null,null,null,null,null,null,null,null,null,null,null,null,null,null,null,null,null,null,null,null,null,null,null,null,null,null,null,null,null,383,"港","   港　 "]
[null,null,null,null,null,null,null,null,null,null,null,null,null,null,null,null,null,null,null,null,null,null,null,null,null,null,null,null,null,null,null,null,null,null,null,null,null,null,null,null,null,null,null,null,null,null,null,null,null,null,null,null,null,null,null,null,null,null,null,null,null,null,null,null,null,null,null,null,null,null,null,null,null,null,null,null,null,null,null,null,null,null,null,null,null,null,null,null,null,null,null,null,null,null,null,null,null,null,null,null,null,null,null,null,null,null,null,null,null,null,null,null,null,null,null,null,null,null,null,null,null,null,null,null,null,null,null,null,null,null,null,null,null,null,null,null,null,null,null,null,null,null,null,null,null,null,null,null,null,null,null,null,null,null,null,null,null,null,null,null,null,null,null,null,null,null,null,null,null,null,null,null,null,null,null,null,null,null,null,null,null,null,null,null,null,null,null,null,null,null,null,null,null,null,384,"センター附属","センター"]
[null,null,null,null,null,null,null,null,null,null,null,null,null,null,null,null,null,null,null,null,null,null,null,null,null,null,null,null,null,null,null,null,null,null,null,null,null,null,null,null,null,null,null,null,null,null,null,null,null,null,null,null,null,null,null,null,null,null,null,null,null,null,null,null,null,null,null,null,null,null,null,null,null,null,null,null,null,null,null,null,null,null,null,null,null,null,null,null,null,null,null,null,null,null,null,null,null,null,null,null,null,null,null,null,null,null,null,null,null,null,null,null,null,null,null,null,null,null,null,null,null,null,null,null,null,null,null,null,null,null,null,null,null,null,null,null,null,null,null,null,null,null,null,null,null,null,null,null,null,null,null,null,null,null,null,null,null,null,null,null,null,null,null,null,null,null,null,null,null,null,null,null,null,null,null,null,null,null,null,null,null,null,null,null,null,null,null,null,null,null,null,null,null,null,386,"和泉総合","和泉総合"]
[null,null,90,null,null,null,"ふりがな",null,null,null,null,null,null,null,null,null,null,null,null,null,null,null,null,null,null,null,null,null,null,null,null,null,null,null,null,null,null,null,null,null,null,null,null,null,null,null,null,null,null,null,null,null,null,null,null,null,null,null,"・",null,null,null,"・",null,null,null,null,null,null,null,null,null,null,null,null,null,null,null,null,null,null,null,null,null,null,null,null,null,null,null,null,null,null,null,null,null,null,null,null,null,null,null,null,null,null,null,null,null,null,null,null,null,null,null,null,null,null,null,null,null,null,null,null,null,null,null,null,null,null,null,null,null,null,null,null,null,null,null,null,null,null,null,null,null,null,null,null,null,null,null,null,null,null,null,null,null,null,null,null,null,null,null,null,null,null,null,null,null,null,null,null,null,null,null,null,null,null,null,null,null,null,null,null,null,null,null,null,null,null,null,null,null,null,null,387,"今宮工科","今宮工科"]
[null,null,null,null,null,null,"（姓）",null,null,null,null,null,null,null,null,null,null,null,null,null,null,null,"（名）",null,null,null,null,null,null,null,null,null,null,null,null,null,null,null,null,null,null,null,null,null,null,null,null,null,null,null,null,null,null,null,null,null,null,null,null,null,null,null,null,null,null,null,null,null,null,null,null,null,null,null,null,null,null,null,null,null,null,null,null,null,null,null,null,null,null,null,null,null,null,null,null,null,null,null,null,null,null,null,null,null,null,null,null,null,null,null,null,null,null,null,null,null,null,null,null,null,null,null,null,null,null,null,null,null,null,null,null,null,null,null,null,null,null,null,null,null,null,null,null,null,null,null,null,null,null,null,null,null,null,null,null,null,null,null,null,null,null,null,null,null,null,null,null,null,null,null,null,null,null,null,null,null,null,null,null,null,null,null,null,null,null,null,null,null,null,null,null,null,null,null,388,"堺工科","堺 工 科"]
[null,null,null,null,null,null,null,null,null,null,null,null,null,null,null,null,null,null,null,null,null,null,null,null,null,null,null,null,null,null,null,null,null,null,null,null,null,null,null,null,null,null,null,null,null,null,null,null,null,null,null,null,null,null,null,null,null,null,null,null,null,null,null,null,null,null,null,null,null,null,null,null,null,null,null,null,null,null,null,null,null,null,null,null,null,null,null,null,null,null,null,null,null,null,null,null,null,null,null,null,null,null,null,null,null,null,null,null,null,null,null,null,null,null,null,null,null,null,null,null,null,null,null,null,null,null,null,null,null,null,null,null,null,null,null,null,null,null,null,null,null,null,null,null,null,null,null,null,null,null,null,null,null,null,null,null,null,null,null,null,null,null,null,null,null,null,null,null,null,null,null,null,null,null,null,null,null,null,null,null,null,null,null,null,null,null,null,null,null,null,null,null,null,null,389,"佐野工科","佐野工科"]
[null,null,null,null,null,null,null,null,null,null,null,null,null,null,null,null,null,null,null,null,null,null,null,null,null,null,null,null,null,null,null,null,null,null,null,null,null,null,null,null,null,null,null,null,null,null,null,null,null,null,null,null,null,null,null,null,null,null,null,null,null,null,null,null,null,null,null,null,null,null,null,null,null,null,null,null,null,null,null,null,null,null,null,null,null,null,null,null,null,null,null,null,null,null,null,null,null,null,null,null,null,null,null,null,null,null,null,null,null,null,null,null,null,null,null,null,null,null,null,null,null,null,null,null,null,null,null,null,null,null,null,null,null,null,null,null,null,null,null,null,null,null,null,null,null,null,null,null,null,null,null,null,null,null,null,null,null,null,null,null,null,null,null,null,null,null,null,null,null,null,null,null,null,null,null,null,null,null,null,null,null,null,null,null,null,null,null,null,null,null,null,null,null,null,390,"西野田工科","西野田工"]
[null,null,90,null,null,null,"ふりがな",null,null,null,null,null,null,null,null,null,null,null,null,null,null,null,null,null,null,null,null,null,null,null,null,null,null,null,null,null,null,null,null,null,null,null,null,null,null,null,null,null,null,null,null,null,null,null,null,null,null,null,"・",null,null,null,"・",null,null,null,null,null,null,null,null,null,null,null,null,null,null,null,null,null,null,null,null,null,null,null,null,null,null,null,null,null,null,null,null,null,null,null,null,null,null,null,null,null,null,null,null,null,null,null,null,null,null,null,null,null,null,null,null,null,null,null,null,null,null,null,null,null,null,null,null,null,null,null,null,null,null,null,null,null,null,null,null,null,null,null,null,null,null,null,null,null,null,null,null,null,null,null,null,null,null,null,null,null,null,null,null,null,null,null,null,null,null,null,null,null,null,null,null,null,null,null,null,null,null,null,null,null,null,null,null,null,null,null,391,"日根野","日 根 野"]
[null,null,null,null,null,null,"（姓）",null,null,null,null,null,null,null,null,null,null,null,null,null,null,null,"（名）",null,null,null,null,null,null,null,null,null,null,null,null,null,null,null,null,null,null,null,null,null,null,null,null,null,null,null,null,null,null,null,null,null,null,null,null,null,null,null,null,null,null,null,null,null,null,null,null,null,null,null,null,null,null,null,null,null,null,null,null,null,null,null,null,null,null,null,null,null,null,null,null,null,null,null,null,null,null,null,null,null,null,null,null,null,null,null,null,null,null,null,null,null,null,null,null,null,null,null,null,null,null,null,null,null,null,null,null,null,null,null,null,null,null,null,null,null,null,null,null,null,null,null,null,null,null,null,null,null,null,null,null,null,null,null,null,null,null,null,null,null,null,null,null,null,null,null,null,null,null,null,null,null,null,null,null,null,null,null,null,null,null,null,null,null,null,null,null,null,null,null,394,"泉尾工業","泉尾工業"]
[null,null,null,null,null,null,null,null,null,null,null,null,null,null,null,null,null,null,null,null,null,null,null,null,null,null,null,null,null,null,null,null,null,null,null,null,null,null,null,null,null,null,null,null,null,null,null,null,null,null,null,null,null,null,null,null,null,null,null,null,null,null,null,null,null,null,null,null,null,null,null,null,null,null,null,null,null,null,null,null,null,null,null,null,null,null,null,null,null,null,null,null,null,null,null,null,null,null,null,null,null,null,null,null,null,null,null,null,null,null,null,null,null,null,null,null,null,null,null,null,null,null,null,null,null,null,null,null,null,null,null,null,null,null,null,null,null,null,null,null,null,null,null,null,null,null,null,null,null,null,null,null,null,null,null,null,null,null,null,null,null,null,null,null,null,null,null,null,null,null,null,null,null,null,null,null,null,null,null,null,null,null,null,null,null,null,null,null,null,null,null,null,null,null,395,"岸和田市立産業","岸和田産"]
[null,null,null,null,null,null,null,null,null,null,null,null,null,null,null,null,null,null,null,null,null,null,null,null,null,null,null,null,null,null,null,null,null,null,null,null,null,null,null,null,null,null,null,null,null,null,null,null,null,null,null,null,null,null,null,null,null,null,null,null,null,null,null,null,null,null,null,null,null,null,null,null,null,null,null,null,null,null,null,null,null,null,null,null,null,null,null,null,null,null,null,null,null,null,null,null,null,null,null,null,null,null,null,null,null,null,null,null,null,null,null,null,null,null,null,null,null,null,null,null,null,null,null,null,null,null,null,null,null,null,null,null,null,null,null,null,null,null,null,null,null,null,null,null,null,null,null,null,null,null,null,null,null,null,null,null,null,null,null,null,null,null,null,null,null,null,null,null,null,null,null,null,null,null,null,null,null,null,null,null,null,null,null,null,null,null,null,null,null,null,null,null,null,null,396,"咲くやこの花","咲　　花"]
[null,null,100,null,null,null,"ふりがな",null,null,null,null,null,null,null,null,null,null,null,null,null,null,null,null,null,null,null,null,null,null,null,null,null,null,null,null,null,null,null,null,null,null,null,null,null,null,null,null,null,null,null,null,null,null,null,null,null,null,null,"・",null,null,null,"・",null,null,null,null,null,null,null,null,null,null,null,null,null,null,null,null,null,null,null,null,null,null,null,null,null,null,null,null,null,null,null,null,null,null,null,null,null,null,null,null,null,null,null,null,null,null,null,null,null,null,null,null,null,null,null,null,null,null,null,null,null,null,null,null,null,null,null,null,null,null,null,null,null,null,null,null,null,null,null,null,null,null,null,null,null,null,null,null,null,null,null,null,null,null,null,null,null,null,null,null,null,null,null,null,null,null,null,null,null,null,null,null,null,null,null,null,null,null,null,null,null,null,null,null,null,null,null,null,null,null,null,397,"堺市立堺","堺市立堺"]
[null,null,null,null,null,null,"（姓）",null,null,null,null,null,null,null,null,null,null,null,null,null,null,null,"（名）",null,null,null,null,null,null,null,null,null,null,null,null,null,null,null,null,null,null,null,null,null,null,null,null,null,null,null,null,null,null,null,null,null,null,null,null,null,null,null,null,null,null,null,null,null,null,null,null,null,null,null,null,null,null,null,null,null,null,null,null,null,null,null,null,null,null,null,null,null,null,null,null,null,null,null,null,null,null,null,null,null,null,null,null,null,null,null,null,null,null,null,null,null,null,null,null,null,null,null,null,null,null,null,null,null,null,null,null,null,null,null,null,null,null,null,null,null,null,null,null,null,null,null,null,null,null,null,null,null,null,null,null,null,null,null,null,null,null,null,null,null,null,null,null,null,null,null,null,null,null,null,null,null,null,null,null,null,null,null,null,null,null,null,null,null,null,null,null,null,null,null,398,"大阪商業大学堺","商 大 堺　"]
[null,null,null,null,null,null,null,null,null,null,null,null,null,null,null,null,null,null,null,null,null,null,null,null,null,null,null,null,null,null,null,null,null,null,null,null,null,null,null,null,null,null,null,null,null,null,null,null,null,null,null,null,null,null,null,null,null,null,null,null,null,null,null,null,null,null,null,null,null,null,null,null,null,null,null,null,null,null,null,null,null,null,null,null,null,null,null,null,null,null,null,null,null,null,null,null,null,null,null,null,null,null,null,null,null,null,null,null,null,null,null,null,null,null,null,null,null,null,null,null,null,null,null,null,null,null,null,null,null,null,null,null,null,null,null,null,null,null,null,null,null,null,null,null,null,null,null,null,null,null,null,null,null,null,null,null,null,null,null,null,null,null,null,null,null,null,null,null,null,null,null,null,null,null,null,null,null,null,null,null,null,null,null,null,null,null,null,null,null,null,null,null,null,null,399,"大阪学芸","大阪学芸"]
[null,null,null,null,null,null,null,null,null,null,null,null,null,null,null,null,null,null,null,null,null,null,null,null,null,null,null,null,null,null,null,null,null,null,null,null,null,null,null,null,null,null,null,null,null,null,null,null,null,null,null,null,null,null,null,null,null,null,null,null,null,null,null,null,null,null,null,null,null,null,null,null,null,null,null,null,null,null,null,null,null,null,null,null,null,null,null,null,null,null,null,null,null,null,null,null,null,null,null,null,null,null,null,null,null,null,null,null,null,null,null,null,null,null,null,null,null,null,null,null,null,null,null,null,null,null,null,null,null,null,null,null,null,null,null,null,null,null,null,null,null,null,null,null,null,null,null,null,null,null,null,null,null,null,null,null,null,null,null,null,null,null,null,null,null,null,null,null,null,null,null,null,null,null,null,null,null,null,null,null,null,null,null,null,null,null,null,null,null,null,null,null,null,null,400,"清教学園","清教学園"]
[null,null,100,null,null,null,"ふりがな",null,null,null,null,null,null,null,null,null,null,null,null,null,null,null,null,null,null,null,null,null,null,null,null,null,null,null,null,null,null,null,null,null,null,null,null,null,null,null,null,null,null,null,null,null,null,null,null,null,null,null,"・",null,null,null,"・",null,null,null,null,null,null,null,null,null,null,null,null,null,null,null,null,null,null,null,null,null,null,null,null,null,null,null,null,null,null,null,null,null,null,null,null,null,null,null,null,null,null,null,null,null,null,null,null,null,null,null,null,null,null,null,null,null,null,null,null,null,null,null,null,null,null,null,null,null,null,null,null,null,null,null,null,null,null,null,null,null,null,null,null,null,null,null,null,null,null,null,null,null,null,null,null,null,null,null,null,null,null,null,null,null,null,null,null,null,null,null,null,null,null,null,null,null,null,null,null,null,null,null,null,null,null,null,null,null,null,null,401,"浪速","浪　　速"]
[null,null,null,null,null,null,"（姓）",null,null,null,null,null,null,null,null,null,null,null,null,null,null,null,"（名）",null,null,null,null,null,null,null,null,null,null,null,null,null,null,null,null,null,null,null,null,null,null,null,null,null,null,null,null,null,null,null,null,null,null,null,null,null,null,null,null,null,null,null,null,null,null,null,null,null,null,null,null,null,null,null,null,null,null,null,null,null,null,null,null,null,null,null,null,null,null,null,null,null,null,null,null,null,null,null,null,null,null,null,null,null,null,null,null,null,null,null,null,null,null,null,null,null,null,null,null,null,null,null,null,null,null,null,null,null,null,null,null,null,null,null,null,null,null,null,null,null,null,null,null,null,null,null,null,null,null,null,null,null,null,null,null,null,null,null,null,null,null,null,null,null,null,null,null,null,null,null,null,null,null,null,null,null,null,null,null,null,null,null,null,null,null,null,null,null,null,null,402,"初芝立命館","初芝立命"]
[null,null,null,null,null,null,null,null,null,null,null,null,null,null,null,null,null,null,null,null,null,null,null,null,null,null,null,null,null,null,null,null,null,null,null,null,null,null,null,null,null,null,null,null,null,null,null,null,null,null,null,null,null,null,null,null,null,null,null,null,null,null,null,null,null,null,null,null,null,null,null,null,null,null,null,null,null,null,null,null,null,null,null,null,null,null,null,null,null,null,null,null,null,null,null,null,null,null,null,null,null,null,null,null,null,null,null,null,null,null,null,null,null,null,null,null,null,null,null,null,null,null,null,null,null,null,null,null,null,null,null,null,null,null,null,null,null,null,null,null,null,null,null,null,null,null,null,null,null,null,null,null,null,null,null,null,null,null,null,null,null,null,null,null,null,null,null,null,null,null,null,null,null,null,null,null,null,null,null,null,null,null,null,null,null,null,null,null,null,null,null,null,null,null,403,"清風南海","清風南海"]
[null,null,null,null,null,null,null,null,null,null,null,null,null,null,null,null,null,null,null,null,null,null,null,null,null,null,null,null,null,null,null,null,null,null,null,null,null,null,null,null,null,null,null,null,null,null,null,null,null,null,null,null,null,null,null,null,null,null,null,null,null,null,null,null,null,null,null,null,null,null,null,null,null,null,null,null,null,null,null,null,null,null,null,null,null,null,null,null,null,null,null,null,null,null,null,null,null,null,null,null,null,null,null,null,null,null,null,null,null,null,null,null,null,null,null,null,null,null,null,null,null,null,null,null,null,null,null,null,null,null,null,null,null,null,null,null,null,null,null,null,null,null,null,null,null,null,null,null,null,null,null,null,null,null,null,null,null,null,null,null,null,null,null,null,null,null,null,null,null,null,null,null,null,null,null,null,null,null,null,null,null,null,null,null,null,null,null,null,null,null,null,null,null,null,404,"帝塚山泉ヶ丘","帝塚山泉"]
[null,null,"+100",null,null,null,"ふりがな",null,null,null,null,null,null,null,null,null,null,null,null,null,null,null,null,null,null,null,null,null,null,null,null,null,null,null,null,null,null,null,null,null,null,null,null,null,null,null,null,null,null,null,null,null,null,null,null,null,null,null,"・",null,null,null,"・",null,null,null,null,null,null,null,null,null,null,null,null,null,null,null,null,null,null,null,null,null,null,null,null,null,null,null,null,null,null,null,null,null,null,null,null,null,null,null,null,null,null,null,null,null,null,null,null,null,null,null,null,null,null,null,null,null,null,null,null,null,null,null,null,null,null,null,null,null,null,null,null,null,null,null,null,null,null,null,null,null,null,null,null,null,null,null,null,null,null,null,null,null,null,null,null,null,null,null,null,null,null,null,null,null,null,null,null,null,null,null,null,null,null,null,null,null,null,null,null,null,null,null,null,null,null,null,null,null,null,null,405,"金剛学園","金剛学園"]
[null,null,null,null,null,null,"（姓）",null,null,null,null,null,null,null,null,null,null,null,null,null,null,null,"（名）",null,null,null,null,null,null,null,null,null,null,null,null,null,null,null,null,null,null,null,null,null,null,null,null,null,null,null,null,null,null,null,null,null,null,null,null,null,null,null,null,null,null,null,null,null,null,null,null,null,null,null,null,null,null,null,null,null,null,null,null,null,null,null,null,null,null,null,null,null,null,null,null,null,null,null,null,null,null,null,null,null,null,null,null,null,null,null,null,null,null,null,null,null,null,null,null,null,null,null,null,null,null,null,null,null,null,null,null,null,null,null,null,null,null,null,null,null,null,null,null,null,null,null,null,null,null,null,null,null,null,null,null,null,null,null,null,null,null,null,null,null,null,null,null,null,null,null,null,null,null,null,null,null,null,null,null,null,null,null,null,null,null,null,null,null,null,null,null,null,null,null,406,"大体大浪商","体大浪商"]
[null,null,null,null,null,null,null,null,null,null,null,null,null,null,null,null,null,null,null,null,null,null,null,null,null,null,null,null,null,null,null,null,null,null,null,null,null,null,null,null,null,null,null,null,null,null,null,null,null,null,null,null,null,null,null,null,null,null,null,null,null,null,null,null,null,null,null,null,null,null,null,null,null,null,null,null,null,null,null,null,null,null,null,null,null,null,null,null,null,null,null,null,null,null,null,null,null,null,null,null,null,null,null,null,null,null,null,null,null,null,null,null,null,null,null,null,null,null,null,null,null,null,null,null,null,null,null,null,null,null,null,null,null,null,null,null,null,null,null,null,null,null,null,null,null,null,null,null,null,null,null,null,null,null,null,null,null,null,null,null,null,null,null,null,null,null,null,null,null,null,null,null,null,null,null,null,null,null,null,null,null,null,null,null,null,null,null,null,null,null,null,null,null,null,407,"教育大天王寺","教大天王"]
[null,null,null,null,null,null,null,null,null,null,null,null,null,null,null,null,null,null,null,null,null,null,null,null,null,null,null,null,null,null,null,null,null,null,null,null,null,null,null,null,null,null,null,null,null,null,null,null,null,null,null,null,null,null,null,null,null,null,null,null,null,null,null,null,null,null,null,null,null,null,null,null,null,null,null,null,null,null,null,null,null,null,null,null,null,null,null,null,null,null,null,null,null,null,null,null,null,null,null,null,null,null,null,null,null,null,null,null,null,null,null,null,null,null,null,null,null,null,null,null,null,null,null,null,null,null,null,null,null,null,null,null,null,null,null,null,null,null,null,null,null,null,null,null,null,null,null,null,null,null,null,null,null,null,null,null,null,null,null,null,null,null,null,null,null,null,null,null,null,null,null,null,null,null,null,null,null,null,null,null,null,null,null,null,null,null,null,null,null,null,null,null,null,null,408,"教育大附平野","教大平野"]
[null,null,"+100",null,null,null,"ふりがな",null,null,null,null,null,null,null,null,null,null,null,null,null,null,null,null,null,null,null,null,null,null,null,null,null,null,null,null,null,null,null,null,null,null,null,null,null,null,null,null,null,null,null,null,null,null,null,null,null,null,null,"・",null,null,null,"・",null,null,null,null,null,null,null,null,null,null,null,null,null,null,null,null,null,null,null,null,null,null,null,null,null,null,null,null,null,null,null,null,null,null,null,null,null,null,null,null,null,null,null,null,null,null,null,null,null,null,null,null,null,null,null,null,null,null,null,null,null,null,null,null,null,null,null,null,null,null,null,null,null,null,null,null,null,null,null,null,null,null,null,null,null,null,null,null,null,null,null,null,null,null,null,null,null,null,null,null,null,null,null,null,null,null,null,null,null,null,null,null,null,null,null,null,null,null,null,null,null,null,null,null,null,null,null,null,null,null,null,409,"阿倍野","阿 倍 野"]
[null,null,null,null,null,null,"（姓）",null,null,null,null,null,null,null,null,null,null,null,null,null,null,null,"（名）",null,null,null,null,null,null,null,null,null,null,null,null,null,null,null,null,null,null,null,null,null,null,null,null,null,null,null,null,null,null,null,null,null,null,null,null,null,null,null,null,null,null,null,null,null,null,null,null,null,null,null,null,null,null,null,null,null,null,null,null,null,null,null,null,null,null,null,null,null,null,null,null,null,null,null,null,null,null,null,null,null,null,null,null,null,null,null,null,null,null,null,null,null,null,null,null,null,null,null,null,null,null,null,null,null,null,null,null,null,null,null,null,null,null,null,null,null,null,null,null,null,null,null,null,null,null,null,null,null,null,null,null,null,null,null,null,null,null,null,null,null,null,null,null,null,null,null,null,null,null,null,null,null,null,null,null,null,null,null,null,null,null,null,null,null,null,null,null,null,null,null,410,"生野","生　　野"]
[null,null,null,null,null,null,null,null,null,null,null,null,null,null,null,null,null,null,null,null,null,null,null,null,null,null,null,null,null,null,null,null,null,null,null,null,null,null,null,null,null,null,null,null,null,null,null,null,null,null,null,null,null,null,null,null,null,null,null,null,null,null,null,null,null,null,null,null,null,null,null,null,null,null,null,null,null,null,null,null,null,null,null,null,null,null,null,null,null,null,null,null,null,null,null,null,null,null,null,null,null,null,null,null,null,null,null,null,null,null,null,null,null,null,null,null,null,null,null,null,null,null,null,null,null,null,null,null,null,null,null,null,null,null,null,null,null,null,null,null,null,null,null,null,null,null,null,null,null,null,null,null,null,null,null,null,null,null,null,null,null,null,null,null,null,null,null,null,null,null,null,null,null,null,null,null,null,null,null,null,null,null,null,null,null,null,null,null,null,null,null,null,null,null,411,"みどり清朋","み ど り"]
[null,null,null,null,null,null,null,null,null,null,null,null,null,null,null,null,null,null,null,null,null,null,null,null,null,null,null,null,null,null,null,null,null,null,null,null,null,null,null,null,null,null,null,null,null,null,null,null,null,null,null,null,null,null,null,null,null,null,null,null,null,null,null,null,null,null,null,null,null,null,null,null,null,null,null,null,null,null,null,null,null,null,null,null,null,null,null,null,null,null,null,null,null,null,null,null,null,null,null,null,null,null,null,null,null,null,null,null,null,null,null,null,null,null,null,null,null,null,null,null,null,null,null,null,null,null,null,null,null,null,null,null,null,null,null,null,null,null,null,null,null,null,null,null,null,null,null,null,null,null,null,null,null,null,null,null,null,null,null,null,null,null,null,null,null,null,null,null,null,null,null,null,null,null,null,null,null,null,null,null,null,null,null,null,null,null,null,null,null,null,null,null,null,null,412,"大塚","大　　塚"]
[null,null,null,null,null,null,null,null,null,null,null,null,null,null,null,null,null,null,null,null,null,null,null,null,null,null,null,null,null,null,null,null,null,null,null,null,null,null,null,null,null,null,null,null,null,null,null,null,null,null,null,null,null,null,null,null,null,null,null,null,null,null,null,null,null,null,null,null,null,null,null,null,null,null,null,null,null,null,null,null,null,null,null,null,null,null,null,null,null,null,null,null,null,null,null,null,null,null,null,null,null,null,null,null,null,null,null,null,null,null,null,null,null,null,null,null,null,null,null,null,null,null,null,null,null,null,null,null,null,null,null,null,null,null,null,null,null,null,null,null,null,null,null,null,null,null,null,null,null,null,null,null,null,null,null,null,null,null,null,null,null,null,null,null,null,null,null,null,null,null,null,null,null,null,null,null,null,null,null,null,null,null,null,null,null,null,null,null,null,null,null,null,null,null,413,"柏原東","柏 原 東"]
[null,null,"男子個人（特別枠）",null,null,null,null,null,null,null,null,null,null,null,null,null,null,null,null,null,null,null,null,null,null,null,null,null,null,null,null,null,null,null,null,null,null,null,null,null,null,null,null,null,null,null,null,null,null,null,null,null,null,null,null,null,null,null,null,null,null,null,null,null,null,null,null,null,null,null,null,null,null,null,null,null,null,null,null,null,null,null,null,null,null,null,null,null,null,null,null,null,null,null,null,null,null,null,null,null,null,null,null,null,null,null,null,null,null,null,null,null,null,null,null,null,null,null,null,null,null,null,null,null,null,null,null,null,null,null,null,null,null,null,null,null,null,null,null,null,null,null,null,null,null,null,null,null,null,null,null,null,null,null,null,null,null,null,null,null,null,null,null,null,null,null,null,null,null,null,null,null,null,null,null,null,null,null,null,null,null,null,null,null,null,null,null,null,null,null,null,null,null,null,414,"河南","河　　南"]
[null,null,null,null,null,null,null,null,null,null,null,null,null,null,null,null,null,null,null,null,null,null,null,null,null,null,null,null,null,null,null,null,null,null,null,null,null,null,null,null,null,null,null,null,null,null,null,null,null,null,null,null,null,null,null,null,null,null,null,null,null,null,null,null,null,null,null,null,null,null,null,null,null,null,null,null,null,null,null,null,null,null,null,null,null,null,null,null,null,null,null,null,null,null,null,null,null,null,null,null,null,null,null,null,null,null,null,null,null,null,null,null,null,null,null,null,null,null,null,null,null,null,null,null,null,null,null,null,null,null,null,null,null,null,null,null,null,null,null,null,null,null,null,null,null,null,null,null,null,null,null,null,null,null,null,null,null,null,null,null,null,null,null,null,null,null,null,null,null,null,null,null,null,null,null,null,null,null,null,null,null,null,null,null,null,null,null,null,null,null,null,null,null,null,416,"金剛","金　　剛"]
[null,null,null,null,null,null,null,null,null,null,null,null,null,null,null,null,null,null,null,null,null,null,null,null,null,null,null,null,null,null,null,null,null,null,null,null,null,null,null,null,null,null,null,null,null,null,null,null,null,null,null,null,null,null,null,null,null,null,null,null,null,null,null,null,null,null,null,null,null,null,null,null,null,null,null,null,null,null,null,null,null,null,null,null,null,null,null,null,null,null,null,null,null,null,null,null,null,null,null,null,null,null,null,null,null,null,null,null,null,null,null,null,null,null,null,null,null,null,null,null,null,null,null,null,null,null,null,null,null,null,null,null,null,null,null,null,null,null,null,null,null,null,null,null,null,null,null,null,null,null,null,null,null,null,null,null,null,null,null,null,null,null,null,null,null,null,null,null,null,null,null,null,null,null,null,null,null,null,null,null,null,null,null,null,null,null,null,null,null,null,null,null,null,null,417,"住吉","住　　吉"]
[null,null,"階級",null,null,null,"選手名",null,null,null,null,null,null,null,null,null,null,null,null,null,null,null,null,null,null,null,null,null,null,null,null,null,null,null,null,null,null,null,"学年",null,null,"段位",null,null,"体重（kg）",null,null,null,null,"身長（cm）",null,null,null,null,"生年月日（西暦）",null,null,null,null,null,null,null,null,null,null,null,null,null,null,null,null,null,null,null,null,null,null,null,null,null,null,null,null,null,null,null,null,null,null,null,null,null,null,null,null,null,null,null,null,null,null,null,null,null,null,null,null,null,null,null,null,null,null,null,null,null,null,null,null,null,null,null,null,null,null,null,null,null,null,null,null,null,null,null,null,null,null,null,null,null,null,null,null,null,null,null,null,null,null,null,null,null,null,null,null,null,null,null,null,null,null,null,null,null,null,null,null,null,null,null,null,null,null,null,null,null,null,null,null,null,null,null,null,null,null,null,null,null,null,null,null,null,null,null,419,"天王寺","天 王 寺"]
[null,null,null,null,null,null,"ふりがな",null,null,null,null,null,null,null,null,null,null,null,null,null,null,null,null,null,null,null,null,null,null,null,null,null,null,null,null,null,null,null,null,null,null,null,null,null,null,null,null,null,null,null,null,null,null,null,null,null,null,null,"・",null,null,null,"・",null,null,null,1,null,null,null,null,null,null,null,null,null,null,null,null,null,null,null,null,null,null,null,null,null,null,null,null,null,null,null,null,null,null,null,null,null,null,null,null,null,null,null,null,null,null,null,null,null,null,null,null,null,null,null,null,null,null,null,null,null,null,null,null,null,null,null,null,null,null,null,null,null,null,null,null,null,null,null,null,null,null,null,null,null,null,null,null,null,null,null,null,null,null,null,null,null,null,null,null,null,null,null,null,null,null,null,null,null,null,null,null,null,null,null,null,null,null,null,null,null,null,null,null,null,null,null,null,null,null,null,420,"富田林","富 田 林"]
[null,null,null,null,null,null,"（姓）",null,null,null,null,null,null,null,null,null,null,null,null,null,null,null,"（名）",null,null,null,null,null,null,null,null,null,null,null,null,null,null,null,null,null,null,null,null,null,null,null,null,null,null,null,null,null,null,null,null,null,null,null,null,null,null,null,null,null,null,null,null,null,null,null,null,null,null,null,null,null,null,null,null,null,null,null,null,null,null,null,null,null,null,null,null,null,null,null,null,null,null,null,null,null,null,null,null,null,null,null,null,null,null,null,null,null,null,null,null,null,null,null,null,null,null,null,null,null,null,null,null,null,null,null,null,null,null,null,null,null,null,null,null,null,null,null,null,null,null,null,null,null,null,null,null,null,null,null,null,null,null,null,null,null,null,null,null,null,null,null,null,null,null,null,null,null,null,null,null,null,null,null,null,null,null,null,null,null,null,null,null,null,null,null,null,null,null,null,421,"長野","長　　野"]
[null,null,null,null,null,null,null,null,null,null,null,null,null,null,null,null,null,null,null,null,null,null,null,null,null,null,null,null,null,null,null,null,null,null,null,null,null,null,null,null,null,null,null,null,null,null,null,null,null,null,null,null,null,null,null,null,null,null,null,null,null,null,null,null,null,null,null,null,null,null,null,null,null,null,null,null,null,null,null,null,null,null,null,null,null,null,null,null,null,null,null,null,null,null,null,null,null,null,null,null,null,null,null,null,null,null,null,null,null,null,null,null,null,null,null,null,null,null,null,null,null,null,null,null,null,null,null,null,null,null,null,null,null,null,null,null,null,null,null,null,null,null,null,null,null,null,null,null,null,null,null,null,null,null,null,null,null,null,null,null,null,null,null,null,null,null,null,null,null,null,null,null,null,null,null,null,null,null,null,null,null,null,null,null,null,null,null,null,null,null,null,null,null,null,422,"長野北","長 野 北"]
[null,null,null,null,null,null,null,null,null,null,null,null,null,null,null,null,null,null,null,null,null,null,null,null,null,null,null,null,null,null,null,null,null,null,null,null,null,null,null,null,null,null,null,null,null,null,null,null,null,null,null,null,null,null,null,null,null,null,null,null,null,null,null,null,null,null,null,null,null,null,null,null,null,null,null,null,null,null,null,null,null,null,null,null,null,null,null,null,null,null,null,null,null,null,null,null,null,null,null,null,null,null,null,null,null,null,null,null,null,null,null,null,null,null,null,null,null,null,null,null,null,null,null,null,null,null,null,null,null,null,null,null,null,null,null,null,null,null,null,null,null,null,null,null,null,null,null,null,null,null,null,null,null,null,null,null,null,null,null,null,null,null,null,null,null,null,null,null,null,null,null,null,null,null,null,null,null,null,null,null,null,null,null,null,null,null,null,null,null,null,null,null,null,null,423,"長吉","長　　吉"]
[null,null,null,null,null,null,"ふりがな",null,null,null,null,null,null,null,null,null,null,null,null,null,null,null,null,null,null,null,null,null,null,null,null,null,null,null,null,null,null,null,null,null,null,null,null,null,null,null,null,null,null,null,null,null,null,null,null,null,null,null,"・",null,null,null,"・",null,null,null,2,null,null,null,null,null,null,null,null,null,null,null,null,null,null,null,null,null,null,null,null,null,null,null,null,null,null,null,null,null,null,null,null,null,null,null,null,null,null,null,null,null,null,null,null,null,null,null,null,null,null,null,null,null,null,null,null,null,null,null,null,null,null,null,null,null,null,null,null,null,null,null,null,null,null,null,null,null,null,null,null,null,null,null,null,null,null,null,null,null,null,null,null,null,null,null,null,null,null,null,null,null,null,null,null,null,null,null,null,null,null,null,null,null,null,null,null,null,null,null,null,null,null,null,null,null,null,null,425,"花園","花　　園"]
[null,null,null,null,null,null,"（姓）",null,null,null,null,null,null,null,null,null,null,null,null,null,null,null,"（名）",null,null,null,null,null,null,null,null,null,null,null,null,null,null,null,null,null,null,null,null,null,null,null,null,null,null,null,null,null,null,null,null,null,null,null,null,null,null,null,null,null,null,null,null,null,null,null,null,null,null,null,null,null,null,null,null,null,null,null,null,null,null,null,null,null,null,null,null,null,null,null,null,null,null,null,null,null,null,null,null,null,null,null,null,null,null,null,null,null,null,null,null,null,null,null,null,null,null,null,null,null,null,null,null,null,null,null,null,null,null,null,null,null,null,null,null,null,null,null,null,null,null,null,null,null,null,null,null,null,null,null,null,null,null,null,null,null,null,null,null,null,null,null,null,null,null,null,null,null,null,null,null,null,null,null,null,null,null,null,null,null,null,null,null,null,null,null,null,null,null,null,426,"懐風館","懐 風 館"]
[null,null,null,null,null,null,null,null,null,null,null,null,null,null,null,null,null,null,null,null,null,null,null,null,null,null,null,null,null,null,null,null,null,null,null,null,null,null,null,null,null,null,null,null,null,null,null,null,null,null,null,null,null,null,null,null,null,null,null,null,null,null,null,null,null,null,null,null,null,null,null,null,null,null,null,null,null,null,null,null,null,null,null,null,null,null,null,null,null,null,null,null,null,null,null,null,null,null,null,null,null,null,null,null,null,null,null,null,null,null,null,null,null,null,null,null,null,null,null,null,null,null,null,null,null,null,null,null,null,null,null,null,null,null,null,null,null,null,null,null,null,null,null,null,null,null,null,null,null,null,null,null,null,null,null,null,null,null,null,null,null,null,null,null,null,null,null,null,null,null,null,null,null,null,null,null,null,null,null,null,null,null,null,null,null,null,null,null,null,null,null,null,null,null,427,"東住吉","東 住 吉"]
[null,null,null,null,null,null,null,null,null,null,null,null,null,null,null,null,null,null,null,null,null,null,null,null,null,null,null,null,null,null,null,null,null,null,null,null,null,null,null,null,null,null,null,null,null,null,null,null,null,null,null,null,null,null,null,null,null,null,null,null,null,null,null,null,null,null,null,null,null,null,null,null,null,null,null,null,null,null,null,null,null,null,null,null,null,null,null,null,null,null,null,null,null,null,null,null,null,null,null,null,null,null,null,null,null,null,null,null,null,null,null,null,null,null,null,null,null,null,null,null,null,null,null,null,null,null,null,null,null,null,null,null,null,null,null,null,null,null,null,null,null,null,null,null,null,null,null,null,null,null,null,null,null,null,null,null,null,null,null,null,null,null,null,null,null,null,null,null,null,null,null,null,null,null,null,null,null,null,null,null,null,null,null,null,null,null,null,null,null,null,null,null,null,null,428,"平野","平　　野"]
[null,null,null,null,null,null,"ふりがな",null,null,null,null,null,null,null,null,null,null,null,null,null,null,null,null,null,null,null,null,null,null,null,null,null,null,null,null,null,null,null,null,null,null,null,null,null,null,null,null,null,null,null,null,null,null,null,null,null,null,null,"・",null,null,null,"・",null,null,null,3,null,null,null,null,null,null,null,null,null,null,null,null,null,null,null,null,null,null,null,null,null,null,null,null,null,null,null,null,null,null,null,null,null,null,null,null,null,null,null,null,null,null,null,null,null,null,null,null,null,null,null,null,null,null,null,null,null,null,null,null,null,null,null,null,null,null,null,null,null,null,null,null,null,null,null,null,null,null,null,null,null,null,null,null,null,null,null,null,null,null,null,null,null,null,null,null,null,null,null,null,null,null,null,null,null,null,null,null,null,null,null,null,null,null,null,null,null,null,null,null,null,null,null,null,null,null,null,429,"藤井寺","藤 井 寺"]
[null,null,null,null,null,null,"（姓）",null,null,null,null,null,null,null,null,null,null,null,null,null,null,null,"（名）",null,null,null,null,null,null,null,null,null,null,null,null,null,null,null,null,null,null,null,null,null,null,null,null,null,null,null,null,null,null,null,null,null,null,null,null,null,null,null,null,null,null,null,null,null,null,null,null,null,null,null,null,null,null,null,null,null,null,null,null,null,null,null,null,null,null,null,null,null,null,null,null,null,null,null,null,null,null,null,null,null,null,null,null,null,null,null,null,null,null,null,null,null,null,null,null,null,null,null,null,null,null,null,null,null,null,null,null,null,null,null,null,null,null,null,null,null,null,null,null,null,null,null,null,null,null,null,null,null,null,null,null,null,null,null,null,null,null,null,null,null,null,null,null,null,null,null,null,null,null,null,null,null,null,null,null,null,null,null,null,null,null,null,null,null,null,null,null,null,null,null,430,"布施","布　　施"]
[null,null,null,null,null,null,null,null,null,null,null,null,null,null,null,null,null,null,null,null,null,null,null,null,null,null,null,null,null,null,null,null,null,null,null,null,null,null,null,null,null,null,null,null,null,null,null,null,null,null,null,null,null,null,null,null,null,null,null,null,null,null,null,null,null,null,null,null,null,null,null,null,null,null,null,null,null,null,null,null,null,null,null,null,null,null,null,null,null,null,null,null,null,null,null,null,null,null,null,null,null,null,null,null,null,null,null,null,null,null,null,null,null,null,null,null,null,null,null,null,null,null,null,null,null,null,null,null,null,null,null,null,null,null,null,null,null,null,null,null,null,null,null,null,null,null,null,null,null,null,null,null,null,null,null,null,null,null,null,null,null,null,null,null,null,null,null,null,null,null,null,null,null,null,null,null,null,null,null,null,null,null,null,null,null,null,null,null,null,null,null,null,null,null,431,"布施北","布 施 北"]
[null,null,null,null,null,null,null,null,null,null,null,null,null,null,null,null,null,null,null,null,null,null,null,null,null,null,null,null,null,null,null,null,null,null,null,null,null,null,null,null,null,null,null,null,null,null,null,null,null,null,null,null,null,null,null,null,null,null,null,null,null,null,null,null,null,null,null,null,null,null,null,null,null,null,null,null,null,null,null,null,null,null,null,null,null,null,null,null,null,null,null,null,null,null,null,null,null,null,null,null,null,null,null,null,null,null,null,null,null,null,null,null,null,null,null,null,null,null,null,null,null,null,null,null,null,null,null,null,null,null,null,null,null,null,null,null,null,null,null,null,null,null,null,null,null,null,null,null,null,null,null,null,null,null,null,null,null,null,null,null,null,null,null,null,null,null,null,null,null,null,null,null,null,null,null,null,null,null,null,null,null,null,null,null,null,null,null,null,null,null,null,null,null,null,432,"松原","松　　原"]
[null,null,null,null,null,null,"ふりがな",null,null,null,null,null,null,null,null,null,null,null,null,null,null,null,null,null,null,null,null,null,null,null,null,null,null,null,null,null,null,null,null,null,null,null,null,null,null,null,null,null,null,null,null,null,null,null,null,null,null,null,"・",null,null,null,"・",null,null,null,4,null,null,null,null,null,null,null,null,null,null,null,null,null,null,null,null,null,null,null,null,null,null,null,null,null,null,null,null,null,null,null,null,null,null,null,null,null,null,null,null,null,null,null,null,null,null,null,null,null,null,null,null,null,null,null,null,null,null,null,null,null,null,null,null,null,null,null,null,null,null,null,null,null,null,null,null,null,null,null,null,null,null,null,null,null,null,null,null,null,null,null,null,null,null,null,null,null,null,null,null,null,null,null,null,null,null,null,null,null,null,null,null,null,null,null,null,null,null,null,null,null,null,null,null,null,null,null,433,"美原","美　　原"]
[null,null,null,null,null,null,"（姓）",null,null,null,null,null,null,null,null,null,null,null,null,null,null,null,"（名）",null,null,null,null,null,null,null,null,null,null,null,null,null,null,null,null,null,null,null,null,null,null,null,null,null,null,null,null,null,null,null,null,null,null,null,null,null,null,null,null,null,null,null,null,null,null,null,null,null,null,null,null,null,null,null,null,null,null,null,null,null,null,null,null,null,null,null,null,null,null,null,null,null,null,null,null,null,null,null,null,null,null,null,null,null,null,null,null,null,null,null,null,null,null,null,null,null,null,null,null,null,null,null,null,null,null,null,null,null,null,null,null,null,null,null,null,null,null,null,null,null,null,null,null,null,null,null,null,null,null,null,null,null,null,null,null,null,null,null,null,null,null,null,null,null,null,null,null,null,null,null,null,null,null,null,null,null,null,null,null,null,null,null,null,null,null,null,null,null,null,null,434,"八尾","八　　尾"]
[null,null,null,null,null,null,null,null,null,null,null,null,null,null,null,null,null,null,null,null,null,null,null,null,null,null,null,null,null,null,null,null,null,null,null,null,null,null,null,null,null,null,null,null,null,null,null,null,null,null,null,null,null,null,null,null,null,null,null,null,null,null,null,null,null,null,null,null,null,null,null,null,null,null,null,null,null,null,null,null,null,null,null,null,null,null,null,null,null,null,null,null,null,null,null,null,null,null,null,null,null,null,null,null,null,null,null,null,null,null,null,null,null,null,null,null,null,null,null,null,null,null,null,null,null,null,null,null,null,null,null,null,null,null,null,null,null,null,null,null,null,null,null,null,null,null,null,null,null,null,null,null,null,null,null,null,null,null,null,null,null,null,null,null,null,null,null,null,null,null,null,null,null,null,null,null,null,null,null,null,null,null,null,null,null,null,null,null,null,null,null,null,null,null,435,"八尾北","八 尾 北"]
[null,null,null,null,null,null,null,null,null,null,null,null,null,null,null,null,null,null,null,null,null,null,null,null,null,null,null,null,null,null,null,null,null,null,null,null,null,null,null,null,null,null,null,null,null,null,null,null,null,null,null,null,null,null,null,null,null,null,null,null,null,null,null,null,null,null,null,null,null,null,null,null,null,null,null,null,null,null,null,null,null,null,null,null,null,null,null,null,null,null,null,null,null,null,null,null,null,null,null,null,null,null,null,null,null,null,null,null,null,null,null,null,null,null,null,null,null,null,null,null,null,null,null,null,null,null,null,null,null,null,null,null,null,null,null,null,null,null,null,null,null,null,null,null,null,null,null,null,null,null,null,null,null,null,null,null,null,null,null,null,null,null,null,null,null,null,null,null,null,null,null,null,null,null,null,null,null,null,null,null,null,null,null,null,null,null,null,null,null,null,null,null,null,null,436,"八尾翠翔","八尾翠翔"]
[null,null,null,null,null,null,"ふりがな",null,null,null,null,null,null,null,null,null,null,null,null,null,null,null,null,null,null,null,null,null,null,null,null,null,null,null,null,null,null,null,null,null,null,null,null,null,null,null,null,null,null,null,null,null,null,null,null,null,null,null,"・",null,null,null,"・",null,null,null,5,null,null,null,null,null,null,null,null,null,null,null,null,null,null,null,null,null,null,null,null,null,null,null,null,null,null,null,null,null,null,null,null,null,null,null,null,null,null,null,null,null,null,null,null,null,null,null,null,null,null,null,null,null,null,null,null,null,null,null,null,null,null,null,null,null,null,null,null,null,null,null,null,null,null,null,null,null,null,null,null,null,null,null,null,null,null,null,null,null,null,null,null,null,null,null,null,null,null,null,null,null,null,null,null,null,null,null,null,null,null,null,null,null,null,null,null,null,null,null,null,null,null,null,null,null,null,null,438,"山本","山　　本"]
[null,null,null,null,null,null,"（姓）",null,null,null,null,null,null,null,null,null,null,null,null,null,null,null,"（名）",null,null,null,null,null,null,null,null,null,null,null,null,null,null,null,null,null,null,null,null,null,null,null,null,null,null,null,null,null,null,null,null,null,null,null,null,null,null,null,null,null,null,null,null,null,null,null,null,null,null,null,null,null,null,null,null,null,null,null,null,null,null,null,null,null,null,null,null,null,null,null,null,null,null,null,null,null,null,null,null,null,null,null,null,null,null,null,null,null,null,null,null,null,null,null,null,null,null,null,null,null,null,null,null,null,null,null,null,null,null,null,null,null,null,null,null,null,null,null,null,null,null,null,null,null,null,null,null,null,null,null,null,null,null,null,null,null,null,null,null,null,null,null,null,null,null,null,null,null,null,null,null,null,null,null,null,null,null,null,null,null,null,null,null,null,null,null,null,null,null,null,439,"枚岡樟風","牧岡樟風"]
[null,null,null,null,null,null,null,null,null,null,null,null,null,null,null,null,null,null,null,null,null,null,null,null,null,null,null,null,null,null,null,null,null,null,null,null,null,null,null,null,null,null,null,null,null,null,null,null,null,null,null,null,null,null,null,null,null,null,null,null,null,null,null,null,null,null,null,null,null,null,null,null,null,null,null,null,null,null,null,null,null,null,null,null,null,null,null,null,null,null,null,null,null,null,null,null,null,null,null,null,null,null,null,null,null,null,null,null,null,null,null,null,null,null,null,null,null,null,null,null,null,null,null,null,null,null,null,null,null,null,null,null,null,null,null,null,null,null,null,null,null,null,null,null,null,null,null,null,null,null,null,null,null,null,null,null,null,null,null,null,null,null,null,null,null,null,null,null,null,null,null,null,null,null,null,null,null,null,null,null,null,null,null,null,null,null,null,null,null,null,null,null,null,null,440,"農芸","農　　芸"]
[null,null,null,null,null,null,null,null,null,null,null,null,null,null,null,null,null,null,null,null,null,null,null,null,null,null,null,null,null,null,null,null,null,null,null,null,null,null,null,null,null,null,null,null,null,null,null,null,null,null,null,null,null,null,null,null,null,null,null,null,null,null,null,null,null,null,null,null,null,null,null,null,null,null,null,null,null,null,null,null,null,null,null,null,null,null,null,null,null,null,null,null,null,null,null,null,null,null,null,null,null,null,null,null,null,null,null,null,null,null,null,null,null,null,null,null,null,null,null,null,null,null,null,null,null,null,null,null,null,null,null,null,null,null,null,null,null,null,null,null,null,null,null,null,null,null,null,null,null,null,null,null,null,null,null,null,null,null,null,null,null,null,null,null,null,null,null,null,null,null,null,null,null,null,null,null,null,null,null,null,null,null,null,null,null,null,null,null,null,null,null,null,null,null,441,"東住吉総合","東住吉総"]
[null,null,null,null,null,null,"ふりがな",null,null,null,null,null,null,null,null,null,null,null,null,null,null,null,null,null,null,null,null,null,null,null,null,null,null,null,null,null,null,null,null,null,null,null,null,null,null,null,null,null,null,null,null,null,null,null,null,null,null,null,"・",null,null,null,"・",null,null,null,6,null,null,null,null,null,null,null,null,null,null,null,null,null,null,null,null,null,null,null,null,null,null,null,null,null,null,null,null,null,null,null,null,null,null,null,null,null,null,null,null,null,null,null,null,null,null,null,null,null,null,null,null,null,null,null,null,null,null,null,null,null,null,null,null,null,null,null,null,null,null,null,null,null,null,null,null,null,null,null,null,null,null,null,null,null,null,null,null,null,null,null,null,null,null,null,null,null,null,null,null,null,null,null,null,null,null,null,null,null,null,null,null,null,null,null,null,null,null,null,null,null,null,null,null,null,null,null,442,"藤井寺工科","藤井寺工"]
[null,null,null,null,null,null,"（姓）",null,null,null,null,null,null,null,null,null,null,null,null,null,null,null,"（名）",null,null,null,null,null,null,null,null,null,null,null,null,null,null,null,null,null,null,null,null,null,null,null,null,null,null,null,null,null,null,null,null,null,null,null,null,null,null,null,null,null,null,null,null,null,null,null,null,null,null,null,null,null,null,null,null,null,null,null,null,null,null,null,null,null,null,null,null,null,null,null,null,null,null,null,null,null,null,null,null,null,null,null,null,null,null,null,null,null,null,null,null,null,null,null,null,null,null,null,null,null,null,null,null,null,null,null,null,null,null,null,null,null,null,null,null,null,null,null,null,null,null,null,null,null,null,null,null,null,null,null,null,null,null,null,null,null,null,null,null,null,null,null,null,null,null,null,null,null,null,null,null,null,null,null,null,null,null,null,null,null,null,null,null,null,null,null,null,null,null,null,443,"布施工科","布施工科"]
[null,null,null,null,null,null,null,null,null,null,null,null,null,null,null,null,null,null,null,null,null,null,null,null,null,null,null,null,null,null,null,null,null,null,null,null,null,null,null,null,null,null,null,null,null,null,null,null,null,null,null,null,null,null,null,null,null,null,null,null,null,null,null,null,null,null,null,null,null,null,null,null,null,null,null,null,null,null,null,null,null,null,null,null,null,null,null,null,null,null,null,null,null,null,null,null,null,null,null,null,null,null,null,null,null,null,null,null,null,null,null,null,null,null,null,null,null,null,null,null,null,null,null,null,null,null,null,null,null,null,null,null,null,null,null,null,null,null,null,null,null,null,null,null,null,null,null,null,null,null,null,null,null,null,null,null,null,null,null,null,null,null,null,null,null,null,null,null,null,null,null,null,null,null,null,null,null,null,null,null,null,null,null,null,null,null,null,null,null,null,null,null,null,null,445,"日新","日　　新"]
[null,null,null,null,null,null,null,null,null,null,null,null,null,null,null,null,null,null,null,null,null,null,null,null,null,null,null,null,null,null,null,null,null,null,null,null,null,null,null,null,null,null,null,null,null,null,null,null,null,null,null,null,null,null,null,null,null,null,null,null,null,null,null,null,null,null,null,null,null,null,null,null,null,null,null,null,null,null,null,null,null,null,null,null,null,null,null,null,null,null,null,null,null,null,null,null,null,null,null,null,null,null,null,null,null,null,null,null,null,null,null,null,null,null,null,null,null,null,null,null,null,null,null,null,null,null,null,null,null,null,null,null,null,null,null,null,null,null,null,null,null,null,null,null,null,null,null,null,null,null,null,null,null,null,null,null,null,null,null,null,null,null,null,null,null,null,null,null,null,null,null,null,null,null,null,null,null,null,null,null,null,null,null,null,null,null,null,null,null,null,null,null,null,null,446,"上宮","上　　宮"]
[null,null,null,null,null,null,"ふりがな",null,null,null,null,null,null,null,null,null,null,null,null,null,null,null,null,null,null,null,null,null,null,null,null,null,null,null,null,null,null,null,null,null,null,null,null,null,null,null,null,null,null,null,null,null,null,null,null,null,null,null,"・",null,null,null,"・",null,null,null,7,null,null,null,null,null,null,null,null,null,null,null,null,null,null,null,null,null,null,null,null,null,null,null,null,null,null,null,null,null,null,null,null,null,null,null,null,null,null,null,null,null,null,null,null,null,null,null,null,null,null,null,null,null,null,null,null,null,null,null,null,null,null,null,null,null,null,null,null,null,null,null,null,null,null,null,null,null,null,null,null,null,null,null,null,null,null,null,null,null,null,null,null,null,null,null,null,null,null,null,null,null,null,null,null,null,null,null,null,null,null,null,null,null,null,null,null,null,null,null,null,null,null,null,null,null,null,null,447,"金光八尾","金光八尾"]
[null,null,null,null,null,null,"（姓）",null,null,null,null,null,null,null,null,null,null,null,null,null,null,null,"（名）",null,null,null,null,null,null,null,null,null,null,null,null,null,null,null,null,null,null,null,null,null,null,null,null,null,null,null,null,null,null,null,null,null,null,null,null,null,null,null,null,null,null,null,null,null,null,null,null,null,null,null,null,null,null,null,null,null,null,null,null,null,null,null,null,null,null,null,null,null,null,null,null,null,null,null,null,null,null,null,null,null,null,null,null,null,null,null,null,null,null,null,null,null,null,null,null,null,null,null,null,null,null,null,null,null,null,null,null,null,null,null,null,null,null,null,null,null,null,null,null,null,null,null,null,null,null,null,null,null,null,null,null,null,null,null,null,null,null,null,null,null,null,null,null,null,null,null,null,null,null,null,null,null,null,null,null,null,null,null,null,null,null,null,null,null,null,null,null,null,null,null,448,"阪南大学","阪南大学"]
[null,null,null,null,null,null,null,null,null,null,null,null,null,null,null,null,null,null,null,null,null,null,null,null,null,null,null,null,null,null,null,null,null,null,null,null,null,null,null,null,null,null,null,null,null,null,null,null,null,null,null,null,null,null,null,null,null,null,null,null,null,null,null,null,null,null,null,null,null,null,null,null,null,null,null,null,null,null,null,null,null,null,null,null,null,null,null,null,null,null,null,null,null,null,null,null,null,null,null,null,null,null,null,null,null,null,null,null,null,null,null,null,null,null,null,null,null,null,null,null,null,null,null,null,null,null,null,null,null,null,null,null,null,null,null,null,null,null,null,null,null,null,null,null,null,null,null,null,null,null,null,null,null,null,null,null,null,null,null,null,null,null,null,null,null,null,null,null,null,null,null,null,null,null,null,null,null,null,null,null,null,null,null,null,null,null,null,null,null,null,null,null,null,null,449,"大阪商業大学","大 商 大"]
[null,null,null,null,null,null,null,null,null,null,null,null,null,null,null,null,null,null,null,null,null,null,null,null,null,null,null,null,null,null,null,null,null,null,null,null,null,null,null,null,null,null,null,null,null,null,null,null,null,null,null,null,null,null,null,null,null,null,null,null,null,null,null,null,null,null,null,null,null,null,null,null,null,null,null,null,null,null,null,null,null,null,null,null,null,null,null,null,null,null,null,null,null,null,null,null,null,null,null,null,null,null,null,null,null,null,null,null,null,null,null,null,null,null,null,null,null,null,null,null,null,null,null,null,null,null,null,null,null,null,null,null,null,null,null,null,null,null,null,null,null,null,null,null,null,null,null,null,null,null,null,null,null,null,null,null,null,null,null,null,null,null,null,null,null,null,null,null,null,null,null,null,null,null,null,null,null,null,null,null,null,null,null,null,null,null,null,null,null,null,null,null,null,null,450,"東大阪大学柏原","東大柏原"]
[null,null,null,null,null,null,"ふりがな",null,null,null,null,null,null,null,null,null,null,null,null,null,null,null,null,null,null,null,null,null,null,null,null,null,null,null,null,null,null,null,null,null,null,null,null,null,null,null,null,null,null,null,null,null,null,null,null,null,null,null,"・",null,null,null,"・",null,null,null,8,null,null,null,null,null,null,null,null,null,null,null,null,null,null,null,null,null,null,null,null,null,null,null,null,null,null,null,null,null,null,null,null,null,null,null,null,null,null,null,null,null,null,null,null,null,null,null,null,null,null,null,null,null,null,null,null,null,null,null,null,null,null,null,null,null,null,null,null,null,null,null,null,null,null,null,null,null,null,null,null,null,null,null,null,null,null,null,null,null,null,null,null,null,null,null,null,null,null,null,null,null,null,null,null,null,null,null,null,null,null,null,null,null,null,null,null,null,null,null,null,null,null,null,null,null,null,null,451,"近畿大学附属","近大附属"]
[null,null,null,null,null,null,"（姓）",null,null,null,null,null,null,null,null,null,null,null,null,null,null,null,"（名）",null,null,null,null,null,null,null,null,null,null,null,null,null,null,null,null,null,null,null,null,null,null,null,null,null,null,null,null,null,null,null,null,null,null,null,null,null,null,null,null,null,null,null,null,null,null,null,null,null,null,null,null,null,null,null,null,null,null,null,null,null,null,null,null,null,null,null,null,null,null,null,null,null,null,null,null,null,null,null,null,null,null,null,null,null,null,null,null,null,null,null,null,null,null,null,null,null,null,null,null,null,null,null,null,null,null,null,null,null,null,null,null,null,null,null,null,null,null,null,null,null,null,null,null,null,null,null,null,null,null,null,null,null,null,null,null,null,null,null,null,null,null,null,null,null,null,null,null,null,null,null,null,null,null,null,null,null,null,null,null,null,null,null,null,null,null,null,null,null,null,null,452,"興國","興　　國"]
[null,null,null,null,null,null,null,null,null,null,null,null,null,null,null,null,null,null,null,null,null,null,null,null,null,null,null,null,null,null,null,null,null,null,null,null,null,null,null,null,null,null,null,null,null,null,null,null,null,null,null,null,null,null,null,null,null,null,null,null,null,null,null,null,null,null,null,null,null,null,null,null,null,null,null,null,null,null,null,null,null,null,null,null,null,null,null,null,null,null,null,null,null,null,null,null,null,null,null,null,null,null,null,null,null,null,null,null,null,null,null,null,null,null,null,null,null,null,null,null,null,null,null,null,null,null,null,null,null,null,null,null,null,null,null,null,null,null,null,null,null,null,null,null,null,null,null,null,null,null,null,null,null,null,null,null,null,null,null,null,null,null,null,null,null,null,null,null,null,null,null,null,null,null,null,null,null,null,null,null,null,null,null,null,null,null,null,null,null,null,null,null,null,null,453,"四天王寺羽曳丘","四天羽曳"]
[null,null,null,null,null,null,null,null,null,null,null,null,null,null,null,null,null,null,null,null,null,null,null,null,null,null,null,null,null,null,null,null,null,null,null,null,null,null,null,null,null,null,null,null,null,null,null,null,null,null,null,null,null,null,null,null,null,null,null,null,null,null,null,null,null,null,null,null,null,null,null,null,null,null,null,null,null,null,null,null,null,null,null,null,null,null,null,null,null,null,null,null,null,null,null,null,null,null,null,null,null,null,null,null,null,null,null,null,null,null,null,null,null,null,null,null,null,null,null,null,null,null,null,null,null,null,null,null,null,null,null,null,null,null,null,null,null,null,null,null,null,null,null,null,null,null,null,null,null,null,null,null,null,null,null,null,null,null,null,null,null,null,null,null,null,null,null,null,null,null,null,null,null,null,null,null,null,null,null,null,null,null,null,null,null,null,null,null,null,null,null,null,null,null,454,"大阪星光学院","星光学院"]
[null,null,null,null,null,null,"ふりがな",null,null,null,null,null,null,null,null,null,null,null,null,null,null,null,null,null,null,null,null,null,null,null,null,null,null,null,null,null,null,null,null,null,null,null,null,null,null,null,null,null,null,null,null,null,null,null,null,null,null,null,"・",null,null,null,"・",null,null,null,9,null,null,null,null,null,null,null,null,null,null,null,null,null,null,null,null,null,null,null,null,null,null,null,null,null,null,null,null,null,null,null,null,null,null,null,null,null,null,null,null,null,null,null,null,null,null,null,null,null,null,null,null,null,null,null,null,null,null,null,null,null,null,null,null,null,null,null,null,null,null,null,null,null,null,null,null,null,null,null,null,null,null,null,null,null,null,null,null,null,null,null,null,null,null,null,null,null,null,null,null,null,null,null,null,null,null,null,null,null,null,null,null,null,null,null,null,null,null,null,null,null,null,null,null,null,null,null,455,"清風","清　　風"]
[null,null,null,null,null,null,"（姓）",null,null,null,null,null,null,null,null,null,null,null,null,null,null,null,"（名）",null,null,null,null,null,null,null,null,null,null,null,null,null,null,null,null,null,null,null,null,null,null,null,null,null,null,null,null,null,null,null,null,null,null,null,null,null,null,null,null,null,null,null,null,null,null,null,null,null,null,null,null,null,null,null,null,null,null,null,null,null,null,null,null,null,null,null,null,null,null,null,null,null,null,null,null,null,null,null,null,null,null,null,null,null,null,null,null,null,null,null,null,null,null,null,null,null,null,null,null,null,null,null,null,null,null,null,null,null,null,null,null,null,null,null,null,null,null,null,null,null,null,null,null,null,null,null,null,null,null,null,null,null,null,null,null,null,null,null,null,null,null,null,null,null,null,null,null,null,null,null,null,null,null,null,null,null,null,null,null,null,null,null,null,null,null,null,null,null,null,null,456,"ＰＬ学園","ＰＬ学園"]
[null,null,null,null,null,null,null,null,null,null,null,null,null,null,null,null,null,null,null,null,null,null,null,null,null,null,null,null,null,null,null,null,null,null,null,null,null,null,null,null,null,null,null,null,null,null,null,null,null,null,null,null,null,null,null,null,null,null,null,null,null,null,null,null,null,null,null,null,null,null,null,null,null,null,null,null,null,null,null,null,null,null,null,null,null,null,null,null,null,null,null,null,null,null,null,null,null,null,null,null,null,null,null,null,null,null,null,null,null,null,null,null,null,null,null,null,null,null,null,null,null,null,null,null,null,null,null,null,null,null,null,null,null,null,null,null,null,null,null,null,null,null,null,null,null,null,null,null,null,null,null,null,null,null,null,null,null,null,null,null,null,null,null,null,null,null,null,null,null,null,null,null,null,null,null,null,null,null,null,null,null,null,null,null,null,null,null,null,null,null,null,null,null,null,457,"桃山学院","桃山学院"]
[null,null,null,null,null,null,null,null,null,null,null,null,null,null,null,null,null,null,null,null,null,null,null,null,null,null,null,null,null,null,null,null,null,null,null,null,null,null,null,null,null,null,null,null,null,null,null,null,null,null,null,null,null,null,null,null,null,null,null,null,null,null,null,null,null,null,null,null,null,null,null,null,null,null,null,null,null,null,null,null,null,null,null,null,null,null,null,null,null,null,null,null,null,null,null,null,null,null,null,null,null,null,null,null,null,null,null,null,null,null,null,null,null,null,null,null,null,null,null,null,null,null,null,null,null,null,null,null,null,null,null,null,null,null,null,null,null,null,null,null,null,null,null,null,null,null,null,null,null,null,null,null,null,null,null,null,null,null,null,null,null,null,null,null,null,null,null,null,null,null,null,null,null,null,null,null,null,null,null,null,null,null,null,null,null,null,null,null,null,null,null,null,null,null,458,"芥川","芥　　川"]
[null,null,null,null,null,null,"ふりがな",null,null,null,null,null,null,null,null,null,null,null,null,null,null,null,null,null,null,null,null,null,null,null,null,null,null,null,null,null,null,null,null,null,null,null,null,null,null,null,null,null,null,null,null,null,null,null,null,null,null,null,"・",null,null,null,"・",null,null,null,10,null,null,null,null,null,null,null,null,null,null,null,null,null,null,null,null,null,null,null,null,null,null,null,null,null,null,null,null,null,null,null,null,null,null,null,null,null,null,null,null,null,null,null,null,null,null,null,null,null,null,null,null,null,null,null,null,null,null,null,null,null,null,null,null,null,null,null,null,null,null,null,null,null,null,null,null,null,null,null,null,null,null,null,null,null,null,null,null,null,null,null,null,null,null,null,null,null,null,null,null,null,null,null,null,null,null,null,null,null,null,null,null,null,null,null,null,null,null,null,null,null,null,null,null,null,null,null,459,"阿武野","阿 武 野"]
[null,null,null,null,null,null,"（姓）",null,null,null,null,null,null,null,null,null,null,null,null,null,null,null,"（名）",null,null,null,null,null,null,null,null,null,null,null,null,null,null,null,null,null,null,null,null,null,null,null,null,null,null,null,null,null,null,null,null,null,null,null,null,null,null,null,null,null,null,null,null,null,null,null,null,null,null,null,null,null,null,null,null,null,null,null,null,null,null,null,null,null,null,null,null,null,null,null,null,null,null,null,null,null,null,null,null,null,null,null,null,null,null,null,null,null,null,null,null,null,null,null,null,null,null,null,null,null,null,null,null,null,null,null,null,null,null,null,null,null,null,null,null,null,null,null,null,null,null,null,null,null,null,null,null,null,null,null,null,null,null,null,null,null,null,null,null,null,null,null,null,null,null,null,null,null,null,null,null,null,null,null,null,null,null,null,null,null,null,null,null,null,null,null,null,null,null,null,460,"池田","池　　田"]
[null,null,null,null,null,null,null,null,null,null,null,null,null,null,null,null,null,null,null,null,null,null,null,null,null,null,null,null,null,null,null,null,null,null,null,null,null,null,null,null,null,null,null,null,null,null,null,null,null,null,null,null,null,null,null,null,null,null,null,null,null,null,null,null,null,null,null,null,null,null,null,null,null,null,null,null,null,null,null,null,null,null,null,null,null,null,null,null,null,null,null,null,null,null,null,null,null,null,null,null,null,null,null,null,null,null,null,null,null,null,null,null,null,null,null,null,null,null,null,null,null,null,null,null,null,null,null,null,null,null,null,null,null,null,null,null,null,null,null,null,null,null,null,null,null,null,null,null,null,null,null,null,null,null,null,null,null,null,null,null,null,null,null,null,null,null,null,null,null,null,null,null,null,null,null,null,null,null,null,null,null,null,null,null,null,null,null,null,null,null,null,null,null,null,461,"池田北","池 田 北"]
[null,null,null,null,null,null,null,null,null,null,null,null,null,null,null,null,null,null,null,null,null,null,null,null,null,null,null,null,null,null,null,null,null,null,null,null,null,null,null,null,null,null,null,null,null,null,null,null,null,null,null,null,null,null,null,null,null,null,null,null,null,null,null,null,null,null,null,null,null,null,null,null,null,null,null,null,null,null,null,null,null,null,null,null,null,null,null,null,null,null,null,null,null,null,null,null,null,null,null,null,null,null,null,null,null,null,null,null,null,null,null,null,null,null,null,null,null,null,null,null,null,null,null,null,null,null,null,null,null,null,null,null,null,null,null,null,null,null,null,null,null,null,null,null,null,null,null,null,null,null,null,null,null,null,null,null,null,null,null,null,null,null,null,null,null,null,null,null,null,null,null,null,null,null,null,null,null,null,null,null,null,null,null,null,null,null,null,null,null,null,null,null,null,null,462,"茨木","茨　　木"]
[null,null,null,null,null,null,"ふりがな",null,null,null,null,null,null,null,null,null,null,null,null,null,null,null,null,null,null,null,null,null,null,null,null,null,null,null,null,null,null,null,null,null,null,null,null,null,null,null,null,null,null,null,null,null,null,null,null,null,null,null,"・",null,null,null,"・",null,null,null,11,null,null,null,null,null,null,null,null,null,null,null,null,null,null,null,null,null,null,null,null,null,null,null,null,null,null,null,null,null,null,null,null,null,null,null,null,null,null,null,null,null,null,null,null,null,null,null,null,null,null,null,null,null,null,null,null,null,null,null,null,null,null,null,null,null,null,null,null,null,null,null,null,null,null,null,null,null,null,null,null,null,null,null,null,null,null,null,null,null,null,null,null,null,null,null,null,null,null,null,null,null,null,null,null,null,null,null,null,null,null,null,null,null,null,null,null,null,null,null,null,null,null,null,null,null,null,null,463,"茨木西","茨 木 西"]
[null,null,null,null,null,null,"（姓）",null,null,null,null,null,null,null,null,null,null,null,null,null,null,null,"（名）",null,null,null,null,null,null,null,null,null,null,null,null,null,null,null,null,null,null,null,null,null,null,null,null,null,null,null,null,null,null,null,null,null,null,null,null,null,null,null,null,null,null,null,null,null,null,null,null,null,null,null,null,null,null,null,null,null,null,null,null,null,null,null,null,null,null,null,null,null,null,null,null,null,null,null,null,null,null,null,null,null,null,null,null,null,null,null,null,null,null,null,null,null,null,null,null,null,null,null,null,null,null,null,null,null,null,null,null,null,null,null,null,null,null,null,null,null,null,null,null,null,null,null,null,null,null,null,null,null,null,null,null,null,null,null,null,null,null,null,null,null,null,null,null,null,null,null,null,null,null,null,null,null,null,null,null,null,null,null,null,null,null,null,null,null,null,null,null,null,null,null,464,"北摂つばさ","北摂つば"]
[null,null,null,null,null,null,null,null,null,null,null,null,null,null,null,null,null,null,null,null,null,null,null,null,null,null,null,null,null,null,null,null,null,null,null,null,null,null,null,null,null,null,null,null,null,null,null,null,null,null,null,null,null,null,null,null,null,null,null,null,null,null,null,null,null,null,null,null,null,null,null,null,null,null,null,null,null,null,null,null,null,null,null,null,null,null,null,null,null,null,null,null,null,null,null,null,null,null,null,null,null,null,null,null,null,null,null,null,null,null,null,null,null,null,null,null,null,null,null,null,null,null,null,null,null,null,null,null,null,null,null,null,null,null,null,null,null,null,null,null,null,null,null,null,null,null,null,null,null,null,null,null,null,null,null,null,null,null,null,null,null,null,null,null,null,null,null,null,null,null,null,null,null,null,null,null,null,null,null,null,null,null,null,null,null,null,null,null,null,null,null,null,null,null,465,"園芸","園　　芸"]
[null,null,null,null,null,null,null,null,null,null,null,null,null,null,null,null,null,null,null,null,null,null,null,null,null,null,null,null,null,null,null,null,null,null,null,null,null,null,null,null,null,null,null,null,null,null,null,null,null,null,null,null,null,null,null,null,null,null,null,null,null,null,null,null,null,null,null,null,null,null,null,null,null,null,null,null,null,null,null,null,null,null,null,null,null,null,null,null,null,null,null,null,null,null,null,null,null,null,null,null,null,null,null,null,null,null,null,null,null,null,null,null,null,null,null,null,null,null,null,null,null,null,null,null,null,null,null,null,null,null,null,null,null,null,null,null,null,null,null,null,null,null,null,null,null,null,null,null,null,null,null,null,null,null,null,null,null,null,null,null,null,null,null,null,null,null,null,null,null,null,null,null,null,null,null,null,null,null,null,null,null,null,null,null,null,null,null,null,null,null,null,null,null,null,466,"春日丘","春 日 丘"]
[null,null,null,null,null,null,"ふりがな",null,null,null,null,null,null,null,null,null,null,null,null,null,null,null,null,null,null,null,null,null,null,null,null,null,null,null,null,null,null,null,null,null,null,null,null,null,null,null,null,null,null,null,null,null,null,null,null,null,null,null,"・",null,null,null,"・",null,null,null,12,null,null,null,null,null,null,null,null,null,null,null,null,null,null,null,null,null,null,null,null,null,null,null,null,null,null,null,null,null,null,null,null,null,null,null,null,null,null,null,null,null,null,null,null,null,null,null,null,null,null,null,null,null,null,null,null,null,null,null,null,null,null,null,null,null,null,null,null,null,null,null,null,null,null,null,null,null,null,null,null,null,null,null,null,null,null,null,null,null,null,null,null,null,null,null,null,null,null,null,null,null,null,null,null,null,null,null,null,null,null,null,null,null,null,null,null,null,null,null,null,null,null,null,null,null,null,null,467,"北千里","北 千 里"]
[null,null,null,null,null,null,"（姓）",null,null,null,null,null,null,null,null,null,null,null,null,null,null,null,"（名）",null,null,null,null,null,null,null,null,null,null,null,null,null,null,null,null,null,null,null,null,null,null,null,null,null,null,null,null,null,null,null,null,null,null,null,null,null,null,null,null,null,null,null,null,null,null,null,null,null,null,null,null,null,null,null,null,null,null,null,null,null,null,null,null,null,null,null,null,null,null,null,null,null,null,null,null,null,null,null,null,null,null,null,null,null,null,null,null,null,null,null,null,null,null,null,null,null,null,null,null,null,null,null,null,null,null,null,null,null,null,null,null,null,null,null,null,null,null,null,null,null,null,null,null,null,null,null,null,null,null,null,null,null,null,null,null,null,null,null,null,null,null,null,null,null,null,null,null,null,null,null,null,null,null,null,null,null,null,null,null,null,null,null,null,null,null,null,null,null,null,null,468,"北野","北　　野"]
[null,null,null,null,null,null,null,null,null,null,null,null,null,null,null,null,null,null,null,null,null,null,null,null,null,null,null,null,null,null,null,null,null,null,null,null,null,null,null,null,null,null,null,null,null,null,null,null,null,null,null,null,null,null,null,null,null,null,null,null,null,null,null,null,null,null,null,null,null,null,null,null,null,null,null,null,null,null,null,null,null,null,null,null,null,null,null,null,null,null,null,null,null,null,null,null,null,null,null,null,null,null,null,null,null,null,null,null,null,null,null,null,null,null,null,null,null,null,null,null,null,null,null,null,null,null,null,null,null,null,null,null,null,null,null,null,null,null,null,null,null,null,null,null,null,null,null,null,null,null,null,null,null,null,null,null,null,null,null,null,null,null,null,null,null,null,null,null,null,null,null,null,null,null,null,null,null,null,null,null,null,null,null,null,null,null,null,null,null,null,null,null,null,null,469,"柴島","柴　　島"]
[null,null,null,null,null,null,null,null,null,null,null,null,null,null,null,null,null,null,null,null,null,null,null,null,null,null,null,null,null,null,null,null,null,null,null,null,null,null,null,null,null,null,null,null,null,null,null,null,null,null,null,null,null,null,null,null,null,null,null,null,null,null,null,null,null,null,null,null,null,null,null,null,null,null,null,null,null,null,null,null,null,null,null,null,null,null,null,null,null,null,null,null,null,null,null,null,null,null,null,null,null,null,null,null,null,null,null,null,null,null,null,null,null,null,null,null,null,null,null,null,null,null,null,null,null,null,null,null,null,null,null,null,null,null,null,null,null,null,null,null,null,null,null,null,null,null,null,null,null,null,null,null,null,null,null,null,null,null,null,null,null,null,null,null,null,null,null,null,null,null,null,null,null,null,null,null,null,null,null,null,null,null,null,null,null,null,null,null,null,null,null,null,null,null,470,"桜塚","桜　　塚"]
[null,null,null,null,null,null,"ふりがな",null,null,null,null,null,null,null,null,null,null,null,null,null,null,null,null,null,null,null,null,null,null,null,null,null,null,null,null,null,null,null,null,null,null,null,null,null,null,null,null,null,null,null,null,null,null,null,null,null,null,null,"・",null,null,null,"・",null,null,null,13,null,null,null,null,null,null,null,null,null,null,null,null,null,null,null,null,null,null,null,null,null,null,null,null,null,null,null,null,null,null,null,null,null,null,null,null,null,null,null,null,null,null,null,null,null,null,null,null,null,null,null,null,null,null,null,null,null,null,null,null,null,null,null,null,null,null,null,null,null,null,null,null,null,null,null,null,null,null,null,null,null,null,null,null,null,null,null,null,null,null,null,null,null,null,null,null,null,null,null,null,null,null,null,null,null,null,null,null,null,null,null,null,null,null,null,null,null,null,null,null,null,null,null,null,null,null,null,471,"渋谷","渋　　谷"]
[null,null,null,null,null,null,"（姓）",null,null,null,null,null,null,null,null,null,null,null,null,null,null,null,"（名）",null,null,null,null,null,null,null,null,null,null,null,null,null,null,null,null,null,null,null,null,null,null,null,null,null,null,null,null,null,null,null,null,null,null,null,null,null,null,null,null,null,null,null,null,null,null,null,null,null,null,null,null,null,null,null,null,null,null,null,null,null,null,null,null,null,null,null,null,null,null,null,null,null,null,null,null,null,null,null,null,null,null,null,null,null,null,null,null,null,null,null,null,null,null,null,null,null,null,null,null,null,null,null,null,null,null,null,null,null,null,null,null,null,null,null,null,null,null,null,null,null,null,null,null,null,null,null,null,null,null,null,null,null,null,null,null,null,null,null,null,null,null,null,null,null,null,null,null,null,null,null,null,null,null,null,null,null,null,null,null,null,null,null,null,null,null,null,null,null,null,null,473,"槻の木","規 の 木"]
[null,null,null,null,null,null,null,null,null,null,null,null,null,null,null,null,null,null,null,null,null,null,null,null,null,null,null,null,null,null,null,null,null,null,null,null,null,null,null,null,null,null,null,null,null,null,null,null,null,null,null,null,null,null,null,null,null,null,null,null,null,null,null,null,null,null,null,null,null,null,null,null,null,null,null,null,null,null,null,null,null,null,null,null,null,null,null,null,null,null,null,null,null,null,null,null,null,null,null,null,null,null,null,null,null,null,null,null,null,null,null,null,null,null,null,null,null,null,null,null,null,null,null,null,null,null,null,null,null,null,null,null,null,null,null,null,null,null,null,null,null,null,null,null,null,null,null,null,null,null,null,null,null,null,null,null,null,null,null,null,null,null,null,null,null,null,null,null,null,null,null,null,null,null,null,null,null,null,null,null,null,null,null,null,null,null,null,null,null,null,null,null,null,null,474,"島本","島　　本"]
[null,null,null,null,null,null,null,null,null,null,null,null,null,null,null,null,null,null,null,null,null,null,null,null,null,null,null,null,null,null,null,null,null,null,null,null,null,null,null,null,null,null,null,null,null,null,null,null,null,null,null,null,null,null,null,null,null,null,null,null,null,null,null,null,null,null,null,null,null,null,null,null,null,null,null,null,null,null,null,null,null,null,null,null,null,null,null,null,null,null,null,null,null,null,null,null,null,null,null,null,null,null,null,null,null,null,null,null,null,null,null,null,null,null,null,null,null,null,null,null,null,null,null,null,null,null,null,null,null,null,null,null,null,null,null,null,null,null,null,null,null,null,null,null,null,null,null,null,null,null,null,null,null,null,null,null,null,null,null,null,null,null,null,null,null,null,null,null,null,null,null,null,null,null,null,null,null,null,null,null,null,null,null,null,null,null,null,null,null,null,null,null,null,null,476,"吹田","吹　　田"]
[null,null,null,null,null,null,"ふりがな",null,null,null,null,null,null,null,null,null,null,null,null,null,null,null,null,null,null,null,null,null,null,null,null,null,null,null,null,null,null,null,null,null,null,null,null,null,null,null,null,null,null,null,null,null,null,null,null,null,null,null,"・",null,null,null,"・",null,null,null,14,null,null,null,null,null,null,null,null,null,null,null,null,null,null,null,null,null,null,null,null,null,null,null,null,null,null,null,null,null,null,null,null,null,null,null,null,null,null,null,null,null,null,null,null,null,null,null,null,null,null,null,null,null,null,null,null,null,null,null,null,null,null,null,null,null,null,null,null,null,null,null,null,null,null,null,null,null,null,null,null,null,null,null,null,null,null,null,null,null,null,null,null,null,null,null,null,null,null,null,null,null,null,null,null,null,null,null,null,null,null,null,null,null,null,null,null,null,null,null,null,null,null,null,null,null,null,null,477,"吹田東","吹 田 東"]
[null,null,null,null,null,null,"（姓）",null,null,null,null,null,null,null,null,null,null,null,null,null,null,null,"（名）",null,null,null,null,null,null,null,null,null,null,null,null,null,null,null,null,null,null,null,null,null,null,null,null,null,null,null,null,null,null,null,null,null,null,null,null,null,null,null,null,null,null,null,null,null,null,null,null,null,null,null,null,null,null,null,null,null,null,null,null,null,null,null,null,null,null,null,null,null,null,null,null,null,null,null,null,null,null,null,null,null,null,null,null,null,null,null,null,null,null,null,null,null,null,null,null,null,null,null,null,null,null,null,null,null,null,null,null,null,null,null,null,null,null,null,null,null,null,null,null,null,null,null,null,null,null,null,null,null,null,null,null,null,null,null,null,null,null,null,null,null,null,null,null,null,null,null,null,null,null,null,null,null,null,null,null,null,null,null,null,null,null,null,null,null,null,null,null,null,null,null,478,"摂津","摂　　津"]
[null,null,null,null,null,null,null,null,null,null,null,null,null,null,null,null,null,null,null,null,null,null,null,null,null,null,null,null,null,null,null,null,null,null,null,null,null,null,null,null,null,null,null,null,null,null,null,null,null,null,null,null,null,null,null,null,null,null,null,null,null,null,null,null,null,null,null,null,null,null,null,null,null,null,null,null,null,null,null,null,null,null,null,null,null,null,null,null,null,null,null,null,null,null,null,null,null,null,null,null,null,null,null,null,null,null,null,null,null,null,null,null,null,null,null,null,null,null,null,null,null,null,null,null,null,null,null,null,null,null,null,null,null,null,null,null,null,null,null,null,null,null,null,null,null,null,null,null,null,null,null,null,null,null,null,null,null,null,null,null,null,null,null,null,null,null,null,null,null,null,null,null,null,null,null,null,null,null,null,null,null,null,null,null,null,null,null,null,null,null,null,null,null,null,479,"千里","千　　里"]
[null,null,null,null,null,null,null,null,null,null,null,null,null,null,null,null,null,null,null,null,null,null,null,null,null,null,null,null,null,null,null,null,null,null,null,null,null,null,null,null,null,null,null,null,null,null,null,null,null,null,null,null,null,null,null,null,null,null,null,null,null,null,null,null,null,null,null,null,null,null,null,null,null,null,null,null,null,null,null,null,null,null,null,null,null,null,null,null,null,null,null,null,null,null,null,null,null,null,null,null,null,null,null,null,null,null,null,null,null,null,null,null,null,null,null,null,null,null,null,null,null,null,null,null,null,null,null,null,null,null,null,null,null,null,null,null,null,null,null,null,null,null,null,null,null,null,null,null,null,null,null,null,null,null,null,null,null,null,null,null,null,null,null,null,null,null,null,null,null,null,null,null,null,null,null,null,null,null,null,null,null,null,null,null,null,null,null,null,null,null,null,null,null,null,481,"高槻北","高 槻 北"]
[null,null,null,null,null,null,"ふりがな",null,null,null,null,null,null,null,null,null,null,null,null,null,null,null,null,null,null,null,null,null,null,null,null,null,null,null,null,null,null,null,null,null,null,null,null,null,null,null,null,null,null,null,null,null,null,null,null,null,null,null,"・",null,null,null,"・",null,null,null,15,null,null,null,null,null,null,null,null,null,null,null,null,null,null,null,null,null,null,null,null,null,null,null,null,null,null,null,null,null,null,null,null,null,null,null,null,null,null,null,null,null,null,null,null,null,null,null,null,null,null,null,null,null,null,null,null,null,null,null,null,null,null,null,null,null,null,null,null,null,null,null,null,null,null,null,null,null,null,null,null,null,null,null,null,null,null,null,null,null,null,null,null,null,null,null,null,null,null,null,null,null,null,null,null,null,null,null,null,null,null,null,null,null,null,null,null,null,null,null,null,null,null,null,null,null,null,null,482,"豊島","豊　　島"]
[null,null,null,null,null,null,"（姓）",null,null,null,null,null,null,null,null,null,null,null,null,null,null,null,"（名）",null,null,null,null,null,null,null,null,null,null,null,null,null,null,null,null,null,null,null,null,null,null,null,null,null,null,null,null,null,null,null,null,null,null,null,null,null,null,null,null,null,null,null,null,null,null,null,null,null,null,null,null,null,null,null,null,null,null,null,null,null,null,null,null,null,null,null,null,null,null,null,null,null,null,null,null,null,null,null,null,null,null,null,null,null,null,null,null,null,null,null,null,null,null,null,null,null,null,null,null,null,null,null,null,null,null,null,null,null,null,null,null,null,null,null,null,null,null,null,null,null,null,null,null,null,null,null,null,null,null,null,null,null,null,null,null,null,null,null,null,null,null,null,null,null,null,null,null,null,null,null,null,null,null,null,null,null,null,null,null,null,null,null,null,null,null,null,null,null,null,null,483,"豊中","豊　　中"]
[null,null,null,null,null,null,null,null,null,null,null,null,null,null,null,null,null,null,null,null,null,null,null,null,null,null,null,null,null,null,null,null,null,null,null,null,null,null,null,null,null,null,null,null,null,null,null,null,null,null,null,null,null,null,null,null,null,null,null,null,null,null,null,null,null,null,null,null,null,null,null,null,null,null,null,null,null,null,null,null,null,null,null,null,null,null,null,null,null,null,null,null,null,null,null,null,null,null,null,null,null,null,null,null,null,null,null,null,null,null,null,null,null,null,null,null,null,null,null,null,null,null,null,null,null,null,null,null,null,null,null,null,null,null,null,null,null,null,null,null,null,null,null,null,null,null,null,null,null,null,null,null,null,null,null,null,null,null,null,null,null,null,null,null,null,null,null,null,null,null,null,null,null,null,null,null,null,null,null,null,null,null,null,null,null,null,null,null,null,null,null,null,null,null,485,"西淀川","西 淀 川"]
[null,null,null,null,null,null,null,null,null,null,null,null,null,null,null,null,null,null,null,null,null,null,null,null,null,null,null,null,null,null,null,null,null,null,null,null,null,null,null,null,null,null,null,null,null,null,null,null,null,null,null,null,null,null,null,null,null,null,null,null,null,null,null,null,null,null,null,null,null,null,null,null,null,null,null,null,null,null,null,null,null,null,null,null,null,null,null,null,null,null,null,null,null,null,null,null,null,null,null,null,null,null,null,null,null,null,null,null,null,null,null,null,null,null,null,null,null,null,null,null,null,null,null,null,null,null,null,null,null,null,null,null,null,null,null,null,null,null,null,null,null,null,null,null,null,null,null,null,null,null,null,null,null,null,null,null,null,null,null,null,null,null,null,null,null,null,null,null,null,null,null,null,null,null,null,null,null,null,null,null,null,null,null,null,null,null,null,null,null,null,null,null,null,null,486,"千里青雲","千里青雲"]
[null,null,null,null,null,null,"ふりがな",null,null,null,null,null,null,null,null,null,null,null,null,null,null,null,null,null,null,null,null,null,null,null,null,null,null,null,null,null,null,null,null,null,null,null,null,null,null,null,null,null,null,null,null,null,null,null,null,null,null,null,"・",null,null,null,"・",null,null,null,16,null,null,null,null,null,null,null,null,null,null,null,null,null,null,null,null,null,null,null,null,null,null,null,null,null,null,null,null,null,null,null,null,null,null,null,null,null,null,null,null,null,null,null,null,null,null,null,null,null,null,null,null,null,null,null,null,null,null,null,null,null,null,null,null,null,null,null,null,null,null,null,null,null,null,null,null,null,null,null,null,null,null,null,null,null,null,null,null,null,null,null,null,null,null,null,null,null,null,null,null,null,null,null,null,null,null,null,null,null,null,null,null,null,null,null,null,null,null,null,null,null,null,null,null,null,null,null,487,"東淀川","東 淀 川"]
[null,null,null,null,null,null,"（姓）",null,null,null,null,null,null,null,null,null,null,null,null,null,null,null,"（名）",null,null,null,null,null,null,null,null,null,null,null,null,null,null,null,null,null,null,null,null,null,null,null,null,null,null,null,null,null,null,null,null,null,null,null,null,null,null,null,null,null,null,null,null,null,null,null,null,null,null,null,null,null,null,null,null,null,null,null,null,null,null,null,null,null,null,null,null,null,null,null,null,null,null,null,null,null,null,null,null,null,null,null,null,null,null,null,null,null,null,null,null,null,null,null,null,null,null,null,null,null,null,null,null,null,null,null,null,null,null,null,null,null,null,null,null,null,null,null,null,null,null,null,null,null,null,null,null,null,null,null,null,null,null,null,null,null,null,null,null,null,null,null,null,null,null,null,null,null,null,null,null,null,null,null,null,null,null,null,null,null,null,null,null,null,null,null,null,null,null,null,488,"福井","福　　井"]
[null,null,null,null,null,null,null,null,null,null,null,null,null,null,null,null,null,null,null,null,null,null,null,null,null,null,null,null,null,null,null,null,null,null,null,null,null,null,null,null,null,null,null,null,null,null,null,null,null,null,null,null,null,null,null,null,null,null,null,null,null,null,null,null,null,null,null,null,null,null,null,null,null,null,null,null,null,null,null,null,null,null,null,null,null,null,null,null,null,null,null,null,null,null,null,null,null,null,null,null,null,null,null,null,null,null,null,null,null,null,null,null,null,null,null,null,null,null,null,null,null,null,null,null,null,null,null,null,null,null,null,null,null,null,null,null,null,null,null,null,null,null,null,null,null,null,null,null,null,null,null,null,null,null,null,null,null,null,null,null,null,null,null,null,null,null,null,null,null,null,null,null,null,null,null,null,null,null,null,null,null,null,null,null,null,null,null,null,null,null,null,null,null,null,489,"三島","三　　島"]
[null,null,null,null,null,null,null,null,null,null,null,null,null,null,null,null,null,null,null,null,null,null,null,null,null,null,null,null,null,null,null,null,null,null,null,null,null,null,null,null,null,null,null,null,null,null,null,null,null,null,null,null,null,null,null,null,null,null,null,null,null,null,null,null,null,null,null,null,null,null,null,null,null,null,null,null,null,null,null,null,null,null,null,null,null,null,null,null,null,null,null,null,null,null,null,null,null,null,null,null,null,null,null,null,null,null,null,null,null,null,null,null,null,null,null,null,null,null,null,null,null,null,null,null,null,null,null,null,null,null,null,null,null,null,null,null,null,null,null,null,null,null,null,null,null,null,null,null,null,null,null,null,null,null,null,null,null,null,null,null,null,null,null,null,null,null,null,null,null,null,null,null,null,null,null,null,null,null,null,null,null,null,null,null,null,null,null,null,null,null,null,null,null,null,490,"箕面","箕　　面"]
[null,null,null,null,null,null,"ふりがな",null,null,null,null,null,null,null,null,null,null,null,null,null,null,null,null,null,null,null,null,null,null,null,null,null,null,null,null,null,null,null,null,null,null,null,null,null,null,null,null,null,null,null,null,null,null,null,null,null,null,null,"・",null,null,null,"・",null,null,null,17,null,null,null,null,null,null,null,null,null,null,null,null,null,null,null,null,null,null,null,null,null,null,null,null,null,null,null,null,null,null,null,null,null,null,null,null,null,null,null,null,null,null,null,null,null,null,null,null,null,null,null,null,null,null,null,null,null,null,null,null,null,null,null,null,null,null,null,null,null,null,null,null,null,null,null,null,null,null,null,null,null,null,null,null,null,null,null,null,null,null,null,null,null,null,null,null,null,null,null,null,null,null,null,null,null,null,null,null,null,null,null,null,null,null,null,null,null,null,null,null,null,null,null,null,null,null,null,491,"箕面東","箕 面 東"]
[null,null,null,null,null,null,"（姓）",null,null,null,null,null,null,null,null,null,null,null,null,null,null,null,"（名）",null,null,null,null,null,null,null,null,null,null,null,null,null,null,null,null,null,null,null,null,null,null,null,null,null,null,null,null,null,null,null,null,null,null,null,null,null,null,null,null,null,null,null,null,null,null,null,null,null,null,null,null,null,null,null,null,null,null,null,null,null,null,null,null,null,null,null,null,null,null,null,null,null,null,null,null,null,null,null,null,null,null,null,null,null,null,null,null,null,null,null,null,null,null,null,null,null,null,null,null,null,null,null,null,null,null,null,null,null,null,null,null,null,null,null,null,null,null,null,null,null,null,null,null,null,null,null,null,null,null,null,null,null,null,null,null,null,null,null,null,null,null,null,null,null,null,null,null,null,null,null,null,null,null,null,null,null,null,null,null,null,null,null,null,null,null,null,null,null,null,null,492,"茨木工科","茨木工科"]
[null,null,null,null,null,null,null,null,null,null,null,null,null,null,null,null,null,null,null,null,null,null,null,null,null,null,null,null,null,null,null,null,null,null,null,null,null,null,null,null,null,null,null,null,null,null,null,null,null,null,null,null,null,null,null,null,null,null,null,null,null,null,null,null,null,null,null,null,null,null,null,null,null,null,null,null,null,null,null,null,null,null,null,null,null,null,null,null,null,null,null,null,null,null,null,null,null,null,null,null,null,null,null,null,null,null,null,null,null,null,null,null,null,null,null,null,null,null,null,null,null,null,null,null,null,null,null,null,null,null,null,null,null,null,null,null,null,null,null,null,null,null,null,null,null,null,null,null,null,null,null,null,null,null,null,null,null,null,null,null,null,null,null,null,null,null,null,null,null,null,null,null,null,null,null,null,null,null,null,null,null,null,null,null,null,null,null,null,null,null,null,null,null,null,493,"大冠","大　　冠"]
[null,null,null,null,null,null,null,null,null,null,null,null,null,null,null,null,null,null,null,null,null,null,null,null,null,null,null,null,null,null,null,null,null,null,null,null,null,null,null,null,null,null,null,null,null,null,null,null,null,null,null,null,null,null,null,null,null,null,null,null,null,null,null,null,null,null,null,null,null,null,null,null,null,null,null,null,null,null,null,null,null,null,null,null,null,null,null,null,null,null,null,null,null,null,null,null,null,null,null,null,null,null,null,null,null,null,null,null,null,null,null,null,null,null,null,null,null,null,null,null,null,null,null,null,null,null,null,null,null,null,null,null,null,null,null,null,null,null,null,null,null,null,null,null,null,null,null,null,null,null,null,null,null,null,null,null,null,null,null,null,null,null,null,null,null,null,null,null,null,null,null,null,null,null,null,null,null,null,null,null,null,null,null,null,null,null,null,null,null,null,null,null,null,null,494,"北淀","北　　淀"]
[null,null,null,null,null,null,"ふりがな",null,null,null,null,null,null,null,null,null,null,null,null,null,null,null,null,null,null,null,null,null,null,null,null,null,null,null,null,null,null,null,null,null,null,null,null,null,null,null,null,null,null,null,null,null,null,null,null,null,null,null,"・",null,null,null,"・",null,null,null,18,null,null,null,null,null,null,null,null,null,null,null,null,null,null,null,null,null,null,null,null,null,null,null,null,null,null,null,null,null,null,null,null,null,null,null,null,null,null,null,null,null,null,null,null,null,null,null,null,null,null,null,null,null,null,null,null,null,null,null,null,null,null,null,null,null,null,null,null,null,null,null,null,null,null,null,null,null,null,null,null,null,null,null,null,null,null,null,null,null,null,null,null,null,null,null,null,null,null,null,null,null,null,null,null,null,null,null,null,null,null,null,null,null,null,null,null,null,null,null,null,null,null,null,null,null,null,null,495,"淀商業","淀　　商"]
[null,null,null,null,null,null,"（姓）",null,null,null,null,null,null,null,null,null,null,null,null,null,null,null,"（名）",null,null,null,null,null,null,null,null,null,null,null,null,null,null,null,null,null,null,null,null,null,null,null,null,null,null,null,null,null,null,null,null,null,null,null,null,null,null,null,null,null,null,null,null,null,null,null,null,null,null,null,null,null,null,null,null,null,null,null,null,null,null,null,null,null,null,null,null,null,null,null,null,null,null,null,null,null,null,null,null,null,null,null,null,null,null,null,null,null,null,null,null,null,null,null,null,null,null,null,null,null,null,null,null,null,null,null,null,null,null,null,null,null,null,null,null,null,null,null,null,null,null,null,null,null,null,null,null,null,null,null,null,null,null,null,null,null,null,null,null,null,null,null,null,null,null,null,null,null,null,null,null,null,null,null,null,null,null,null,null,null,null,null,null,null,null,null,null,null,null,null,496,"東淀工業","東淀工業"]
[null,null,null,null,null,null,null,null,null,null,null,null,null,null,null,null,null,null,null,null,null,null,null,null,null,null,null,null,null,null,null,null,null,null,null,null,null,null,null,null,null,null,null,null,null,null,null,null,null,null,null,null,null,null,null,null,null,null,null,null,null,null,null,null,null,null,null,null,null,null,null,null,null,null,null,null,null,null,null,null,null,null,null,null,null,null,null,null,null,null,null,null,null,null,null,null,null,null,null,null,null,null,null,null,null,null,null,null,null,null,null,null,null,null,null,null,null,null,null,null,null,null,null,null,null,null,null,null,null,null,null,null,null,null,null,null,null,null,null,null,null,null,null,null,null,null,null,null,null,null,null,null,null,null,null,null,null,null,null,null,null,null,null,null,null,null,null,null,null,null,null,null,null,null,null,null,null,null,null,null,null,null,null,null,null,null,null,null,null,null,null,null,null,null,497,"大阪学院","大阪学院"]
[null,null,null,null,null,null,null,null,null,null,null,null,null,null,null,null,null,null,null,null,null,null,null,null,null,null,null,null,null,null,null,null,null,null,null,null,null,null,null,null,null,null,null,null,null,null,null,null,null,null,null,null,null,null,null,null,null,null,null,null,null,null,null,null,null,null,null,null,null,null,null,null,null,null,null,null,null,null,null,null,null,null,null,null,null,null,null,null,null,null,null,null,null,null,null,null,null,null,null,null,null,null,null,null,null,null,null,null,null,null,null,null,null,null,null,null,null,null,null,null,null,null,null,null,null,null,null,null,null,null,null,null,null,null,null,null,null,null,null,null,null,null,null,null,null,null,null,null,null,null,null,null,null,null,null,null,null,null,null,null,null,null,null,null,null,null,null,null,null,null,null,null,null,null,null,null,null,null,null,null,null,null,null,null,null,null,null,null,null,null,null,null,null,null,498,"大阪","大　　阪"]
[null,null,null,null,null,null,"ふりがな",null,null,null,null,null,null,null,null,null,null,null,null,null,null,null,null,null,null,null,null,null,null,null,null,null,null,null,null,null,null,null,null,null,null,null,null,null,null,null,null,null,null,null,null,null,null,null,null,null,null,null,"・",null,null,null,"・",null,null,null,19,null,null,null,null,null,null,null,null,null,null,null,null,null,null,null,null,null,null,null,null,null,null,null,null,null,null,null,null,null,null,null,null,null,null,null,null,null,null,null,null,null,null,null,null,null,null,null,null,null,null,null,null,null,null,null,null,null,null,null,null,null,null,null,null,null,null,null,null,null,null,null,null,null,null,null,null,null,null,null,null,null,null,null,null,null,null,null,null,null,null,null,null,null,null,null,null,null,null,null,null,null,null,null,null,null,null,null,null,null,null,null,null,null,null,null,null,null,null,null,null,null,null,null,null,null,null,null,499,"大商学園","大商学園"]
[null,null,null,null,null,null,"（姓）",null,null,null,null,null,null,null,null,null,null,null,null,null,null,null,"（名）",null,null,null,null,null,null,null,null,null,null,null,null,null,null,null,null,null,null,null,null,null,null,null,null,null,null,null,null,null,null,null,null,null,null,null,null,null,null,null,null,null,null,null,null,null,null,null,null,null,null,null,null,null,null,null,null,null,null,null,null,null,null,null,null,null,null,null,null,null,null,null,null,null,null,null,null,null,null,null,null,null,null,null,null,null,null,null,null,null,null,null,null,null,null,null,null,null,null,null,null,null,null,null,null,null,null,null,null,null,null,null,null,null,null,null,null,null,null,null,null,null,null,null,null,null,null,null,null,null,null,null,null,null,null,null,null,null,null,null,null,null,null,null,null,null,null,null,null,null,null,null,null,null,null,null,null,null,null,null,null,null,null,null,null,null,null,null,null,null,null,null,500,"追手門学院","追手門学"]
[null,null,null,null,null,null,null,null,null,null,null,null,null,null,null,null,null,null,null,null,null,null,null,null,null,null,null,null,null,null,null,null,null,null,null,null,null,null,null,null,null,null,null,null,null,null,null,null,null,null,null,null,null,null,null,null,null,null,null,null,null,null,null,null,null,null,null,null,null,null,null,null,null,null,null,null,null,null,null,null,null,null,null,null,null,null,null,null,null,null,null,null,null,null,null,null,null,null,null,null,null,null,null,null,null,null,null,null,null,null,null,null,null,null,null,null,null,null,null,null,null,null,null,null,null,null,null,null,null,null,null,null,null,null,null,null,null,null,null,null,null,null,null,null,null,null,null,null,null,null,null,null,null,null,null,null,null,null,null,null,null,null,null,null,null,null,null,null,null,null,null,null,null,null,null,null,null,null,null,null,null,null,null,null,null,null,null,null,null,null,null,null,null,null,501,"関西大倉","関西大倉"]
[null,null,null,null,null,null,null,null,null,null,null,null,null,null,null,null,null,null,null,null,null,null,null,null,null,null,null,null,null,null,null,null,null,null,null,null,null,null,null,null,null,null,null,null,null,null,null,null,null,null,null,null,null,null,null,null,null,null,null,null,null,null,null,null,null,null,null,null,null,null,null,null,null,null,null,null,null,null,null,null,null,null,null,null,null,null,null,null,null,null,null,null,null,null,null,null,null,null,null,null,null,null,null,null,null,null,null,null,null,null,null,null,null,null,null,null,null,null,null,null,null,null,null,null,null,null,null,null,null,null,null,null,null,null,null,null,null,null,null,null,null,null,null,null,null,null,null,null,null,null,null,null,null,null,null,null,null,null,null,null,null,null,null,null,null,null,null,null,null,null,null,null,null,null,null,null,null,null,null,null,null,null,null,null,null,null,null,null,null,null,null,null,null,null,502,"関大一","関 大 一"]
[null,null,null,null,null,null,"ふりがな",null,null,null,null,null,null,null,null,null,null,null,null,null,null,null,null,null,null,null,null,null,null,null,null,null,null,null,null,null,null,null,null,null,null,null,null,null,null,null,null,null,null,null,null,null,null,null,null,null,null,null,"・",null,null,null,"・",null,null,null,20,null,null,null,null,null,null,null,null,null,null,null,null,null,null,null,null,null,null,null,null,null,null,null,null,null,null,null,null,null,null,null,null,null,null,null,null,null,null,null,null,null,null,null,null,null,null,null,null,null,null,null,null,null,null,null,null,null,null,null,null,null,null,null,null,null,null,null,null,null,null,null,null,null,null,null,null,null,null,null,null,null,null,null,null,null,null,null,null,null,null,null,null,null,null,null,null,null,null,null,null,null,null,null,null,null,null,null,null,null,null,null,null,null,null,null,null,null,null,null,null,null,null,null,null,null,null,null,503,"金光大阪","金光大阪"]
[null,null,null,null,null,null,"（姓）",null,null,null,null,null,null,null,null,null,null,null,null,null,null,null,"（名）",null,null,null,null,null,null,null,null,null,null,null,null,null,null,null,null,null,null,null,null,null,null,null,null,null,null,null,null,null,null,null,null,null,null,null,null,null,null,null,null,null,null,null,null,null,null,null,null,null,null,null,null,null,null,null,null,null,null,null,null,null,null,null,null,null,null,null,null,null,null,null,null,null,null,null,null,null,null,null,null,null,null,null,null,null,null,null,null,null,null,null,null,null,null,null,null,null,null,null,null,null,null,null,null,null,null,null,null,null,null,null,null,null,null,null,null,null,null,null,null,null,null,null,null,null,null,null,null,null,null,null,null,null,null,null,null,null,null,null,null,null,null,null,null,null,null,null,null,null,null,null,null,null,null,null,null,null,null,null,null,null,null,null,null,null,null,null,null,null,null,null,504,"高槻","高　　槻"]
[null,null,null,null,null,null,null,null,null,null,null,null,null,null,null,null,null,null,null,null,null,null,null,null,null,null,null,null,null,null,null,null,null,null,null,null,null,null,null,null,null,null,null,null,null,null,null,null,null,null,null,null,null,null,null,null,null,null,null,null,null,null,null,null,null,null,null,null,null,null,null,null,null,null,null,null,null,null,null,null,null,null,null,null,null,null,null,null,null,null,null,null,null,null,null,null,null,null,null,null,null,null,null,null,null,null,null,null,null,null,null,null,null,null,null,null,null,null,null,null,null,null,null,null,null,null,null,null,null,null,null,null,null,null,null,null,null,null,null,null,null,null,null,null,null,null,null,null,null,null,null,null,null,null,null,null,null,null,null,null,null,null,null,null,null,null,null,null,null,null,null,null,null,null,null,null,null,null,null,null,null,null,null,null,null,null,null,null,null,null,null,null,null,null,505,"星翔","星　　翔"]
[null,null,null,null,null,null,null,null,null,null,null,null,null,null,null,null,null,null,null,null,null,null,null,null,null,null,null,null,null,null,null,null,null,null,null,null,null,null,null,null,null,null,null,null,null,null,null,null,null,null,null,null,null,null,null,null,null,null,null,null,null,null,null,null,null,null,null,null,null,null,null,null,null,null,null,null,null,null,null,null,null,null,null,null,null,null,null,null,null,null,null,null,null,null,null,null,null,null,null,null,null,null,null,null,null,null,null,null,null,null,null,null,null,null,null,null,null,null,null,null,null,null,null,null,null,null,null,null,null,null,null,null,null,null,null,null,null,null,null,null,null,null,null,null,null,null,null,null,null,null,null,null,null,null,null,null,null,null,null,null,null,null,null,null,null,null,null,null,null,null,null,null,null,null,null,null,null,null,null,null,null,null,null,null,null,null,null,null,null,null,null,null,null,null,506,"履正社","履 正 社"]
[null,null,null,null,null,null,"ふりがな",null,null,null,null,null,null,null,null,null,null,null,null,null,null,null,null,null,null,null,null,null,null,null,null,null,null,null,null,null,null,null,null,null,null,null,null,null,null,null,null,null,null,null,null,null,null,null,null,null,null,null,"・",null,null,null,"・",null,null,null,21,null,null,null,null,null,null,null,null,null,null,null,null,null,null,null,null,null,null,null,null,null,null,null,null,null,null,null,null,null,null,null,null,null,null,null,null,null,null,null,null,null,null,null,null,null,null,null,null,null,null,null,null,null,null,null,null,null,null,null,null,null,null,null,null,null,null,null,null,null,null,null,null,null,null,null,null,null,null,null,null,null,null,null,null,null,null,null,null,null,null,null,null,null,null,null,null,null,null,null,null,null,null,null,null,null,null,null,null,null,null,null,null,null,null,null,null,null,null,null,null,null,null,null,null,null,null,null,507,"関大北陽","関大北陽"]
[null,null,null,null,null,null,"（姓）",null,null,null,null,null,null,null,null,null,null,null,null,null,null,null,"（名）",null,null,null,null,null,null,null,null,null,null,null,null,null,null,null,null,null,null,null,null,null,null,null,null,null,null,null,null,null,null,null,null,null,null,null,null,null,null,null,null,null,null,null,null,null,null,null,null,null,null,null,null,null,null,null,null,null,null,null,null,null,null,null,null,null,null,null,null,null,null,null,null,null,null,null,null,null,null,null,null,null,null,null,null,null,null,null,null,null,null,null,null,null,null,null,null,null,null,null,null,null,null,null,null,null,null,null,null,null,null,null,null,null,null,null,null,null,null,null,null,null,null,null,null,null,null,null,null,null,null,null,null,null,null,null,null,null,null,null,null,null,null,null,null,null,null,null,null,null,null,null,null,null,null,null,null,null,null,null,null,null,null,null,null,null,null,null,null,null,null,null,508,"箕面学園","箕面学園"]
[null,null,null,null,null,null,null,null,null,null,null,null,null,null,null,null,null,null,null,null,null,null,null,null,null,null,null,null,null,null,null,null,null,null,null,null,null,null,null,null,null,null,null,null,null,null,null,null,null,null,null,null,null,null,null,null,null,null,null,null,null,null,null,null,null,null,null,null,null,null,null,null,null,null,null,null,null,null,null,null,null,null,null,null,null,null,null,null,null,null,null,null,null,null,null,null,null,null,null,null,null,null,null,null,null,null,null,null,null,null,null,null,null,null,null,null,null,null,null,null,null,null,null,null,null,null,null,null,null,null,null,null,null,null,null,null,null,null,null,null,null,null,null,null,null,null,null,null,null,null,null,null,null,null,null,null,null,null,null,null,null,null,null,null,null,null,null,null,null,null,null,null,null,null,null,null,null,null,null,null,null,null,null,null,null,null,null,null,null,null,null,null,null,null,509,"箕面自由学園","箕面自由"]
[null,null,null,null,null,null,null,null,null,null,null,null,null,null,null,null,null,null,null,null,null,null,null,null,null,null,null,null,null,null,null,null,null,null,null,null,null,null,null,null,null,null,null,null,null,null,null,null,null,null,null,null,null,null,null,null,null,null,null,null,null,null,null,null,null,null,null,null,null,null,null,null,null,null,null,null,null,null,null,null,null,null,null,null,null,null,null,null,null,null,null,null,null,null,null,null,null,null,null,null,null,null,null,null,null,null,null,null,null,null,null,null,null,null,null,null,null,null,null,null,null,null,null,null,null,null,null,null,null,null,null,null,null,null,null,null,null,null,null,null,null,null,null,null,null,null,null,null,null,null,null,null,null,null,null,null,null,null,null,null,null,null,null,null,null,null,null,null,null,null,null,null,null,null,null,null,null,null,null,null,null,null,null,null,null,null,null,null,null,null,null,null,null,null,519,"三国丘(定","三 国 丘"]
[null,null,null,null,null,null,"ふりがな",null,null,null,null,null,null,null,null,null,null,null,null,null,null,null,null,null,null,null,null,null,null,null,null,null,null,null,null,null,null,null,null,null,null,null,null,null,null,null,null,null,null,null,null,null,null,null,null,null,null,null,"・",null,null,null,"・",null,null,null,22,null,null,null,null,null,null,null,null,null,null,null,null,null,null,null,null,null,null,null,null,null,null,null,null,null,null,null,null,null,null,null,null,null,null,null,null,null,null,null,null,null,null,null,null,null,null,null,null,null,null,null,null,null,null,null,null,null,null,null,null,null,null,null,null,null,null,null,null,null,null,null,null,null,null,null,null,null,null,null,null,null,null,null,null,null,null,null,null,null,null,null,null,null,null,null,null,null,null,null,null,null,null,null,null,null,null,null,null,null,null,null,null,null,null,null,null,null,null,null,null,null,null,null,null,null,null,null,521,"大手前(定","大 手 前"]
[null,null,null,null,null,null,"（姓）",null,null,null,null,null,null,null,null,null,null,null,null,null,null,null,"（名）",null,null,null,null,null,null,null,null,null,null,null,null,null,null,null,null,null,null,null,null,null,null,null,null,null,null,null,null,null,null,null,null,null,null,null,null,null,null,null,null,null,null,null,null,null,null,null,null,null,null,null,null,null,null,null,null,null,null,null,null,null,null,null,null,null,null,null,null,null,null,null,null,null,null,null,null,null,null,null,null,null,null,null,null,null,null,null,null,null,null,null,null,null,null,null,null,null,null,null,null,null,null,null,null,null,null,null,null,null,null,null,null,null,null,null,null,null,null,null,null,null,null,null,null,null,null,null,null,null,null,null,null,null,null,null,null,null,null,null,null,null,null,null,null,null,null,null,null,null,null,null,null,null,null,null,null,null,null,null,null,null,null,null,null,null,null,null,null,null,null,null,523,"都島第二工","都島第二"]
[null,null,null,null,null,null,null,null,null,null,null,null,null,null,null,null,null,null,null,null,null,null,null,null,null,null,null,null,null,null,null,null,null,null,null,null,null,null,null,null,null,null,null,null,null,null,null,null,null,null,null,null,null,null,null,null,null,null,null,null,null,null,null,null,null,null,null,null,null,null,null,null,null,null,null,null,null,null,null,null,null,null,null,null,null,null,null,null,null,null,null,null,null,null,null,null,null,null,null,null,null,null,null,null,null,null,null,null,null,null,null,null,null,null,null,null,null,null,null,null,null,null,null,null,null,null,null,null,null,null,null,null,null,null,null,null,null,null,null,null,null,null,null,null,null,null,null,null,null,null,null,null,null,null,null,null,null,null,null,null,null,null,null,null,null,null,null,null,null,null,null,null,null,null,null,null,null,null,null,null,null,null,null,null,null,null,null,null,null,null,null,null,null,null,"525","成城","成　　城"]
[null,null,null,null,null,null,null,null,null,null,null,null,null,null,null,null,null,null,null,null,null,null,null,null,null,null,null,null,null,null,null,null,null,null,null,null,null,null,null,null,null,null,null,null,null,null,null,null,null,null,null,null,null,null,null,null,null,null,null,null,null,null,null,null,null,null,null,null,null,null,null,null,null,null,null,null,null,null,null,null,null,null,null,null,null,null,null,null,null,null,null,null,null,null,null,null,null,null,null,null,null,null,null,null,null,null,null,null,null,null,null,null,null,null,null,null,null,null,null,null,null,null,null,null,null,null,null,null,null,null,null,null,null,null,null,null,null,null,null,null,null,null,null,null,null,null,null,null,null,null,null,null,null,null,null,null,null,null,null,null,null,null,null,null,null,null,null,null,null,null,null,null,null,null,null,null,null,null,null,null,null,null,null,null,null,null,null,null,null,null,null,null,null,null,528,"今宮工科(定","今宮工科"]
[null,null,null,null,null,null,null,null,null,null,null,null,null,null,null,null,null,null,null,null,null,null,null,null,null,null,null,null,null,null,null,null,null,null,null,null,null,null,null,null,null,null,null,null,null,null,null,null,null,null,null,null,null,null,null,null,null,null,null,null,null,null,null,null,null,null,null,null,null,null,null,null,null,null,null,null,null,null,null,null,null,null,null,null,null,null,null,null,null,null,null,null,null,null,null,null,null,null,null,null,null,null,null,null,null,null,null,null,null,null,null,null,null,null,null,null,null,null,null,null,null,null,null,null,null,null,null,null,null,null,null,null,null,null,null,null,null,null,null,null,null,null,null,null,null,null,null,null,null,null,null,null,null,null,null,null,null,null,null,null,null,null,null,null,null,null,null,null,null,null,null,null,null,null,null,null,null,null,null,null,null,null,null,null,null,null,null,null,null,null,null,null,null,null,530,"西野田工科(定","西野田工"]
[null,null,null,null,null,null,null,null,null,null,null,null,null,null,null,null,null,null,null,null,null,null,null,null,null,null,null,null,null,null,null,null,null,null,null,null,null,null,null,null,null,null,null,null,null,null,null,null,null,null,null,null,null,null,null,null,null,null,null,null,null,null,null,null,null,null,null,null,null,null,null,null,null,null,null,null,null,null,null,null,null,null,null,null,null,null,null,null,null,null,null,null,null,null,null,null,null,null,null,null,null,null,null,null,null,null,null,null,null,null,null,null,null,null,null,null,null,null,null,null,null,null,null,null,null,null,null,null,null,null,null,null,null,null,null,null,null,null,null,null,null,null,null,null,null,null,null,null,null,null,null,null,null,null,null,null,null,null,null,null,null,null,null,null,null,null,null,null,null,null,null,null,null,null,null,null,null,null,null,null,null,null,null,null,null,null,null,null,null,null,null,null,null,null,531,"岸和田産業(定","岸和田産"]
[null,null,null,null,null,null,null,null,null,null,null,null,null,null,null,null,null,null,null,null,null,null,null,null,null,null,null,null,null,null,null,null,null,null,null,null,null,null,null,null,null,null,null,null,null,null,null,null,null,null,null,null,null,null,null,null,null,null,null,null,null,null,null,null,null,null,null,null,null,null,null,null,null,null,null,null,null,null,null,null,null,null,null,null,null,null,null,null,null,null,null,null,null,null,null,null,null,null,null,null,null,null,null,null,null,null,null,null,null,null,null,null,null,null,null,null,null,null,null,null,null,null,null,null,null,null,null,null,null,null,null,null,null,null,null,null,null,null,null,null,null,null,null,null,null,null,null,null,null,null,null,null,null,null,null,null,null,null,null,null,null,null,null,null,null,null,null,null,null,null,null,null,null,null,null,null,null,null,null,null,null,null,null,null,null,null,null,null,null,null,null,null,null,null,532,"堺市立堺(定","堺市立堺"]
[null,null,null,null,null,null,null,null,null,null,null,null,null,null,null,null,null,null,null,null,null,null,null,null,null,null,null,null,null,null,null,null,null,null,null,null,null,null,null,null,null,null,null,null,null,null,null,null,null,null,null,null,null,null,null,null,null,null,null,null,null,null,null,null,null,null,null,null,null,null,null,null,null,null,null,null,null,null,null,null,null,null,null,null,null,null,null,null,null,null,null,null,null,null,null,null,null,null,null,null,null,null,null,null,null,null,null,null,null,null,null,null,null,null,null,null,null,null,null,null,null,null,null,null,null,null,null,null,null,null,null,null,null,null,null,null,null,null,null,null,null,null,null,null,null,null,null,null,null,null,null,null,null,null,null,null,null,null,null,null,null,null,null,null,null,null,null,null,null,null,null,null,null,null,null,null,null,null,null,null,null,null,null,null,null,null,null,null,null,null,null,null,null,null,"534","和泉総合","和泉総合"]
[null,null,null,null,null,null,null,null,null,null,null,null,null,null,null,null,null,null,null,null,null,null,null,null,null,null,null,null,null,null,null,null,null,null,null,null,null,null,null,null,null,null,null,null,null,null,null,null,null,null,null,null,null,null,null,null,null,null,null,null,null,null,null,null,null,null,null,null,null,null,null,null,null,null,null,null,null,null,null,null,null,null,null,null,null,null,null,null,null,null,null,null,null,null,null,null,null,null,null,null,null,null,null,null,null,null,null,null,null,null,null,null,null,null,null,null,null,null,null,null,null,null,null,null,null,null,null,null,null,null,null,null,null,null,null,null,null,null,null,null,null,null,null,null,null,null,null,null,null,null,null,null,null,null,null,null,null,null,null,null,null,null,null,null,null,null,null,null,null,null,null,null,null,null,null,null,null,null,null,null,null,null,null,null,null,null,null,null,null,null,null,null,null,null,535,"佐野工科(定","佐野工科"]
[null,null,null,null,null,null,null,null,null,null,null,null,null,null,null,null,null,null,null,null,null,null,null,null,null,null,null,null,null,null,null,null,null,null,null,null,null,null,null,null,null,null,null,null,null,null,null,null,null,null,null,null,null,null,null,null,null,null,null,null,null,null,null,null,null,null,null,null,null,null,null,null,null,null,null,null,null,null,null,null,null,null,null,null,null,null,null,null,null,null,null,null,null,null,null,null,null,null,null,null,null,null,null,null,null,null,null,null,null,null,null,null,null,null,null,null,null,null,null,null,null,null,null,null,null,null,null,null,null,null,null,null,null,null,null,null,null,null,null,null,null,null,null,null,null,null,null,null,null,null,null,null,null,null,null,null,null,null,null,null,null,null,null,null,null,null,null,null,null,null,null,null,null,null,null,null,null,null,null,null,null,null,null,null,null,null,null,null,null,null,null,null,null,null,542,"日新(定","日　　新"]
[null,null,null,null,null,null,null,null,null,null,null,null,null,null,null,null,null,null,null,null,null,null,null,null,null,null,null,null,null,null,null,null,null,null,null,null,null,null,null,null,null,null,null,null,null,null,null,null,null,null,null,null,null,null,null,null,null,null,null,null,null,null,null,null,null,null,null,null,null,null,null,null,null,null,null,null,null,null,null,null,null,null,null,null,null,null,null,null,null,null,null,null,null,null,null,null,null,null,null,null,null,null,null,null,null,null,null,null,null,null,null,null,null,null,null,null,null,null,null,null,null,null,null,null,null,null,null,null,null,null,null,null,null,null,null,null,null,null,null,null,null,null,null,null,null,null,null,null,null,null,null,null,null,null,null,null,null,null,null,null,null,null,null,null,null,null,null,null,null,null,null,null,null,null,null,null,null,null,null,null,null,null,null,null,null,null,null,null,null,null,null,null,null,null,"544","桜塚(定","桜　　塚"]
[null,null,null,null,null,null,null,null,null,null,null,null,null,null,null,null,null,null,null,null,null,null,null,null,null,null,null,null,null,null,null,null,null,null,null,null,null,null,null,null,null,null,null,null,null,null,null,null,null,null,null,null,null,null,null,null,null,null,null,null,null,null,null,null,null,null,null,null,null,null,null,null,null,null,null,null,null,null,null,null,null,null,null,null,null,null,null,null,null,null,null,null,null,null,null,null,null,null,null,null,null,null,null,null,null,null,null,null,null,null,null,null,null,null,null,null,null,null,null,null,null,null,null,null,null,null,null,null,null,null,null,null,null,null,null,null,null,null,null,null,null,null,null,null,null,null,null,null,null,null,null,null,null,null,null,null,null,null,null,null,null,null,null,null,null,null,null,null,null,null,null,null,null,null,null,null,null,null,null,null,null,null,null,null,null,null,null,null,null,null,null,null,null,null,"545","春日丘(定","春 日 丘"]
[null,null,null,null,null,null,null,null,null,null,null,null,null,null,null,null,null,null,null,null,null,null,null,null,null,null,null,null,null,null,null,null,null,null,null,null,null,null,null,null,null,null,null,null,null,null,null,null,null,null,null,null,null,null,null,null,null,null,null,null,null,null,null,null,null,null,null,null,null,null,null,null,null,null,null,null,null,null,null,null,null,null,null,null,null,null,null,null,null,null,null,null,null,null,null,null,null,null,null,null,null,null,null,null,null,null,null,null,null,null,null,null,null,null,null,null,null,null,null,null,null,null,null,null,null,null,null,null,null,null,null,null,null,null,null,null,null,null,null,null,null,null,null,null,null,null,null,null,null,null,null,null,null,null,null,null,null,null,null,null,null,null,null,null,null,null,null,null,null,null,null,null,null,null,null,null,null,null,null,null,null,null,null,null,null,null,null,null,null,null,null,null,null,null,546,"科学技術学園","科学技術"]
[null,null,null,null,null,null,null,null,null,null,null,null,null,null,null,null,null,null,null,null,null,null,null,null,null,null,null,null,null,null,null,null,null,null,null,null,null,null,null,null,null,null,null,null,null,null,null,null,null,null,null,null,null,null,null,null,null,null,null,null,null,null,null,null,null,null,null,null,null,null,null,null,null,null,null,null,null,null,null,null,null,null,null,null,null,null,null,null,null,null,null,null,null,null,null,null,null,null,null,null,null,null,null,null,null,null,null,null,null,null,null,null,null,null,null,null,null,null,null,null,null,null,null,null,null,null,null,null,null,null,null,null,null,null,null,null,null,null,null,null,null,null,null,null,null,null,null,null,null,null,null,null,null,null,null,null,null,null,null,null,null,null,null,null,null,null,null,null,null,null,null,null,null,null,null,null,null,null,null,null,null,null,null,null,null,null,null,null,null,null,null,null,null,null,550,"建国","建　　国"]
[null,null,null,null,null,null,null,null,null,null,null,null,null,null,null,null,null,null,null,null,null,null,null,null,null,null,null,null,null,null,null,null,null,null,null,null,null,null,null,null,null,null,null,null,null,null,null,null,null,null,null,null,null,null,null,null,null,null,null,null,null,null,null,null,null,null,null,null,null,null,null,null,null,null,null,null,null,null,null,null,null,null,null,null,null,null,null,null,null,null,null,null,null,null,null,null,null,null,null,null,null,null,null,null,null,null,null,null,null,null,null,null,null,null,null,null,null,null,null,null,null,null,null,null,null,null,null,null,null,null,null,null,null,null,null,null,null,null,null,null,null,null,null,null,null,null,null,null,null,null,null,null,null,null,null,null,null,null,null,null,null,null,null,null,null,null,null,null,null,null,null,null,null,null,null,null,null,null,null,null,null,null,null,null,null,null,null,null,null,null,null,null,null,null,551,"能勢","能　　勢"]
[null,null,null,null,null,null,null,null,null,null,null,null,null,null,null,null,null,null,null,null,null,null,null,null,null,null,null,null,null,null,null,null,null,null,null,null,null,null,null,null,null,null,null,null,null,null,null,null,null,null,null,null,null,null,null,null,null,null,null,null,null,null,null,null,null,null,null,null,null,null,null,null,null,null,null,null,null,null,null,null,null,null,null,null,null,null,null,null,null,null,null,null,null,null,null,null,null,null,null,null,null,null,null,null,null,null,null,null,null,null,null,null,null,null,null,null,null,null,null,null,null,null,null,null,null,null,null,null,null,null,null,null,null,null,null,null,null,null,null,null,null,null,null,null,null,null,null,null,null,null,null,null,null,null,null,null,null,null,null,null,null,null,null,null,null,null,null,null,null,null,null,null,null,null,null,null,null,null,null,null,null,null,null,null,null,null,null,null,null,null,null,null,null,null,553,"藤井寺工科","藤井寺工"]
[null,null,null,null,null,null,null,null,null,null,null,null,null,null,null,null,null,null,null,null,null,null,null,null,null,null,null,null,null,null,null,null,null,null,null,null,null,null,null,null,null,null,null,null,null,null,null,null,null,null,null,null,null,null,null,null,null,null,null,null,null,null,null,null,null,null,null,null,null,null,null,null,null,null,null,null,null,null,null,null,null,null,null,null,null,null,null,null,null,null,null,null,null,null,null,null,null,null,null,null,null,null,null,null,null,null,null,null,null,null,null,null,null,null,null,null,null,null,null,null,null,null,null,null,null,null,null,null,null,null,null,null,null,null,null,null,null,null,null,null,null,null,null,null,null,null,null,null,null,null,null,null,null,null,null,null,null,null,null,null,null,null,null,null,null,null,null,null,null,null,null,null,null,null,null,null,null,null,null,null,null,null,null,null,null,null,null,null,null,null,null,null,null,null,554,"四條畷北","四條畷北"]
[null,null,null,null,null,null,null,null,null,null,null,null,null,null,null,null,null,null,null,null,null,null,null,null,null,null,null,null,null,null,null,null,null,null,null,null,null,null,null,null,null,null,null,null,null,null,null,null,null,null,null,null,null,null,null,null,null,null,null,null,null,null,null,null,null,null,null,null,null,null,null,null,null,null,null,null,null,null,null,null,null,null,null,null,null,null,null,null,null,null,null,null,null,null,null,null,null,null,null,null,null,null,null,null,null,null,null,null,null,null,null,null,null,null,null,null,null,null,null,null,null,null,null,null,null,null,null,null,null,null,null,null,null,null,null,null,null,null,null,null,null,null,null,null,null,null,null,null,null,null,null,null,null,null,null,null,null,null,null,null,null,null,null,null,null,null,null,null,null,null,null,null,null,null,null,null,null,null,null,null,null,null,null,null,null,null,null,null,null,null,null,null,null,null,555,"野崎","野　　崎"]
[null,null,null,null,null,null,null,null,null,null,null,null,null,null,null,null,null,null,null,null,null,null,null,null,null,null,null,null,null,null,null,null,null,null,null,null,null,null,null,null,null,null,null,null,null,null,null,null,null,null,null,null,null,null,null,null,null,null,null,null,null,null,null,null,null,null,null,null,null,null,null,null,null,null,null,null,null,null,null,null,null,null,null,null,null,null,null,null,null,null,null,null,null,null,null,null,null,null,null,null,null,null,null,null,null,null,null,null,null,null,null,null,null,null,null,null,null,null,null,null,null,null,null,null,null,null,null,null,null,null,null,null,null,null,null,null,null,null,null,null,null,null,null,null,null,null,null,null,null,null,null,null,null,null,null,null,null,null,null,null,null,null,null,null,null,null,null,null,null,null,null,null,null,null,null,null,null,null,null,null,null,null,null,null,null,null,null,null,null,null,null,null,null,null,556,"関西創価","関西創価"]
[null,null,null,null,null,null,null,null,null,null,null,null,null,null,null,null,null,null,null,null,null,null,null,null,null,null,null,null,null,null,null,null,null,null,null,null,null,null,null,null,null,null,null,null,null,null,null,null,null,null,null,null,null,null,null,null,null,null,null,null,null,null,null,null,null,null,null,null,null,null,null,null,null,null,null,null,null,null,null,null,null,null,null,null,null,null,null,null,null,null,null,null,null,null,null,null,null,null,null,null,null,null,null,null,null,null,null,null,null,null,null,null,null,null,null,null,null,null,null,null,null,null,null,null,null,null,null,null,null,null,null,null,null,null,null,null,null,null,null,null,null,null,null,null,null,null,null,null,null,null,null,null,null,null,null,null,null,null,null,null,null,null,null,null,null,null,null,null,null,null,null,null,null,null,null,null,null,null,null,null,null,null,null,null,null,null,null,null,null,null,null,null,null,null,557,"プール学院","プール学"]
[null,null,null,null,null,null,null,null,null,null,null,null,null,null,null,null,null,null,null,null,null,null,null,null,null,null,null,null,null,null,null,null,null,null,null,null,null,null,null,null,null,null,null,null,null,null,null,null,null,null,null,null,null,null,null,null,null,null,null,null,null,null,null,null,null,null,null,null,null,null,null,null,null,null,null,null,null,null,null,null,null,null,null,null,null,null,null,null,null,null,null,null,null,null,null,null,null,null,null,null,null,null,null,null,null,null,null,null,null,null,null,null,null,null,null,null,null,null,null,null,null,null,null,null,null,null,null,null,null,null,null,null,null,null,null,null,null,null,null,null,null,null,null,null,null,null,null,null,null,null,null,null,null,null,null,null,null,null,null,null,null,null,null,null,null,null,null,null,null,null,null,null,null,null,null,null,null,null,null,null,null,null,null,null,null,null,null,null,null,null,null,null,null,null,558,"清明学院","清明学院"]
[null,null,null,null,null,null,null,null,null,null,null,null,null,null,null,null,null,null,null,null,null,null,null,null,null,null,null,null,null,null,null,null,null,null,null,null,null,null,null,null,null,null,null,null,null,null,null,null,null,null,null,null,null,null,null,null,null,null,null,null,null,null,null,null,null,null,null,null,null,null,null,null,null,null,null,null,null,null,null,null,null,null,null,null,null,null,null,null,null,null,null,null,null,null,null,null,null,null,null,null,null,null,null,null,null,null,null,null,null,null,null,null,null,null,null,null,null,null,null,null,null,null,null,null,null,null,null,null,null,null,null,null,null,null,null,null,null,null,null,null,null,null,null,null,null,null,null,null,null,null,null,null,null,null,null,null,null,null,null,null,null,null,null,null,null,null,null,null,null,null,null,null,null,null,null,null,null,null,null,null,null,null,null,null,null,null,null,null,null,null,null,null,null,null,560,"大阪ビジネス","Ｏ Ｂ Ｆ"]
[null,null,null,null,null,null,null,null,null,null,null,null,null,null,null,null,null,null,null,null,null,null,null,null,null,null,null,null,null,null,null,null,null,null,null,null,null,null,null,null,null,null,null,null,null,null,null,null,null,null,null,null,null,null,null,null,null,null,null,null,null,null,null,null,null,null,null,null,null,null,null,null,null,null,null,null,null,null,null,null,null,null,null,null,null,null,null,null,null,null,null,null,null,null,null,null,null,null,null,null,null,null,null,null,null,null,null,null,null,null,null,null,null,null,null,null,null,null,null,null,null,null,null,null,null,null,null,null,null,null,null,null,null,null,null,null,null,null,null,null,null,null,null,null,null,null,null,null,null,null,null,null,null,null,null,null,null,null,null,null,null,null,null,null,null,null,null,null,null,null,null,null,null,null,null,null,null,null,null,null,null,null,null,null,null,null,null,null,null,null,null,null,null,null,562,"上宮太子","上宮太子"]
[null,null,null,null,null,null,null,null,null,null,null,null,null,null,null,null,null,null,null,null,null,null,null,null,null,null,null,null,null,null,null,null,null,null,null,null,null,null,null,null,null,null,null,null,null,null,null,null,null,null,null,null,null,null,null,null,null,null,null,null,null,null,null,null,null,null,null,null,null,null,null,null,null,null,null,null,null,null,null,null,null,null,null,null,null,null,null,null,null,null,null,null,null,null,null,null,null,null,null,null,null,null,null,null,null,null,null,null,null,null,null,null,null,null,null,null,null,null,null,null,null,null,null,null,null,null,null,null,null,null,null,null,null,null,null,null,null,null,null,null,null,null,null,null,null,null,null,null,null,null,null,null,null,null,null,null,null,null,null,null,null,null,null,null,null,null,null,null,null,null,null,null,null,null,null,null,null,null,null,null,null,null,null,null,null,null,null,null,null,null,null,null,null,null,563,"中央","中　　央"]
[null,null,null,null,null,null,null,null,null,null,null,null,null,null,null,null,null,null,null,null,null,null,null,null,null,null,null,null,null,null,null,null,null,null,null,null,null,null,null,null,null,null,null,null,null,null,null,null,null,null,null,null,null,null,null,null,null,null,null,null,null,null,null,null,null,null,null,null,null,null,null,null,null,null,null,null,null,null,null,null,null,null,null,null,null,null,null,null,null,null,null,null,null,null,null,null,null,null,null,null,null,null,null,null,null,null,null,null,null,null,null,null,null,null,null,null,null,null,null,null,null,null,null,null,null,null,null,null,null,null,null,null,null,null,null,null,null,null,null,null,null,null,null,null,null,null,null,null,null,null,null,null,null,null,null,null,null,null,null,null,null,null,null,null,null,null,null,null,null,null,null,null,null,null,null,null,null,null,null,null,null,null,null,null,null,null,null,null,null,null,null,null,null,null,564,"大阪学芸中等教育","学芸中等"]
[null,null,null,null,null,null,null,null,null,null,null,null,null,null,null,null,null,null,null,null,null,null,null,null,null,null,null,null,null,null,null,null,null,null,null,null,null,null,null,null,null,null,null,null,null,null,null,null,null,null,null,null,null,null,null,null,null,null,null,null,null,null,null,null,null,null,null,null,null,null,null,null,null,null,null,null,null,null,null,null,null,null,null,null,null,null,null,null,null,null,null,null,null,null,null,null,null,null,null,null,null,null,null,null,null,null,null,null,null,null,null,null,null,null,null,null,null,null,null,null,null,null,null,null,null,null,null,null,null,null,null,null,null,null,null,null,null,null,null,null,null,null,null,null,null,null,null,null,null,null,null,null,null,null,null,null,null,null,null,null,null,null,null,null,null,null,null,null,null,null,null,null,null,null,null,null,null,null,null,null,null,null,null,null,null,null,null,null,null,null,null,null,null,null,565,"鶴見商業","鶴見商業"]
[null,null,null,null,null,null,null,null,null,null,null,null,null,null,null,null,null,null,null,null,null,null,null,null,null,null,null,null,null,null,null,null,null,null,null,null,null,null,null,null,null,null,null,null,null,null,null,null,null,null,null,null,null,null,null,null,null,null,null,null,null,null,null,null,null,null,null,null,null,null,null,null,null,null,null,null,null,null,null,null,null,null,null,null,null,null,null,null,null,null,null,null,null,null,null,null,null,null,null,null,null,null,null,null,null,null,null,null,null,null,null,null,null,null,null,null,null,null,null,null,null,null,null,null,null,null,null,null,null,null,null,null,null,null,null,null,null,null,null,null,null,null,null,null,null,null,null,null,null,null,null,null,null,null,null,null,null,null,null,null,null,null,null,null,null,null,null,null,null,null,null,null,null,null,null,null,null,null,null,null,null,null,null,null,null,null,null,null,null,null,null,null,null,null,569,"東大阪大学敬愛","東大敬愛"]
[null,null,null,null,null,null,null,null,null,null,null,null,null,null,null,null,null,null,null,null,null,null,null,null,null,null,null,null,null,null,null,null,null,null,null,null,null,null,null,null,null,null,null,null,null,null,null,null,null,null,null,null,null,null,null,null,null,null,null,null,null,null,null,null,null,null,null,null,null,null,null,null,null,null,null,null,null,null,null,null,null,null,null,null,null,null,null,null,null,null,null,null,null,null,null,null,null,null,null,null,null,null,null,null,null,null,null,null,null,null,null,null,null,null,null,null,null,null,null,null,null,null,null,null,null,null,null,null,null,null,null,null,null,null,null,null,null,null,null,null,null,null,null,null,null,null,null,null,null,null,null,null,null,null,null,null,null,null,null,null,null,null,null,null,null,null,null,null,null,null,null,null,null,null,null,null,null,null,null,null,null,null,null,null,null,null,null,null,null,null,null,null,null,null,570,"科技東朋","科技東朋"]
[null,null,null,null,null,null,null,null,null,null,null,null,null,null,null,null,null,null,null,null,null,null,null,null,null,null,null,null,null,null,null,null,null,null,null,null,null,null,null,null,null,null,null,null,null,null,null,null,null,null,null,null,null,null,null,null,null,null,null,null,null,null,null,null,null,null,null,null,null,null,null,null,null,null,null,null,null,null,null,null,null,null,null,null,null,null,null,null,null,null,null,null,null,null,null,null,null,null,null,null,null,null,null,null,null,null,null,null,null,null,null,null,null,null,null,null,null,null,null,null,null,null,null,null,null,null,null,null,null,null,null,null,null,null,null,null,null,null,null,null,null,null,null,null,null,null,null,null,null,null,null,null,null,null,null,null,null,null,null,null,null,null,null,null,null,null,null,null,null,null,null,null,null,null,null,null,null,null,null,null,null,null,null,null,null,null,null,null,null,null,null,null,null,null,571,"英真学園","英真学園"]
[null,null,null,null,null,null,null,null,null,null,null,null,null,null,null,null,null,null,null,null,null,null,null,null,null,null,null,null,null,null,null,null,null,null,null,null,null,null,null,null,null,null,null,null,null,null,null,null,null,null,null,null,null,null,null,null,null,null,null,null,null,null,null,null,null,null,null,null,null,null,null,null,null,null,null,null,null,null,null,null,null,null,null,null,null,null,null,null,null,null,null,null,null,null,null,null,null,null,null,null,null,null,null,null,null,null,null,null,null,null,null,null,null,null,null,null,null,null,null,null,null,null,null,null,null,null,null,null,null,null,null,null,null,null,null,null,null,null,null,null,null,null,null,null,null,null,null,null,null,null,null,null,null,null,null,null,null,null,null,null,null,null,null,null,null,null,null,null,null,null,null,null,null,null,null,null,null,null,null,null,null,null,null,null,null,null,null,null,null,null,null,null,null,null,572,"山田","山　　田"]
[null,null,null,null,null,null,null,null,null,null,null,null,null,null,null,null,null,null,null,null,null,null,null,null,null,null,null,null,null,null,null,null,null,null,null,null,null,null,null,null,null,null,null,null,null,null,null,null,null,null,null,null,null,null,null,null,null,null,null,null,null,null,null,null,null,null,null,null,null,null,null,null,null,null,null,null,null,null,null,null,null,null,null,null,null,null,null,null,null,null,null,null,null,null,null,null,null,null,null,null,null,null,null,null,null,null,null,null,null,null,null,null,null,null,null,null,null,null,null,null,null,null,null,null,null,null,null,null,null,null,null,null,null,null,null,null,null,null,null,null,null,null,null,null,null,null,null,null,null,null,null,null,null,null,null,null,null,null,null,null,null,null,null,null,null,null,null,null,null,null,null,null,null,null,null,null,null,null,null,null,null,null,null,null,null,null,null,null,null,null,null,null,null,null,573,"向陽台天王寺","光陽台天"]
[null,null,null,null,null,null,null,null,null,null,null,null,null,null,null,null,null,null,null,null,null,null,null,null,null,null,null,null,null,null,null,null,null,null,null,null,null,null,null,null,null,null,null,null,null,null,null,null,null,null,null,null,null,null,null,null,null,null,null,null,null,null,null,null,null,null,null,null,null,null,null,null,null,null,null,null,null,null,null,null,null,null,null,null,null,null,null,null,null,null,null,null,null,null,null,null,null,null,null,null,null,null,null,null,null,null,null,null,null,null,null,null,null,null,null,null,null,null,null,null,null,null,null,null,null,null,null,null,null,null,null,null,null,null,null,null,null,null,null,null,null,null,null,null,null,null,null,null,null,null,null,null,null,null,null,null,null,null,null,null,null,null,null,null,null,null,null,null,null,null,null,null,null,null,null,null,null,null,null,null,null,null,null,null,null,null,null,null,null,null,null,null,null,null,574,"向陽台","光 陽 台"]
[null,null,null,null,null,null,null,null,null,null,null,null,null,null,null,null,null,null,null,null,null,null,null,null,null,null,null,null,null,null,null,null,null,null,null,null,null,null,null,null,null,null,null,null,null,null,null,null,null,null,null,null,null,null,null,null,null,null,null,null,null,null,null,null,null,null,null,null,null,null,null,null,null,null,null,null,null,null,null,null,null,null,null,null,null,null,null,null,null,null,null,null,null,null,null,null,null,null,null,null,null,null,null,null,null,null,null,null,null,null,null,null,null,null,null,null,null,null,null,null,null,null,null,null,null,null,null,null,null,null,null,null,null,null,null,null,null,null,null,null,null,null,null,null,null,null,null,null,null,null,null,null,null,null,null,null,null,null,null,null,null,null,null,null,null,null,null,null,null,null,null,null,null,null,null,null,null,null,null,null,null,null,null,null,null,null,null,null,null,null,null,null,null,null,575,"交野","交　　野"]
[null,null,null,null,null,null,null,null,null,null,null,null,null,null,null,null,null,null,null,null,null,null,null,null,null,null,null,null,null,null,null,null,null,null,null,null,null,null,null,null,null,null,null,null,null,null,null,null,null,null,null,null,null,null,null,null,null,null,null,null,null,null,null,null,null,null,null,null,null,null,null,null,null,null,null,null,null,null,null,null,null,null,null,null,null,null,null,null,null,null,null,null,null,null,null,null,null,null,null,null,null,null,null,null,null,null,null,null,null,null,null,null,null,null,null,null,null,null,null,null,null,null,null,null,null,null,null,null,null,null,null,null,null,null,null,null,null,null,null,null,null,null,null,null,null,null,null,null,null,null,null,null,null,null,null,null,null,null,null,null,null,null,null,null,null,null,null,null,null,null,null,null,null,null,null,null,null,null,null,null,null,null,null,null,null,null,null,null,null,null,null,null,null,null,576,"中央学園","中央学園"]
[null,null,null,null,null,null,null,null,null,null,null,null,null,null,null,null,null,null,null,null,null,null,null,null,null,null,null,null,null,null,null,null,null,null,null,null,null,null,null,null,null,null,null,null,null,null,null,null,null,null,null,null,null,null,null,null,null,null,null,null,null,null,null,null,null,null,null,null,null,null,null,null,null,null,null,null,null,null,null,null,null,null,null,null,null,null,null,null,null,null,null,null,null,null,null,null,null,null,null,null,null,null,null,null,null,null,null,null,null,null,null,null,null,null,null,null,null,null,null,null,null,null,null,null,null,null,null,null,null,null,null,null,null,null,null,null,null,null,null,null,null,null,null,null,null,null,null,null,null,null,null,null,null,null,null,null,null,null,null,null,null,null,null,null,null,null,null,null,null,null,null,null,null,null,null,null,null,null,null,null,null,null,null,null,null,null,null,null,null,null,null,null,null,null,577,"西","　 西　 "]
[null,null,null,null,null,null,null,null,null,null,null,null,null,null,null,null,null,null,null,null,null,null,null,null,null,null,null,null,null,null,null,null,null,null,null,null,null,null,null,null,null,null,null,null,null,null,null,null,null,null,null,null,null,null,null,null,null,null,null,null,null,null,null,null,null,null,null,null,null,null,null,null,null,null,null,null,null,null,null,null,null,null,null,null,null,null,null,null,null,null,null,null,null,null,null,null,null,null,null,null,null,null,null,null,null,null,null,null,null,null,null,null,null,null,null,null,null,null,null,null,null,null,null,null,null,null,null,null,null,null,null,null,null,null,null,null,null,null,null,null,null,null,null,null,null,null,null,null,null,null,null,null,null,null,null,null,null,null,null,null,null,null,null,null,null,null,null,null,null,null,null,null,null,null,null,null,null,null,null,null,null,null,null,null,null,null,null,null,null,null,null,null,null,null,578,"布施","布　　施"]
[null,null,null,null,null,null,null,null,null,null,null,null,null,null,null,null,null,null,null,null,null,null,null,null,null,null,null,null,null,null,null,null,null,null,null,null,null,null,null,null,null,null,null,null,null,null,null,null,null,null,null,null,null,null,null,null,null,null,null,null,null,null,null,null,null,null,null,null,null,null,null,null,null,null,null,null,null,null,null,null,null,null,null,null,null,null,null,null,null,null,null,null,null,null,null,null,null,null,null,null,null,null,null,null,null,null,null,null,null,null,null,null,null,null,null,null,null,null,null,null,null,null,null,null,null,null,null,null,null,null,null,null,null,null,null,null,null,null,null,null,null,null,null,null,null,null,null,null,null,null,null,null,null,null,null,null,null,null,null,null,null,null,null,null,null,null,null,null,null,null,null,null,null,null,null,null,null,null,null,null,null,null,null,null,null,null,null,null,null,null,null,null,null,null,579,"昇陽","昇　　陽"]
[null,null,null,null,null,null,null,null,null,null,null,null,null,null,null,null,null,null,null,null,null,null,null,null,null,null,null,null,null,null,null,null,null,null,null,null,null,null,null,null,null,null,null,null,null,null,null,null,null,null,null,null,null,null,null,null,null,null,null,null,null,null,null,null,null,null,null,null,null,null,null,null,null,null,null,null,null,null,null,null,null,null,null,null,null,null,null,null,null,null,null,null,null,null,null,null,null,null,null,null,null,null,null,null,null,null,null,null,null,null,null,null,null,null,null,null,null,null,null,null,null,null,null,null,null,null,null,null,null,null,null,null,null,null,null,null,null,null,null,null,null,null,null,null,null,null,null,null,null,null,null,null,null,null,null,null,null,null,null,null,null,null,null,null,null,null,null,null,null,null,null,null,null,null,null,null,null,null,null,null,null,null,null,null,null,null,null,null,null,null,null,null,null,null,580,"金光藤蔭","金光藤蔭"]
[null,null,null,null,null,null,null,null,null,null,null,null,null,null,null,null,null,null,null,null,null,null,null,null,null,null,null,null,null,null,null,null,null,null,null,null,null,null,null,null,null,null,null,null,null,null,null,null,null,null,null,null,null,null,null,null,null,null,null,null,null,null,null,null,null,null,null,null,null,null,null,null,null,null,null,null,null,null,null,null,null,null,null,null,null,null,null,null,null,null,null,null,null,null,null,null,null,null,null,null,null,null,null,null,null,null,null,null,null,null,null,null,null,null,null,null,null,null,null,null,null,null,null,null,null,null,null,null,null,null,null,null,null,null,null,null,null,null,null,null,null,null,null,null,null,null,null,null,null,null,null,null,null,null,null,null,null,null,null,null,null,null,null,null,null,null,null,null,null,null,null,null,null,null,null,null,null,null,null,null,null,null,null,null,null,null,null,null,null,null,null,null,null,null,581,"八洲学園","八洲学園"]
[null,null,null,null,null,null,null,null,null,null,null,null,null,null,null,null,null,null,null,null,null,null,null,null,null,null,null,null,null,null,null,null,null,null,null,null,null,null,null,null,null,null,null,null,null,null,null,null,null,null,null,null,null,null,null,null,null,null,null,null,null,null,null,null,null,null,null,null,null,null,null,null,null,null,null,null,null,null,null,null,null,null,null,null,null,null,null,null,null,null,null,null,null,null,null,null,null,null,null,null,null,null,null,null,null,null,null,null,null,null,null,null,null,null,null,null,null,null,null,null,null,null,null,null,null,null,null,null,null,null,null,null,null,null,null,null,null,null,null,null,null,null,null,null,null,null,null,null,null,null,null,null,null,null,null,null,null,null,null,null,null,null,null,null,null,null,null,null,null,null,null,null,null,null,null,null,null,null,null,null,null,null,null,null,null,null,null,null,null,null,null,null,null,null,582,"長尾谷","長 尾 谷"]
[null,null,null,null,null,null,null,null,null,null,null,null,null,null,null,null,null,null,null,null,null,null,null,null,null,null,null,null,null,null,null,null,null,null,null,null,null,null,null,null,null,null,null,null,null,null,null,null,null,null,null,null,null,null,null,null,null,null,null,null,null,null,null,null,null,null,null,null,null,null,null,null,null,null,null,null,null,null,null,null,null,null,null,null,null,null,null,null,null,null,null,null,null,null,null,null,null,null,null,null,null,null,null,null,null,null,null,null,null,null,null,null,null,null,null,null,null,null,null,null,null,null,null,null,null,null,null,null,null,null,null,null,null,null,null,null,null,null,null,null,null,null,null,null,null,null,null,null,null,null,null,null,null,null,null,null,null,null,null,null,null,null,null,null,null,null,null,null,null,null,null,null,null,null,null,null,null,null,null,null,null,null,null,null,null,null,null,null,null,null,null,null,null,null,583,"好文学園女子","好文学園"]
[null,null,null,null,null,null,null,null,null,null,null,null,null,null,null,null,null,null,null,null,null,null,null,null,null,null,null,null,null,null,null,null,null,null,null,null,null,null,null,null,null,null,null,null,null,null,null,null,null,null,null,null,null,null,null,null,null,null,null,null,null,null,null,null,null,null,null,null,null,null,null,null,null,null,null,null,null,null,null,null,null,null,null,null,null,null,null,null,null,null,null,null,null,null,null,null,null,null,null,null,null,null,null,null,null,null,null,null,null,null,null,null,null,null,null,null,null,null,null,null,null,null,null,null,null,null,null,null,null,null,null,null,null,null,null,null,null,null,null,null,null,null,null,null,null,null,null,null,null,null,null,null,null,null,null,null,null,null,null,null,null,null,null,null,null,null,null,null,null,null,null,null,null,null,null,null,null,null,null,null,null,null,null,null,null,null,null,null,null,null,null,null,null,null,584,"羽衣学園","羽衣学園"]
[null,null,null,null,null,null,null,null,null,null,null,null,null,null,null,null,null,null,null,null,null,null,null,null,null,null,null,null,null,null,null,null,null,null,null,null,null,null,null,null,null,null,null,null,null,null,null,null,null,null,null,null,null,null,null,null,null,null,null,null,null,null,null,null,null,null,null,null,null,null,null,null,null,null,null,null,null,null,null,null,null,null,null,null,null,null,null,null,null,null,null,null,null,null,null,null,null,null,null,null,null,null,null,null,null,null,null,null,null,null,null,null,null,null,null,null,null,null,null,null,null,null,null,null,null,null,null,null,null,null,null,null,null,null,null,null,null,null,null,null,null,null,null,null,null,null,null,null,null,null,null,null,null,null,null,null,null,null,null,null,null,null,null,null,null,null,null,null,null,null,null,null,null,null,null,null,null,null,null,null,null,null,null,null,null,null,null,null,null,null,null,null,null,null,585,"国際滝井","国際滝井"]
[null,null,null,null,null,null,null,null,null,null,null,null,null,null,null,null,null,null,null,null,null,null,null,null,null,null,null,null,null,null,null,null,null,null,null,null,null,null,null,null,null,null,null,null,null,null,null,null,null,null,null,null,null,null,null,null,null,null,null,null,null,null,null,null,null,null,null,null,null,null,null,null,null,null,null,null,null,null,null,null,null,null,null,null,null,null,null,null,null,null,null,null,null,null,null,null,null,null,null,null,null,null,null,null,null,null,null,null,null,null,null,null,null,null,null,null,null,null,null,null,null,null,null,null,null,null,null,null,null,null,null,null,null,null,null,null,null,null,null,null,null,null,null,null,null,null,null,null,null,null,null,null,null,null,null,null,null,null,null,null,null,null,null,null,null,null,null,null,null,null,null,null,null,null,null,null,null,null,null,null,null,null,null,null,null,null,null,null,null,null,null,null,null,null,586,"天王寺学館","天王寺学"]
[null,null,null,null,null,null,null,null,null,null,null,null,null,null,null,null,null,null,null,null,null,null,null,null,null,null,null,null,null,null,null,null,null,null,null,null,null,null,null,null,null,null,null,null,null,null,null,null,null,null,null,null,null,null,null,null,null,null,null,null,null,null,null,null,null,null,null,null,null,null,null,null,null,null,null,null,null,null,null,null,null,null,null,null,null,null,null,null,null,null,null,null,null,null,null,null,null,null,null,null,null,null,null,null,null,null,null,null,null,null,null,null,null,null,null,null,null,null,null,null,null,null,null,null,null,null,null,null,null,null,null,null,null,null,null,null,null,null,null,null,null,null,null,null,null,null,null,null,null,null,null,null,null,null,null,null,null,null,null,null,null,null,null,null,null,null,null,null,null,null,null,null,null,null,null,null,null,null,null,null,null,null,null,null,null,null,null,null,null,null,null,null,null,null,587,"住吉商業","住吉商業"]
[null,null,null,null,null,null,null,null,null,null,null,null,null,null,null,null,null,null,null,null,null,null,null,null,null,null,null,null,null,null,null,null,null,null,null,null,null,null,null,null,null,null,null,null,null,null,null,null,null,null,null,null,null,null,null,null,null,null,null,null,null,null,null,null,null,null,null,null,null,null,null,null,null,null,null,null,null,null,null,null,null,null,null,null,null,null,null,null,null,null,null,null,null,null,null,null,null,null,null,null,null,null,null,null,null,null,null,null,null,null,null,null,null,null,null,null,null,null,null,null,null,null,null,null,null,null,null,null,null,null,null,null,null,null,null,null,null,null,null,null,null,null,null,null,null,null,null,null,null,null,null,null,null,null,null,null,null,null,null,null,null,null,null,null,null,null,null,null,null,null,null,null,null,null,null,null,null,null,null,null,null,null,null,null,null,null,null,null,null,null,null,null,null,null,588,"大阪信愛女学院","大阪信愛"]
[null,null,null,null,null,null,null,null,null,null,null,null,null,null,null,null,null,null,null,null,null,null,null,null,null,null,null,null,null,null,null,null,null,null,null,null,null,null,null,null,null,null,null,null,null,null,null,null,null,null,null,null,null,null,null,null,null,null,null,null,null,null,null,null,null,null,null,null,null,null,null,null,null,null,null,null,null,null,null,null,null,null,null,null,null,null,null,null,null,null,null,null,null,null,null,null,null,null,null,null,null,null,null,null,null,null,null,null,null,null,null,null,null,null,null,null,null,null,null,null,null,null,null,null,null,null,null,null,null,null,null,null,null,null,null,null,null,null,null,null,null,null,null,null,null,null,null,null,null,null,null,null,null,null,null,null,null,null,null,null,null,null,null,null,null,null,null,null,null,null,null,null,null,null,null,null,null,null,null,null,null,null,null,null,null,null,null,null,null,null,null,null,null,null,589,"クラーク国際","クラーク"]
[null,null,null,null,null,null,null,null,null,null,null,null,null,null,null,null,null,null,null,null,null,null,null,null,null,null,null,null,null,null,null,null,null,null,null,null,null,null,null,null,null,null,null,null,null,null,null,null,null,null,null,null,null,null,null,null,null,null,null,null,null,null,null,null,null,null,null,null,null,null,null,null,null,null,null,null,null,null,null,null,null,null,null,null,null,null,null,null,null,null,null,null,null,null,null,null,null,null,null,null,null,null,null,null,null,null,null,null,null,null,null,null,null,null,null,null,null,null,null,null,null,null,null,null,null,null,null,null,null,null,null,null,null,null,null,null,null,null,null,null,null,null,null,null,null,null,null,null,null,null,null,null,null,null,null,null,null,null,null,null,null,null,null,null,null,null,null,null,null,null,null,null,null,null,null,null,null,null,null,null,null,null,null,null,null,null,null,null,null,null,null,null,null,null,590,"ヒュ-マンアカデミー","ヒュ-マン"]
[null,null,null,null,null,null,null,null,null,null,null,null,null,null,null,null,null,null,null,null,null,null,null,null,null,null,null,null,null,null,null,null,null,null,null,null,null,null,null,null,null,null,null,null,null,null,null,null,null,null,null,null,null,null,null,null,null,null,null,null,null,null,null,null,null,null,null,null,null,null,null,null,null,null,null,null,null,null,null,null,null,null,null,null,null,null,null,null,null,null,null,null,null,null,null,null,null,null,null,null,null,null,null,null,null,null,null,null,null,null,null,null,null,null,null,null,null,null,null,null,null,null,null,null,null,null,null,null,null,null,null,null,null,null,null,null,null,null,null,null,null,null,null,null,null,null,null,null,null,null,null,null,null,null,null,null,null,null,null,null,null,null,null,null,null,null,null,null,null,null,null,null,null,null,null,null,null,null,null,null,null,null,null,null,null,null,null,null,null,null,null,null,null,null,591,"四條畷学園","四條畷学"]
[null,null,null,null,null,null,null,null,null,null,null,null,null,null,null,null,null,null,null,null,null,null,null,null,null,null,null,null,null,null,null,null,null,null,null,null,null,null,null,null,null,null,null,null,null,null,null,null,null,null,null,null,null,null,null,null,null,null,null,null,null,null,null,null,null,null,null,null,null,null,null,null,null,null,null,null,null,null,null,null,null,null,null,null,null,null,null,null,null,null,null,null,null,null,null,null,null,null,null,null,null,null,null,null,null,null,null,null,null,null,null,null,null,null,null,null,null,null,null,null,null,null,null,null,null,null,null,null,null,null,null,null,null,null,null,null,null,null,null,null,null,null,null,null,null,null,null,null,null,null,null,null,null,null,null,null,null,null,null,null,null,null,null,null,null,null,null,null,null,null,null,null,null,null,null,null,null,null,null,null,null,null,null,null,null,null,null,null,null,null,null,null,null,null,592,"YMCA学院","ＹＭＣＡ"]
[null,null,null,null,null,null,null,null,null,null,null,null,null,null,null,null,null,null,null,null,null,null,null,null,null,null,null,null,null,null,null,null,null,null,null,null,null,null,null,null,null,null,null,null,null,null,null,null,null,null,null,null,null,null,null,null,null,null,null,null,null,null,null,null,null,null,null,null,null,null,null,null,null,null,null,null,null,null,null,null,null,null,null,null,null,null,null,null,null,null,null,null,null,null,null,null,null,null,null,null,null,null,null,null,null,null,null,null,null,null,null,null,null,null,null,null,null,null,null,null,null,null,null,null,null,null,null,null,null,null,null,null,null,null,null,null,null,null,null,null,null,null,null,null,null,null,null,null,null,null,null,null,null,null,null,null,null,null,null,null,null,null,null,null,null,null,null,null,null,null,null,null,null,null,null,null,null,null,null,null,null,null,null,null,null,null,null,null,null,null,null,null,null,null,593,"香ケ丘リベルテ","リベルテ"]
[null,null,null,null,null,null,null,null,null,null,null,null,null,null,null,null,null,null,null,null,null,null,null,null,null,null,null,null,null,null,null,null,null,null,null,null,null,null,null,null,null,null,null,null,null,null,null,null,null,null,null,null,null,null,null,null,null,null,null,null,null,null,null,null,null,null,null,null,null,null,null,null,null,null,null,null,null,null,null,null,null,null,null,null,null,null,null,null,null,null,null,null,null,null,null,null,null,null,null,null,null,null,null,null,null,null,null,null,null,null,null,null,null,null,null,null,null,null,null,null,null,null,null,null,null,null,null,null,null,null,null,null,null,null,null,null,null,null,null,null,null,null,null,null,null,null,null,null,null,null,null,null,null,null,null,null,null,null,null,null,null,null,null,null,null,null,null,null,null,null,null,null,null,null,null,null,null,null,null,null,null,null,null,null,null,null,null,null,null,null,null,null,null,null,594,"鹿島学園","鹿島学園"]
[null,null,null,null,null,null,null,null,null,null,null,null,null,null,null,null,null,null,null,null,null,null,null,null,null,null,null,null,null,null,null,null,null,null,null,null,null,null,null,null,null,null,null,null,null,null,null,null,null,null,null,null,null,null,null,null,null,null,null,null,null,null,null,null,null,null,null,null,null,null,null,null,null,null,null,null,null,null,null,null,null,null,null,null,null,null,null,null,null,null,null,null,null,null,null,null,null,null,null,null,null,null,null,null,null,null,null,null,null,null,null,null,null,null,null,null,null,null,null,null,null,null,null,null,null,null,null,null,null,null,null,null,null,null,null,null,null,null,null,null,null,null,null,null,null,null,null,null,null,null,null,null,null,null,null,null,null,null,null,null,null,null,null,null,null,null,null,null,null,null,null,null,null,null,null,null,null,null,null,null,null,null,null,null,null,null,null,null,null,null,null,null,null,null,597,"大阪朝鮮高級","朝鮮高級"]
[null,null,null,null,null,null,null,null,null,null,null,null,null,null,null,null,null,null,null,null,null,null,null,null,null,null,null,null,null,null,null,null,null,null,null,null,null,null,null,null,null,null,null,null,null,null,null,null,null,null,null,null,null,null,null,null,null,null,null,null,null,null,null,null,null,null,null,null,null,null,null,null,null,null,null,null,null,null,null,null,null,null,null,null,null,null,null,null,null,null,null,null,null,null,null,null,null,null,null,null,null,null,null,null,null,null,null,null,null,null,null,null,null,null,null,null,null,null,null,null,null,null,null,null,null,null,null,null,null,null,null,null,null,null,null,null,null,null,null,null,null,null,null,null,null,null,null,null,null,null,null,null,null,null,null,null,null,null,null,null,null,null,null,null,null,null,null,null,null,null,null,null,null,null,null,null,null,null,null,null,null,null,null,null,null,null,null,null,null,null,null,null,null,null,598,"大阪府立大工業高専","府大工専"]

{"sheet":"申込","index":2,"n_rows":847,"n_cols":64,"rows_kept":847,"cut":false,"hidden":false,"merged":[[850,34,851,37],[846,59,848,61],[846,22,846,23],[852,2,853,15],[852,16,853,16],[852,17,853,21],[852,22,853,27],[846,2,848,5],[842,2,844,5],[845,2,845,5],[839,6,840,12],[839,13,840,20],[852,48,853,50],[852,51,853,65],[852,38,853,47],[850,38,851,65],[829,22,830,27],[829,28,830,28],[833,29,834,36],[846,62,848,62],[846,63,848,65],[829,51,830,65],[842,25,844,34],[847,22,848,23],[852,28,853,28],[850,28,851,28],[852,34,853,37],[850,22,851,27],[852,29,853,33],[850,29,851,33],[846,49,848,53],[850,2,851,15],[850,16,851,16],[850,17,851,21],[849,2,849,65],[842,62,844,65],[842,50,844,61],[845,24,845,37],[833,37,834,37],[837,14,838,49],[846,41,848,43],[845,41,845,43],[842,47,844,49],[827,38,828,65],[846,38,848,40],[842,35,844,46],[829,48,830,50],[841,50,841,65],[822,22,822,23],[839,21,840,24],[829,29,830,33],[833,28,834,28],[829,2,830,15],[829,16,830,16],[829,17,830,21],[827,28,828,28],[822,2,822,5],[822,6,822,7],[839,2,840,5],[841,2,841,5],[841,6,841,34],[841,35,841,49],[845,22,845,23],[839,25,840,65],[823,63,825,65],[835,2,836,10],[845,54,845,65],[845,8,845,21],[847,6,848,7],[846,8,848,21],[822,49,822,53],[822,41,822,43],[846,24,848,37],[823,44,825,48],[827,34,828,37],[823,38,825,40],[822,38,822,40],[823,59,825,61],[822,54,822,65],[837,54,838,65],[823,62,825,62],[845,6,845,7],[846,6,846,7],[842,6,844,24],[845,44,845,48],[846,44,848,48],[845,38,845,40],[829,38,830,47],[829,34,830,37],[846,54,848,57],[846,58,848,58],[845,49,845,53],[827,2,828,15],[827,16,828,16],[826,2,826,65],[823,24,825,37],[816,6,817,12],[823,6,823,7],[823,8,825,21],[824,6,825,7],[827,29,828,33],[823,22,823,23],[824,22,825,23],[827,17,828,21],[822,8,822,21],[819,2,821,5],[818,2,818,5],[819,6,821,24],[823,54,825,57],[819,35,821,46],[823,41,825,43],[819,25,821,34],[822,44,822,48],[823,49,825,53],[823,2,825,5],[827,22,828,27],[823,58,825,58],[800,63,802,65],[800,49,802,53],[814,14,815,49],[804,22,805,27],[804,38,805,65],[800,54,802,57],[814,54,815,65],[812,2,813,10],[810,28,811,28],[810,29,811,36],[800,6,800,7],[800,8,802,21],[803,2,803,65],[804,2,805,15],[800,38,802,40],[819,47,821,49],[818,6,818,34],[806,29,807,33],[810,37,811,37],[816,13,817,20],[819,62,821,65],[819,50,821,61],[804,29,805,33],[806,48,807,50],[800,44,802,48],[816,21,817,24],[816,25,817,65],[822,24,822,37],[818,35,818,49],[818,50,818,65],[816,2,817,5],[806,34,807,37],[806,28,807,28],[804,16,805,16],[804,17,805,21],[796,2,798,5],[793,6,794,12],[795,2,795,5],[806,22,807,27],[800,22,800,23],[796,50,798,61],[791,54,792,65],[795,6,795,34],[791,14,792,49],[799,6,799,7],[801,22,802,23],[800,41,802,43],[800,58,802,58],[800,59,802,61],[796,62,798,65],[806,16,807,16],[804,28,805,28],[804,34,805,37],[806,17,807,21],[799,41,799,43],[806,2,807,15],[806,38,807,47],[799,49,799,53],[793,13,794,20],[799,54,799,65],[806,51,807,65],[800,62,802,62],[800,2,802,5],[799,24,799,37],[800,24,802,37],[801,6,802,7],[799,2,799,5],[799,22,799,23],[793,2,794,5],[781,28,782,28],[781,34,782,37],[783,17,784,21],[793,21,794,24],[783,28,784,28],[783,22,784,27],[783,29,784,33],[783,16,784,16],[783,34,784,37],[778,6,779,7],[778,22,779,23],[796,6,798,24],[796,35,798,46],[795,35,795,49],[799,44,799,48],[799,8,799,21],[777,41,779,43],[799,38,799,40],[796,47,798,49],[787,37,788,37],[783,2,784,15],[796,25,798,34],[776,44,776,48],[776,24,776,37],[776,41,776,43],[789,2,790,10],[777,8,779,21],[776,8,776,21],[781,29,782,33],[787,29,788,36],[777,24,779,37],[776,49,776,53],[776,38,776,40],[783,38,784,47],[787,28,788,28],[776,22,776,23],[781,16,782,16],[783,51,784,65],[777,58,779,58],[781,22,782,27],[781,38,782,65],[777,63,779,65],[777,54,779,57],[777,59,779,61],[777,2,779,5],[795,50,795,65],[777,62,779,62],[777,38,779,40],[777,49,779,53],[777,44,779,48],[793,25,794,65],[783,48,784,50],[777,22,777,23],[781,17,782,21],[781,2,782,15],[780,2,780,65],[758,16,759,16],[768,14,769,49],[766,2,767,10],[770,2,771,5],[770,25,771,65],[773,25,775,34],[772,50,772,65],[772,6,772,34],[773,47,775,49],[772,2,772,5],[760,22,761,27],[760,34,761,37],[764,28,765,28],[764,29,765,36],[760,29,761,33],[770,6,771,12],[773,62,775,65],[773,50,775,61],[776,2,776,5],[777,6,777,7],[776,6,776,7],[773,6,775,24],[776,54,776,65],[768,54,769,65],[772,35,772,49],[754,63,756,65],[754,44,756,48],[760,48,761,50],[760,51,761,65],[758,38,759,65],[757,2,757,65],[758,22,759,27],[754,59,756,61],[754,58,756,58],[760,38,761,47],[754,62,756,62],[754,49,756,53],[754,54,756,57],[754,24,756,37],[754,38,756,40],[758,2,759,15],[773,2,775,5],[764,37,765,37],[760,28,761,28],[773,35,775,46],[755,6,756,7],[755,22,756,23],[754,8,756,21],[754,22,754,23],[760,2,761,15],[758,17,759,21],[760,16,761,16],[760,17,761,21],[770,13,771,20],[770,21,771,24],[747,6,748,12],[753,2,753,5],[750,6,752,24],[753,8,753,21],[753,22,753,23],[749,6,749,34],[747,21,748,24],[753,6,753,7],[750,2,752,5],[758,29,759,33],[753,24,753,37],[753,38,753,40],[754,2,756,5],[754,6,754,7],[750,35,752,46],[758,28,759,28],[758,34,759,37],[754,41,756,43],[753,41,753,43],[730,2,730,5],[730,6,730,7],[730,44,730,48],[730,49,730,53],[730,8,730,21],[727,47,729,49],[745,54,746,65],[753,49,753,53],[745,14,746,49],[737,28,738,28],[737,29,738,33],[737,22,738,27],[737,38,738,47],[741,28,742,28],[747,25,748,65],[731,59,733,61],[731,49,733,53],[737,51,738,65],[741,29,742,36],[741,37,742,37],[737,34,738,37],[753,44,753,48],[749,35,749,49],[753,54,753,65],[750,50,752,61],[750,62,752,65],[747,13,748,20],[749,50,749,65],[750,25,752,34],[750,47,752,49],[749,2,749,5],[747,2,748,5],[731,58,733,58],[731,2,733,5],[731,6,731,7],[731,8,733,21],[731,54,733,57],[743,2,744,10],[737,17,738,21],[731,24,733,37],[731,44,733,48],[735,28,736,28],[735,34,736,37],[735,38,736,65],[735,22,736,27],[731,22,731,23],[731,63,733,65],[737,48,738,50],[731,62,733,62],[737,2,738,15],[737,16,738,16],[722,14,723,49],[718,37,719,37],[714,29,715,33],[714,34,715,37],[714,38,715,47],[714,48,715,50],[718,29,719,36],[735,16,736,16],[731,38,733,40],[712,34,713,37],[735,29,736,33],[708,2,710,5],[709,6,710,7],[714,2,715,15],[714,16,715,16],[714,17,715,21],[714,22,715,27],[732,6,733,7],[732,22,733,23],[735,17,736,21],[724,6,725,12],[724,13,725,20],[730,41,730,43],[726,6,726,34],[730,22,730,23],[727,25,729,34],[730,38,730,40],[734,2,734,65],[735,2,736,15],[724,2,725,5],[724,21,725,24],[730,24,730,37],[714,51,715,65],[722,54,723,65],[731,41,733,43],[726,35,726,49],[730,54,730,65],[703,50,703,65],[708,24,710,37],[726,50,726,65],[727,2,729,5],[726,2,726,5],[727,6,729,24],[727,50,729,61],[727,62,729,65],[724,25,725,65],[708,6,708,7],[712,22,713,27],[709,22,710,23],[718,28,719,28],[712,28,713,28],[708,8,710,21],[712,2,713,15],[712,16,713,16],[711,2,711,65],[712,38,713,65],[708,63,710,65],[708,49,710,53],[708,41,710,43],[708,58,710,58],[708,38,710,40],[714,28,715,28],[727,35,729,46],[720,2,721,10],[712,29,713,33],[712,17,713,21],[708,44,710,48],[691,17,692,21],[691,22,692,27],[699,14,700,49],[701,25,702,65],[691,2,692,15],[703,35,703,49],[708,22,708,23],[707,54,707,65],[707,38,707,40],[703,6,703,34],[704,6,706,24],[704,25,706,34],[704,47,706,49],[707,22,707,23],[704,50,706,61],[691,51,692,65],[703,2,703,5],[704,2,706,5],[691,28,692,28],[691,16,692,16],[701,2,702,5],[701,6,702,12],[695,28,696,28],[695,29,696,36],[695,37,696,37],[708,59,710,61],[691,34,692,37],[691,38,692,47],[691,48,692,50],[688,2,688,65],[689,17,690,21],[689,22,690,27],[686,6,687,7],[689,2,690,15],[689,28,690,28],[691,29,692,33],[701,13,702,20],[701,21,702,24],[708,62,710,62],[708,54,710,57],[697,2,698,10],[707,2,707,5],[707,6,707,7],[707,8,707,21],[704,35,706,46],[707,24,707,37],[707,44,707,48],[707,41,707,43],[707,49,707,53],[704,62,706,65],[699,54,700,65],[666,34,667,37],[689,34,690,37],[689,16,690,16],[684,22,684,23],[684,24,684,37],[668,29,669,33],[672,29,673,36],[666,17,667,21],[666,22,667,27],[686,22,687,23],[685,49,687,53],[685,62,687,62],[684,2,684,5],[680,6,680,34],[680,35,680,49],[680,2,680,5],[666,28,667,28],[666,29,667,33],[685,2,687,5],[685,6,685,7],[685,8,687,21],[685,22,685,23],[684,8,684,21],[684,6,684,7],[689,38,690,65],[676,54,677,65],[680,50,680,65],[685,41,687,43],[684,38,684,40],[678,25,679,65],[681,47,683,49],[689,29,690,33],[668,51,669,65],[685,63,687,65],[685,59,687,61],[685,44,687,48],[685,54,687,57],[685,58,687,58],[681,35,683,46],[672,37,673,37],[668,34,669,37],[685,24,687,37],[668,16,669,16],[668,48,669,50],[668,38,669,47],[668,2,669,15],[668,28,669,28],[668,22,669,27],[678,2,679,5],[678,6,679,12],[678,13,679,20],[681,62,683,65],[681,2,683,5],[681,6,683,24],[681,25,683,34],[678,21,679,24],[676,14,677,49],[674,2,675,10],[668,17,669,21],[685,38,687,40],[665,2,665,65],[662,63,664,65],[684,41,684,43],[684,44,684,48],[684,49,684,53],[684,54,684,65],[681,50,683,61],[662,62,664,62],[662,41,664,43],[662,54,664,57],[662,49,664,53],[666,16,667,16],[645,38,646,47],[645,48,646,50],[639,41,641,43],[643,38,644,65],[662,58,664,58],[662,8,664,21],[662,22,662,23],[662,44,664,48],[643,16,644,16],[662,24,664,37],[661,41,661,43],[666,2,667,15],[662,38,664,40],[662,2,664,5],[666,38,667,65],[662,6,662,7],[663,6,664,7],[663,22,664,23],[662,59,664,61],[672,28,673,28],[661,2,661,5],[655,25,656,65],[643,29,644,33],[643,34,644,37],[643,17,644,21],[661,22,661,23],[653,54,654,65],[658,47,660,49],[658,25,660,34],[658,6,660,24],[655,6,656,12],[655,13,656,20],[655,21,656,24],[658,62,660,65],[653,14,654,49],[658,35,660,46],[661,54,661,65],[661,8,661,21],[661,38,661,40],[657,50,657,65],[661,44,661,48],[661,49,661,53],[658,50,660,61],[657,35,657,49],[661,24,661,37],[657,2,657,5],[658,2,660,5],[657,6,657,34],[655,2,656,5],[616,54,618,57],[622,2,623,15],[616,41,618,43],[635,2,637,5],[638,2,638,5],[642,2,642,65],[645,51,646,65],[645,28,646,28],[639,63,641,65],[635,25,637,34],[638,24,638,37],[651,2,652,10],[649,28,650,28],[649,29,650,36],[638,41,638,43],[634,6,634,34],[632,21,633,24],[632,25,633,65],[634,50,634,65],[634,35,634,49],[632,13,633,20],[649,37,650,37],[643,2,644,15],[643,28,644,28],[639,58,641,58],[639,59,641,61],[639,2,641,5],[639,6,639,7],[639,44,641,48],[639,38,641,40],[645,29,646,33],[620,34,621,37],[638,38,638,40],[638,44,638,48],[645,2,646,15],[645,16,646,16],[638,6,638,7],[638,8,638,21],[638,22,638,23],[628,2,629,10],[632,2,633,5],[632,6,633,12],[640,6,641,7],[640,22,641,23],[616,2,618,5],[616,6,616,7],[616,22,616,23],[620,16,621,16],[620,2,621,15],[622,34,623,37],[616,8,618,21],[645,34,646,37],[643,22,644,27],[622,28,623,28],[617,6,618,7],[622,48,623,50],[622,51,623,65],[620,38,621,65],[616,24,618,37],[616,58,618,58],[616,62,618,62],[661,6,661,7],[620,22,621,27],[639,24,641,37],[639,22,639,23],[622,22,623,27],[620,17,621,21],[626,28,627,28],[622,16,623,16],[620,28,621,28],[620,29,621,33],[635,6,637,24],[630,14,631,49],[639,49,641,53],[635,50,637,61],[630,54,631,65],[639,8,641,21],[635,47,637,49],[638,49,638,53],[638,54,638,65],[639,54,641,57],[616,63,618,65],[616,59,618,61],[645,17,646,21],[645,22,646,27],[626,29,627,36],[622,17,623,21],[635,35,637,46],[612,6,614,24],[615,2,615,5],[609,21,610,24],[599,34,600,37],[603,28,604,28],[599,28,600,28],[605,2,606,10],[599,51,600,65],[599,29,600,33],[603,29,604,36],[599,17,600,21],[599,2,600,15],[599,16,600,16],[639,62,641,62],[599,38,600,47],[607,54,608,65],[612,62,614,65],[612,35,614,46],[611,35,611,49],[607,14,608,49],[609,25,610,65],[622,38,623,47],[603,37,604,37],[634,2,634,5],[617,22,618,23],[616,44,618,48],[616,38,618,40],[616,49,618,53],[635,62,637,65],[619,2,619,65],[622,29,623,33],[626,37,627,37],[615,54,615,65],[611,50,611,65],[612,47,614,49],[612,50,614,61],[615,49,615,53],[597,2,598,15],[599,48,600,50],[597,16,598,16],[597,17,598,21],[597,29,598,33],[593,44,595,48],[597,34,598,37],[593,59,595,61],[593,62,595,62],[593,58,595,58],[593,38,595,40],[593,49,595,53],[597,38,598,65],[615,41,615,43],[615,38,615,40],[615,22,615,23],[615,24,615,37],[609,13,610,20],[612,25,614,34],[611,6,611,34],[615,6,615,7],[615,44,615,48],[615,8,615,21],[609,2,610,5],[609,6,610,12],[611,2,611,5],[612,2,614,5],[597,28,598,28],[593,24,595,37],[550,17,551,21],[550,22,551,27],[516,21,517,24],[533,29,534,36],[529,29,530,33],[529,34,530,37],[584,14,585,49],[580,37,581,37],[593,22,593,23],[589,2,591,5],[589,6,591,24],[594,6,595,7],[594,22,595,23],[597,22,598,27],[599,22,600,27],[592,6,592,7],[592,8,592,21],[592,22,592,23],[596,2,596,65],[592,38,592,40],[592,24,592,37],[592,2,592,5],[593,63,595,65],[593,8,595,21],[580,28,581,28],[518,2,518,5],[569,6,569,7],[575,2,576,15],[575,16,576,16],[569,2,571,5],[589,50,591,61],[588,35,588,49],[588,6,588,34],[573,22,574,27],[575,17,576,21],[588,2,588,5],[582,2,583,10],[586,21,587,24],[586,2,587,5],[580,29,581,36],[542,47,544,49],[542,50,544,61],[569,44,571,48],[539,6,540,12],[545,24,545,37],[568,2,568,5],[568,6,568,7],[568,8,568,21],[565,6,567,24],[568,24,568,37],[565,35,567,46],[556,28,557,28],[565,2,567,5],[565,50,567,61],[550,29,551,33],[550,34,551,37],[545,38,545,40],[546,41,548,43],[589,25,591,34],[586,25,587,65],[589,47,591,49],[589,35,591,46],[588,50,588,65],[358,25,360,34],[49,35,51,46],[62,29,63,36],[84,28,85,28],[74,49,74,53],[74,8,74,21],[74,22,74,23],[52,6,52,7],[550,2,551,15],[506,51,507,65],[516,2,517,5],[516,6,517,12],[516,13,517,20],[512,2,513,10],[523,8,525,21],[522,2,522,5],[522,38,522,40],[510,29,511,36],[54,22,55,23],[53,63,55,65],[53,44,55,48],[70,35,70,49],[74,38,74,40],[75,44,77,48],[141,2,143,5],[570,6,571,7],[573,2,574,15],[52,22,52,23],[53,24,55,37],[52,24,52,37],[49,50,51,61],[22,6,23,7],[17,22,17,23],[12,22,12,23],[10,6,11,7],[13,22,13,23],[16,8,16,21],[8,24,8,37],[7,2,7,5],[20,6,20,7],[17,8,19,21],[16,41,19,43],[12,49,15,53],[4,50,6,61],[7,54,7,65],[7,49,7,53],[12,58,15,58],[12,59,15,61],[8,59,11,61],[10,22,11,23],[16,24,16,37],[20,24,20,37],[8,2,11,5],[16,2,19,5],[12,2,15,5],[9,8,11,21],[9,22,9,23],[16,22,16,23],[13,6,13,7],[21,6,21,7],[21,8,23,21],[8,22,8,23],[13,8,15,21],[7,38,7,40],[7,41,7,43],[7,6,7,37],[4,25,6,34],[7,44,7,48],[8,38,11,40],[8,62,11,62],[1,2,2,5],[3,2,3,5],[4,2,6,5],[1,6,2,10],[3,6,3,34],[4,6,6,24],[1,15,2,50],[4,35,6,46],[21,22,21,23],[12,44,15,48],[1,54,2,65],[14,6,15,7],[20,2,23,5],[18,6,19,7],[8,8,8,21],[12,8,12,21],[8,6,8,7],[12,6,12,7],[9,6,9,7],[16,58,19,58],[8,58,11,58],[12,62,15,62],[16,44,19,48],[20,59,23,61],[13,24,15,37],[14,22,15,23],[16,6,16,7],[20,22,20,23],[21,24,23,37],[22,22,23,23],[20,62,23,62],[3,35,3,49],[3,50,3,65],[12,38,15,40],[12,63,15,65],[20,8,20,21],[12,54,15,57],[16,63,19,65],[20,63,23,65],[17,24,19,37],[18,22,19,23],[12,41,15,43],[12,24,12,37],[4,62,6,65],[8,63,11,65],[8,44,11,48],[9,24,11,37],[8,49,11,53],[8,41,11,43],[8,54,11,57],[4,47,6,49],[16,49,19,53],[20,49,23,53],[16,62,19,62],[20,44,23,48],[20,41,23,43],[16,59,19,61],[20,38,23,40],[16,38,19,40],[74,6,74,7],[75,59,77,61],[75,62,77,62],[53,41,55,43],[66,14,67,49],[62,28,63,28],[53,38,55,40],[74,44,74,48],[74,54,74,65],[71,50,73,61],[71,62,73,65],[66,54,67,65],[53,62,55,62],[70,50,70,65],[53,59,55,61],[53,49,55,53],[74,24,74,37],[20,54,23,57],[20,58,23,58],[16,54,19,57],[44,14,45,49],[48,35,48,49],[49,25,51,34],[48,50,48,65],[46,25,47,65],[52,41,52,43],[44,54,45,65],[46,13,47,20],[52,8,52,21],[26,28,27,28],[119,2,121,5],[97,63,99,65],[75,38,77,40],[75,41,77,43],[75,58,77,58],[97,41,99,43],[97,24,99,37],[97,6,97,7],[93,2,95,5],[96,24,96,37],[71,6,73,24],[54,6,55,7],[68,13,69,20],[75,24,77,37],[71,47,73,49],[93,35,95,46],[74,41,74,43],[75,54,77,57]],"merged_total":2234,"flags":["merged_cut"]}
[]
[null,null,"※抽選番号",null,null,null,{"$f":"IF(入力シート!G6=\"\",\"\",入力シート!G6)","v":""},null,null,null,null,null,null,null,null,{"$f":"入力シート!P6","v":"第７２回　大阪高等学校総合体育大会申込書（２部）"},null,null,null,null,null,null,null,null,null,null,null,null,null,null,null,null,null,null,null,null,null,null,null,null,null,null,null,null,null,null,null,null,null,null,null,null,null,null,{"$f":"NOW()","v":"2017-10-05T09:52:03.120"}]
[]
[null,null,"学校番号",null,null,null,"学　　　　校　　　　名",null,null,null,null,null,null,null,null,null,null,null,null,null,null,null,null,null,null,null,null,null,null,null,null,null,null,null,null,"監督名",null,null,null,null,null,null,null,null,null,null,null,null,null,null,"校長名"]
[null,null,{"$f":"入力シート!$C$9","v":0},null,null,null,{"$f":"入力シート!$G$9","v":""},null,null,null,null,null,null,null,null,null,null,null,null,null,null,null,null,null,null,"高等学校",null,null,null,null,null,null,null,null,null,{"$f":"入力シート!$AJ$9","v":0},null,null,null,null,null,null,null,null,null,null,null,"印",null,null,{"$f":"入力シート!$AY$9","v":0},null,null,null,null,null,null,null,null,null,null,null,"印"]
[]
[]
[null,null,null,null,null,null,"選手名",null,null,null,null,null,null,null,null,null,null,null,null,null,null,null,null,null,null,null,null,null,null,null,null,null,null,null,null,null,null,null,"学年",null,null,"段位",null,null,"体重（kg）",null,null,null,null,"身長（cm）",null,null,null,null,"生年月日（西暦）"]
[null,null,"先鋒",null,null,null,"ふりがな",null,{"$f":"IF(入力シート!I13=\"\",\"\",入力シート!I13)","v":""},null,null,null,null,null,null,null,null,null,null,null,null,null,null,null,{"$f":"IF(入力シート!Y13=\"\",\"\",入力シート!Y13)","v":""},null,null,null,null,null,null,null,null,null,null,null,null,null,{"$f":"IF(入力シート!AM13=\"\",\"\",入力シート!AM13)","v":""},null,null,{"$f":"IF(入力シート!AP13=\"\",\"\",入力シート!AP13)","v":""},null,null,{"$f":"IF(入力シート!AS13=\"\",\"\",入力シート!AS13)","v":""},null,null,null,null,{"$f":"IF(入力シート!AX13=\"\",\"\",入力シート!AX13)","v":""},null,null,null,null,{"$f":"IF(入力シート!BC13=\"\",\"\",入力シート!BC13)","v":""},null,null,null,"・",{"$f":"IF(入力シート!BH13=\"\",\"\",入力シート!BH13)","v":""},null,null,"・",{"$f":"IF(入力シート!BL13=\"\",\"\",入力シート!BL13)","v":""}]
[null,null,null,null,null,null,"（姓）",null,{"$f":"IF(入力シート!I14=\"\",\"\",入力シート!I14)","v":""},null,null,null,null,null,null,null,null,null,null,null,null,null,"（名）",null,{"$f":"IF(入力シート!Y14=\"\",\"\",入力シート!Y14)","v":""}]
[]
[]
[null,null,"中堅",null,null,null,"ふりがな",null,{"$f":"IF(入力シート!I17=\"\",\"\",入力シート!I17)","v":""},null,null,null,null,null,null,null,null,null,null,null,null,null,null,null,{"$f":"IF(入力シート!Y17=\"\",\"\",入力シート!Y17)","v":""},null,null,null,null,null,null,null,null,null,null,null,null,null,{"$f":"IF(入力シート!AM17=\"\",\"\",入力シート!AM17)","v":""},null,null,{"$f":"IF(入力シート!AP17=\"\",\"\",入力シート!AP17)","v":""},null,null,{"$f":"IF(入力シート!AS17=\"\",\"\",入力シート!AS17)","v":""},null,null,null,null,{"$f":"IF(入力シート!AX17=\"\",\"\",入力シート!AX17)","v":""},null,null,null,null,{"$f":"IF(入力シート!BC17=\"\",\"\",入力シート!BC17)","v":""},null,null,null,"・",{"$f":"IF(入力シート!BH17=\"\",\"\",入力シート!BH17)","v":""},null,null,"・",{"$f":"IF(入力シート!BL17=\"\",\"\",入力シート!BL17)","v":""}]
[null,null,null,null,null,null,"（姓）",null,{"$f":"IF(入力シート!I18=\"\",\"\",入力シート!I18)","v":""},null,null,null,null,null,null,null,null,null,null,null,null,null,"（名）",null,{"$f":"IF(入力シート!Y18=\"\",\"\",入力シート!Y18)","v":""}]
[]
[]
[null,null,"大将",null,null,null,"ふりがな",null,{"$f":"IF(入力シート!I21=\"\",\"\",入力シート!I21)","v":""},null,null,null,null,null,null,null,null,null,null,null,null,null,null,null,{"$f":"IF(入力シート!Y21=\"\",\"\",入力シート!Y21)","v":""},null,null,null,null,null,null,null,null,null,null,null,null,null,{"$f":"IF(入力シート!AM21=\"\",\"\",入力シート!AM21)","v":""},null,null,{"$f":"IF(入力シート!AP21=\"\",\"\",入力シート!AP21)","v":""},null,null,{"$f":"IF(入力シート!AS21=\"\",\"\",入力シート!AS21)","v":""},null,null,null,null,{"$f":"IF(入力シート!AX21=\"\",\"\",入力シート!AX21)","v":""},null,null,null,null,{"$f":"IF(入力シート!BC21=\"\",\"\",入力シート!BC21)","v":""},null,null,null,"・",{"$f":"IF(入力シート!BH21=\"\",\"\",入力シート!BH21)","v":""},null,null,"・",{"$f":"IF(入力シート!BL21=\"\",\"\",入力シート!BL21)","v":""}]
[null,null,null,null,null,null,"（姓）",null,{"$f":"IF(入力シート!I22=\"\",\"\",入力シート!I22)","v":""},null,null,null,null,null,null,null,null,null,null,null,null,null,"（名）",null,{"$f":"IF(入力シート!Y22=\"\",\"\",入力シート!Y22)","v":""}]
[]
[]
[null,null,"補欠",null,null,null,"ふりがな",null,{"$f":"IF(入力シート!I25=\"\",\"\",入力シート!I25)","v":""},null,null,null,null,null,null,null,null,null,null,null,null,null,null,null,{"$f":"IF(入力シート!Y25=\"\",\"\",入力シート!Y25)","v":""},null,null,null,null,null,null,null,null,null,null,null,null,null,{"$f":"IF(入力シート!AM25=\"\",\"\",入力シート!AM25)","v":""},null,null,{"$f":"IF(入力シート!AP25=\"\",\"\",入力シート!AP25)","v":""},null,null,{"$f":"IF(入力シート!AS25=\"\",\"\",入力シート!AS25)","v":""},null,null,null,null,{"$f":"IF(入力シート!AX25=\"\",\"\",入力シート!AX25)","v":""},null,null,null,null,{"$f":"IF(入力シート!BC25=\"\",\"\",入力シート!BC25)","v":""},null,null,null,"・",{"$f":"IF(入力シート!BH25=\"\",\"\",入力シート!BH25)","v":""},null,null,"・",{"$f":"IF(入力シート!BL25=\"\",\"\",入力シート!BL25)","v":""}]
[null,null,null,null,null,null,"（姓）",null,{"$f":"IF(入力シート!I26=\"\",\"\",入力シート!I26)","v":""},null,null,null,null,null,null,null,null,null,null,null,null,null,"（名）",null,{"$f":"IF(入力シート!Y26=\"\",\"\",入力シート!Y26)","v":""}]
[]
[]
[]
[]
[null,null,null,null,null,null,null,null,null,null,null,null,null,null,null,null,null,null,null,null,null,null,null,null,null,null,null,null,"（","ｷ　ﾘ　ﾄ　ﾘ",null,null,null,null,null,null,null,"）"]
[]
[]
[]
[]
[]
[]
[]
[]
[]
[]
[]
[]
[]
[]
[]
[]
[]
[null,null,null,null,null,null,null,null,null,null,null,null,null,null,"個　人　試　合　申　込　書",null,null,null,null,null,null,null,null,null,null,null,null,null,null,null,null,null,null,null,null,null,null,null,null,null,null,null,null,null,null,null,null,null,null,null,null,null,null,null,{"$f":"NOW()","v":"2017-10-05T09:52:03.120"}]
[]
[null,null,"※抽選番号",null,null,null,null,null,null,null,null,null,null,60,null,null,null,null,null,null,null,"kg級",null,null,null,{"$f":"入力シート!O47","v":"第７２回　大阪高等学校総合体育大会"}]
[]
[null,null,"学校番号",null,null,null,"学　　　　校　　　　名",null,null,null,null,null,null,null,null,null,null,null,null,null,null,null,null,null,null,null,null,null,null,null,null,null,null,null,null,"監督名",null,null,null,null,null,null,null,null,null,null,null,null,null,null,"校長名"]
[null,null,{"$f":"入力シート!$C$9","v":0},null,null,null,{"$f":"入力シート!$G$9","v":""},null,null,null,null,null,null,null,null,null,null,null,null,null,null,null,null,null,null,"高等学校",null,null,null,null,null,null,null,null,null,{"$f":"入力シート!$AJ$9","v":0},null,null,null,null,null,null,null,null,null,null,null,"印",null,null,{"$f":"入力シート!$AY$9","v":0},null,null,null,null,null,null,null,null,null,null,null,"印"]
[]
[]
[null,null,"ふりがな",null,null,null,null,null,{"$f":"IF(入力シート!I51=\"\",\"\",入力シート!I51)","v":""},null,null,null,null,null,null,null,null,null,null,null,null,null,null,null,{"$f":"IF(入力シート!Y51=\"\",\"\",入力シート!Y51)","v":""},null,null,null,null,null,null,null,null,null,null,null,null,null,"学年",null,null,"段位",null,null,"体重（kg）",null,null,null,null,"身長（cm）",null,null,null,null,"生年月日（西暦）"]
[null,null,"選手名",null,null,null,"（姓）",null,{"$f":"IF(入力シート!I52=\"\",\"\",入力シート!I52)","v":""},null,null,null,null,null,null,null,null,null,null,null,null,null,"（名）",null,{"$f":"IF(入力シート!Y52=\"\",\"\",入力シート!Y52)","v":""},null,null,null,null,null,null,null,null,null,null,null,null,null,{"$f":"IF(入力シート!AM51=\"\",\"\",入力シート!AM51)","v":""},null,null,{"$f":"IF(入力シート!AP51=\"\",\"\",入力シート!AP51)","v":""},null,null,{"$f":"IF(入力シート!AS51=\"\",\"\",入力シート!AS51)","v":""},null,null,null,null,{"$f":"IF(入力シート!AX51=\"\",\"\",入力シート!AX51)","v":""},null,null,null,null,{"$f":"IF(入力シート!BC51=\"\",\"\",入力シート!BC51)","v":""},null,null,null,"・",{"$f":"IF(入力シート!BH51=\"\",\"\",入力シート!BH51)","v":""},null,null,"・",{"$f":"IF(入力シート!BL51=\"\",\"\",入力シート!BL51)","v":""}]
[]
[]
[]
[]
[]
[]
[]
[]
[null,null,null,null,null,null,null,null,null,null,null,null,null,null,null,null,null,null,null,null,null,null,null,null,null,null,null,null,"（","ｷ　ﾘ　ﾄ　ﾘ",null,null,null,null,null,null,null,"）"]
[]
[]
[]
[null,null,null,null,null,null,null,null,null,null,null,null,null,null,"個　人　試　合　申　込　書",null,null,null,null,null,null,null,null,null,null,null,null,null,null,null,null,null,null,null,null,null,null,null,null,null,null,null,null,null,null,null,null,null,null,null,null,null,null,null,{"$f":"NOW()","v":"2017-10-05T09:52:03.120"}]
[]
[null,null,"※抽選番号",null,null,null,null,null,null,null,null,null,null,60,null,null,null,null,null,null,null,"kg級",null,null,null,{"$f":"入力シート!O47","v":"第７２回　大阪高等学校総合体育大会"}]
[]
[null,null,"学校番号",null,null,null,"学　　　　校　　　　名",null,null,null,null,null,null,null,null,null,null,null,null,null,null,null,null,null,null,null,null,null,null,null,null,null,null,null,null,"監督名",null,null,null,null,null,null,null,null,null,null,null,null,null,null,"校長名"]
[null,null,{"$f":"入力シート!$C$9","v":0},null,null,null,{"$f":"入力シート!$G$9","v":""},null,null,null,null,null,null,null,null,null,null,null,null,null,null,null,null,null,null,"高等学校",null,null,null,null,null,null,null,null,null,{"$f":"入力シート!$AJ$9","v":0},null,null,null,null,null,null,null,null,null,null,null,"印",null,null,{"$f":"入力シート!$AY$9","v":0},null,null,null,null,null,null,null,null,null,null,null,"印"]
[]
[]
[null,null,"ふりがな",null,null,null,null,null,{"$f":"IF(入力シート!I55=\"\",\"\",入力シート!I55)","v":""},null,null,null,null,null,null,null,null,null,null,null,null,null,null,null,{"$f":"IF(入力シート!Y55=\"\",\"\",入力シート!Y55)","v":""},null,null,null,null,null,null,null,null,null,null,null,null,null,"学年",null,null,"段位",null,null,"体重（kg）",null,null,null,null,"身長（cm）",null,null,null,null,"生年月日（西暦）"]
[null,null,"選手名",null,null,null,"（姓）",null,{"$f":"IF(入力シート!I56=\"\",\"\",入力シート!I56)","v":""},null,null,null,null,null,null,null,null,null,null,null,null,null,"（名）",null,{"$f":"IF(入力シート!Y56=\"\",\"\",入力シート!Y56)","v":""},null,null,null,null,null,null,null,null,null,null,null,null,null,{"$f":"IF(入力シート!AM55=\"\",\"\",入力シート!AM55)","v":""},null,null,{"$f":"IF(入力シート!AP55=\"\",\"\",入力シート!AP55)","v":""},null,null,{"$f":"IF(入力シート!AS55=\"\",\"\",入力シート!AS55)","v":""},null,null,null,null,{"$f":"IF(入力シート!AX55=\"\",\"\",入力シート!AX55)","v":""},null,null,null,null,{"$f":"IF(入力シート!BC55=\"\",\"\",入力シート!BC55)","v":""},null,null,null,"・",{"$f":"IF(入力シート!BH55=\"\",\"\",入力シート!BH55)","v":""},null,null,"・",{"$f":"IF(入力シート!BL55=\"\",\"\",入力シート!BL55)","v":""}]
[]
[]
[]
[]
[]
[]
[]
[]
[]
[]
[]
[]
[null,null,null,null,null,null,null,null,null,null,null,null,null,null,"個　人　試　合　申　込　書",null,null,null,null,null,null,null,null,null,null,null,null,null,null,null,null,null,null,null,null,null,null,null,null,null,null,null,null,null,null,null,null,null,null,null,null,null,null,null,{"$f":"NOW()","v":"2017-10-05T09:52:03.120"}]
[]
[null,null,"※抽選番号",null,null,null,null,null,null,null,null,null,null,66,null,null,null,null,null,null,null,"kg級",null,null,null,{"$f":"入力シート!O47","v":"第７２回　大阪高等学校総合体育大会"}]
[]
[null,null,"学校番号",null,null,null,"学　　　　校　　　　名",null,null,null,null,null,null,null,null,null,null,null,null,null,null,null,null,null,null,null,null,null,null,null,null,null,null,null,null,"監督名",null,null,null,null,null,null,null,null,null,null,null,null,null,null,"校長名"]
[null,null,{"$f":"入力シート!$C$9","v":0},null,null,null,{"$f":"入力シート!$G$9","v":""},null,null,null,null,null,null,null,null,null,null,null,null,null,null,null,null,null,null,"高等学校",null,null,null,null,null,null,null,null,null,{"$f":"入力シート!$AJ$9","v":0},null,null,null,null,null,null,null,null,null,null,null,"印",null,null,{"$f":"入力シート!$AY$9","v":0},null,null,null,null,null,null,null,null,null,null,null,"印"]
[]
[]
[null,null,"ふりがな",null,null,null,null,null,{"$f":"IF(入力シート!I59=\"\",\"\",入力シート!I59)","v":""},null,null,null,null,null,null,null,null,null,null,null,null,null,null,null,{"$f":"IF(入力シート!Y59=\"\",\"\",入力シート!Y59)","v":""},null,null,null,null,null,null,null,null,null,null,null,null,null,"学年",null,null,"段位",null,null,"体重（kg）",null,null,null,null,"身長（cm）",null,null,null,null,"生年月日（西暦）"]
[null,null,"選手名",null,null,null,"（姓）",null,{"$f":"IF(入力シート!I60=\"\",\"\",入力シート!I60)","v":""},null,null,null,null,null,null,null,null,null,null,null,null,null,"（名）",null,{"$f":"IF(入力シート!Y60=\"\",\"\",入力シート!Y60)","v":""},null,null,null,null,null,null,null,null,null,null,null,null,null,{"$f":"IF(入力シート!AM59=\"\",\"\",入力シート!AM59)","v":""},null,null,{"$f":"IF(入力シート!AP59=\"\",\"\",入力シート!AP59)","v":""},null,null,{"$f":"IF(入力シート!AS59=\"\",\"\",入力シート!AS59)","v":""},null,null,null,null,{"$f":"IF(入力シート!AX59=\"\",\"\",入力シート!AX59)","v":""},null,null,null,null,{"$f":"IF(入力シート!BC59=\"\",\"\",入力シート!BC59)","v":""},null,null,null,"・",{"$f":"IF(入力シート!BH59=\"\",\"\",入力シート!BH59)","v":""},null,null,"・",{"$f":"IF(入力シート!BL59=\"\",\"\",入力シート!BL59)","v":""}]
[]
[]
[]
[]
[]
[]
[]
[]
[null,null,null,null,null,null,null,null,null,null,null,null,null,null,null,null,null,null,null,null,null,null,null,null,null,null,null,null,"（","ｷ　ﾘ　ﾄ　ﾘ",null,null,null,null,null,null,null,"）"]
[]
[]
[]
[null,null,null,null,null,null,null,null,null,null,null,null,null,null,"個　人　試　合　申　込　書",null,null,null,null,null,null,null,null,null,null,null,null,null,null,null,null,null,null,null,null,null,null,null,null,null,null,null,null,null,null,null,null,null,null,null,null,null,null,null,{"$f":"NOW()","v":"2017-10-05T09:52:03.120"}]
[]
[null,null,"※抽選番号",null,null,null,null,null,null,null,null,null,null,66,null,null,null,null,null,null,null,"kg級",null,null,null,{"$f":"入力シート!O47","v":"第７２回　大阪高等学校総合体育大会"}]
[]
[null,null,"学校番号",null,null,null,"学　　　　校　　　　名",null,null,null,null,null,null,null,null,null,null,null,null,null,null,null,null,null,null,null,null,null,null,null,null,null,null,null,null,"監督名",null,null,null,null,null,null,null,null,null,null,null,null,null,null,"校長名"]
[null,null,{"$f":"入力シート!$C$9","v":0},null,null,null,{"$f":"入力シート!$G$9","v":""},null,null,null,null,null,null,null,null,null,null,null,null,null,null,null,null,null,null,"高等学校",null,null,null,null,null,null,null,null,null,{"$f":"入力シート!$AJ$9","v":0},null,null,null,null,null,null,null,null,null,null,null,"印",null,null,{"$f":"入力シート!$AY$9","v":0},null,null,null,null,null,null,null,null,null,null,null,"印"]
[]
[]
[null,null,"ふりがな",null,null,null,null,null,{"$f":"IF(入力シート!I63=\"\",\"\",入力シート!I63)","v":""},null,null,null,null,null,null,null,null,null,null,null,null,null,null,null,{"$f":"IF(入力シート!Y63=\"\",\"\",入力シート!Y63)","v":""},null,null,null,null,null,null,null,null,null,null,null,null,null,"学年",null,null,"段位",null,null,"体重（kg）",null,null,null,null,"身長（cm）",null,null,null,null,"生年月日（西暦）"]
[null,null,"選手名",null,null,null,"（姓）",null,{"$f":"IF(入力シート!I64=\"\",\"\",入力シート!I64)","v":""},null,null,null,null,null,null,null,null,null,null,null,null,null,"（名）",null,{"$f":"IF(入力シート!Y64=\"\",\"\",入力シート!Y64)","v":""},null,null,null,null,null,null,null,null,null,null,null,null,null,{"$f":"IF(入力シート!AM63=\"\",\"\",入力シート!AM63)","v":""},null,null,{"$f":"IF(入力シート!AP63=\"\",\"\",入力シート!AP63)","v":""},null,null,{"$f":"IF(入力シート!AS63=\"\",\"\",入力シート!AS63)","v":""},null,null,null,null,{"$f":"IF(入力シート!AX63=\"\",\"\",入力シート!AX63)","v":""},null,null,null,null,{"$f":"IF(入力シート!BC63=\"\",\"\",入力シート!BC63)","v":""},null,null,null,"・",{"$f":"IF(入力シート!BH63=\"\",\"\",入力シート!BH63)","v":""},null,null,"・",{"$f":"IF(入力シート!BL63=\"\",\"\",入力シート!BL63)","v":""}]
[]
[]
[]
[]
[]
[]
[]
[]
[]
[]
[]
[]
[null,null,null,null,null,null,null,null,null,null,null,null,null,null,"個　人　試　合　申　込　書",null,null,null,null,null,null,null,null,null,null,null,null,null,null,null,null,null,null,null,null,null,null,null,null,null,null,null,null,null,null,null,null,null,null,null,null,null,null,null,{"$f":"NOW()","v":"2017-10-05T09:52:03.120"}]
[]
[null,null,"※抽選番号",null,null,null,null,null,null,null,null,null,null,73,null,null,null,null,null,null,null,"kg級",null,null,null,{"$f":"入力シート!O47","v":"第７２回　大阪高等学校総合体育大会"}]
[]
[null,null,"学校番号",null,null,null,"学　　　　校　　　　名",null,null,null,null,null,null,null,null,null,null,null,null,null,null,null,null,null,null,null,null,null,null,null,null,null,null,null,null,"監督名",null,null,null,null,null,null,null,null,null,null,null,null,null,null,"校長名"]
[null,null,{"$f":"入力シート!$C$9","v":0},null,null,null,{"$f":"入力シート!$G$9","v":""},null,null,null,null,null,null,null,null,null,null,null,null,null,null,null,null,null,null,"高等学校",null,null,null,null,null,null,null,null,null,{"$f":"入力シート!$AJ$9","v":0},null,null,null,null,null,null,null,null,null,null,null,"印",null,null,{"$f":"入力シート!$AY$9","v":0},null,null,null,null,null,null,null,null,null,null,null,"印"]
[]
[]
[null,null,"ふりがな",null,null,null,null,null,{"$f":"IF(入力シート!I67=\"\",\"\",入力シート!I67)","v":""},null,null,null,null,null,null,null,null,null,null,null,null,null,null,null,{"$f":"IF(入力シート!Y67=\"\",\"\",入力シート!Y67)","v":""},null,null,null,null,null,null,null,null,null,null,null,null,null,"学年",null,null,"段位",null,null,"体重（kg）",null,null,null,null,"身長（cm）",null,null,null,null,"生年月日（西暦）"]
[null,null,"選手名",null,null,null,"（姓）",null,{"$f":"IF(入力シート!I68=\"\",\"\",入力シート!I68)","v":""},null,null,null,null,null,null,null,null,null,null,null,null,null,"（名）",null,{"$f":"IF(入力シート!Y68=\"\",\"\",入力シート!Y68)","v":""},null,null,null,null,null,null,null,null,null,null,null,null,null,{"$f":"IF(入力シート!AM67=\"\",\"\",入力シート!AM67)","v":""},null,null,{"$f":"IF(入力シート!AP67=\"\",\"\",入力シート!AP67)","v":""},null,null,{"$f":"IF(入力シート!AS67=\"\",\"\",入力シート!AS67)","v":""},null,null,null,null,{"$f":"IF(入力シート!AX67=\"\",\"\",入力シート!AX67)","v":""},null,null,null,null,{"$f":"IF(入力シート!BC67=\"\",\"\",入力シート!BC67)","v":""},null,null,null,"・",{"$f":"IF(入力シート!BH67=\"\",\"\",入力シート!BH67)","v":""},null,null,"・",{"$f":"IF(入力シート!BL67=\"\",\"\",入力シート!BL67)","v":""}]
[]
[]
[]
[]
[]
[]
[]
[]
[null,null,null,null,null,null,null,null,null,null,null,null,null,null,null,null,null,null,null,null,null,null,null,null,null,null,null,null,"（","ｷ　ﾘ　ﾄ　ﾘ",null,null,null,null,null,null,null,"）"]
[]
[]
[]
[null,null,null,null,null,null,null,null,null,null,null,null,null,null,"個　人　試　合　申　込　書",null,null,null,null,null,null,null,null,null,null,null,null,null,null,null,null,null,null,null,null,null,null,null,null,null,null,null,null,null,null,null,null,null,null,null,null,null,null,null,{"$f":"NOW()","v":"2017-10-05T09:52:03.120"}]
[]
[null,null,"※抽選番号",null,null,null,null,null,null,null,null,null,null,73,null,null,null,null,null,null,null,"kg級",null,null,null,{"$f":"入力シート!O47","v":"第７２回　大阪高等学校総合体育大会"}]
[]
[null,null,"学校番号",null,null,null,"学　　　　校　　　　名",null,null,null,null,null,null,null,null,null,null,null,null,null,null,null,null,null,null,null,null,null,null,null,null,null,null,null,null,"監督名",null,null,null,null,null,null,null,null,null,null,null,null,null,null,"校長名"]
[null,null,{"$f":"入力シート!$C$9","v":0},null,null,null,{"$f":"入力シート!$G$9","v":""},null,null,null,null,null,null,null,null,null,null,null,null,null,null,null,null,null,null,"高等学校",null,null,null,null,null,null,null,null,null,{"$f":"入力シート!$AJ$9","v":0},null,null,null,null,null,null,null,null,null,null,null,"印",null,null,{"$f":"入力シート!$AY$9","v":0},null,null,null,null,null,null,null,null,null,null,null,"印"]
[]
[]
[null,null,"ふりがな",null,null,null,null,null,{"$f":"IF(入力シート!I71=\"\",\"\",入力シート!I71)","v":""},null,null,null,null,null,null,null,null,null,null,null,null,null,null,null,{"$f":"IF(入力シート!Y71=\"\",\"\",入力シート!Y71)","v":""},null,null,null,null,null,null,null,null,null,null,null,null,null,"学年",null,null,"段位",null,null,"体重（kg）",null,null,null,null,"身長（cm）",null,null,null,null,"生年月日（西暦）"]
[null,null,"選手名",null,null,null,"（姓）",null,{"$f":"IF(入力シート!I72=\"\",\"\",入力シート!I72)","v":""},null,null,null,null,null,null,null,null,null,null,null,null,null,"（名）",null,{"$f":"IF(入力シート!Y72=\"\",\"\",入力シート!Y72)","v":""},null,null,null,null,null,null,null,null,null,null,null,null,null,{"$f":"IF(入力シート!AM71=\"\",\"\",入力シート!AM71)","v":""},null,null,{"$f":"IF(入力シート!AP71=\"\",\"\",入力シート!AP71)","v":""},null,null,{"$f":"IF(入力シート!AS71=\"\",\"\",入力シート!AS71)","v":""},null,null,null,null,{"$f":"IF(入力シート!AX71=\"\",\"\",入力シート!AX71)","v":""},null,null,null,null,{"$f":"IF(入力シート!BC71=\"\",\"\",入力シート!BC71)","v":""},null,null,null,"・",{"$f":"IF(入力シート!BH71=\"\",\"\",入力シート!BH71)","v":""},null,null,"・",{"$f":"IF(入力シート!BL71=\"\",\"\",入力シート!BL71)","v":""}]
[]
[]
[]
[]
[]
[]
[]
[]
[]
[]
[]
[]
[null,null,null,null,null,null,null,null,null,null,null,null,null,null,"個　人　試　合　申　込　書",null,null,null,null,null,null,null,null,null,null,null,null,null,null,null,null,null,null,null,null,null,null,null,null,null,null,null,null,null,null,null,null,null,null,null,null,null,null,null,{"$f":"NOW()","v":"2017-10-05T09:52:03.120"}]
[]
[null,null,"※抽選番号",null,null,null,null,null,null,null,null,null,null,81,null,null,null,null,null,null,null,"kg級",null,null,null,{"$f":"入力シート!O47","v":"第７２回　大阪高等学校総合体育大会"}]
[]
[null,null,"学校番号",null,null,null,"学　　　　校　　　　名",null,null,null,null,null,null,null,null,null,null,null,null,null,null,null,null,null,null,null,null,null,null,null,null,null,null,null,null,"監督名",null,null,null,null,null,null,null,null,null,null,null,null,null,null,"校長名"]
[null,null,{"$f":"入力シート!$C$9","v":0},null,null,null,{"$f":"入力シート!$G$9","v":""},null,null,null,null,null,null,null,null,null,null,null,null,null,null,null,null,null,null,"高等学校",null,null,null,null,null,null,null,null,null,{"$f":"入力シート!$AJ$9","v":0},null,null,null,null,null,null,null,null,null,null,null,"印",null,null,{"$f":"入力シート!$AY$9","v":0},null,null,null,null,null,null,null,null,null,null,null,"印"]
[]
[]
[null,null,"ふりがな",null,null,null,null,null,{"$f":"IF(入力シート!I75=\"\",\"\",入力シート!I75)","v":""},null,null,null,null,null,null,null,null,null,null,null,null,null,null,null,{"$f":"IF(入力シート!Y75=\"\",\"\",入力シート!Y75)","v":""},null,null,null,null,null,null,null,null,null,null,null,null,null,"学年",null,null,"段位",null,null,"体重（kg）",null,null,null,null,"身長（cm）",null,null,null,null,"生年月日（西暦）"]
[null,null,"選手名",null,null,null,"（姓）",null,{"$f":"IF(入力シート!I76=\"\",\"\",入力シート!I76)","v":""},null,null,null,null,null,null,null,null,null,null,null,null,null,"（名）",null,{"$f":"IF(入力シート!Y76=\"\",\"\",入力シート!Y76)","v":""},null,null,null,null,null,null,null,null,null,null,null,null,null,{"$f":"IF(入力シート!AM75=\"\",\"\",入力シート!AM75)","v":""},null,null,{"$f":"IF(入力シート!AP75=\"\",\"\",入力シート!AP75)","v":""},null,null,{"$f":"IF(入力シート!AS75=\"\",\"\",入力シート!AS75)","v":""},null,null,null,null,{"$f":"IF(入力シート!AX75=\"\",\"\",入力シート!AX75)","v":""},null,null,null,null,{"$f":"IF(入力シート!BC75=\"\",\"\",入力シート!BC75)","v":""},null,null,null,"・",{"$f":"IF(入力シート!BH75=\"\",\"\",入力シート!BH75)","v":""},null,null,"・",{"$f":"IF(入力シート!BL75=\"\",\"\",入力シート!BL75)","v":""}]
[]
[]
[]
[]
[]
[]
[]
[]
[null,null,null,null,null,null,null,null,null,null,null,null,null,null,null,null,null,null,null,null,null,null,null,null,null,null,null,null,"（","ｷ　ﾘ　ﾄ　ﾘ",null,null,null,null,null,null,null,"）"]
[]
[]
[]
[null,null,null,null,null,null,null,null,null,null,null,null,null,null,"個　人　試　合　申　込　書",null,null,null,null,null,null,null,null,null,null,null,null,null,null,null,null,null,null,null,null,null,null,null,null,null,null,null,null,null,null,null,null,null,null,null,null,null,null,null,{"$f":"NOW()","v":"2017-10-05T09:52:03.120"}]
[]
[null,null,"※抽選番号",null,null,null,null,null,null,null,null,null,null,81,null,null,null,null,null,null,null,"kg級",null,null,null,{"$f":"入力シート!O47","v":"第７２回　大阪高等学校総合体育大会"}]
[]
[null,null,"学校番号",null,null,null,"学　　　　校　　　　名",null,null,null,null,null,null,null,null,null,null,null,null,null,null,null,null,null,null,null,null,null,null,null,null,null,null,null,null,"監督名",null,null,null,null,null,null,null,null,null,null,null,null,null,null,"校長名"]
[null,null,{"$f":"入力シート!$C$9","v":0},null,null,null,{"$f":"入力シート!$G$9","v":""},null,null,null,null,null,null,null,null,null,null,null,null,null,null,null,null,null,null,"高等学校",null,null,null,null,null,null,null,null,null,{"$f":"入力シート!$AJ$9","v":0},null,null,null,null,null,null,null,null,null,null,null,"印",null,null,{"$f":"入力シート!$AY$9","v":0},null,null,null,null,null,null,null,null,null,null,null,"印"]
[]
[]
[null,null,"ふりがな",null,null,null,null,null,{"$f":"IF(入力シート!I79=\"\",\"\",入力シート!I79)","v":""},null,null,null,null,null,null,null,null,null,null,null,null,null,null,null,{"$f":"IF(入力シート!Y79=\"\",\"\",入力シート!Y79)","v":""},null,null,null,null,null,null,null,null,null,null,null,null,null,"学年",null,null,"段位",null,null,"体重（kg）",null,null,null,null,"身長（cm）",null,null,null,null,"生年月日（西暦）"]
[null,null,"選手名",null,null,null,"（姓）",null,{"$f":"IF(入力シート!I80=\"\",\"\",入力シート!I80)","v":""},null,null,null,null,null,null,null,null,null,null,null,null,null,"（名）",null,{"$f":"IF(入力シート!Y80=\"\",\"\",入力シート!Y80)","v":""},null,null,null,null,null,null,null,null,null,null,null,null,null,{"$f":"IF(入力シート!AM79=\"\",\"\",入力シート!AM79)","v":""},null,null,{"$f":"IF(入力シート!AP79=\"\",\"\",入力シート!AP79)","v":""},null,null,{"$f":"IF(入力シート!AS79=\"\",\"\",入力シート!AS79)","v":""},null,null,null,null,{"$f":"IF(入力シート!AX79=\"\",\"\",入力シート!AX79)","v":""},null,null,null,null,{"$f":"IF(入力シート!BC79=\"\",\"\",入力シート!BC79)","v":""},null,null,null,"・",{"$f":"IF(入力シート!BH79=\"\",\"\",入力シート!BH79)","v":""},null,null,"・",{"$f":"IF(入力シート!BL79=\"\",\"\",入力シート!BL79)","v":""}]
[]
[]
[]
[]
[]
[]
[]
[]
[]
[]
[]
[]
[]
[null,null,null,null,null,null,null,null,null,null,null,null,null,null,"個　人　試　合　申　込　書",null,null,null,null,null,null,null,null,null,null,null,null,null,null,null,null,null,null,null,null,null,null,null,null,null,null,null,null,null,null,null,null,null,null,null,null,null,null,null,{"$f":"NOW()","v":"2017-10-05T09:52:03.120"}]
[]
[null,null,"※抽選番号",null,null,null,null,null,null,null,null,null,null,90,null,null,null,null,null,null,null,"kg級",null,null,null,{"$f":"入力シート!O47","v":"第７２回　大阪高等学校総合体育大会"}]
[]
[null,null,"学校番号",null,null,null,"学　　　　校　　　　名",null,null,null,null,null,null,null,null,null,null,null,null,null,null,null,null,null,null,null,null,null,null,null,null,null,null,null,null,"監督名",null,null,null,null,null,null,null,null,null,null,null,null,null,null,"校長名"]
[null,null,{"$f":"入力シート!$C$9","v":0},null,null,null,{"$f":"入力シート!$G$9","v":""},null,null,null,null,null,null,null,null,null,null,null,null,null,null,null,null,null,null,"高等学校",null,null,null,null,null,null,null,null,null,{"$f":"入力シート!$AJ$9","v":0},null,null,null,null,null,null,null,null,null,null,null,"印",null,null,{"$f":"入力シート!$AY$9","v":0},null,null,null,null,null,null,null,null,null,null,null,"印"]
[]
[]
[null,null,"ふりがな",null,null,null,null,null,{"$f":"IF(入力シート!I83=\"\",\"\",入力シート!I83)","v":""},null,null,null,null,null,null,null,null,null,null,null,null,null,null,null,{"$f":"IF(入力シート!Y83=\"\",\"\",入力シート!Y83)","v":""},null,null,null,null,null,null,null,null,null,null,null,null,null,"学年",null,null,"段位",null,null,"体重（kg）",null,null,null,null,"身長（cm）",null,null,null,null,"生年月日（西暦）"]
[null,null,"選手名",null,null,null,"（姓）",null,{"$f":"IF(入力シート!I84=\"\",\"\",入力シート!I84)","v":""},null,null,null,null,null,null,null,null,null,null,null,null,null,"（名）",null,{"$f":"IF(入力シート!Y84=\"\",\"\",入力シート!Y84)","v":""},null,null,null,null,null,null,null,null,null,null,null,null,null,{"$f":"IF(入力シート!AM83=\"\",\"\",入力シート!AM83)","v":""},null,null,{"$f":"IF(入力シート!AP83=\"\",\"\",入力シート!AP83)","v":""},null,null,{"$f":"IF(入力シート!AS83=\"\",\"\",入力シート!AS83)","v":""},null,null,null,null,{"$f":"IF(入力シート!AX83=\"\",\"\",入力シート!AX83)","v":""},null,null,null,null,{"$f":"IF(入力シート!BC83=\"\",\"\",入力シート!BC83)","v":""},null,null,null,"・",{"$f":"IF(入力シート!BH83=\"\",\"\",入力シート!BH83)","v":""},null,null,"・",{"$f":"IF(入力シート!BL83=\"\",\"\",入力シート!BL83)","v":""}]
[]
[]
[]
[]
[]
[]
[]
[]
[null,null,null,null,null,null,null,null,null,null,null,null,null,null,null,null,null,null,null,null,null,null,null,null,null,null,null,null,"（","ｷ　ﾘ　ﾄ　ﾘ",null,null,null,null,null,null,null,"）"]
[]
[]
[]
[null,null,null,null,null,null,null,null,null,null,null,null,null,null,"個　人　試　合　申　込　書",null,null,null,null,null,null,null,null,null,null,null,null,null,null,null,null,null,null,null,null,null,null,null,null,null,null,null,null,null,null,null,null,null,null,null,null,null,null,null,{"$f":"NOW()","v":"2017-10-05T09:52:03.120"}]
[]
[null,null,"※抽選番号",null,null,null,null,null,null,null,null,null,null,90,null,null,null,null,null,null,null,"kg級",null,null,null,{"$f":"入力シート!O47","v":"第７２回　大阪高等学校総合体育大会"}]
[]
[null,null,"学校番号",null,null,null,"学　　　　校　　　　名",null,null,null,null,null,null,null,null,null,null,null,null,null,null,null,null,null,null,null,null,null,null,null,null,null,null,null,null,"監督名",null,null,null,null,null,null,null,null,null,null,null,null,null,null,"校長名"]
[null,null,{"$f":"入力シート!$C$9","v":0},null,null,null,{"$f":"入力シート!$G$9","v":""},null,null,null,null,null,null,null,null,null,null,null,null,null,null,null,null,null,null,"高等学校",null,null,null,null,null,null,null,null,null,{"$f":"入力シート!$AJ$9","v":0},null,null,null,null,null,null,null,null,null,null,null,"印",null,null,{"$f":"入力シート!$AY$9","v":0},null,null,null,null,null,null,null,null,null,null,null,"印"]
[]
[]
[null,null,"ふりがな",null,null,null,null,null,{"$f":"IF(入力シート!I87=\"\",\"\",入力シート!I87)","v":""},null,null,null,null,null,null,null,null,null,null,null,null,null,null,null,{"$f":"IF(入力シート!Y87=\"\",\"\",入力シート!Y87)","v":""},null,null,null,null,null,null,null,null,null,null,null,null,null,"学年",null,null,"段位",null,null,"体重（kg）",null,null,null,null,"身長（cm）",null,null,null,null,"生年月日（西暦）"]
[null,null,"選手名",null,null,null,"（姓）",null,{"$f":"IF(入力シート!I88=\"\",\"\",入力シート!I88)","v":""},null,null,null,null,null,null,null,null,null,null,null,null,null,"（名）",null,{"$f":"IF(入力シート!Y88=\"\",\"\",入力シート!Y88)","v":""},null,null,null,null,null,null,null,null,null,null,null,null,null,{"$f":"IF(入力シート!AM87=\"\",\"\",入力シート!AM87)","v":""},null,null,{"$f":"IF(入力シート!AP87=\"\",\"\",入力シート!AP87)","v":""},null,null,{"$f":"IF(入力シート!AS87=\"\",\"\",入力シート!AS87)","v":""},null,null,null,null,{"$f":"IF(入力シート!AX87=\"\",\"\",入力シート!AX87)","v":""},null,null,null,null,{"$f":"IF(入力シート!BC87=\"\",\"\",入力シート!BC87)","v":""},null,null,null,"・",{"$f":"IF(入力シート!BH87=\"\",\"\",入力シート!BH87)","v":""},null,null,"・",{"$f":"IF(入力シート!BL87=\"\",\"\",入力シート!BL87)","v":""}]
[]
[]
[]
[]
[]
[]
[]
[]
[]
[]
[]
[]
[null,null,null,null,null,null,null,null,null,null,null,null,null,null,"個　人　試　合　申　込　書",null,null,null,null,null,null,null,null,null,null,null,null,null,null,null,null,null,null,null,null,null,null,null,null,null,null,null,null,null,null,null,null,null,null,null,null,null,null,null,{"$f":"NOW()","v":"2017-10-05T09:52:03.120"}]
[]
[null,null,"※抽選番号",null,null,null,null,null,null,null,null,null,null,100,null,null,null,null,null,null,null,"kg級",null,null,null,{"$f":"入力シート!O47","v":"第７２回　大阪高等学校総合体育大会"}]
[]
[null,null,"学校番号",null,null,null,"学　　　　校　　　　名",null,null,null,null,null,null,null,null,null,null,null,null,null,null,null,null,null,null,null,null,null,null,null,null,null,null,null,null,"監督名",null,null,null,null,null,null,null,null,null,null,null,null,null,null,"校長名"]
[null,null,{"$f":"入力シート!$C$9","v":0},null,null,null,{"$f":"入力シート!$G$9","v":""},null,null,null,null,null,null,null,null,null,null,null,null,null,null,null,null,null,null,"高等学校",null,null,null,null,null,null,null,null,null,{"$f":"入力シート!$AJ$9","v":0},null,null,null,null,null,null,null,null,null,null,null,"印",null,null,{"$f":"入力シート!$AY$9","v":0},null,null,null,null,null,null,null,null,null,null,null,"印"]
[]
[]
[null,null,"ふりがな",null,null,null,null,null,{"$f":"IF(入力シート!I91=\"\",\"\",入力シート!I91)","v":""},null,null,null,null,null,null,null,null,null,null,null,null,null,null,null,{"$f":"IF(入力シート!Y91=\"\",\"\",入力シート!Y91)","v":""},null,null,null,null,null,null,null,null,null,null,null,null,null,"学年",null,null,"段位",null,null,"体重（kg）",null,null,null,null,"身長（cm）",null,null,null,null,"生年月日（西暦）"]
[null,null,"選手名",null,null,null,"（姓）",null,{"$f":"IF(入力シート!I92=\"\",\"\",入力シート!I92)","v":""},null,null,null,null,null,null,null,null,null,null,null,null,null,"（名）",null,{"$f":"IF(入力シート!Y92=\"\",\"\",入力シート!Y92)","v":""},null,null,null,null,null,null,null,null,null,null,null,null,null,{"$f":"IF(入力シート!AM91=\"\",\"\",入力シート!AM91)","v":""},null,null,{"$f":"IF(入力シート!AP91=\"\",\"\",入力シート!AP91)","v":""},null,null,{"$f":"IF(入力シート!AS91=\"\",\"\",入力シート!AS91)","v":""},null,null,null,null,{"$f":"IF(入力シート!AX91=\"\",\"\",入力シート!AX91)","v":""},null,null,null,null,{"$f":"IF(入力シート!BC91=\"\",\"\",入力シート!BC91)","v":""},null,null,null,"・",{"$f":"IF(入力シート!BH91=\"\",\"\",入力シート!BH91)","v":""},null,null,"・",{"$f":"IF(入力シート!BL91=\"\",\"\",入力シート!BL91)","v":""}]
[]
[]
[]
[]
[]
[]
[]
[]
[null,null,null,null,null,null,null,null,null,null,null,null,null,null,null,null,null,null,null,null,null,null,null,null,null,null,null,null,"（","ｷ　ﾘ　ﾄ　ﾘ",null,null,null,null,null,null,null,"）"]
[]
[]
[]
[null,null,null,null,null,null,null,null,null,null,null,null,null,null,"個　人　試　合　申　込　書",null,null,null,null,null,null,null,null,null,null,null,null,null,null,null,null,null,null,null,null,null,null,null,null,null,null,null,null,null,null,null,null,null,null,null,null,null,null,null,{"$f":"NOW()","v":"2017-10-05T09:52:03.120"}]
[]
[null,null,"※抽選番号",null,null,null,null,null,null,null,null,null,null,100,null,null,null,null,null,null,null,"kg級",null,null,null,{"$f":"入力シート!O47","v":"第７２回　大阪高等学校総合体育大会"}]
[]
[null,null,"学校番号",null,null,null,"学　　　　校　　　　名",null,null,null,null,null,null,null,null,null,null,null,null,null,null,null,null,null,null,null,null,null,null,null,null,null,null,null,null,"監督名",null,null,null,null,null,null,null,null,null,null,null,null,null,null,"校長名"]
[null,null,{"$f":"入力シート!$C$9","v":0},null,null,null,{"$f":"入力シート!$G$9","v":""},null,null,null,null,null,null,null,null,null,null,null,null,null,null,null,null,null,null,"高等学校",null,null,null,null,null,null,null,null,null,{"$f":"入力シート!$AJ$9","v":0},null,null,null,null,null,null,null,null,null,null,null,"印",null,null,{"$f":"入力シート!$AY$9","v":0},null,null,null,null,null,null,null,null,null,null,null,"印"]
[]
[]
[null,null,"ふりがな",null,null,null,null,null,{"$f":"IF(入力シート!I95=\"\",\"\",入力シート!I95)","v":""},null,null,null,null,null,null,null,null,null,null,null,null,null,null,null,{"$f":"IF(入力シート!Y95=\"\",\"\",入力シート!Y95)","v":""},null,null,null,null,null,null,null,null,null,null,null,null,null,"学年",null,null,"段位",null,null,"体重（kg）",null,null,null,null,"身長（cm）",null,null,null,null,"生年月日（西暦）"]
[null,null,"選手名",null,null,null,"（姓）",null,{"$f":"IF(入力シート!I96=\"\",\"\",入力シート!I96)","v":""},null,null,null,null,null,null,null,null,null,null,null,null,null,"（名）",null,{"$f":"IF(入力シート!Y96=\"\",\"\",入力シート!Y96)","v":""},null,null,null,null,null,null,null,null,null,null,null,null,null,{"$f":"IF(入力シート!AM95=\"\",\"\",入力シート!AM95)","v":""},null,null,{"$f":"IF(入力シート!AP95=\"\",\"\",入力シート!AP95)","v":""},null,null,{"$f":"IF(入力シート!AS95=\"\",\"\",入力シート!AS95)","v":""},null,null,null,null,{"$f":"IF(入力シート!AX95=\"\",\"\",入力シート!AX95)","v":""},null,null,null,null,{"$f":"IF(入力シート!BC95=\"\",\"\",入力シート!BC95)","v":""},null,null,null,"・",{"$f":"IF(入力シート!BH95=\"\",\"\",入力シート!BH95)","v":""},null,null,"・",{"$f":"IF(入力シート!BL95=\"\",\"\",入力シート!BL95)","v":""}]
[]
[]
[]
[]
[]
[]
[]
[]
[]
[]
[]
[]
[null,null,null,null,null,null,null,null,null,null,null,null,null,null,"個　人　試　合　申　込　書",null,null,null,null,null,null,null,null,null,null,null,null,null,null,null,null,null,null,null,null,null,null,null,null,null,null,null,null,null,null,null,null,null,null,null,null,null,null,null,{"$f":"NOW()","v":"2017-10-05T09:52:03.120"}]
[]
[null,null,"※抽選番号",null,null,null,null,null,null,null,null,null,null,"+100",null,null,null,null,null,null,null,"kg級",null,null,null,{"$f":"入力シート!O47","v":"第７２回　大阪高等学校総合体育大会"}]
[]
[null,null,"学校番号",null,null,null,"学　　　　校　　　　名",null,null,null,null,null,null,null,null,null,null,null,null,null,null,null,null,null,null,null,null,null,null,null,null,null,null,null,null,"監督名",null,null,null,null,null,null,null,null,null,null,null,null,null,null,"校長名"]
[null,null,{"$f":"入力シート!$C$9","v":0},null,null,null,{"$f":"入力シート!$G$9","v":""},null,null,null,null,null,null,null,null,null,null,null,null,null,null,null,null,null,null,"高等学校",null,null,null,null,null,null,null,null,null,{"$f":"入力シート!$AJ$9","v":0},null,null,null,null,null,null,null,null,null,null,null,"印",null,null,{"$f":"入力シート!$AY$9","v":0},null,null,null,null,null,null,null,null,null,null,null,"印"]
[]
[]
[null,null,"ふりがな",null,null,null,null,null,{"$f":"IF(入力シート!I99=\"\",\"\",入力シート!I99)","v":""},null,null,null,null,null,null,null,null,null,null,null,null,null,null,null,{"$f":"IF(入力シート!Y99=\"\",\"\",入力シート!Y99)","v":""},null,null,null,null,null,null,null,null,null,null,null,null,null,"学年",null,null,"段位",null,null,"体重（kg）",null,null,null,null,"身長（cm）",null,null,null,null,"生年月日（西暦）"]
[null,null,"選手名",null,null,null,"（姓）",null,{"$f":"IF(入力シート!I100=\"\",\"\",入力シート!I100)","v":""},null,null,null,null,null,null,null,null,null,null,null,null,null,"（名）",null,{"$f":"IF(入力シート!Y100=\"\",\"\",入力シート!Y100)","v":""},null,null,null,null,null,null,null,null,null,null,null,null,null,{"$f":"IF(入力シート!AM99=\"\",\"\",入力シート!AM99)","v":""},null,null,{"$f":"IF(入力シート!AP99=\"\",\"\",入力シート!AP99)","v":""},null,null,{"$f":"IF(入力シート!AS99=\"\",\"\",入力シート!AS99)","v":""},null,null,null,null,{"$f":"IF(入力シート!AX99=\"\",\"\",入力シート!AX99)","v":""},null,null,null,null,{"$f":"IF(入力シート!BC99=\"\",\"\",入力シート!BC99)","v":""},null,null,null,"・",{"$f":"IF(入力シート!BH99=\"\",\"\",入力シート!BH99)","v":""},null,null,"・",{"$f":"IF(入力シート!BL99=\"\",\"\",入力シート!BL99)","v":""}]
[]
[]
[]
[]
[]
[]
[]
[]
[null,null,null,null,null,null,null,null,null,null,null,null,null,null,null,null,null,null,null,null,null,null,null,null,null,null,null,null,"（","ｷ　ﾘ　ﾄ　ﾘ",null,null,null,null,null,null,null,"）"]
[]
[]
[]
[null,null,null,null,null,null,null,null,null,null,null,null,null,null,"個　人　試　合　申　込　書",null,null,null,null,null,null,null,null,null,null,null,null,null,null,null,null,null,null,null,null,null,null,null,null,null,null,null,null,null,null,null,null,null,null,null,null,null,null,null,{"$f":"NOW()","v":"2017-10-05T09:52:03.120"}]
[]
[null,null,"※抽選番号",null,null,null,null,null,null,null,null,null,null,"+100",null,null,null,null,null,null,null,"kg級",null,null,null,{"$f":"入力シート!O47","v":"第７２回　大阪高等学校総合体育大会"}]
[]
[null,null,"学校番号",null,null,null,"学　　　　校　　　　名",null,null,null,null,null,null,null,null,null,null,null,null,null,null,null,null,null,null,null,null,null,null,null,null,null,null,null,null,"監督名",null,null,null,null,null,null,null,null,null,null,null,null,null,null,"校長名"]
[null,null,{"$f":"入力シート!$C$9","v":0},null,null,null,{"$f":"入力シート!$G$9","v":""},null,null,null,null,null,null,null,null,null,null,null,null,null,null,null,null,null,null,"高等学校",null,null,null,null,null,null,null,null,null,{"$f":"入力シート!$AJ$9","v":0},null,null,null,null,null,null,null,null,null,null,null,"印",null,null,{"$f":"入力シート!$AY$9","v":0},null,null,null,null,null,null,null,null,null,null,null,"印"]
[]
[]
[null,null,"ふりがな",null,null,null,null,null,{"$f":"IF(入力シート!I103=\"\",\"\",入力シート!I103)","v":""},null,null,null,null,null,null,null,null,null,null,null,null,null,null,null,{"$f":"IF(入力シート!Y103=\"\",\"\",入力シート!Y103)","v":""},null,null,null,null,null,null,null,null,null,null,null,null,null,"学年",null,null,"段位",null,null,"体重（kg）",null,null,null,null,"身長（cm）",null,null,null,null,"生年月日（西暦）"]
[null,null,"選手名",null,null,null,"（姓）",null,{"$f":"IF(入力シート!I104=\"\",\"\",入力シート!I104)","v":""},null,null,null,null,null,null,null,null,null,null,null,null,null,"（名）",null,{"$f":"IF(入力シート!Y104=\"\",\"\",入力シート!Y104)","v":""},null,null,null,null,null,null,null,null,null,null,null,null,null,{"$f":"IF(入力シート!AM103=\"\",\"\",入力シート!AM103)","v":""},null,null,{"$f":"IF(入力シート!AP103=\"\",\"\",入力シート!AP103)","v":""},null,null,{"$f":"IF(入力シート!AS103=\"\",\"\",入力シート!AS103)","v":""},null,null,null,null,{"$f":"IF(入力シート!AX103=\"\",\"\",入力シート!AX103)","v":""},null,null,null,null,{"$f":"IF(入力シート!BC103=\"\",\"\",入力シート!BC103)","v":""},null,null,null,"・",{"$f":"IF(入力シート!BH103=\"\",\"\",入力シート!BH103)","v":""},null,null,"・",{"$f":"IF(入力シート!BL103=\"\",\"\",入力シート!BL103)","v":""}]
[]
[]
[]
[]
[]
[]
[]
[]
[]
[]
[null,null,"男子個人（特別枠）"]
[]
[null,null,null,null,null,null,null,null,null,null,null,null,null,null,"個　人　試　合　申　込　書",null,null,null,null,null,null,null,null,null,null,null,null,null,null,null,null,null,null,null,null,null,null,null,null,null,null,null,null,null,null,null,null,null,null,null,null,null,null,null,{"$f":"NOW()","v":"2017-10-05T09:52:03.120"}]
[]
[null,null,"※抽選番号",null,null,null,null,null,null,null,null,null,null,{"$f":"IF(入力シート!C112=\"\",\"\",入力シート!C112)","v":""},null,null,null,null,null,null,null,"kg級",null,null,null,{"$f":"入力シート!$O$47","v":"第７２回　大阪高等学校総合体育大会"}]
[]
[null,null,"学校番号",null,null,null,"学　　　　校　　　　名",null,null,null,null,null,null,null,null,null,null,null,null,null,null,null,null,null,null,null,null,null,null,null,null,null,null,null,null,"監督名",null,null,null,null,null,null,null,null,null,null,null,null,null,null,"校長名"]
[null,null,{"$f":"入力シート!$C$9","v":0},null,null,null,{"$f":"入力シート!$G$9","v":""},null,null,null,null,null,null,null,null,null,null,null,null,null,null,null,null,null,null,"高等学校",null,null,null,null,null,null,null,null,null,{"$f":"入力シート!$AJ$9","v":0},null,null,null,null,null,null,null,null,null,null,null,"印",null,null,{"$f":"入力シート!$AY$9","v":0},null,null,null,null,null,null,null,null,null,null,null,"印"]
[]
[]
[null,null,"ふりがな",null,null,null,null,null,{"$f":"IF(入力シート!I112=\"\",\"\",入力シート!I112)","v":""},null,null,null,null,null,null,null,null,null,null,null,null,null,null,null,{"$f":"IF(入力シート!Y112=\"\",\"\",入力シート!Y112)","v":""},null,null,null,null,null,null,null,null,null,null,null,null,null,"学年",null,null,"段位",null,null,"体重（kg）",null,null,null,null,"身長（cm）",null,null,null,null,"生年月日（西暦）"]
[null,null,"選手名",null,null,null,"（姓）",null,{"$f":"IF(入力シート!I113=\"\",\"\",入力シート!I113)","v":""},null,null,null,null,null,null,null,null,null,null,null,null,null,"（名）",null,{"$f":"IF(入力シート!Y113=\"\",\"\",入力シート!Y113)","v":""},null,null,null,null,null,null,null,null,null,null,null,null,null,{"$f":"IF(入力シート!AM112=\"\",\"\",入力シート!AM112)","v":""},null,null,{"$f":"IF(入力シート!AP112=\"\",\"\",入力シート!AP112)","v":""},null,null,{"$f":"IF(入力シート!AS112=\"\",\"\",入力シート!AS112)","v":""},null,null,null,null,{"$f":"IF(入力シート!AX112=\"\",\"\",入力シート!AX112)","v":""},null,null,null,null,{"$f":"IF(入力シート!BC112=\"\",\"\",入力シート!BC112)","v":""},null,null,null,"・",{"$f":"IF(入力シート!BH112=\"\",\"\",入力シート!BH112)","v":""},null,null,"・",{"$f":"IF(入力シート!BL112=\"\",\"\",入力シート!BL112)","v":""}]
[]
[]
[]
[]
[]
[]
[]
[]
[]
[null,null,null,null,null,null,null,null,null,null,null,null,null,null,null,null,null,null,null,null,null,null,null,null,null,null,null,null,"（","ｷ　ﾘ　ﾄ　ﾘ",null,null,null,null,null,null,null,"）"]
[]
[null,null,"男子個人（特別枠）"]
[]
[null,null,null,null,null,null,null,null,null,null,null,null,null,null,"個　人　試　合　申　込　書",null,null,null,null,null,null,null,null,null,null,null,null,null,null,null,null,null,null,null,null,null,null,null,null,null,null,null,null,null,null,null,null,null,null,null,null,null,null,null,{"$f":"NOW()","v":"2017-10-05T09:52:03.120"}]
[]
[null,null,"※抽選番号",null,null,null,null,null,null,null,null,null,null,{"$f":"IF(入力シート!C116=\"\",\"\",入力シート!C116)","v":""},null,null,null,null,null,null,null,"kg級",null,null,null,{"$f":"入力シート!$O$47","v":"第７２回　大阪高等学校総合体育大会"}]
[]
[null,null,"学校番号",null,null,null,"学　　　　校　　　　名",null,null,null,null,null,null,null,null,null,null,null,null,null,null,null,null,null,null,null,null,null,null,null,null,null,null,null,null,"監督名",null,null,null,null,null,null,null,null,null,null,null,null,null,null,"校長名"]
[null,null,{"$f":"入力シート!$C$9","v":0},null,null,null,{"$f":"入力シート!$G$9","v":""},null,null,null,null,null,null,null,null,null,null,null,null,null,null,null,null,null,null,"高等学校",null,null,null,null,null,null,null,null,null,{"$f":"入力シート!$AJ$9","v":0},null,null,null,null,null,null,null,null,null,null,null,"印",null,null,{"$f":"入力シート!$AY$9","v":0},null,null,null,null,null,null,null,null,null,null,null,"印"]
[]
[]
[null,null,"ふりがな",null,null,null,null,null,{"$f":"IF(入力シート!I116=\"\",\"\",入力シート!I116)","v":""},null,null,null,null,null,null,null,null,null,null,null,null,null,null,null,{"$f":"IF(入力シート!Y116=\"\",\"\",入力シート!Y116)","v":""},null,null,null,null,null,null,null,null,null,null,null,null,null,"学年",null,null,"段位",null,null,"体重（kg）",null,null,null,null,"身長（cm）",null,null,null,null,"生年月日（西暦）"]
[null,null,"選手名",null,null,null,"（姓）",null,{"$f":"IF(入力シート!I117=\"\",\"\",入力シート!I117)","v":""},null,null,null,null,null,null,null,null,null,null,null,null,null,"（名）",null,{"$f":"IF(入力シート!Y117=\"\",\"\",入力シート!Y117)","v":""},null,null,null,null,null,null,null,null,null,null,null,null,null,{"$f":"IF(入力シート!AM116=\"\",\"\",入力シート!AM116)","v":""},null,null,{"$f":"IF(入力シート!AP116=\"\",\"\",入力シート!AP116)","v":""},null,null,{"$f":"IF(入力シート!AS116=\"\",\"\",入力シート!AS116)","v":""},null,null,null,null,{"$f":"IF(入力シート!AX116=\"\",\"\",入力シート!AX116)","v":""},null,null,null,null,{"$f":"IF(入力シート!BC116=\"\",\"\",入力シート!BC116)","v":""},null,null,null,"・",{"$f":"IF(入力シート!BH116=\"\",\"\",入力シート!BH116)","v":""},null,null,"・",{"$f":"IF(入力シート!BL116=\"\",\"\",入力シート!BL116)","v":""}]
[]
[]
[]
[]
[]
[]
[]
[]
[]
[]
[]
[null,null,"男子個人（特別枠）"]
[]
[null,null,null,null,null,null,null,null,null,null,null,null,null,null,"個　人　試　合　申　込　書",null,null,null,null,null,null,null,null,null,null,null,null,null,null,null,null,null,null,null,null,null,null,null,null,null,null,null,null,null,null,null,null,null,null,null,null,null,null,null,{"$f":"NOW()","v":"2017-10-05T09:52:03.120"}]
[]
[null,null,"※抽選番号",null,null,null,null,null,null,null,null,null,null,{"$f":"IF(入力シート!C120=\"\",\"\",入力シート!C120)","v":""},null,null,null,null,null,null,null,"kg級",null,null,null,{"$f":"入力シート!$O$47","v":"第７２回　大阪高等学校総合体育大会"}]
[]
[null,null,"学校番号",null,null,null,"学　　　　校　　　　名",null,null,null,null,null,null,null,null,null,null,null,null,null,null,null,null,null,null,null,null,null,null,null,null,null,null,null,null,"監督名",null,null,null,null,null,null,null,null,null,null,null,null,null,null,"校長名"]
[null,null,{"$f":"入力シート!$C$9","v":0},null,null,null,{"$f":"入力シート!$G$9","v":""},null,null,null,null,null,null,null,null,null,null,null,null,null,null,null,null,null,null,"高等学校",null,null,null,null,null,null,null,null,null,{"$f":"入力シート!$AJ$9","v":0},null,null,null,null,null,null,null,null,null,null,null,"印",null,null,{"$f":"入力シート!$AY$9","v":0},null,null,null,null,null,null,null,null,null,null,null,"印"]
[]
[]
[null,null,"ふりがな",null,null,null,null,null,{"$f":"IF(入力シート!I120=\"\",\"\",入力シート!I120)","v":""},null,null,null,null,null,null,null,null,null,null,null,null,null,null,null,{"$f":"IF(入力シート!Y120=\"\",\"\",入力シート!Y120)","v":""},null,null,null,null,null,null,null,null,null,null,null,null,null,"学年",null,null,"段位",null,null,"体重（kg）",null,null,null,null,"身長（cm）",null,null,null,null,"生年月日（西暦）"]
[null,null,"選手名",null,null,null,"（姓）",null,{"$f":"IF(入力シート!I121=\"\",\"\",入力シート!I121)","v":""},null,null,null,null,null,null,null,null,null,null,null,null,null,"（名）",null,{"$f":"IF(入力シート!Y121=\"\",\"\",入力シート!Y121)","v":""},null,null,null,null,null,null,null,null,null,null,null,null,null,{"$f":"IF(入力シート!AM120=\"\",\"\",入力シート!AM120)","v":""},null,null,{"$f":"IF(入力シート!AP120=\"\",\"\",入力シート!AP120)","v":""},null,null,{"$f":"IF(入力シート!AS120=\"\",\"\",入力シート!AS120)","v":""},null,null,null,null,{"$f":"IF(入力シート!AX120=\"\",\"\",入力シート!AX120)","v":""},null,null,null,null,{"$f":"IF(入力シート!BC120=\"\",\"\",入力シート!BC120)","v":""},null,null,null,"・",{"$f":"IF(入力シート!BH120=\"\",\"\",入力シート!BH120)","v":""},null,null,"・",{"$f":"IF(入力シート!BL120=\"\",\"\",入力シート!BL120)","v":""}]
[]
[]
[]
[]
[]
[]
[]
[]
[]
[null,null,null,null,null,null,null,null,null,null,null,null,null,null,null,null,null,null,null,null,null,null,null,null,null,null,null,null,"（","ｷ　ﾘ　ﾄ　ﾘ",null,null,null,null,null,null,null,"）"]
[]
[null,null,"男子個人（特別枠）"]
[]
[null,null,null,null,null,null,null,null,null,null,null,null,null,null,"個　人　試　合　申　込　書",null,null,null,null,null,null,null,null,null,null,null,null,null,null,null,null,null,null,null,null,null,null,null,null,null,null,null,null,null,null,null,null,null,null,null,null,null,null,null,{"$f":"NOW()","v":"2017-10-05T09:52:03.120"}]
[]
[null,null,"※抽選番号",null,null,null,null,null,null,null,null,null,null,{"$f":"IF(入力シート!C124=\"\",\"\",入力シート!C124)","v":""},null,null,null,null,null,null,null,"kg級",null,null,null,{"$f":"入力シート!$O$47","v":"第７２回　大阪高等学校総合体育大会"}]
[]
[null,null,"学校番号",null,null,null,"学　　　　校　　　　名",null,null,null,null,null,null,null,null,null,null,null,null,null,null,null,null,null,null,null,null,null,null,null,null,null,null,null,null,"監督名",null,null,null,null,null,null,null,null,null,null,null,null,null,null,"校長名"]
[null,null,{"$f":"入力シート!$C$9","v":0},null,null,null,{"$f":"入力シート!$G$9","v":""},null,null,null,null,null,null,null,null,null,null,null,null,null,null,null,null,null,null,"高等学校",null,null,null,null,null,null,null,null,null,{"$f":"入力シート!$AJ$9","v":0},null,null,null,null,null,null,null,null,null,null,null,"印",null,null,{"$f":"入力シート!$AY$9","v":0},null,null,null,null,null,null,null,null,null,null,null,"印"]
[]
[]
[null,null,"ふりがな",null,null,null,null,null,{"$f":"IF(入力シート!I124=\"\",\"\",入力シート!I124)","v":""},null,null,null,null,null,null,null,null,null,null,null,null,null,null,null,{"$f":"IF(入力シート!Y124=\"\",\"\",入力シート!Y124)","v":""},null,null,null,null,null,null,null,null,null,null,null,null,null,"学年",null,null,"段位",null,null,"体重（kg）",null,null,null,null,"身長（cm）",null,null,null,null,"生年月日（西暦）"]
[null,null,"選手名",null,null,null,"（姓）",null,{"$f":"IF(入力シート!I125=\"\",\"\",入力シート!I125)","v":""},null,null,null,null,null,null,null,null,null,null,null,null,null,"（名）",null,{"$f":"IF(入力シート!Y125=\"\",\"\",入力シート!Y125)","v":""},null,null,null,null,null,null,null,null,null,null,null,null,null,{"$f":"IF(入力シート!AM124=\"\",\"\",入力シート!AM124)","v":""},null,null,{"$f":"IF(入力シート!AP124=\"\",\"\",入力シート!AP124)","v":""},null,null,{"$f":"IF(入力シート!AS124=\"\",\"\",入力シート!AS124)","v":""},null,null,null,null,{"$f":"IF(入力シート!AX124=\"\",\"\",入力シート!AX124)","v":""},null,null,null,null,{"$f":"IF(入力シート!BC124=\"\",\"\",入力シート!BC124)","v":""},null,null,null,"・",{"$f":"IF(入力シート!BH124=\"\",\"\",入力シート!BH124)","v":""},null,null,"・",{"$f":"IF(入力シート!BL124=\"\",\"\",入力シート!BL124)","v":""}]
[]
[]
[]
[]
[]
[]
[]
[]
[]
[]
[]
[null,null,"男子個人（特別枠）"]
[]
[null,null,null,null,null,null,null,null,null,null,null,null,null,null,"個　人　試　合　申　込　書",null,null,null,null,null,null,null,null,null,null,null,null,null,null,null,null,null,null,null,null,null,null,null,null,null,null,null,null,null,null,null,null,null,null,null,null,null,null,null,{"$f":"NOW()","v":"2017-10-05T09:52:03.120"}]
[]
[null,null,"※抽選番号",null,null,null,null,null,null,null,null,null,null,{"$f":"IF(入力シート!C128=\"\",\"\",入力シート!C128)","v":""},null,null,null,null,null,null,null,"kg級",null,null,null,{"$f":"入力シート!$O$47","v":"第７２回　大阪高等学校総合体育大会"}]
[]
[null,null,"学校番号",null,null,null,"学　　　　校　　　　名",null,null,null,null,null,null,null,null,null,null,null,null,null,null,null,null,null,null,null,null,null,null,null,null,null,null,null,null,"監督名",null,null,null,null,null,null,null,null,null,null,null,null,null,null,"校長名"]
[null,null,{"$f":"入力シート!$C$9","v":0},null,null,null,{"$f":"入力シート!$G$9","v":""},null,null,null,null,null,null,null,null,null,null,null,null,null,null,null,null,null,null,"高等学校",null,null,null,null,null,null,null,null,null,{"$f":"入力シート!$AJ$9","v":0},null,null,null,null,null,null,null,null,null,null,null,"印",null,null,{"$f":"入力シート!$AY$9","v":0},null,null,null,null,null,null,null,null,null,null,null,"印"]
[]
[]
[null,null,"ふりがな",null,null,null,null,null,{"$f":"IF(入力シート!I128=\"\",\"\",入力シート!I128)","v":""},null,null,null,null,null,null,null,null,null,null,null,null,null,null,null,{"$f":"IF(入力シート!Y128=\"\",\"\",入力シート!Y128)","v":""},null,null,null,null,null,null,null,null,null,null,null,null,null,"学年",null,null,"段位",null,null,"体重（kg）",null,null,null,null,"身長（cm）",null,null,null,null,"生年月日（西暦）"]
[null,null,"選手名",null,null,null,"（姓）",null,{"$f":"IF(入力シート!I129=\"\",\"\",入力シート!I129)","v":""},null,null,null,null,null,null,null,null,null,null,null,null,null,"（名）",null,{"$f":"IF(入力シート!Y129=\"\",\"\",入力シート!Y129)","v":""},null,null,null,null,null,null,null,null,null,null,null,null,null,{"$f":"IF(入力シート!AM128=\"\",\"\",入力シート!AM128)","v":""},null,null,{"$f":"IF(入力シート!AP128=\"\",\"\",入力シート!AP128)","v":""},null,null,{"$f":"IF(入力シート!AS128=\"\",\"\",入力シート!AS128)","v":""},null,null,null,null,{"$f":"IF(入力シート!AX128=\"\",\"\",入力シート!AX128)","v":""},null,null,null,null,{"$f":"IF(入力シート!BC128=\"\",\"\",入力シート!BC128)","v":""},null,null,null,"・",{"$f":"IF(入力シート!BH128=\"\",\"\",入力シート!BH128)","v":""},null,null,"・",{"$f":"IF(入力シート!BL128=\"\",\"\",入力シート!BL128)","v":""}]
[]
[]
[]
[]
[]
[]
[]
[]
[]
[null,null,null,null,null,null,null,null,null,null,null,null,null,null,null,null,null,null,null,null,null,null,null,null,null,null,null,null,"（","ｷ　ﾘ　ﾄ　ﾘ",null,null,null,null,null,null,null,"）"]
[]
[null,null,"男子個人（特別枠）"]
[]
[null,null,null,null,null,null,null,null,null,null,null,null,null,null,"個　人　試　合　申　込　書",null,null,null,null,null,null,null,null,null,null,null,null,null,null,null,null,null,null,null,null,null,null,null,null,null,null,null,null,null,null,null,null,null,null,null,null,null,null,null,{"$f":"NOW()","v":"2017-10-05T09:52:03.120"}]
[]
[null,null,"※抽選番号",null,null,null,null,null,null,null,null,null,null,{"$f":"IF(入力シート!C132=\"\",\"\",入力シート!C132)","v":""},null,null,null,null,null,null,null,"kg級",null,null,null,{"$f":"入力シート!$O$47","v":"第７２回　大阪高等学校総合体育大会"}]
[]
[null,null,"学校番号",null,null,null,"学　　　　校　　　　名",null,null,null,null,null,null,null,null,null,null,null,null,null,null,null,null,null,null,null,null,null,null,null,null,null,null,null,null,"監督名",null,null,null,null,null,null,null,null,null,null,null,null,null,null,"校長名"]
[null,null,{"$f":"入力シート!$C$9","v":0},null,null,null,{"$f":"入力シート!$G$9","v":""},null,null,null,null,null,null,null,null,null,null,null,null,null,null,null,null,null,null,"高等学校",null,null,null,null,null,null,null,null,null,{"$f":"入力シート!$AJ$9","v":0},null,null,null,null,null,null,null,null,null,null,null,"印",null,null,{"$f":"入力シート!$AY$9","v":0},null,null,null,null,null,null,null,null,null,null,null,"印"]
[]
[]
[null,null,"ふりがな",null,null,null,null,null,{"$f":"IF(入力シート!I132=\"\",\"\",入力シート!I132)","v":""},null,null,null,null,null,null,null,null,null,null,null,null,null,null,null,{"$f":"IF(入力シート!Y132=\"\",\"\",入力シート!Y132)","v":""},null,null,null,null,null,null,null,null,null,null,null,null,null,"学年",null,null,"段位",null,null,"体重（kg）",null,null,null,null,"身長（cm）",null,null,null,null,"生年月日（西暦）"]
[null,null,"選手名",null,null,null,"（姓）",null,{"$f":"IF(入力シート!I133=\"\",\"\",入力シート!I133)","v":""},null,null,null,null,null,null,null,null,null,null,null,null,null,"（名）",null,{"$f":"IF(入力シート!Y133=\"\",\"\",入力シート!Y133)","v":""},null,null,null,null,null,null,null,null,null,null,null,null,null,{"$f":"IF(入力シート!AM132=\"\",\"\",入力シート!AM132)","v":""},null,null,{"$f":"IF(入力シート!AP132=\"\",\"\",入力シート!AP132)","v":""},null,null,{"$f":"IF(入力シート!AS132=\"\",\"\",入力シート!AS132)","v":""},null,null,null,null,{"$f":"IF(入力シート!AX132=\"\",\"\",入力シート!AX132)","v":""},null,null,null,null,{"$f":"IF(入力シート!BC132=\"\",\"\",入力シート!BC132)","v":""},null,null,null,"・",{"$f":"IF(入力シート!BH132=\"\",\"\",入力シート!BH132)","v":""},null,null,"・",{"$f":"IF(入力シート!BL132=\"\",\"\",入力シート!BL132)","v":""}]
[]
[]
[]
[]
[]
[]
[]
[]
[]
[]
[]
[null,null,"男子個人（特別枠）"]
[]
[null,null,null,null,null,null,null,null,null,null,null,null,null,null,"個　人　試　合　申　込　書",null,null,null,null,null,null,null,null,null,null,null,null,null,null,null,null,null,null,null,null,null,null,null,null,null,null,null,null,null,null,null,null,null,null,null,null,null,null,null,{"$f":"NOW()","v":"2017-10-05T09:52:03.120"}]
[]
[null,null,"※抽選番号",null,null,null,null,null,null,null,null,null,null,{"$f":"IF(入力シート!C136=\"\",\"\",入力シート!C136)","v":""},null,null,null,null,null,null,null,"kg級",null,null,null,{"$f":"入力シート!$O$47","v":"第７２回　大阪高等学校総合体育大会"}]
[]
[null,null,"学校番号",null,null,null,"学　　　　校　　　　名",null,null,null,null,null,null,null,null,null,null,null,null,null,null,null,null,null,null,null,null,null,null,null,null,null,null,null,null,"監督名",null,null,null,null,null,null,null,null,null,null,null,null,null,null,"校長名"]
[null,null,{"$f":"入力シート!$C$9","v":0},null,null,null,{"$f":"入力シート!$G$9","v":""},null,null,null,null,null,null,null,null,null,null,null,null,null,null,null,null,null,null,"高等学校",null,null,null,null,null,null,null,null,null,{"$f":"入力シート!$AJ$9","v":0},null,null,null,null,null,null,null,null,null,null,null,"印",null,null,{"$f":"入力シート!$AY$9","v":0},null,null,null,null,null,null,null,null,null,null,null,"印"]
[]
[]
[null,null,"ふりがな",null,null,null,null,null,{"$f":"IF(入力シート!I136=\"\",\"\",入力シート!I136)","v":""},null,null,null,null,null,null,null,null,null,null,null,null,null,null,null,{"$f":"IF(入力シート!Y136=\"\",\"\",入力シート!Y136)","v":""},null,null,null,null,null,null,null,null,null,null,null,null,null,"学年",null,null,"段位",null,null,"体重（kg）",null,null,null,null,"身長（cm）",null,null,null,null,"生年月日（西暦）"]
[null,null,"選手名",null,null,null,"（姓）",null,{"$f":"IF(入力シート!I137=\"\",\"\",入力シート!I137)","v":""},null,null,null,null,null,null,null,null,null,null,null,null,null,"（名）",null,{"$f":"IF(入力シート!Y137=\"\",\"\",入力シート!Y137)","v":""},null,null,null,null,null,null,null,null,null,null,null,null,null,{"$f":"IF(入力シート!AM136=\"\",\"\",入力シート!AM136)","v":""},null,null,{"$f":"IF(入力シート!AP136=\"\",\"\",入力シート!AP136)","v":""},null,null,{"$f":"IF(入力シート!AS136=\"\",\"\",入力シート!AS136)","v":""},null,null,null,null,{"$f":"IF(入力シート!AX136=\"\",\"\",入力シート!AX136)","v":""},null,null,null,null,{"$f":"IF(入力シート!BC136=\"\",\"\",入力シート!BC136)","v":""},null,null,null,"・",{"$f":"IF(入力シート!BH136=\"\",\"\",入力シート!BH136)","v":""},null,null,"・",{"$f":"IF(入力シート!BL136=\"\",\"\",入力シート!BL136)","v":""}]
[]
[]
[]
[]
[]
[]
[]
[]
[]
[null,null,null,null,null,null,null,null,null,null,null,null,null,null,null,null,null,null,null,null,null,null,null,null,null,null,null,null,"（","ｷ　ﾘ　ﾄ　ﾘ",null,null,null,null,null,null,null,"）"]
[]
[null,null,"男子個人（特別枠）"]
[]
[null,null,null,null,null,null,null,null,null,null,null,null,null,null,"個　人　試　合　申　込　書",null,null,null,null,null,null,null,null,null,null,null,null,null,null,null,null,null,null,null,null,null,null,null,null,null,null,null,null,null,null,null,null,null,null,null,null,null,null,null,{"$f":"NOW()","v":"2017-10-05T09:52:03.120"}]
[]
[null,null,"※抽選番号",null,null,null,null,null,null,null,null,null,null,{"$f":"IF(入力シート!C140=\"\",\"\",入力シート!C140)","v":""},null,null,null,null,null,null,null,"kg級",null,null,null,{"$f":"入力シート!$O$47","v":"第７２回　大阪高等学校総合体育大会"}]
[]
[null,null,"学校番号",null,null,null,"学　　　　校　　　　名",null,null,null,null,null,null,null,null,null,null,null,null,null,null,null,null,null,null,null,null,null,null,null,null,null,null,null,null,"監督名",null,null,null,null,null,null,null,null,null,null,null,null,null,null,"校長名"]
[null,null,{"$f":"入力シート!$C$9","v":0},null,null,null,{"$f":"入力シート!$G$9","v":""},null,null,null,null,null,null,null,null,null,null,null,null,null,null,null,null,null,null,"高等学校",null,null,null,null,null,null,null,null,null,{"$f":"入力シート!$AJ$9","v":0},null,null,null,null,null,null,null,null,null,null,null,"印",null,null,{"$f":"入力シート!$AY$9","v":0},null,null,null,null,null,null,null,null,null,null,null,"印"]
[]
[]
[null,null,"ふりがな",null,null,null,null,null,{"$f":"IF(入力シート!I140=\"\",\"\",入力シート!I140)","v":""},null,null,null,null,null,null,null,null,null,null,null,null,null,null,null,{"$f":"IF(入力シート!Y140=\"\",\"\",入力シート!Y140)","v":""},null,null,null,null,null,null,null,null,null,null,null,null,null,"学年",null,null,"段位",null,null,"体重（kg）",null,null,null,null,"身長（cm）",null,null,null,null,"生年月日（西暦）"]
[null,null,"選手名",null,null,null,"（姓）",null,{"$f":"IF(入力シート!I141=\"\",\"\",入力シート!I141)","v":""},null,null,null,null,null,null,null,null,null,null,null,null,null,"（名）",null,{"$f":"IF(入力シート!Y141=\"\",\"\",入力シート!Y141)","v":""},null,null,null,null,null,null,null,null,null,null,null,null,null,{"$f":"IF(入力シート!AM140=\"\",\"\",入力シート!AM140)","v":""},null,null,{"$f":"IF(入力シート!AP140=\"\",\"\",入力シート!AP140)","v":""},null,null,{"$f":"IF(入力シート!AS140=\"\",\"\",入力シート!AS140)","v":""},null,null,null,null,{"$f":"IF(入力シート!AX140=\"\",\"\",入力シート!AX140)","v":""},null,null,null,null,{"$f":"IF(入力シート!BC140=\"\",\"\",入力シート!BC140)","v":""},null,null,null,"・",{"$f":"IF(入力シート!BH140=\"\",\"\",入力シート!BH140)","v":""},null,null,"・",{"$f":"IF(入力シート!BL140=\"\",\"\",入力シート!BL140)","v":""}]
[]
[]
[]
[]
[]
[]
[]
[]
[]
[]
[]
[null,null,"男子個人（特別枠）"]
[]
[null,null,null,null,null,null,null,null,null,null,null,null,null,null,"個　人　試　合　申　込　書",null,null,null,null,null,null,null,null,null,null,null,null,null,null,null,null,null,null,null,null,null,null,null,null,null,null,null,null,null,null,null,null,null,null,null,null,null,null,null,{"$f":"NOW()","v":"2017-10-05T09:52:03.120"}]
[]
[null,null,"※抽選番号",null,null,null,null,null,null,null,null,null,null,{"$f":"IF(入力シート!C144=\"\",\"\",入力シート!C144)","v":""},null,null,null,null,null,null,null,"kg級",null,null,null,{"$f":"入力シート!$O$47","v":"第７２回　大阪高等学校総合体育大会"}]
[]
[null,null,"学校番号",null,null,null,"学　　　　校　　　　名",null,null,null,null,null,null,null,null,null,null,null,null,null,null,null,null,null,null,null,null,null,null,null,null,null,null,null,null,"監督名",null,null,null,null,null,null,null,null,null,null,null,null,null,null,"校長名"]
[null,null,{"$f":"入力シート!$C$9","v":0},null,null,null,{"$f":"入力シート!$G$9","v":""},null,null,null,null,null,null,null,null,null,null,null,null,null,null,null,null,null,null,"高等学校",null,null,null,null,null,null,null,null,null,{"$f":"入力シート!$AJ$9","v":0},null,null,null,null,null,null,null,null,null,null,null,"印",null,null,{"$f":"入力シート!$AY$9","v":0},null,null,null,null,null,null,null,null,null,null,null,"印"]
[]
[]
[null,null,"ふりがな",null,null,null,null,null,{"$f":"IF(入力シート!I144=\"\",\"\",入力シート!I144)","v":""},null,null,null,null,null,null,null,null,null,null,null,null,null,null,null,{"$f":"IF(入力シート!Y144=\"\",\"\",入力シート!Y144)","v":""},null,null,null,null,null,null,null,null,null,null,null,null,null,"学年",null,null,"段位",null,null,"体重（kg）",null,null,null,null,"身長（cm）",null,null,null,null,"生年月日（西暦）"]
[null,null,"選手名",null,null,null,"（姓）",null,{"$f":"IF(入力シート!I145=\"\",\"\",入力シート!I145)","v":""},null,null,null,null,null,null,null,null,null,null,null,null,null,"（名）",null,{"$f":"IF(入力シート!Y145=\"\",\"\",入力シート!Y145)","v":""},null,null,null,null,null,null,null,null,null,null,null,null,null,{"$f":"IF(入力シート!AM144=\"\",\"\",入力シート!AM144)","v":""},null,null,{"$f":"IF(入力シート!AP144=\"\",\"\",入力シート!AP144)","v":""},null,null,{"$f":"IF(入力シート!AS144=\"\",\"\",入力シート!AS144)","v":""},null,null,null,null,{"$f":"IF(入力シート!AX144=\"\",\"\",入力シート!AX144)","v":""},null,null,null,null,{"$f":"IF(入力シート!BC144=\"\",\"\",入力シート!BC144)","v":""},null,null,null,"・",{"$f":"IF(入力シート!BH144=\"\",\"\",入力シート!BH144)","v":""},null,null,"・",{"$f":"IF(入力シート!BL144=\"\",\"\",入力シート!BL144)","v":""}]
[]
[]
[]
[]
[]
[]
[]
[]
[]
[null,null,null,null,null,null,null,null,null,null,null,null,null,null,null,null,null,null,null,null,null,null,null,null,null,null,null,null,"（","ｷ　ﾘ　ﾄ　ﾘ",null,null,null,null,null,null,null,"）"]
[]
[null,null,"男子個人（特別枠）"]
[]
[null,null,null,null,null,null,null,null,null,null,null,null,null,null,"個　人　試　合　申　込　書",null,null,null,null,null,null,null,null,null,null,null,null,null,null,null,null,null,null,null,null,null,null,null,null,null,null,null,null,null,null,null,null,null,null,null,null,null,null,null,{"$f":"NOW()","v":"2017-10-05T09:52:03.120"}]
[]
[null,null,"※抽選番号",null,null,null,null,null,null,null,null,null,null,{"$f":"IF(入力シート!C148=\"\",\"\",入力シート!C148)","v":""},null,null,null,null,null,null,null,"kg級",null,null,null,{"$f":"入力シート!$O$47","v":"第７２回　大阪高等学校総合体育大会"}]
[]
[null,null,"学校番号",null,null,null,"学　　　　校　　　　名",null,null,null,null,null,null,null,null,null,null,null,null,null,null,null,null,null,null,null,null,null,null,null,null,null,null,null,null,"監督名",null,null,null,null,null,null,null,null,null,null,null,null,null,null,"校長名"]
[null,null,{"$f":"入力シート!$C$9","v":0},null,null,null,{"$f":"入力シート!$G$9","v":""},null,null,null,null,null,null,null,null,null,null,null,null,null,null,null,null,null,null,"高等学校",null,null,null,null,null,null,null,null,null,{"$f":"入力シート!$AJ$9","v":0},null,null,null,null,null,null,null,null,null,null,null,"印",null,null,{"$f":"入力シート!$AY$9","v":0},null,null,null,null,null,null,null,null,null,null,null,"印"]
[]
[]
[null,null,"ふりがな",null,null,null,null,null,{"$f":"IF(入力シート!I148=\"\",\"\",入力シート!I148)","v":""},null,null,null,null,null,null,null,null,null,null,null,null,null,null,null,{"$f":"IF(入力シート!Y148=\"\",\"\",入力シート!Y148)","v":""},null,null,null,null,null,null,null,null,null,null,null,null,null,"学年",null,null,"段位",null,null,"体重（kg）",null,null,null,null,"身長（cm）",null,null,null,null,"生年月日（西暦）"]
[null,null,"選手名",null,null,null,"（姓）",null,{"$f":"IF(入力シート!I149=\"\",\"\",入力シート!I149)","v":""},null,null,null,null,null,null,null,null,null,null,null,null,null,"（名）",null,{"$f":"IF(入力シート!Y149=\"\",\"\",入力シート!Y149)","v":""},null,null,null,null,null,null,null,null,null,null,null,null,null,{"$f":"IF(入力シート!AM148=\"\",\"\",入力シート!AM148)","v":""},null,null,{"$f":"IF(入力シート!AP148=\"\",\"\",入力シート!AP148)","v":""},null,null,{"$f":"IF(入力シート!AS148=\"\",\"\",入力シート!AS148)","v":""},null,null,null,null,{"$f":"IF(入力シート!AX148=\"\",\"\",入力シート!AX148)","v":""},null,null,null,null,{"$f":"IF(入力シート!BC148=\"\",\"\",入力シート!BC148)","v":""},null,null,null,"・",{"$f":"IF(入力シート!BH148=\"\",\"\",入力シート!BH148)","v":""},null,null,"・",{"$f":"IF(入力シート!BL148=\"\",\"\",入力シート!BL148)","v":""}]
[]
[]
[]
[]
[]
[]
[]
[]
[]
[]
[]
[]
[null,null,"男子個人（特別枠）"]
[]
[null,null,null,null,null,null,null,null,null,null,null,null,null,null,"個　人　試　合　申　込　書",null,null,null,null,null,null,null,null,null,null,null,null,null,null,null,null,null,null,null,null,null,null,null,null,null,null,null,null,null,null,null,null,null,null,null,null,null,null,null,{"$f":"NOW()","v":"2017-10-05T09:52:03.120"}]
[]
[null,null,"※抽選番号",null,null,null,null,null,null,null,null,null,null,{"$f":"IF(入力シート!C152=\"\",\"\",入力シート!C152)","v":""},null,null,null,null,null,null,null,"kg級",null,null,null,{"$f":"入力シート!$O$47","v":"第７２回　大阪高等学校総合体育大会"}]
[]
[null,null,"学校番号",null,null,null,"学　　　　校　　　　名",null,null,null,null,null,null,null,null,null,null,null,null,null,null,null,null,null,null,null,null,null,null,null,null,null,null,null,null,"監督名",null,null,null,null,null,null,null,null,null,null,null,null,null,null,"校長名"]
[null,null,{"$f":"入力シート!$C$9","v":0},null,null,null,{"$f":"入力シート!$G$9","v":""},null,null,null,null,null,null,null,null,null,null,null,null,null,null,null,null,null,null,"高等学校",null,null,null,null,null,null,null,null,null,{"$f":"入力シート!$AJ$9","v":0},null,null,null,null,null,null,null,null,null,null,null,"印",null,null,{"$f":"入力シート!$AY$9","v":0},null,null,null,null,null,null,null,null,null,null,null,"印"]
[]
[]
[null,null,"ふりがな",null,null,null,null,null,{"$f":"IF(入力シート!I152=\"\",\"\",入力シート!I152)","v":""},null,null,null,null,null,null,null,null,null,null,null,null,null,null,null,{"$f":"IF(入力シート!Y152=\"\",\"\",入力シート!Y152)","v":""},null,null,null,null,null,null,null,null,null,null,null,null,null,"学年",null,null,"段位",null,null,"体重（kg）",null,null,null,null,"身長（cm）",null,null,null,null,"生年月日（西暦）"]
[null,null,"選手名",null,null,null,"（姓）",null,{"$f":"IF(入力シート!I153=\"\",\"\",入力シート!I153)","v":""},null,null,null,null,null,null,null,null,null,null,null,null,null,"（名）",null,{"$f":"IF(入力シート!Y153=\"\",\"\",入力シート!Y153)","v":""},null,null,null,null,null,null,null,null,null,null,null,null,null,{"$f":"IF(入力シート!AM152=\"\",\"\",入力シート!AM152)","v":""},null,null,{"$f":"IF(入力シート!AP152=\"\",\"\",入力シート!AP152)","v":""},null,null,{"$f":"IF(入力シート!AS152=\"\",\"\",入力シート!AS152)","v":""},null,null,null,null,{"$f":"IF(入力シート!AX152=\"\",\"\",入力シート!AX152)","v":""},null,null,null,null,{"$f":"IF(入力シート!BC152=\"\",\"\",入力シート!BC152)","v":""},null,null,null,"・",{"$f":"IF(入力シート!BH152=\"\",\"\",入力シート!BH152)","v":""},null,null,"・",{"$f":"IF(入力シート!BL152=\"\",\"\",入力シート!BL152)","v":""}]
[]
[]
[]
[]
[]
[]
[]
[]
[]
[null,null,null,null,null,null,null,null,null,null,null,null,null,null,null,null,null,null,null,null,null,null,null,null,null,null,null,null,"（","ｷ　ﾘ　ﾄ　ﾘ",null,null,null,null,null,null,null,"）"]
[]
[null,null,"男子個人（特別枠）"]
[]
[null,null,null,null,null,null,null,null,null,null,null,null,null,null,"個　人　試　合　申　込　書",null,null,null,null,null,null,null,null,null,null,null,null,null,null,null,null,null,null,null,null,null,null,null,null,null,null,null,null,null,null,null,null,null,null,null,null,null,null,null,{"$f":"NOW()","v":"2017-10-05T09:52:03.120"}]
[]
[null,null,"※抽選番号",null,null,null,null,null,null,null,null,null,null,{"$f":"IF(入力シート!C156=\"\",\"\",入力シート!C156)","v":""},null,null,null,null,null,null,null,"kg級",null,null,null,{"$f":"入力シート!$O$47","v":"第７２回　大阪高等学校総合体育大会"}]
[]
[null,null,"学校番号",null,null,null,"学　　　　校　　　　名",null,null,null,null,null,null,null,null,null,null,null,null,null,null,null,null,null,null,null,null,null,null,null,null,null,null,null,null,"監督名",null,null,null,null,null,null,null,null,null,null,null,null,null,null,"校長名"]
[null,null,{"$f":"入力シート!$C$9","v":0},null,null,null,{"$f":"入力シート!$G$9","v":""},null,null,null,null,null,null,null,null,null,null,null,null,null,null,null,null,null,null,"高等学校",null,null,null,null,null,null,null,null,null,{"$f":"入力シート!$AJ$9","v":0},null,null,null,null,null,null,null,null,null,null,null,"印",null,null,{"$f":"入力シート!$AY$9","v":0},null,null,null,null,null,null,null,null,null,null,null,"印"]
[]
[]
[null,null,"ふりがな",null,null,null,null,null,{"$f":"IF(入力シート!I156=\"\",\"\",入力シート!I156)","v":""},null,null,null,null,null,null,null,null,null,null,null,null,null,null,null,{"$f":"IF(入力シート!Y156=\"\",\"\",入力シート!Y156)","v":""},null,null,null,null,null,null,null,null,null,null,null,null,null,"学年",null,null,"段位",null,null,"体重（kg）",null,null,null,null,"身長（cm）",null,null,null,null,"生年月日（西暦）"]
[null,null,"選手名",null,null,null,"（姓）",null,{"$f":"IF(入力シート!I157=\"\",\"\",入力シート!I157)","v":""},null,null,null,null,null,null,null,null,null,null,null,null,null,"（名）",null,{"$f":"IF(入力シート!Y157=\"\",\"\",入力シート!Y157)","v":""},null,null,null,null,null,null,null,null,null,null,null,null,null,{"$f":"IF(入力シート!AM156=\"\",\"\",入力シート!AM156)","v":""},null,null,{"$f":"IF(入力シート!AP156=\"\",\"\",入力シート!AP156)","v":""},null,null,{"$f":"IF(入力シート!AS156=\"\",\"\",入力シート!AS156)","v":""},null,null,null,null,{"$f":"IF(入力シート!AX156=\"\",\"\",入力シート!AX156)","v":""},null,null,null,null,{"$f":"IF(入力シート!BC156=\"\",\"\",入力シート!BC156)","v":""},null,null,null,"・",{"$f":"IF(入力シート!BH156=\"\",\"\",入力シート!BH156)","v":""},null,null,"・",{"$f":"IF(入力シート!BL156=\"\",\"\",入力シート!BL156)","v":""}]
[]
[]
[]
[]
[]
[]
[]
[]
[]
[]
[]
[null,null,"男子個人（特別枠）"]
[]
[null,null,null,null,null,null,null,null,null,null,null,null,null,null,"個　人　試　合　申　込　書",null,null,null,null,null,null,null,null,null,null,null,null,null,null,null,null,null,null,null,null,null,null,null,null,null,null,null,null,null,null,null,null,null,null,null,null,null,null,null,{"$f":"NOW()","v":"2017-10-05T09:52:03.120"}]
[]
[null,null,"※抽選番号",null,null,null,null,null,null,null,null,null,null,{"$f":"IF(入力シート!C160=\"\",\"\",入力シート!C160)","v":""},null,null,null,null,null,null,null,"kg級",null,null,null,{"$f":"入力シート!$O$47","v":"第７２回　大阪高等学校総合体育大会"}]
[]
[null,null,"学校番号",null,null,null,"学　　　　校　　　　名",null,null,null,null,null,null,null,null,null,null,null,null,null,null,null,null,null,null,null,null,null,null,null,null,null,null,null,null,"監督名",null,null,null,null,null,null,null,null,null,null,null,null,null,null,"校長名"]
[null,null,{"$f":"入力シート!$C$9","v":0},null,null,null,{"$f":"入力シート!$G$9","v":""},null,null,null,null,null,null,null,null,null,null,null,null,null,null,null,null,null,null,"高等学校",null,null,null,null,null,null,null,null,null,{"$f":"入力シート!$AJ$9","v":0},null,null,null,null,null,null,null,null,null,null,null,"印",null,null,{"$f":"入力シート!$AY$9","v":0},null,null,null,null,null,null,null,null,null,null,null,"印"]
[]
[]
[null,null,"ふりがな",null,null,null,null,null,{"$f":"IF(入力シート!I160=\"\",\"\",入力シート!I160)","v":""},null,null,null,null,null,null,null,null,null,null,null,null,null,null,null,{"$f":"IF(入力シート!Y160=\"\",\"\",入力シート!Y160)","v":""},null,null,null,null,null,null,null,null,null,null,null,null,null,"学年",null,null,"段位",null,null,"体重（kg）",null,null,null,null,"身長（cm）",null,null,null,null,"生年月日（西暦）"]
[null,null,"選手名",null,null,null,"（姓）",null,{"$f":"IF(入力シート!I161=\"\",\"\",入力シート!I161)","v":""},null,null,null,null,null,null,null,null,null,null,null,null,null,"（名）",null,{"$f":"IF(入力シート!Y161=\"\",\"\",入力シート!Y161)","v":""},null,null,null,null,null,null,null,null,null,null,null,null,null,{"$f":"IF(入力シート!AM160=\"\",\"\",入力シート!AM160)","v":""},null,null,{"$f":"IF(入力シート!AP160=\"\",\"\",入力シート!AP160)","v":""},null,null,{"$f":"IF(入力シート!AS160=\"\",\"\",入力シート!AS160)","v":""},null,null,null,null,{"$f":"IF(入力シート!AX160=\"\",\"\",入力シート!AX160)","v":""},null,null,null,null,{"$f":"IF(入力シート!BC160=\"\",\"\",入力シート!BC160)","v":""},null,null,null,"・",{"$f":"IF(入力シート!BH160=\"\",\"\",入力シート!BH160)","v":""},null,null,"・",{"$f":"IF(入力シート!BL160=\"\",\"\",入力シート!BL160)","v":""}]
[]
[]
[]
[]
[]
[]
[]
[]
[]
[null,null,null,null,null,null,null,null,null,null,null,null,null,null,null,null,null,null,null,null,null,null,null,null,null,null,null,null,"（","ｷ　ﾘ　ﾄ　ﾘ",null,null,null,null,null,null,null,"）"]
[]
[null,null,"男子個人（特別枠）"]
[]
[null,null,null,null,null,null,null,null,null,null,null,null,null,null,"個　人　試　合　申　込　書",null,null,null,null,null,null,null,null,null,null,null,null,null,null,null,null,null,null,null,null,null,null,null,null,null,null,null,null,null,null,null,null,null,null,null,null,null,null,null,{"$f":"NOW()","v":"2017-10-05T09:52:03.120"}]
[]
[null,null,"※抽選番号",null,null,null,null,null,null,null,null,null,null,{"$f":"IF(入力シート!C164=\"\",\"\",入力シート!C164)","v":""},null,null,null,null,null,null,null,"kg級",null,null,null,{"$f":"入力シート!$O$47","v":"第７２回　大阪高等学校総合体育大会"}]
[]
[null,null,"学校番号",null,null,null,"学　　　　校　　　　名",null,null,null,null,null,null,null,null,null,null,null,null,null,null,null,null,null,null,null,null,null,null,null,null,null,null,null,null,"監督名",null,null,null,null,null,null,null,null,null,null,null,null,null,null,"校長名"]
[null,null,{"$f":"入力シート!$C$9","v":0},null,null,null,{"$f":"入力シート!$G$9","v":""},null,null,null,null,null,null,null,null,null,null,null,null,null,null,null,null,null,null,"高等学校",null,null,null,null,null,null,null,null,null,{"$f":"入力シート!$AJ$9","v":0},null,null,null,null,null,null,null,null,null,null,null,"印",null,null,{"$f":"入力シート!$AY$9","v":0},null,null,null,null,null,null,null,null,null,null,null,"印"]
[]
[]
[null,null,"ふりがな",null,null,null,null,null,{"$f":"IF(入力シート!I164=\"\",\"\",入力シート!I164)","v":""},null,null,null,null,null,null,null,null,null,null,null,null,null,null,null,{"$f":"IF(入力シート!Y164=\"\",\"\",入力シート!Y164)","v":""},null,null,null,null,null,null,null,null,null,null,null,null,null,"学年",null,null,"段位",null,null,"体重（kg）",null,null,null,null,"身長（cm）",null,null,null,null,"生年月日（西暦）"]
[null,null,"選手名",null,null,null,"（姓）",null,{"$f":"IF(入力シート!I165=\"\",\"\",入力シート!I165)","v":""},null,null,null,null,null,null,null,null,null,null,null,null,null,"（名）",null,{"$f":"IF(入力シート!Y165=\"\",\"\",入力シート!Y165)","v":""},null,null,null,null,null,null,null,null,null,null,null,null,null,{"$f":"IF(入力シート!AM164=\"\",\"\",入力シート!AM164)","v":""},null,null,{"$f":"IF(入力シート!AP164=\"\",\"\",入力シート!AP164)","v":""},null,null,{"$f":"IF(入力シート!AS164=\"\",\"\",入力シート!AS164)","v":""},null,null,null,null,{"$f":"IF(入力シート!AX164=\"\",\"\",入力シート!AX164)","v":""},null,null,null,null,{"$f":"IF(入力シート!BC164=\"\",\"\",入力シート!BC164)","v":""},null,null,null,"・",{"$f":"IF(入力シート!BH164=\"\",\"\",入力シート!BH164)","v":""},null,null,"・",{"$f":"IF(入力シート!BL164=\"\",\"\",入力シート!BL164)","v":""}]
[]
[]
[]
[]
[]
[]
[]
[]
[]
[]
[]
[null,null,"男子個人（特別枠）"]
[]
[null,null,null,null,null,null,null,null,null,null,null,null,null,null,"個　人　試　合　申　込　書",null,null,null,null,null,null,null,null,null,null,null,null,null,null,null,null,null,null,null,null,null,null,null,null,null,null,null,null,null,null,null,null,null,null,null,null,null,null,null,{"$f":"NOW()","v":"2017-10-05T09:52:03.120"}]
[]
[null,null,"※抽選番号",null,null,null,null,null,null,null,null,null,null,{"$f":"IF(入力シート!C168=\"\",\"\",入力シート!C168)","v":""},null,null,null,null,null,null,null,"kg級",null,null,null,{"$f":"入力シート!$O$47","v":"第７２回　大阪高等学校総合体育大会"}]
[]
[null,null,"学校番号",null,null,null,"学　　　　校　　　　名",null,null,null,null,null,null,null,null,null,null,null,null,null,null,null,null,null,null,null,null,null,null,null,null,null,null,null,null,"監督名",null,null,null,null,null,null,null,null,null,null,null,null,null,null,"校長名"]
[null,null,{"$f":"入力シート!$C$9","v":0},null,null,null,{"$f":"入力シート!$G$9","v":""},null,null,null,null,null,null,null,null,null,null,null,null,null,null,null,null,null,null,"高等学校",null,null,null,null,null,null,null,null,null,{"$f":"入力シート!$AJ$9","v":0},null,null,null,null,null,null,null,null,null,null,null,"印",null,null,{"$f":"入力シート!$AY$9","v":0},null,null,null,null,null,null,null,null,null,null,null,"印"]
[]
[]
[null,null,"ふりがな",null,null,null,null,null,{"$f":"IF(入力シート!I168=\"\",\"\",入力シート!I168)","v":""},null,null,null,null,null,null,null,null,null,null,null,null,null,null,null,{"$f":"IF(入力シート!Y168=\"\",\"\",入力シート!Y168)","v":""},null,null,null,null,null,null,null,null,null,null,null,null,null,"学年",null,null,"段位",null,null,"体重（kg）",null,null,null,null,"身長（cm）",null,null,null,null,"生年月日（西暦）"]
[null,null,"選手名",null,null,null,"（姓）",null,{"$f":"IF(入力シート!I169=\"\",\"\",入力シート!I169)","v":""},null,null,null,null,null,null,null,null,null,null,null,null,null,"（名）",null,{"$f":"IF(入力シート!Y169=\"\",\"\",入力シート!Y169)","v":""},null,null,null,null,null,null,null,null,null,null,null,null,null,{"$f":"IF(入力シート!AM168=\"\",\"\",入力シート!AM168)","v":""},null,null,{"$f":"IF(入力シート!AP168=\"\",\"\",入力シート!AP168)","v":""},null,null,{"$f":"IF(入力シート!AS168=\"\",\"\",入力シート!AS168)","v":""},null,null,null,null,{"$f":"IF(入力シート!AX168=\"\",\"\",入力シート!AX168)","v":""},null,null,null,null,{"$f":"IF(入力シート!BC168=\"\",\"\",入力シート!BC168)","v":""},null,null,null,"・",{"$f":"IF(入力シート!BH168=\"\",\"\",入力シート!BH168)","v":""},null,null,"・",{"$f":"IF(入力シート!BL168=\"\",\"\",入力シート!BL168)","v":""}]
[]
[]
[]
[]
[]
[]
[]
[]
[]
[null,null,null,null,null,null,null,null,null,null,null,null,null,null,null,null,null,null,null,null,null,null,null,null,null,null,null,null,"（","ｷ　ﾘ　ﾄ　ﾘ",null,null,null,null,null,null,null,"）"]
[]
[null,null,"男子個人（特別枠）"]
[]
[null,null,null,null,null,null,null,null,null,null,null,null,null,null,"個　人　試　合　申　込　書",null,null,null,null,null,null,null,null,null,null,null,null,null,null,null,null,null,null,null,null,null,null,null,null,null,null,null,null,null,null,null,null,null,null,null,null,null,null,null,{"$f":"NOW()","v":"2017-10-05T09:52:03.120"}]
[]
[null,null,"※抽選番号",null,null,null,null,null,null,null,null,null,null,{"$f":"IF(入力シート!C172=\"\",\"\",入力シート!C172)","v":""},null,null,null,null,null,null,null,"kg級",null,null,null,{"$f":"入力シート!$O$47","v":"第７２回　大阪高等学校総合体育大会"}]
[]
[null,null,"学校番号",null,null,null,"学　　　　校　　　　名",null,null,null,null,null,null,null,null,null,null,null,null,null,null,null,null,null,null,null,null,null,null,null,null,null,null,null,null,"監督名",null,null,null,null,null,null,null,null,null,null,null,null,null,null,"校長名"]
[null,null,{"$f":"入力シート!$C$9","v":0},null,null,null,{"$f":"入力シート!$G$9","v":""},null,null,null,null,null,null,null,null,null,null,null,null,null,null,null,null,null,null,"高等学校",null,null,null,null,null,null,null,null,null,{"$f":"入力シート!$AJ$9","v":0},null,null,null,null,null,null,null,null,null,null,null,"印",null,null,{"$f":"入力シート!$AY$9","v":0},null,null,null,null,null,null,null,null,null,null,null,"印"]
[]
[]
[null,null,"ふりがな",null,null,null,null,null,{"$f":"IF(入力シート!I172=\"\",\"\",入力シート!I172)","v":""},null,null,null,null,null,null,null,null,null,null,null,null,null,null,null,{"$f":"IF(入力シート!Y172=\"\",\"\",入力シート!Y172)","v":""},null,null,null,null,null,null,null,null,null,null,null,null,null,"学年",null,null,"段位",null,null,"体重（kg）",null,null,null,null,"身長（cm）",null,null,null,null,"生年月日（西暦）"]
[null,null,"選手名",null,null,null,"（姓）",null,{"$f":"IF(入力シート!I173=\"\",\"\",入力シート!I173)","v":""},null,null,null,null,null,null,null,null,null,null,null,null,null,"（名）",null,{"$f":"IF(入力シート!Y173=\"\",\"\",入力シート!Y173)","v":""},null,null,null,null,null,null,null,null,null,null,null,null,null,{"$f":"IF(入力シート!AM172=\"\",\"\",入力シート!AM172)","v":""},null,null,{"$f":"IF(入力シート!AP172=\"\",\"\",入力シート!AP172)","v":""},null,null,{"$f":"IF(入力シート!AS172=\"\",\"\",入力シート!AS172)","v":""},null,null,null,null,{"$f":"IF(入力シート!AX172=\"\",\"\",入力シート!AX172)","v":""},null,null,null,null,{"$f":"IF(入力シート!BC172=\"\",\"\",入力シート!BC172)","v":""},null,null,null,"・",{"$f":"IF(入力シート!BH172=\"\",\"\",入力シート!BH172)","v":""},null,null,"・",{"$f":"IF(入力シート!BL172=\"\",\"\",入力シート!BL172)","v":""}]
[]
[]
[]
[]
[]
[]
[]
[]
[]
[]
[]
[null,null,"男子個人（特別枠）"]
[]
[null,null,null,null,null,null,null,null,null,null,null,null,null,null,"個　人　試　合　申　込　書",null,null,null,null,null,null,null,null,null,null,null,null,null,null,null,null,null,null,null,null,null,null,null,null,null,null,null,null,null,null,null,null,null,null,null,null,null,null,null,{"$f":"NOW()","v":"2017-10-05T09:52:03.120"}]
[]
[null,null,"※抽選番号",null,null,null,null,null,null,null,null,null,null,{"$f":"IF(入力シート!C176=\"\",\"\",入力シート!C176)","v":""},null,null,null,null,null,null,null,"kg級",null,null,null,{"$f":"入力シート!$O$47","v":"第７２回　大阪高等学校総合体育大会"}]
[]
[null,null,"学校番号",null,null,null,"学　　　　校　　　　名",null,null,null,null,null,null,null,null,null,null,null,null,null,null,null,null,null,null,null,null,null,null,null,null,null,null,null,null,"監督名",null,null,null,null,null,null,null,null,null,null,null,null,null,null,"校長名"]
[null,null,{"$f":"入力シート!$C$9","v":0},null,null,null,{"$f":"入力シート!$G$9","v":""},null,null,null,null,null,null,null,null,null,null,null,null,null,null,null,null,null,null,"高等学校",null,null,null,null,null,null,null,null,null,{"$f":"入力シート!$AJ$9","v":0},null,null,null,null,null,null,null,null,null,null,null,"印",null,null,{"$f":"入力シート!$AY$9","v":0},null,null,null,null,null,null,null,null,null,null,null,"印"]
[]
[]
[null,null,"ふりがな",null,null,null,null,null,{"$f":"IF(入力シート!I176=\"\",\"\",入力シート!I176)","v":""},null,null,null,null,null,null,null,null,null,null,null,null,null,null,null,{"$f":"IF(入力シート!Y176=\"\",\"\",入力シート!Y176)","v":""},null,null,null,null,null,null,null,null,null,null,null,null,null,"学年",null,null,"段位",null,null,"体重（kg）",null,null,null,null,"身長（cm）",null,null,null,null,"生年月日（西暦）"]
[null,null,"選手名",null,null,null,"（姓）",null,{"$f":"IF(入力シート!I177=\"\",\"\",入力シート!I177)","v":""},null,null,null,null,null,null,null,null,null,null,null,null,null,"（名）",null,{"$f":"IF(入力シート!Y177=\"\",\"\",入力シート!Y177)","v":""},null,null,null,null,null,null,null,null,null,null,null,null,null,{"$f":"IF(入力シート!AM176=\"\",\"\",入力シート!AM176)","v":""},null,null,{"$f":"IF(入力シート!AP176=\"\",\"\",入力シート!AP176)","v":""},null,null,{"$f":"IF(入力シート!AS176=\"\",\"\",入力シート!AS176)","v":""},null,null,null,null,{"$f":"IF(入力シート!AX176=\"\",\"\",入力シート!AX176)","v":""},null,null,null,null,{"$f":"IF(入力シート!BC176=\"\",\"\",入力シート!BC176)","v":""},null,null,null,"・",{"$f":"IF(入力シート!BH176=\"\",\"\",入力シート!BH176)","v":""},null,null,"・",{"$f":"IF(入力シート!BL176=\"\",\"\",入力シート!BL176)","v":""}]
[]
[]
[]
[]
[]
[]
[]
[]
[]
[null,null,null,null,null,null,null,null,null,null,null,null,null,null,null,null,null,null,null,null,null,null,null,null,null,null,null,null,"（","ｷ　ﾘ　ﾄ　ﾘ",null,null,null,null,null,null,null,"）"]
[]
[null,null,"男子個人（特別枠）"]
[]
[null,null,null,null,null,null,null,null,null,null,null,null,null,null,"個　人　試　合　申　込　書",null,null,null,null,null,null,null,null,null,null,null,null,null,null,null,null,null,null,null,null,null,null,null,null,null,null,null,null,null,null,null,null,null,null,null,null,null,null,null,{"$f":"NOW()","v":"2017-10-05T09:52:03.120"}]
[]
[null,null,"※抽選番号",null,null,null,null,null,null,null,null,null,null,{"$f":"IF(入力シート!C180=\"\",\"\",入力シート!C180)","v":""},null,null,null,null,null,null,null,"kg級",null,null,null,{"$f":"入力シート!$O$47","v":"第７２回　大阪高等学校総合体育大会"}]
[]
[null,null,"学校番号",null,null,null,"学　　　　校　　　　名",null,null,null,null,null,null,null,null,null,null,null,null,null,null,null,null,null,null,null,null,null,null,null,null,null,null,null,null,"監督名",null,null,null,null,null,null,null,null,null,null,null,null,null,null,"校長名"]
[null,null,{"$f":"入力シート!$C$9","v":0},null,null,null,{"$f":"入力シート!$G$9","v":""},null,null,null,null,null,null,null,null,null,null,null,null,null,null,null,null,null,null,"高等学校",null,null,null,null,null,null,null,null,null,{"$f":"入力シート!$AJ$9","v":0},null,null,null,null,null,null,null,null,null,null,null,"印",null,null,{"$f":"入力シート!$AY$9","v":0},null,null,null,null,null,null,null,null,null,null,null,"印"]
[]
[]
[null,null,"ふりがな",null,null,null,null,null,{"$f":"IF(入力シート!I180=\"\",\"\",入力シート!I180)","v":""},null,null,null,null,null,null,null,null,null,null,null,null,null,null,null,{"$f":"IF(入力シート!Y180=\"\",\"\",入力シート!Y180)","v":""},null,null,null,null,null,null,null,null,null,null,null,null,null,"学年",null,null,"段位",null,null,"体重（kg）",null,null,null,null,"身長（cm）",null,null,null,null,"生年月日（西暦）"]
[null,null,"選手名",null,null,null,"（姓）",null,{"$f":"IF(入力シート!I181=\"\",\"\",入力シート!I181)","v":""},null,null,null,null,null,null,null,null,null,null,null,null,null,"（名）",null,{"$f":"IF(入力シート!Y181=\"\",\"\",入力シート!Y181)","v":""},null,null,null,null,null,null,null,null,null,null,null,null,null,{"$f":"IF(入力シート!AM180=\"\",\"\",入力シート!AM180)","v":""},null,null,{"$f":"IF(入力シート!AP180=\"\",\"\",入力シート!AP180)","v":""},null,null,{"$f":"IF(入力シート!AS180=\"\",\"\",入力シート!AS180)","v":""},null,null,null,null,{"$f":"IF(入力シート!AX180=\"\",\"\",入力シート!AX180)","v":""},null,null,null,null,{"$f":"IF(入力シート!BC180=\"\",\"\",入力シート!BC180)","v":""},null,null,null,"・",{"$f":"IF(入力シート!BH180=\"\",\"\",入力シート!BH180)","v":""},null,null,"・",{"$f":"IF(入力シート!BL180=\"\",\"\",入力シート!BL180)","v":""}]
[]
[]
[]
[]
[]
[]
[]
[]
[]
[]
[]
[null,null,"男子個人（特別枠）"]
[]
[null,null,null,null,null,null,null,null,null,null,null,null,null,null,"個　人　試　合　申　込　書",null,null,null,null,null,null,null,null,null,null,null,null,null,null,null,null,null,null,null,null,null,null,null,null,null,null,null,null,null,null,null,null,null,null,null,null,null,null,null,{"$f":"NOW()","v":"2017-10-05T09:52:03.120"}]
[]
[null,null,"※抽選番号",null,null,null,null,null,null,null,null,null,null,{"$f":"IF(入力シート!C184=\"\",\"\",入力シート!C184)","v":""},null,null,null,null,null,null,null,"kg級",null,null,null,{"$f":"入力シート!$O$47","v":"第７２回　大阪高等学校総合体育大会"}]
[]
[null,null,"学校番号",null,null,null,"学　　　　校　　　　名",null,null,null,null,null,null,null,null,null,null,null,null,null,null,null,null,null,null,null,null,null,null,null,null,null,null,null,null,"監督名",null,null,null,null,null,null,null,null,null,null,null,null,null,null,"校長名"]
[null,null,{"$f":"入力シート!$C$9","v":0},null,null,null,{"$f":"入力シート!$G$9","v":""},null,null,null,null,null,null,null,null,null,null,null,null,null,null,null,null,null,null,"高等学校",null,null,null,null,null,null,null,null,null,{"$f":"入力シート!$AJ$9","v":0},null,null,null,null,null,null,null,null,null,null,null,"印",null,null,{"$f":"入力シート!$AY$9","v":0},null,null,null,null,null,null,null,null,null,null,null,"印"]
[]
[]
[null,null,"ふりがな",null,null,null,null,null,{"$f":"IF(入力シート!I184=\"\",\"\",入力シート!I184)","v":""},null,null,null,null,null,null,null,null,null,null,null,null,null,null,null,{"$f":"IF(入力シート!Y184=\"\",\"\",入力シート!Y184)","v":""},null,null,null,null,null,null,null,null,null,null,null,null,null,"学年",null,null,"段位",null,null,"体重（kg）",null,null,null,null,"身長（cm）",null,null,null,null,"生年月日（西暦）"]
[null,null,"選手名",null,null,null,"（姓）",null,{"$f":"IF(入力シート!I185=\"\",\"\",入力シート!I185)","v":""},null,null,null,null,null,null,null,null,null,null,null,null,null,"（名）",null,{"$f":"IF(入力シート!Y185=\"\",\"\",入力シート!Y185)","v":""},null,null,null,null,null,null,null,null,null,null,null,null,null,{"$f":"IF(入力シート!AM184=\"\",\"\",入力シート!AM184)","v":""},null,null,{"$f":"IF(入力シート!AP184=\"\",\"\",入力シート!AP184)","v":""},null,null,{"$f":"IF(入力シート!AS184=\"\",\"\",入力シート!AS184)","v":""},null,null,null,null,{"$f":"IF(入力シート!AX184=\"\",\"\",入力シート!AX184)","v":""},null,null,null,null,{"$f":"IF(入力シート!BC184=\"\",\"\",入力シート!BC184)","v":""},null,null,null,"・",{"$f":"IF(入力シート!BH184=\"\",\"\",入力シート!BH184)","v":""},null,null,"・",{"$f":"IF(入力シート!BL184=\"\",\"\",入力シート!BL184)","v":""}]
[]
[]
[]
[]
[]
[]
[]
[]
[]
[null,null,null,null,null,null,null,null,null,null,null,null,null,null,null,null,null,null,null,null,null,null,null,null,null,null,null,null,"（","ｷ　ﾘ　ﾄ　ﾘ",null,null,null,null,null,null,null,"）"]
[]
[null,null,"男子個人（特別枠）"]
[]
[null,null,null,null,null,null,null,null,null,null,null,null,null,null,"個　人　試　合　申　込　書",null,null,null,null,null,null,null,null,null,null,null,null,null,null,null,null,null,null,null,null,null,null,null,null,null,null,null,null,null,null,null,null,null,null,null,null,null,null,null,{"$f":"NOW()","v":"2017-10-05T09:52:03.120"}]
[]
[null,null,"※抽選番号",null,null,null,null,null,null,null,null,null,null,{"$f":"IF(入力シート!C188=\"\",\"\",入力シート!C188)","v":""},null,null,null,null,null,null,null,"kg級",null,null,null,{"$f":"入力シート!$O$47","v":"第７２回　大阪高等学校総合体育大会"}]
[]
[null,null,"学校番号",null,null,null,"学　　　　校　　　　名",null,null,null,null,null,null,null,null,null,null,null,null,null,null,null,null,null,null,null,null,null,null,null,null,null,null,null,null,"監督名",null,null,null,null,null,null,null,null,null,null,null,null,null,null,"校長名"]
[null,null,{"$f":"入力シート!$C$9","v":0},null,null,null,{"$f":"入力シート!$G$9","v":""},null,null,null,null,null,null,null,null,null,null,null,null,null,null,null,null,null,null,"高等学校",null,null,null,null,null,null,null,null,null,{"$f":"入力シート!$AJ$9","v":0},null,null,null,null,null,null,null,null,null,null,null,"印",null,null,{"$f":"入力シート!$AY$9","v":0},null,null,null,null,null,null,null,null,null,null,null,"印"]
[]
[]
[null,null,"ふりがな",null,null,null,null,null,{"$f":"IF(入力シート!I188=\"\",\"\",入力シート!I188)","v":""},null,null,null,null,null,null,null,null,null,null,null,null,null,null,null,{"$f":"IF(入力シート!Y188=\"\",\"\",入力シート!Y188)","v":""},null,null,null,null,null,null,null,null,null,null,null,null,null,"学年",null,null,"段位",null,null,"体重（kg）",null,null,null,null,"身長（cm）",null,null,null,null,"生年月日（西暦）"]
[null,null,"選手名",null,null,null,"（姓）",null,{"$f":"IF(入力シート!I189=\"\",\"\",入力シート!I189)","v":""},null,null,null,null,null,null,null,null,null,null,null,null,null,"（名）",null,{"$f":"IF(入力シート!Y189=\"\",\"\",入力シート!Y189)","v":""},null,null,null,null,null,null,null,null,null,null,null,null,null,{"$f":"IF(入力シート!AM188=\"\",\"\",入力シート!AM188)","v":""},null,null,{"$f":"IF(入力シート!AP188=\"\",\"\",入力シート!AP188)","v":""},null,null,{"$f":"IF(入力シート!AS188=\"\",\"\",入力シート!AS188)","v":""},null,null,null,null,{"$f":"IF(入力シート!AX188=\"\",\"\",入力シート!AX188)","v":""},null,null,null,null,{"$f":"IF(入力シート!BC188=\"\",\"\",入力シート!BC188)","v":""},null,null,null,"・",{"$f":"IF(入力シート!BH188=\"\",\"\",入力シート!BH188)","v":""},null,null,"・",{"$f":"IF(入力シート!BL188=\"\",\"\",入力シート!BL188)","v":""}]
[]
[]
[]
[]
[]
[]
[]
[]
[]
[]
[]
[null,null,"男子個人（特別枠）"]
[]
[null,null,null,null,null,null,null,null,null,null,null,null,null,null,"個　人　試　合　申　込　書",null,null,null,null,null,null,null,null,null,null,null,null,null,null,null,null,null,null,null,null,null,null,null,null,null,null,null,null,null,null,null,null,null,null,null,null,null,null,null,{"$f":"NOW()","v":"2017-10-05T09:52:03.120"}]
[]
[null,null,"※抽選番号",null,null,null,null,null,null,null,null,null,null,{"$f":"IF(入力シート!C192=\"\",\"\",入力シート!C192)","v":""},null,null,null,null,null,null,null,"kg級",null,null,null,{"$f":"入力シート!$O$47","v":"第７２回　大阪高等学校総合体育大会"}]
[]
[null,null,"学校番号",null,null,null,"学　　　　校　　　　名",null,null,null,null,null,null,null,null,null,null,null,null,null,null,null,null,null,null,null,null,null,null,null,null,null,null,null,null,"監督名",null,null,null,null,null,null,null,null,null,null,null,null,null,null,"校長名"]
[null,null,{"$f":"入力シート!$C$9","v":0},null,null,null,{"$f":"入力シート!$G$9","v":""},null,null,null,null,null,null,null,null,null,null,null,null,null,null,null,null,null,null,"高等学校",null,null,null,null,null,null,null,null,null,{"$f":"入力シート!$AJ$9","v":0},null,null,null,null,null,null,null,null,null,null,null,"印",null,null,{"$f":"入力シート!$AY$9","v":0},null,null,null,null,null,null,null,null,null,null,null,"印"]
[]
[]
[null,null,"ふりがな",null,null,null,null,null,{"$f":"IF(入力シート!I192=\"\",\"\",入力シート!I192)","v":""},null,null,null,null,null,null,null,null,null,null,null,null,null,null,null,{"$f":"IF(入力シート!Y192=\"\",\"\",入力シート!Y192)","v":""},null,null,null,null,null,null,null,null,null,null,null,null,null,"学年",null,null,"段位",null,null,"体重（kg）",null,null,null,null,"身長（cm）",null,null,null,null,"生年月日（西暦）"]
[null,null,"選手名",null,null,null,"（姓）",null,{"$f":"IF(入力シート!I193=\"\",\"\",入力シート!I193)","v":""},null,null,null,null,null,null,null,null,null,null,null,null,null,"（名）",null,{"$f":"IF(入力シート!Y193=\"\",\"\",入力シート!Y193)","v":""},null,null,null,null,null,null,null,null,null,null,null,null,null,{"$f":"IF(入力シート!AM192=\"\",\"\",入力シート!AM192)","v":""},null,null,{"$f":"IF(入力シート!AP192=\"\",\"\",入力シート!AP192)","v":""},null,null,{"$f":"IF(入力シート!AS192=\"\",\"\",入力シート!AS192)","v":""},null,null,null,null,{"$f":"IF(入力シート!AX192=\"\",\"\",入力シート!AX192)","v":""},null,null,null,null,{"$f":"IF(入力シート!BC192=\"\",\"\",入力シート!BC192)","v":""},null,null,null,"・",{"$f":"IF(入力シート!BH192=\"\",\"\",入力シート!BH192)","v":""},null,null,"・",{"$f":"IF(入力シート!BL192=\"\",\"\",入力シート!BL192)","v":""}]
[]
[]
[]
[]
[]
[]
[]
[]
[]
[null,null,null,null,null,null,null,null,null,null,null,null,null,null,null,null,null,null,null,null,null,null,null,null,null,null,null,null,"（","ｷ　ﾘ　ﾄ　ﾘ",null,null,null,null,null,null,null,"）"]
[]
[null,null,"男子個人（特別枠）"]
[]
[null,null,null,null,null,null,null,null,null,null,null,null,null,null,"個　人　試　合　申　込　書",null,null,null,null,null,null,null,null,null,null,null,null,null,null,null,null,null,null,null,null,null,null,null,null,null,null,null,null,null,null,null,null,null,null,null,null,null,null,null,{"$f":"NOW()","v":"2017-10-05T09:52:03.120"}]
[]
[null,null,"※抽選番号",null,null,null,null,null,null,null,null,null,null,{"$f":"IF(入力シート!C196=\"\",\"\",入力シート!C196)","v":""},null,null,null,null,null,null,null,"kg級",null,null,null,{"$f":"入力シート!$O$47","v":"第７２回　大阪高等学校総合体育大会"}]
[]
[null,null,"学校番号",null,null,null,"学　　　　校　　　　名",null,null,null,null,null,null,null,null,null,null,null,null,null,null,null,null,null,null,null,null,null,null,null,null,null,null,null,null,"監督名",null,null,null,null,null,null,null,null,null,null,null,null,null,null,"校長名"]
[null,null,{"$f":"入力シート!$C$9","v":0},null,null,null,{"$f":"入力シート!$G$9","v":""},null,null,null,null,null,null,null,null,null,null,null,null,null,null,null,null,null,null,"高等学校",null,null,null,null,null,null,null,null,null,{"$f":"入力シート!$AJ$9","v":0},null,null,null,null,null,null,null,null,null,null,null,"印",null,null,{"$f":"入力シート!$AY$9","v":0},null,null,null,null,null,null,null,null,null,null,null,"印"]
[]
[]
[null,null,"ふりがな",null,null,null,null,null,{"$f":"IF(入力シート!I196=\"\",\"\",入力シート!I196)","v":""},null,null,null,null,null,null,null,null,null,null,null,null,null,null,null,{"$f":"IF(入力シート!Y196=\"\",\"\",入力シート!Y196)","v":""},null,null,null,null,null,null,null,null,null,null,null,null,null,"学年",null,null,"段位",null,null,"体重（kg）",null,null,null,null,"身長（cm）",null,null,null,null,"生年月日（西暦）"]
[null,null,"選手名",null,null,null,"（姓）",null,{"$f":"IF(入力シート!I197=\"\",\"\",入力シート!I197)","v":""},null,null,null,null,null,null,null,null,null,null,null,null,null,"（名）",null,{"$f":"IF(入力シート!Y197=\"\",\"\",入力シート!Y197)","v":""},null,null,null,null,null,null,null,null,null,null,null,null,null,{"$f":"IF(入力シート!AM196=\"\",\"\",入力シート!AM196)","v":""},null,null,{"$f":"IF(入力シート!AP196=\"\",\"\",入力シート!AP196)","v":""},null,null,{"$f":"IF(入力シート!AS196=\"\",\"\",入力シート!AS196)","v":""},null,null,null,null,{"$f":"IF(入力シート!AX196=\"\",\"\",入力シート!AX196)","v":""},null,null,null,null,{"$f":"IF(入力シート!BC196=\"\",\"\",入力シート!BC196)","v":""},null,null,null,"・",{"$f":"IF(入力シート!BH196=\"\",\"\",入力シート!BH196)","v":""},null,null,"・",{"$f":"IF(入力シート!BL196=\"\",\"\",入力シート!BL196)","v":""}]

{"sheet":"プログラム男子","index":3,"n_rows":6,"n_cols":8,"rows_kept":6,"cut":false,"hidden":false,"merged":[[1,5,1,7],[2,2,2,5],[3,2,3,5],[5,2,5,5],[1,2,1,4],[4,2,4,5]]}
[]
[null,{"$f":"入力シート!G6","v":0},{"$f":"入力シート!L2","v":{"$error":"#N/A"}},null,null,{"$f":"入力シート!AJ9","v":0}]
[null,"先",{"$f":"IF(入力シート!I14=\"\",\"\",入力シート!I14&\"　\"&入力シート!Y14)","v":""},null,null,null,{"$f":"IF(入力シート!AM13=\"\",\"\",入力シート!AM13)","v":""},{"$f":"IF(入力シート!AP13=\"\",\"\",入力シート!AP13)","v":""}]
[null,"中",{"$f":"IF(入力シート!I18=\"\",\"\",入力シート!I18&\"　\"&入力シート!Y18)","v":""},null,null,null,{"$f":"IF(入力シート!AM17=\"\",\"\",入力シート!AM17)","v":""},{"$f":"IF(入力シート!AP17=\"\",\"\",入力シート!AP17)","v":""}]
[null,"大",{"$f":"IF(入力シート!I22=\"\",\"\",入力シート!I22&\"　\"&入力シート!Y22)","v":""},null,null,null,{"$f":"IF(入力シート!AM21=\"\",\"\",入力シート!AM21)","v":""},{"$f":"IF(入力シート!AP21=\"\",\"\",入力シート!AP21)","v":""}]
[null,"補",{"$f":"IF(入力シート!I26=\"\",\"\",入力シート!I26&\"　\"&入力シート!Y26)","v":""},null,null,null,{"$f":"IF(入力シート!AM25=\"\",\"\",入力シート!AM25)","v":""},{"$f":"IF(入力シート!AP25=\"\",\"\",入力シート!AP25)","v":""}]

{"sheet":"入力規則","index":4,"n_rows":198,"n_cols":19,"rows_kept":198,"cut":false,"hidden":true,"merged":[]}
["順序","学年","段位","西暦","月","日","個人戦年度","ランク","男子階級","入賞","女子階級","登録番号","校名",null,null,null,null,"大会名（女子）","大会名（男子）"]
["先鋒",1,"無",1996,1,1,25,"A",60,1,48,331,"桜宮",null,null,null,null,"全国大会大阪府予選会女子団体戦","全国大会大阪府予選会男子団体戦"]
["次鋒",2,"初",1997,2,2,26,"B",66,2,52,332,"汎愛",null,null,null,null,"全国大会大阪府予選会女子個人戦","全国大会大阪府予選会男子個人戦"]
["中堅",3,"弐",1998,3,3,27,"C",73,3,57,333,"東",null,null,null,null,"大阪高等学校女子体重別選手権大会","大阪高等学校総合体育大会柔道の部（男子団体戦）"]
["副将",4,"参",1999,4,4,28,"D",81,null,63,334,"南",null,null,null,null,"全国高等学校柔道選手権大会大阪府予選会","大阪高等学校総合体育大会柔道の部（男子個人戦）"]
["大将",null,null,2000,5,5,29,null,90,null,70,335,"生野工業",null,null,null,null,"全国高等学校柔道選手権大会女子個人試合大阪府一次予選会","全国高等学校柔道選手権大会大阪府予選会"]
["補欠1",null,null,2001,6,6,30,null,100,null,78,336,"都島工業",null,null,null,null,"全国高等学校柔道選手権大会男女個人試合大阪府予選会","全国高等学校柔道選手権大会男女個人試合大阪府予選会"]
["補欠2",null,null,2002,7,7,31,null,"+100",null,"+78",337,"東商"]
["補欠3",null,null,2003,8,8,32,null,55,null,44,338,"常翔学園"]
[null,null,null,2004,9,9,33,null,null,null,null,339,"大阪産業大学附属"]
[null,null,null,2005,10,10,34,null,null,null,null,340,"追手門大手前"]
[null,null,null,2006,11,11,35,null,null,null,null,341,"常翔啓光"]
[null,null,null,2007,12,12,36,null,null,null,null,342,"大阪偕星学園"]
[null,null,null,2008,null,13,37,null,null,null,null,343,"太成学院大学"]
[null,null,null,2009,null,14,38,null,null,null,null,344,"電通大"]
[null,null,null,2010,null,15,39,null,null,null,null,345,"同志社香里"]
[null,null,null,2011,null,16,40,null,null,null,null,346,"開明"]
[null,null,null,2012,null,17,41,null,null,null,null,347,"東海大学付属仰星"]
[null,null,null,2013,null,18,42,null,null,null,null,348,"泉尾"]
[null,null,null,2014,null,19,43,null,null,null,null,349,"和泉"]
[null,null,null,2015,null,20,44,null,null,null,null,350,"泉大津"]
[null,null,null,2016,null,21,45,null,null,null,null,351,"泉鳥取"]
[null,null,null,2017,null,22,46,null,null,null,null,352,"市岡"]
[null,null,null,2018,null,23,47,null,null,null,null,353,"今宮"]
[null,null,null,2019,null,24,48,null,null,null,null,354,"鳳"]
[null,null,null,2020,null,25,49,null,null,null,null,355,"貝塚"]
[null,null,null,null,null,26,50,null,null,null,null,356,"貝塚南"]
[null,null,null,null,null,27,51,null,null,null,null,357,"金岡"]
[null,null,null,null,null,28,52,null,null,null,null,358,"岸和田"]
[null,null,null,null,null,29,53,null,null,null,null,359,"港南造形"]
[null,null,null,null,null,30,54,null,null,null,null,360,"久米田"]
[null,null,null,null,null,31,55,null,null,null,null,361,"堺上"]
[null,null,null,null,null,null,null,null,null,null,null,362,"堺西"]
[null,null,null,null,null,null,null,null,null,null,null,363,"堺東"]
[null,null,null,null,null,null,null,null,null,null,null,364,"佐野"]
[null,null,null,null,null,null,null,null,null,null,null,365,"狭山"]
[null,null,null,null,null,null,null,null,null,null,null,366,"信太"]
[null,null,null,null,null,null,null,null,null,null,null,367,"咲洲"]
[null,null,null,null,null,null,null,null,null,null,null,368,"りんくう翔南"]
[null,null,null,null,null,null,null,null,null,null,null,369,"泉北"]
[null,null,null,null,null,null,null,null,null,null,null,370,"泉陽"]
[null,null,null,null,null,null,null,null,null,null,null,371,"大正"]
[null,null,null,null,null,null,null,null,null,null,null,372,"高石"]
[null,null,null,null,null,null,null,null,null,null,null,373,"登美丘"]
[null,null,null,null,null,null,null,null,null,null,null,374,"西成"]
[null,null,null,null,null,null,null,null,null,null,null,376,"伯太"]
[null,null,null,null,null,null,null,null,null,null,null,377,"阪南大学"]
[null,null,null,null,null,null,null,null,null,null,null,378,"東百舌鳥"]
[null,null,null,null,null,null,null,null,null,null,null,379,"福泉"]
[null,null,null,null,null,null,null,null,null,null,null,380,"成美"]
[null,null,null,null,null,null,null,null,null,null,null,381,"三国丘"]
[null,null,null,null,null,null,null,null,null,null,null,382,"岬"]
[null,null,null,null,null,null,null,null,null,null,null,383,"港"]
[null,null,null,null,null,null,null,null,null,null,null,384,"大和川"]
[null,null,null,null,null,null,null,null,null,null,null,385,"横山"]
[null,null,null,null,null,null,null,null,null,null,null,386,"和泉総合"]
[null,null,null,null,null,null,null,null,null,null,null,387,"今宮工科"]
[null,null,null,null,null,null,null,null,null,null,null,388,"堺工科"]
[null,null,null,null,null,null,null,null,null,null,null,389,"佐野工科"]
[null,null,null,null,null,null,null,null,null,null,null,390,"西野田工科"]
[null,null,null,null,null,null,null,null,null,null,null,391,"日根野"]
[null,null,null,null,null,null,null,null,null,null,null,392,"扇町"]
[null,null,null,null,null,null,null,null,null,null,null,393,"堺市商"]
[null,null,null,null,null,null,null,null,null,null,null,394,"泉尾工業"]
[null,null,null,null,null,null,null,null,null,null,null,395,"岸和田市立産業"]
[null,null,null,null,null,null,null,null,null,null,null,396,"咲くやこの花"]
[null,null,null,null,null,null,null,null,null,null,null,397,"堺市立堺"]
[null,null,null,null,null,null,null,null,null,null,null,398,"大阪商業大学堺　"]
[null,null,null,null,null,null,null,null,null,null,null,399,"大阪学芸"]
[null,null,null,null,null,null,null,null,null,null,null,400,"清教学園"]
[null,null,null,null,null,null,null,null,null,null,null,401,"浪速"]
[null,null,null,null,null,null,null,null,null,null,null,402,"初芝立命館"]
[null,null,null,null,null,null,null,null,null,null,null,404,"帝塚山泉ヶ丘"]
[null,null,null,null,null,null,null,null,null,null,null,405,"金剛学園"]
[null,null,null,null,null,null,null,null,null,null,null,406,"大体大浪商"]
[null,null,null,null,null,null,null,null,null,null,null,407,"教育大天王寺"]
[null,null,null,null,null,null,null,null,null,null,null,408,"教育大附平野"]
[null,null,null,null,null,null,null,null,null,null,null,409,"阿倍野"]
[null,null,null,null,null,null,null,null,null,null,null,410,"生野"]
[null,null,null,null,null,null,null,null,null,null,null,411,"池島"]
[null,null,null,null,null,null,null,null,null,null,null,412,"大塚"]
[null,null,null,null,null,null,null,null,null,null,null,413,"柏原東"]
[null,null,null,null,null,null,null,null,null,null,null,414,"河南"]
[null,null,null,null,null,null,null,null,null,null,null,416,"金剛"]
[null,null,null,null,null,null,null,null,null,null,null,417,"住吉"]
[null,null,null,null,null,null,null,null,null,null,null,418,"清友"]
[null,null,null,null,null,null,null,null,null,null,null,419,"天王寺"]
[null,null,null,null,null,null,null,null,null,null,null,420,"富田林"]
[null,null,null,null,null,null,null,null,null,null,null,421,"長野"]
[null,null,null,null,null,null,null,null,null,null,null,422,"長野北"]
[null,null,null,null,null,null,null,null,null,null,null,423,"長吉"]
[null,null,null,null,null,null,null,null,null,null,null,424,"西浦"]
[null,null,null,null,null,null,null,null,null,null,null,425,"花園"]
[null,null,null,null,null,null,null,null,null,null,null,426,"懐風館"]
[null,null,null,null,null,null,null,null,null,null,null,427,"東住吉"]
[null,null,null,null,null,null,null,null,null,null,null,428,"平野"]
[null,null,null,null,null,null,null,null,null,null,null,429,"藤井寺"]
[null,null,null,null,null,null,null,null,null,null,null,430,"布施"]
[null,null,null,null,null,null,null,null,null,null,null,431,"布施北"]
[null,null,null,null,null,null,null,null,null,null,null,432,"松原"]
[null,null,null,null,null,null,null,null,null,null,null,433,"美原"]
[null,null,null,null,null,null,null,null,null,null,null,434,"八尾"]
[null,null,null,null,null,null,null,null,null,null,null,435,"八尾北"]
[null,null,null,null,null,null,null,null,null,null,null,436,"八尾翠翔"]
[null,null,null,null,null,null,null,null,null,null,null,438,"山本"]
[null,null,null,null,null,null,null,null,null,null,null,439,"牧岡樟風"]
[null,null,null,null,null,null,null,null,null,null,null,440,"農芸"]
[null,null,null,null,null,null,null,null,null,null,null,441,"東住吉総"]
[null,null,null,null,null,null,null,null,null,null,null,442,"藤井寺工科"]
[null,null,null,null,null,null,null,null,null,null,null,443,"布施工科"]
[null,null,null,null,null,null,null,null,null,null,null,445,"日新"]
[null,null,null,null,null,null,null,null,null,null,null,446,"上宮"]
[null,null,null,null,null,null,null,null,null,null,null,447,"金光八尾"]
[null,null,null,null,null,null,null,null,null,null,null,448,"阪南大学"]
[null,null,null,null,null,null,null,null,null,null,null,449,"大阪商業大学"]
[null,null,null,null,null,null,null,null,null,null,null,450,"東大阪大学柏原"]
[null,null,null,null,null,null,null,null,null,null,null,451,"近畿大学附属"]
[null,null,null,null,null,null,null,null,null,null,null,452,"興國"]
[null,null,null,null,null,null,null,null,null,null,null,453,"四天王寺羽曳丘"]
[null,null,null,null,null,null,null,null,null,null,null,454,"大阪星光学園"]
[null,null,null,null,null,null,null,null,null,null,null,455,"清風"]
[null,null,null,null,null,null,null,null,null,null,null,456,"ＰＬ学園"]
[null,null,null,null,null,null,null,null,null,null,null,457,"桃山学院"]
[null,null,null,null,null,null,null,null,null,null,null,458,"芥川"]
[null,null,null,null,null,null,null,null,null,null,null,459,"阿武野"]
[null,null,null,null,null,null,null,null,null,null,null,460,"池田"]
[null,null,null,null,null,null,null,null,null,null,null,461,"池田北"]
[null,null,null,null,null,null,null,null,null,null,null,462,"茨木"]
[null,null,null,null,null,null,null,null,null,null,null,463,"茨木西"]
[null,null,null,null,null,null,null,null,null,null,null,464,"茨木東"]
[null,null,null,null,null,null,null,null,null,null,null,465,"園芸"]
[null,null,null,null,null,null,null,null,null,null,null,466,"春日丘"]
[null,null,null,null,null,null,null,null,null,null,null,467,"北千里"]
[null,null,null,null,null,null,null,null,null,null,null,468,"北野"]
[null,null,null,null,null,null,null,null,null,null,null,469,"柴島"]
[null,null,null,null,null,null,null,null,null,null,null,470,"桜塚"]
[null,null,null,null,null,null,null,null,null,null,null,471,"渋谷"]
[null,null,null,null,null,null,null,null,null,null,null,472,"少路"]
[null,null,null,null,null,null,null,null,null,null,null,473,"規の木"]
[null,null,null,null,null,null,null,null,null,null,null,474,"島本"]
[null,null,null,null,null,null,null,null,null,null,null,475,"城山"]
[null,null,null,null,null,null,null,null,null,null,null,476,"吹田"]
[null,null,null,null,null,null,null,null,null,null,null,477,"吹田東"]
[null,null,null,null,null,null,null,null,null,null,null,478,"摂津"]
[null,null,null,null,null,null,null,null,null,null,null,479,"千里"]
[null,null,null,null,null,null,null,null,null,null,null,481,"高槻北"]
[null,null,null,null,null,null,null,null,null,null,null,482,"豊島"]
[null,null,null,null,null,null,null,null,null,null,null,483,"豊中"]
[null,null,null,null,null,null,null,null,null,null,null,484,"鳥飼"]
[null,null,null,null,null,null,null,null,null,null,null,485,"西淀川"]
[null,null,null,null,null,null,null,null,null,null,null,486,"東豊中"]
[null,null,null,null,null,null,null,null,null,null,null,487,"東淀川"]
[null,null,null,null,null,null,null,null,null,null,null,488,"福井"]
[null,null,null,null,null,null,null,null,null,null,null,489,"三島"]
[null,null,null,null,null,null,null,null,null,null,null,490,"箕面"]
[null,null,null,null,null,null,null,null,null,null,null,491,"箕面東"]
[null,null,null,null,null,null,null,null,null,null,null,492,"茨木工科"]
[null,null,null,null,null,null,null,null,null,null,null,493,"大冠"]
[null,null,null,null,null,null,null,null,null,null,null,494,"北淀"]
[null,null,null,null,null,null,null,null,null,null,null,495,"淀商"]
[null,null,null,null,null,null,null,null,null,null,null,496,"東淀工業"]
[null,null,null,null,null,null,null,null,null,null,null,497,"大阪学院"]
[null,null,null,null,null,null,null,null,null,null,null,498,"大阪"]
[null,null,null,null,null,null,null,null,null,null,null,499,"大商学園"]
[null,null,null,null,null,null,null,null,null,null,null,500,"追手門学院"]
[null,null,null,null,null,null,null,null,null,null,null,501,"関西大倉"]
[null,null,null,null,null,null,null,null,null,null,null,502,"関大一"]
[null,null,null,null,null,null,null,null,null,null,null,503,"金光大阪"]
[null,null,null,null,null,null,null,null,null,null,null,504,"高槻"]
[null,null,null,null,null,null,null,null,null,null,null,505,"星翔"]
[null,null,null,null,null,null,null,null,null,null,null,506,"履正社"]
[null,null,null,null,null,null,null,null,null,null,null,507,"関大北陽"]
[null,null,null,null,null,null,null,null,null,null,null,508,"箕面学園"]
[null,null,null,null,null,null,null,null,null,null,null,509,"箕面自由学園"]
[null,null,null,null,null,null,null,null,null,null,null,550,"建国"]
[null,null,null,null,null,null,null,null,null,null,null,551,"能勢"]
[null,null,null,null,null,null,null,null,null,null,null,554,"四條畷北"]
[null,null,null,null,null,null,null,null,null,null,null,555,"野崎"]
[null,null,null,null,null,null,null,null,null,null,null,556,"関西創価"]
[null,null,null,null,null,null,null,null,null,null,null,557,"プール学院"]
[null,null,null,null,null,null,null,null,null,null,null,558,"清明学院"]
[null,null,null,null,null,null,null,null,null,null,null,562,"上宮太子"]
[null,null,null,null,null,null,null,null,null,null,null,564,"南寝屋川"]
[null,null,null,null,null,null,null,null,null,null,null,565,"鶴見商業"]
[null,null,null,null,null,null,null,null,null,null,null,569,"東大阪大学敬愛"]
[null,null,null,null,null,null,null,null,null,null,null,571,"英真学園"]
[null,null,null,null,null,null,null,null,null,null,null,597,"大阪朝鮮高級"]
[null,null,null,null,null,null,null,null,null,null,null,403,"清風南海"]
[null,null,null,null,null,null,null,null,null,null,null,560,"天王寺商業"]
[null,null,null,null,null,null,null,null,null,null,null,572,"山田"]
[null,null,null,null,null,null,null,null,null,null,null,575,"交野"]
[null,null,null,null,null,null,null,null,null,null,null,577,"西"]
[null,null,null,null,null,null,null,null,null,null,null,580,"金光藤蔭"]
[null,null,null,null,null,null,null,null,null,null,null,583,"福島女子"]
[null,null,null,null,null,null,null,null,null,null,null,584,"羽衣学園"]
[null,null,null,null,null,null,null,null,null,null,null,585,"国際滝井"]
[null,null,null,null,null,null,null,null,null,null,null,598,"大阪府立大工業高専"]
[null,null,null,null,null,null,null,null,null,null,null,587,"住吉商業"]

{"sheet":"申込選手一覧（個人）","index":5,"n_rows":37,"n_cols":6,"rows_kept":37,"cut":false,"hidden":false,"merged":[]}
[null,"階級","姓","名","ふりがな"]
[1,{"$f":"入力シート!C51","v":60},{"$f":"入力シート!I52","v":0},{"$f":"入力シート!Y52","v":0},{"$f":"入力シート!I51&\"　\"&入力シート!Y51","v":"　"},{"$f":"IF(C2=\"\",\"\",\"（\"&入力シート!$L$2&\"）\")","v":{"$error":"#N/A"}}]
[2,{"$f":"入力シート!C55","v":60},{"$f":"入力シート!I56","v":0},{"$f":"入力シート!Y56","v":0},{"$f":"入力シート!I55&\"　\"&入力シート!Y55","v":"　"},{"$f":"IF(C3=\"\",\"\",\"（\"&入力シート!$L$2&\"）\")","v":{"$error":"#N/A"}}]
[3,{"$f":"入力シート!C59","v":66},{"$f":"入力シート!I60","v":0},{"$f":"入力シート!Y60","v":0},{"$f":"入力シート!I59&\"　\"&入力シート!Y59","v":"　"},{"$f":"IF(C4=\"\",\"\",\"（\"&入力シート!$L$2&\"）\")","v":{"$error":"#N/A"}}]
[4,{"$f":"入力シート!C63","v":66},{"$f":"入力シート!I64","v":0},{"$f":"入力シート!Y64","v":0},{"$f":"入力シート!I63&\"　\"&入力シート!Y63","v":"　"},{"$f":"IF(C5=\"\",\"\",\"（\"&入力シート!$L$2&\"）\")","v":{"$error":"#N/A"}}]
[5,{"$f":"入力シート!C67","v":73},{"$f":"入力シート!I68","v":0},{"$f":"入力シート!Y68","v":0},{"$f":"入力シート!I67&\"　\"&入力シート!Y67","v":"　"},{"$f":"IF(C6=\"\",\"\",\"（\"&入力シート!$L$2&\"）\")","v":{"$error":"#N/A"}}]
[6,{"$f":"入力シート!C71","v":73},{"$f":"入力シート!I72","v":0},{"$f":"入力シート!Y72","v":0},{"$f":"入力シート!I71&\"　\"&入力シート!Y71","v":"　"},{"$f":"IF(C7=\"\",\"\",\"（\"&入力シート!$L$2&\"）\")","v":{"$error":"#N/A"}}]
[7,{"$f":"入力シート!C75","v":81},{"$f":"入力シート!I76","v":0},{"$f":"入力シート!Y76","v":0},{"$f":"入力シート!I75&\"　\"&入力シート!Y75","v":"　"},{"$f":"IF(C8=\"\",\"\",\"（\"&入力シート!$L$2&\"）\")","v":{"$error":"#N/A"}}]
[8,{"$f":"入力シート!C79","v":81},{"$f":"入力シート!I80","v":0},{"$f":"入力シート!Y80","v":0},{"$f":"入力シート!I79&\"　\"&入力シート!Y79","v":"　"},{"$f":"IF(C9=\"\",\"\",\"（\"&入力シート!$L$2&\"）\")","v":{"$error":"#N/A"}}]
[9,{"$f":"入力シート!C83","v":90},{"$f":"入力シート!I84","v":0},{"$f":"入力シート!Y84","v":0},{"$f":"入力シート!I83&\"　\"&入力シート!Y83","v":"　"},{"$f":"IF(C10=\"\",\"\",\"（\"&入力シート!$L$2&\"）\")","v":{"$error":"#N/A"}}]
[10,{"$f":"入力シート!C87","v":90},{"$f":"入力シート!I88","v":0},{"$f":"入力シート!Y88","v":0},{"$f":"入力シート!I87&\"　\"&入力シート!Y87","v":"　"},{"$f":"IF(C11=\"\",\"\",\"（\"&入力シート!$L$2&\"）\")","v":{"$error":"#N/A"}}]
[11,{"$f":"入力シート!C91","v":100},{"$f":"入力シート!I92","v":0},{"$f":"入力シート!Y92","v":0},{"$f":"入力シート!I91&\"　\"&入力シート!Y91","v":"　"},{"$f":"IF(C12=\"\",\"\",\"（\"&入力シート!$L$2&\"）\")","v":{"$error":"#N/A"}}]
[12,{"$f":"入力シート!C95","v":100},{"$f":"入力シート!I96","v":0},{"$f":"入力シート!Y96","v":0},{"$f":"入力シート!I95&\"　\"&入力シート!Y95","v":"　"},{"$f":"IF(C13=\"\",\"\",\"（\"&入力シート!$L$2&\"）\")","v":{"$error":"#N/A"}}]
[13,{"$f":"入力シート!C99","v":"+100"},{"$f":"入力シート!I100","v":0},{"$f":"入力シート!Y100","v":0},{"$f":"入力シート!I99&\"　\"&入力シート!Y99","v":"　"},{"$f":"IF(C14=\"\",\"\",\"（\"&入力シート!$L$2&\"）\")","v":{"$error":"#N/A"}}]
[14,{"$f":"入力シート!C103","v":"+100"},{"$f":"入力シート!I104","v":0},{"$f":"入力シート!Y104","v":0},{"$f":"入力シート!I103&\"　\"&入力シート!Y103","v":"　"},{"$f":"IF(C15=\"\",\"\",\"（\"&入力シート!$L$2&\"）\")","v":{"$error":"#N/A"}}]
[15,{"$f":"入力シート!C112","v":0},{"$f":"入力シート!I113","v":0},{"$f":"入力シート!Y113","v":0},{"$f":"入力シート!I112&\"　\"&入力シート!Y112","v":"　"},{"$f":"IF(C16=\"\",\"\",\"（\"&入力シート!$L$2&\"）\")","v":{"$error":"#N/A"}}]
[16,{"$f":"入力シート!C116","v":0},{"$f":"入力シート!I117","v":0},{"$f":"入力シート!Y117","v":0},{"$f":"入力シート!I116&\"　\"&入力シート!Y116","v":"　"},{"$f":"IF(C17=\"\",\"\",\"（\"&入力シート!$L$2&\"）\")","v":{"$error":"#N/A"}}]
[17,{"$f":"入力シート!C120","v":0},{"$f":"入力シート!I121","v":0},{"$f":"入力シート!Y121","v":0},{"$f":"入力シート!I120&\"　\"&入力シート!Y120","v":"　"},{"$f":"IF(C18=\"\",\"\",\"（\"&入力シート!$L$2&\"）\")","v":{"$error":"#N/A"}}]
[18,{"$f":"入力シート!C124","v":0},{"$f":"入力シート!I125","v":0},{"$f":"入力シート!Y125","v":0},{"$f":"入力シート!I124&\"　\"&入力シート!Y124","v":"　"},{"$f":"IF(C19=\"\",\"\",\"（\"&入力シート!$L$2&\"）\")","v":{"$error":"#N/A"}}]
[19,{"$f":"入力シート!C128","v":0},{"$f":"入力シート!I129","v":0},{"$f":"入力シート!Y129","v":0},{"$f":"入力シート!I128&\"　\"&入力シート!Y128","v":"　"},{"$f":"IF(C20=\"\",\"\",\"（\"&入力シート!$L$2&\"）\")","v":{"$error":"#N/A"}}]
[20,{"$f":"入力シート!C132","v":0},{"$f":"入力シート!I133","v":0},{"$f":"入力シート!Y133","v":0},{"$f":"入力シート!I132&\"　\"&入力シート!Y132","v":"　"},{"$f":"IF(C21=\"\",\"\",\"（\"&入力シート!$L$2&\"）\")","v":{"$error":"#N/A"}}]
[21,{"$f":"入力シート!C136","v":0},{"$f":"入力シート!I137","v":0},{"$f":"入力シート!Y137","v":0},{"$f":"入力シート!I136&\"　\"&入力シート!Y136","v":"　"},{"$f":"IF(C22=\"\",\"\",\"（\"&入力シート!$L$2&\"）\")","v":{"$error":"#N/A"}}]
[22,{"$f":"入力シート!C140","v":0},{"$f":"入力シート!I141","v":0},{"$f":"入力シート!Y141","v":0},{"$f":"入力シート!I140&\"　\"&入力シート!Y140","v":"　"},{"$f":"IF(C23=\"\",\"\",\"（\"&入力シート!$L$2&\"）\")","v":{"$error":"#N/A"}}]
[23,{"$f":"入力シート!C144","v":0},{"$f":"入力シート!I145","v":0},{"$f":"入力シート!Y145","v":0},{"$f":"入力シート!I144&\"　\"&入力シート!Y144","v":"　"},{"$f":"IF(C24=\"\",\"\",\"（\"&入力シート!$L$2&\"）\")","v":{"$error":"#N/A"}}]
[24,{"$f":"入力シート!C148","v":0},{"$f":"入力シート!I149","v":0},{"$f":"入力シート!Y149","v":0},{"$f":"入力シート!I148&\"　\"&入力シート!Y148","v":"　"},{"$f":"IF(C25=\"\",\"\",\"（\"&入力シート!$L$2&\"）\")","v":{"$error":"#N/A"}}]
[25,{"$f":"入力シート!C152","v":0},{"$f":"入力シート!I153","v":0},{"$f":"入力シート!Y153","v":0},{"$f":"入力シート!I152&\"　\"&入力シート!Y152","v":"　"},{"$f":"IF(C26=\"\",\"\",\"（\"&入力シート!$L$2&\"）\")","v":{"$error":"#N/A"}}]
[26,{"$f":"入力シート!C156","v":0},{"$f":"入力シート!I157","v":0},{"$f":"入力シート!Y157","v":0},{"$f":"入力シート!I156&\"　\"&入力シート!Y156","v":"　"},{"$f":"IF(C27=\"\",\"\",\"（\"&入力シート!$L$2&\"）\")","v":{"$error":"#N/A"}}]
[27,{"$f":"入力シート!C160","v":0},{"$f":"入力シート!I161","v":0},{"$f":"入力シート!Y161","v":0},{"$f":"入力シート!I160&\"　\"&入力シート!Y160","v":"　"},{"$f":"IF(C28=\"\",\"\",\"（\"&入力シート!$L$2&\"）\")","v":{"$error":"#N/A"}}]
[28,{"$f":"入力シート!C164","v":0},{"$f":"入力シート!I165","v":0},{"$f":"入力シート!Y165","v":0},{"$f":"入力シート!I164&\"　\"&入力シート!Y164","v":"　"},{"$f":"IF(C29=\"\",\"\",\"（\"&入力シート!$L$2&\"）\")","v":{"$error":"#N/A"}}]
[29,{"$f":"入力シート!C168","v":0},{"$f":"入力シート!I169","v":0},{"$f":"入力シート!Y169","v":0},{"$f":"入力シート!I168&\"　\"&入力シート!Y168","v":"　"},{"$f":"IF(C30=\"\",\"\",\"（\"&入力シート!$L$2&\"）\")","v":{"$error":"#N/A"}}]
[30,{"$f":"入力シート!C172","v":0},{"$f":"入力シート!I173","v":0},{"$f":"入力シート!Y173","v":0},{"$f":"入力シート!I172&\"　\"&入力シート!Y172","v":"　"},{"$f":"IF(C31=\"\",\"\",\"（\"&入力シート!$L$2&\"）\")","v":{"$error":"#N/A"}}]
[31,{"$f":"入力シート!C176","v":0},{"$f":"入力シート!I177","v":0},{"$f":"入力シート!Y177","v":0},{"$f":"入力シート!I176&\"　\"&入力シート!Y176","v":"　"},{"$f":"IF(C32=\"\",\"\",\"（\"&入力シート!$L$2&\"）\")","v":{"$error":"#N/A"}}]
[32,{"$f":"入力シート!C180","v":0},{"$f":"入力シート!I181","v":0},{"$f":"入力シート!Y181","v":0},{"$f":"入力シート!I180&\"　\"&入力シート!Y180","v":"　"},{"$f":"IF(C33=\"\",\"\",\"（\"&入力シート!$L$2&\"）\")","v":{"$error":"#N/A"}}]
[33,{"$f":"入力シート!C184","v":0},{"$f":"入力シート!I185","v":0},{"$f":"入力シート!Y185","v":0},{"$f":"入力シート!I184&\"　\"&入力シート!Y184","v":"　"},{"$f":"IF(C34=\"\",\"\",\"（\"&入力シート!$L$2&\"）\")","v":{"$error":"#N/A"}}]
[34,{"$f":"入力シート!C188","v":0},{"$f":"入力シート!I189","v":0},{"$f":"入力シート!Y189","v":0},{"$f":"入力シート!I188&\"　\"&入力シート!Y188","v":"　"},{"$f":"IF(C35=\"\",\"\",\"（\"&入力シート!$L$2&\"）\")","v":{"$error":"#N/A"}}]
[35,{"$f":"入力シート!C192","v":0},{"$f":"入力シート!I193","v":0},{"$f":"入力シート!Y193","v":0},{"$f":"入力シート!I192&\"　\"&入力シート!Y192","v":"　"},{"$f":"IF(C36=\"\",\"\",\"（\"&入力シート!$L$2&\"）\")","v":{"$error":"#N/A"}}]
[36,{"$f":"入力シート!C196","v":0},{"$f":"入力シート!I197","v":0},{"$f":"入力シート!Y197","v":0},{"$f":"入力シート!I196&\"　\"&入力シート!Y196","v":"　"},{"$f":"IF(C37=\"\",\"\",\"（\"&入力シート!$L$2&\"）\")","v":{"$error":"#N/A"}}]